Workbook

Sheet Instructions
C3: PLEASE NOTE: There is a user guide available for the Care Spend Estimating Tool. This contains a step by step guide on how to use the model and an overview and explanation of all acronyms and abbreviations used in the Care Spend Estimating Tool.
C4: You can find the userguide here:
C5: https://www.gov.uk/government/publications/estimating-nhs-and-social-care-spend-a-tool-for-commissioners
C7: Instructions
C8: 1. First, go to through Step 1 and Step 2 input tabs - you will see them at the bottom of the tab list. Here, you will be able to input assumptions about future growth in costs, segment percentages, and utilisation over a period of 5 years for each segment. Follow the instructions on this worksheet to fill in your assumptions.
C9: 2. Then, go to the Master Pivot Table and Master Output Table. These will show you multitude of outputs based on assumptions the growth in population size, total spend, average spend, and utilisation over a five year time period. Master Pivot is especially powerful, as it will allow you to build custom reports with any combination of variables (knowledge of Excel pivot tables is required for proper operation)
C10: 3. Finally, after looking at the Output Table, you can find visualizations of the outputs in the two purple-coloured output tabs, which will allow you to quickly understand how the different segments will change over time according to your assumptions.
C11: 4. If you need to do quick projections around required savings targets year-by-year for the whole population and for specific segments, please use the Cost Savings Worksheet
C13: Tab Types
C14: 1. Input Tabs. The input tabs are the worksheets where you can input your assumptions about your current population and assumptions about future growth.
C15: 2. Output Table Tab. The output table is the master output sheets that shows the population growth, growth in utilisation and total spend for each segment by setting, based on the assumptions entered into the input worksheets.
C16: 3. Dashboard Tabs. The dashboard tabs will help you visually understand aspects of the outputs for all the segments together.
C18: Cell Types
C19: 1. Input cells are in yellow. This means that you can input a value or choose from a drop-down menu for any cell that is colored yellow
C20: 2. Other input cells are in grey, these are calculated from archetype data as well as CCG inputs
C21: 3. Output calculations are in white cells on output tabs.
C22: 4. Instruction cells are in light blue. These cells will give you instructions on what to input into the yellow cells in that particular table.
C23: 5. Titles are in dark blue. These cells tell you what the corresponding table represents.
C24: 6. Built in 'checks' are in pale green. If these cells remain pale green, all inputs are okay. If these cells become red then inputs must be adjusted

Sheet >>>INPUTS AND TOOLS>>>
B3: Input sheets: | C3: Description:
B4: Step 1- Basic Inputs | C4: Enter basic input assumptions around locality archetype and total population. Override default values around population breakdown into segments and total budget (calculated based on average spend for the archetype locality)
B5: Step 2 - Growth Inputs | C5: Enter input assumptions around population growth, non-demographic utilisation growth and unit cost growth. Override for individual segments, if necessary

Sheet Step 1- Basic Inputs
O2: Urban high income
O3: Urban low income
O4: Rural
C5: Step 1a: Choose between three available locality archetypes: | G5: Hybrid | O5: Hybrid
C7: Step 1b: Input registered population for the locality | G7: 250000
D8: O | E8: P | F8: Q | G8: R | H8: S | I8: T | J8: U | K8: V
C9: Estimated population breakdown of a representative CCG (based on our available datasets) | M9: =IF(L14<>1,"<-ERROR: You have overriden the default values by entering custom values in Step 1c (below) so that the totals don't sum up to 100%. Adjust overriden values to ensure this total equals to a 100%","") -> 
D10: Mostly healthy | E10: 1 LTC | F10: Multiple LTCs | G10: SEMI | H10: Dementia | I10: Cancer | J10: Learning Disability | K10: Physical Disability | L10: Grand Total | O10: Check table | P10: Mostly healthy | Q10: 1 LTC | R10: 2+ LTCs | S10: Serious and Enduring Mental Illness | T10: Dementia | U10: Cancer | V10: Learning Disability | W10: Physical Disability | X10: Grand Total
A11: 4 | C11: Child | D11: =IF(D20>0,D20,INDIRECT("'"&$G$5&"'!"&D$8&$A11)) -> 0.1749191221 | E11: =IF(E20>0,E20,INDIRECT("'"&$G$5&"'!"&E$8&$A11)) -> 0.007706136017 | F11: 0.000155157101 | G11: 0.0002675122431 | H11: 0 | I11: 7.133659817e-05 | J11: 0 | K11: 0 | L11: =SUM(D11:K11) -> 0.1831192641 | O11: Child | P11: =INDIRECT("'"&$G$5&"'!"&D$8&$A11) -> 0.1749191221 | Q11: =INDIRECT("'"&$G$5&"'!"&E$8&$A11) -> 0.007706136017 | R11: 0.000155157101 | S11: 0.0002675122431 | T11: 0 | U11: 7.133659817e-05 | V11: 0 | W11: 0
A12: 5 | C12: 16-69 | D12: =IF(D21>0,D21,INDIRECT("'"&$G$5&"'!"&D$8&$A12)) -> 0.5903638523 | E12: =IF(E21>0,E21,INDIRECT("'"&$G$5&"'!"&E$8&$A12)) -> 0.0918048516 | F12: 0.04192630216 | G12: =IF(G21>0,G21,INDIRECT("'"&$G$5&"'!"&G$8&$A12)) -> 0.00973744565 | H12: =IF(H21>0,H21,INDIRECT("'"&$G$5&"'!"&H$8&$A12)) -> 0.0002532449235 | I12: 0.008576442515 | J12: 0.001911820831 | K12: 0.0008239377089 | L12: =SUM(D12:K12) -> 0.7453978977 | O12: 16-69 | P12: =INDIRECT("'"&$G$5&"'!"&D$8&$A12) -> 0.5903638523 | Q12: 0.0918048516 | R12: 0.04192630216 | S12: 0.00973744565 | T12: 0.0002532449235 | U12: 0.008576442515 | V12: 0.001911820831 | W12: 0.0008239377089
A13: 6 | C13: 70+ | D13: =IF(D22>0,D22,INDIRECT("'"&$G$5&"'!"&D$8&$A13)) -> 0.01609531996 | E13: 0.01477737631 | F13: 0.02625900179 | G13: =IF(G22>0,G22,INDIRECT("'"&$G$5&"'!"&G$8&$A13)) -> 0.0009309426061 | H13: 0.002776777084 | I13: 0.008155556586 | J13: 8.738733276e-05 | K13: 0.002400476528 | L13: =SUM(D13:K13) -> 0.0714828382 | O13: 70+ | P13: =INDIRECT("'"&$G$5&"'!"&D$8&$A13) -> 0.01609531996 | Q13: 0.01477737631 | R13: 0.02625900179 | S13: 0.0009309426061 | T13: 0.002776777084 | U13: 0.008155556586 | V13: 8.738733276e-05 | W13: 0.002400476528
C14: Grand Total | D14: =SUM(D11:D13) -> 0.7813782944 | E14: =SUM(E11:E13) -> 0.1142883639 | F14: 0.06834046105 | G14: 0.0109359005 | H14: 0.003030022007 | I14: 0.0168033357 | J14: 0.001999208164 | K14: 0.003224414237 | L14: =ROUND(SUM(L11:L13),2) -> 1 | X14: =SUM(X11:X13) -> 0
C16: Step 1c (optional): Override the default distribution of the population [enter percentages] - ensure that the total in Cell L14 equals to 100%
C18: Override segment population breakdowns (enter percentages)
D19: Mostly healthy | E19: 1 LTC | F19: Multiple LTCs | G19: SEMI | H19: Dementia | I19: Cancer | J19: Learning Disability | K19: Physical Disability | L19: Override succesful?
C20: Child | L20: =IF(L14=1,"Yes","No") -> Yes
C21: 16-69
C22: 70+
C24: Estimated population breakdown based on your inputs
D25: Mostly healthy | E25: 1 LTC | F25: Multiple LTCs | G25: SEMI | H25: Dementia | I25: Cancer | J25: Learning Disability | K25: Physical Disability | L25: Grand Total
C26: Child | D26: =IFERROR(D11*$G$7,"n/a") -> 43729.78053 | E26: =IFERROR(E11*$G$7,"n/a") -> 1926.534004 | F26: 38.78927526 | G26: 66.87806079 | H26: 0 | I26: 17.83414954 | J26: 0 | K26: 0 | L26: =SUM(D26:K26) -> 45779.81602
C27: 16-69 | D27: 147590.9631 | E27: 22951.2129 | F27: =IFERROR(F12*$G$7,"n/a") -> 10481.57554 | G27: 2434.361413 | H27: 63.31123088 | I27: 2144.110629 | J27: 477.9552078 | K27: 205.9844272 | L27: =SUM(D27:K27) -> 186349.4744
C28: 70+ | D28: 4023.829991 | E28: =IFERROR(E13*$G$7,"n/a") -> 3694.344078 | F28: 6564.750447 | G28: 232.7356515 | H28: 694.194271 | I28: 2038.889146 | J28: 21.84683319 | K28: 600.1191321 | L28: =SUM(D28:K28) -> 17870.70955
C29: Grand Total | D29: =SUM(D26:D28) -> 195344.5736 | E29: =SUM(E26:E28) -> 28572.09098 | F29: 17085.11526 | G29: 2733.975125 | H29: 757.5055018 | I29: 4200.833925 | J29: 499.8020409 | K29: 806.1035593 | L29: =SUM(D29:K29) -> 250000
C31: Estimated total spend by setting, based on estimated per-person averages | D31: =D32 -> AE | E31: NEL | F31: EL | G31: OP | H31: MH | I31: GP | J31: =J32 -> Prescribing | K31: SC | L31: CC | O31: Profile string | P31: ="'"& Profile & "'!" -> 'Hybrid'!
D32: AE | E32: NEL | F32: EL | G32: OP | H32: MH | I32: GP | J32: Prescribing | K32: Social Care | L32: Community Care | M32: Total | O32: Array reference avg spend | P32: $D$39:$N$63
C33: Total Spend | D33: =INDEX(INDIRECT($P$31&$P$32),MATCH($P$33,INDIRECT($P$31&$P$34),0),MATCH(D$31,INDIRECT($P$31&$P$37),0))*Population -> 9670878.027 | E33: =INDEX(INDIRECT($P$31&$P$32),MATCH($P$33,INDIRECT($P$31&$P$34),0),MATCH(E$31,INDIRECT($P$31&$P$37),0))*Population -> 71576880.28 | F33: =INDEX(INDIRECT($P$31&$P$32),MATCH($P$33,INDIRECT($P$31&$P$34),0),MATCH(F$31,INDIRECT($P$31&$P$37),0))*Population -> 50192945.43 | G33: =INDEX(INDIRECT($P$31&$P$32),MATCH($P$33,INDIRECT($P$31&$P$34),0),MATCH(G$31,INDIRECT($P$31&$P$37),0))*Population -> 46272379.24 | H33: =INDEX(INDIRECT($P$31&$P$32),MATCH($P$33,INDIRECT($P$31&$P$34),0),MATCH(H$31,INDIRECT($P$31&$P$37),0))*Population -> 47692966.79 | I33: =INDEX(INDIRECT($P$31&$P$32),MATCH($P$33,INDIRECT($P$31&$P$34),0),MATCH(I$31,INDIRECT($P$31&$P$37),0))*Population -> 38934335.08 | J33: 28857275.03 | K33: =INDEX(INDIRECT($P$31&$P$32),MATCH($P$33,INDIRECT($P$31&$P$34),0),MATCH(K$31,INDIRECT($P$31&$P$37),0))*Population -> 84736655.56 | L33: =INDEX(INDIRECT($P$31&$P$32),MATCH($P$33,INDIRECT($P$31&$P$34),0),MATCH(L$31,INDIRECT($P$31&$P$37),0))*Population -> 52325045.7 | M33: =SUM(D33:L33) -> 430259361.1 | O33: Lookup value | P33: Grand Total
C34: Implied avg. per capita | D34: =D33/Population -> 38.68351211 | E34: =E33/Population -> 286.3075211 | F34: =F33/Population -> 200.7717817 | G34: 185.0895169 | H34: 190.7718672 | I34: 155.7373403 | J34: 115.4291001 | K34: 338.9466222 | L34: 209.3001828 | M34: 1721.037445 | O34: Row reference | P34: $C$11:$C$35
C36: Step 1d (Optional) Override total budget for the current year (Year 0) by setting of care
O37: Column reference spend | P37: $D$10:$N$10
C38: Override total spend by setting (in £ per annum)
D39: AE | E39: NEL | F39: EL | G39: OP | H39: MH | I39: GP | J39: Prescribing | K39: Social Care | L39: Community Care | M39: Total
C40: Total Spend | M40: =M41*Population -> 430259361.1
C41: Implied avg. per capita | D41: =IF(D40>0,D40/Population,"") ->  | K41: =IF(K40>0,K40/Population,"") ->  | M41: =M34+SUM(D42:L42) -> 1721.037445
C42: Delta with original percapita | D42: =IFERROR(D41-D34,"") ->  | E42: =IFERROR(E41-E34,"") ->  | J42: =IFERROR(J41-J34,"") ->  | K42: =IFERROR(K41-K34,"") ->  | M42: 0
C44: Assumed total spend by setting, after overrides
D45: AE | E45: NEL | F45: EL | G45: OP | H45: MH | I45: GP | J45: Prescribing | K45: Social Care | L45: Community Care | M45: Total
C46: Total Spend | D46: =IF(D40>0,D40,D33) -> 9670878.027 | E46: =IF(E40>0,E40,E33) -> 71576880.28 | F46: 50192945.43 | G46: 46272379.24 | H46: 47692966.79 | I46: 38934335.08 | J46: 28857275.03 | K46: 84736655.56 | L46: 52325045.7 | M46: =SUM(D46:L46) -> 430259361.1
C47: Implied avg. per capita | D47: =Spend_AE/Population -> 38.68351211 | E47: =Spend_NEL/Population -> 286.3075211 | F47: =Spend_EL/Population -> 200.7717817 | G47: =Spend_OP/Population -> 185.0895169 | H47: =Spend_MH/Population -> 190.7718672 | I47: =Spend_GP/Population -> 155.7373403 | J47: =Spend_RX/Population -> 115.4291001 | K47: =Spend_SC/Population -> 338.9466222 | L47: =Spend_CC/Population -> 209.3001828 | M47: =M46/L29 -> 1721.037445

Sheet Step 2 - Growth Inputs
N4: CHOOSE SEGMENT:
C5: Grand_Total | F5: Default growth rate inputs for all segments | N5: _DEFAULT ASSUMPTIONS FOR ALL SEGMENTS
C6: Grand_Total | F6: Percentage year-on-year change in population (split by 3 age categories) | N6: _DEFAULT ASSUMPTIONS FOR ALL SEGMENTS
C7: Grand_Total | G7: Year 0 | H7: Year 1 | I7: Year 2 | J7: Year 3 | K7: Year 4 | N7: _DEFAULT ASSUMPTIONS FOR ALL SEGMENTS
C8: Grand_Total | D8: =C8&"_"&F8&"_"&E8 -> Grand_Total_Child (<16) population growth_ | F8: Child (<16) population growth | G8: 0 | H8: 0.015 | I8: 0.015 | J8: 0.015 | K8: 0.015 | N8: _DEFAULT ASSUMPTIONS FOR ALL SEGMENTS
C9: Grand_Total | D9: =C9&"_"&F9&"_"&E9 -> Grand_Total_16-69 population growth_ | F9: 16-69 population growth | G9: 0 | H9: 0.005 | I9: 0.005 | J9: 0.005 | K9: 0.005 | N9: _DEFAULT ASSUMPTIONS FOR ALL SEGMENTS
C10: Grand_Total | D10: =C10&"_"&F10&"_"&E10 -> Grand_Total_70+ population growth_ | F10: 70+ population growth | G10: 0 | H10: 0.02 | I10: 0.02 | J10: 0.02 | K10: 0.02 | N10: _DEFAULT ASSUMPTIONS FOR ALL SEGMENTS
C11: Grand_Total | D11: Grand_Total__ | N11: _DEFAULT ASSUMPTIONS FOR ALL SEGMENTS
C12: Grand_Total | D12: Grand_Total__ | N12: _DEFAULT ASSUMPTIONS FOR ALL SEGMENTS
C13: Grand_Total | D13: Grand_Total_Projected change in average non-demographic growth per capita_ | F13: Projected change in average non-demographic growth per capita | N13: _DEFAULT ASSUMPTIONS FOR ALL SEGMENTS
C14: Grand_Total | D14: Grand_Total__ | G14: Year 0 | H14: Year 1 | I14: Year 2 | J14: Year 3 | K14: Year 4 | N14: _DEFAULT ASSUMPTIONS FOR ALL SEGMENTS
C15: Grand_Total | D15: =C15&"_"&F15&"_"&E15 -> Grand_Total_AE_U | E15: U | F15: AE | G15: 0 | H15: 0.02 | I15: 0.02 | J15: 0.02 | K15: 0.02 | N15: _DEFAULT ASSUMPTIONS FOR ALL SEGMENTS
C16: Grand_Total | D16: =C16&"_"&F16&"_"&E16 -> Grand_Total_NEL_U | E16: U | F16: NEL | G16: 0 | H16: 0.02 | I16: 0.02 | J16: 0.02 | K16: 0.02 | N16: _DEFAULT ASSUMPTIONS FOR ALL SEGMENTS
C17: Grand_Total | D17: Grand_Total_EL_U | E17: U | F17: EL | G17: 0 | H17: 0.02 | I17: 0.02 | J17: 0.02 | K17: 0.02 | N17: _DEFAULT ASSUMPTIONS FOR ALL SEGMENTS
C18: Grand_Total | D18: Grand_Total_OP_U | E18: U | F18: OP | G18: 0 | H18: 0.02 | I18: 0.02 | J18: 0.02 | K18: 0.02 | N18: _DEFAULT ASSUMPTIONS FOR ALL SEGMENTS
C19: Grand_Total | D19: Grand_Total_MH_U | E19: U | F19: MH | G19: 0 | H19: 0.02 | I19: 0.02 | J19: 0.02 | K19: 0.02 | N19: _DEFAULT ASSUMPTIONS FOR ALL SEGMENTS
C20: Grand_Total | D20: Grand_Total_GP_U | E20: U | F20: GP | G20: 0 | H20: 0.02 | I20: 0.02 | J20: 0.02 | K20: 0.02 | N20: _DEFAULT ASSUMPTIONS FOR ALL SEGMENTS
C21: Grand_Total | D21: Grand_Total_Prescribing_U | E21: U | F21: Prescribing | G21: 0 | H21: 0.05 | I21: 0.05 | J21: 0.05 | K21: 0.05 | N21: _DEFAULT ASSUMPTIONS FOR ALL SEGMENTS
C22: Grand_Total | D22: Grand_Total_SC_U | E22: U | F22: SC | G22: 0 | H22: 0.02 | I22: 0.02 | J22: 0.02 | K22: 0.02 | N22: _DEFAULT ASSUMPTIONS FOR ALL SEGMENTS
C23: Grand_Total | D23: Grand_Total_CC_U | E23: U | F23: CC | G23: 0 | H23: 0.05 | I23: 0.05 | J23: 0.05 | K23: 0.05 | N23: _DEFAULT ASSUMPTIONS FOR ALL SEGMENTS
C24: Grand_Total | D24: Grand_Total__ | N24: _DEFAULT ASSUMPTIONS FOR ALL SEGMENTS
C25: Grand_Total | D25: Grand_Total_Projected change in average cost of interactions (cost uplift and efficiency factor + GDP inflation)_ | F25: Projected change in average cost of interactions (cost uplift and efficiency factor + GDP inflation) | N25: _DEFAULT ASSUMPTIONS FOR ALL SEGMENTS
C26: Grand_Total | D26: Grand_Total__ | G26: Year 0 | H26: Year 1 | I26: Year 2 | J26: Year 3 | K26: Year 4 | N26: _DEFAULT ASSUMPTIONS FOR ALL SEGMENTS
C27: Grand_Total | D27: Grand_Total_AE_I | E27: I | F27: AE | G27: 0 | H27: -0.014 | I27: -0.011 | J27: 0.004 | K27: -0.006 | N27: _DEFAULT ASSUMPTIONS FOR ALL SEGMENTS
C28: Grand_Total | D28: Grand_Total_NEL_I | E28: I | F28: NEL | G28: 0 | H28: -0.014 | I28: -0.011 | J28: 0.004 | K28: -0.006 | N28: _DEFAULT ASSUMPTIONS FOR ALL SEGMENTS
C29: Grand_Total | D29: Grand_Total_EL_I | E29: I | F29: EL | G29: 0 | H29: -0.014 | I29: -0.011 | J29: 0.004 | K29: -0.006 | N29: _DEFAULT ASSUMPTIONS FOR ALL SEGMENTS
C30: Grand_Total | D30: Grand_Total_OP_I | E30: I | F30: OP | G30: 0 | H30: -0.014 | I30: -0.011 | J30: 0.004 | K30: -0.006 | N30: _DEFAULT ASSUMPTIONS FOR ALL SEGMENTS
C31: Grand_Total | D31: Grand_Total_MH_I | E31: I | F31: MH | G31: 0 | H31: -0.014 | I31: -0.011 | J31: 0.004 | K31: -0.006 | N31: _DEFAULT ASSUMPTIONS FOR ALL SEGMENTS
C32: Grand_Total | D32: Grand_Total_GP_I | E32: I | F32: GP | G32: 0 | H32: -0.014 | I32: -0.011 | J32: 0.004 | K32: -0.006 | N32: _DEFAULT ASSUMPTIONS FOR ALL SEGMENTS
C33: Grand_Total | D33: Grand_Total_Prescribing_I | E33: I | F33: Prescribing | G33: 0 | H33: -0.014 | I33: -0.011 | J33: 0.004 | K33: -0.006 | N33: _DEFAULT ASSUMPTIONS FOR ALL SEGMENTS
C34: Grand_Total | D34: Grand_Total_SC_I | E34: I | F34: SC | G34: 0 | H34: -0.014 | I34: -0.011 | J34: 0.004 | K34: -0.006 | N34: _DEFAULT ASSUMPTIONS FOR ALL SEGMENTS
C35: Grand_Total | D35: Grand_Total_CC_I | E35: I | F35: CC | G35: 0 | H35: -0.014 | I35: -0.011 | J35: 0.004 | K35: -0.006 | N35: _DEFAULT ASSUMPTIONS FOR ALL SEGMENTS
C36: Grand_Total | N36: _DEFAULT ASSUMPTIONS FOR ALL SEGMENTS
C37: Grand_Total | N37: _DEFAULT ASSUMPTIONS FOR ALL SEGMENTS
C38: Child_Mostly healthy | F38: Child: Mostly Healthy | N38: =C38 -> Child_Mostly healthy
C39: Child_Mostly healthy | F39: Percentage year-on-year change in segment population | N39: Child_Mostly healthy
C40: Child_Mostly healthy | G40: Year 0 | H40: Year 1 | I40: Year 2 | J40: Year 3 | K40: Year 4 | N40: Child_Mostly healthy
C41: Child_Mostly healthy | D41: =C41&"_"&F41&"_"&E41 -> Child_Mostly healthy_Population Change_ | F41: Population Change | N41: Child_Mostly healthy
C42: Child_Mostly healthy | D42: Child_Mostly healthy__ | N42: Child_Mostly healthy
C43: Child_Mostly healthy | D43: Child_Mostly healthy__ | N43: Child_Mostly healthy
C44: Child_Mostly healthy | D44: Child_Mostly healthy_Projected change in average utilisation_ | F44: Projected change in average utilisation | N44: Child_Mostly healthy
C45: Child_Mostly healthy | D45: Child_Mostly healthy__ | G45: Year 0 | H45: Year 1 | I45: Year 2 | J45: Year 3 | K45: Year 4 | N45: Child_Mostly healthy
B46: Cost | C46: Child_Mostly healthy | D46: Child_Mostly healthy_AE_U | E46: U | F46: AE | N46: Child_Mostly healthy
B47: Cost | C47: Child_Mostly healthy | D47: =C47&"_"&F47&"_"&E47 -> Child_Mostly healthy_NEL_U | E47: U | F47: NEL | N47: Child_Mostly healthy
B48: Cost | C48: Child_Mostly healthy | D48: Child_Mostly healthy_EL_U | E48: U | F48: EL | N48: Child_Mostly healthy
B49: Cost | C49: Child_Mostly healthy | D49: Child_Mostly healthy_OP_U | E49: U | F49: OP | N49: Child_Mostly healthy
B50: Cost | C50: Child_Mostly healthy | D50: Child_Mostly healthy_MH_U | E50: U | F50: MH | N50: Child_Mostly healthy
B51: Cost | C51: Child_Mostly healthy | D51: Child_Mostly healthy_GP_U | E51: U | F51: GP | N51: Child_Mostly healthy
B52: Cost | C52: Child_Mostly healthy | D52: Child_Mostly healthy_Prescribing_U | E52: U | F52: Prescribing | N52: Child_Mostly healthy
B53: Cost | C53: Child_Mostly healthy | D53: Child_Mostly healthy_SC_U | E53: U | F53: SC | N53: Child_Mostly healthy
B54: Cost | C54: Child_Mostly healthy | D54: Child_Mostly healthy_CC_U | E54: U | F54: CC | N54: Child_Mostly healthy
C55: Child_Mostly healthy | D55: Child_Mostly healthy__ | N55: Child_Mostly healthy
C56: Child_Mostly healthy | D56: Child_Mostly healthy_Projected change in average cost of interactions_ | F56: Projected change in average cost of interactions | N56: Child_Mostly healthy
C57: Child_Mostly healthy | D57: Child_Mostly healthy__ | G57: Year 0 | H57: Year 1 | I57: Year 2 | J57: Year 3 | K57: Year 4 | N57: Child_Mostly healthy
B58: Utilisation | C58: Child_Mostly healthy | D58: Child_Mostly healthy_AE_I | E58: I | F58: AE | N58: Child_Mostly healthy
B59: Utilisation | C59: Child_Mostly healthy | D59: Child_Mostly healthy_NEL_I | E59: I | F59: NEL | N59: Child_Mostly healthy
B60: Utilisation | C60: Child_Mostly healthy | D60: Child_Mostly healthy_EL_I | E60: I | F60: EL | N60: Child_Mostly healthy
B61: Utilisation | C61: Child_Mostly healthy | D61: Child_Mostly healthy_OP_I | E61: I | F61: OP | N61: Child_Mostly healthy
B62: Utilisation | C62: Child_Mostly healthy | D62: Child_Mostly healthy_MH_I | E62: I | F62: MH | N62: Child_Mostly healthy
B63: Utilisation | C63: Child_Mostly healthy | D63: Child_Mostly healthy_GP_I | E63: I | F63: GP | N63: Child_Mostly healthy
B64: Utilisation | C64: Child_Mostly healthy | D64: Child_Mostly healthy_Prescribing_I | E64: I | F64: Prescribing | N64: Child_Mostly healthy
B65: Utilisation | C65: Child_Mostly healthy | D65: Child_Mostly healthy_SC_I | E65: I | F65: SC | N65: Child_Mostly healthy
B66: Utilisation | C66: Child_Mostly healthy | D66: Child_Mostly healthy_CC_I | E66: I | F66: CC | N66: Child_Mostly healthy
C67: Child_Mostly healthy | D67: Child_Mostly healthy__ | N67: Child_Mostly healthy
C68: Child_1LTC | D68: Child_1LTC_Child: 1 LTC_ | F68: Child: 1 LTC | N68: Child_1LTC
C69: Child_1LTC | D69: Child_1LTC_Percentage year-on-year change in segment population_ | F69: Percentage year-on-year change in segment population | N69: Child_1LTC
C70: Child_1LTC | D70: Child_1LTC__ | G70: Year 0 | H70: Year 1 | I70: Year 2 | J70: Year 3 | K70: Year 4 | N70: Child_1LTC
C71: Child_1LTC | D71: Child_1LTC_Population Change_ | F71: Population Change | N71: Child_1LTC
C72: Child_1LTC | D72: Child_1LTC__ | N72: Child_1LTC
C73: Child_1LTC | D73: Child_1LTC__ | N73: Child_1LTC
C74: Child_1LTC | D74: Child_1LTC_Projected change in average utilisation_ | F74: Projected change in average utilisation | N74: Child_1LTC
C75: Child_1LTC | D75: Child_1LTC__ | G75: Year 0 | H75: Year 1 | I75: Year 2 | J75: Year 3 | K75: Year 4 | N75: Child_1LTC
B76: Cost | C76: Child_1LTC | D76: Child_1LTC_AE_U | E76: U | F76: AE | N76: Child_1LTC
B77: Cost | C77: Child_1LTC | D77: Child_1LTC_NEL_U | E77: U | F77: NEL | N77: Child_1LTC
B78: Cost | C78: Child_1LTC | D78: Child_1LTC_EL_U | E78: U | F78: EL | N78: Child_1LTC
B79: Cost | C79: Child_1LTC | D79: Child_1LTC_OP_U | E79: U | F79: OP | N79: Child_1LTC
B80: Cost | C80: Child_1LTC | D80: Child_1LTC_MH_U | E80: U | F80: MH | N80: Child_1LTC
B81: Cost | C81: Child_1LTC | D81: Child_1LTC_GP_U | E81: U | F81: GP | N81: Child_1LTC
B82: Cost | C82: Child_1LTC | D82: Child_1LTC_Prescribing_U | E82: U | F82: Prescribing | N82: Child_1LTC
B83: Cost | C83: Child_1LTC | D83: Child_1LTC_SC_U | E83: U | F83: SC | N83: Child_1LTC
B84: Cost | C84: Child_1LTC | D84: Child_1LTC_CC_U | E84: U | F84: CC | N84: Child_1LTC
C85: Child_1LTC | D85: Child_1LTC__ | N85: Child_1LTC
C86: Child_1LTC | D86: Child_1LTC_Projected change in average cost of interactions_ | F86: Projected change in average cost of interactions | N86: Child_1LTC
C87: Child_1LTC | D87: Child_1LTC__ | G87: Year 0 | H87: Year 1 | I87: Year 2 | J87: Year 3 | K87: Year 4 | N87: Child_1LTC
B88: Utilisation | C88: Child_1LTC | D88: Child_1LTC_AE_I | E88: I | F88: AE | N88: Child_1LTC
B89: Utilisation | C89: Child_1LTC | D89: Child_1LTC_NEL_I | E89: I | F89: NEL | N89: Child_1LTC
B90: Utilisation | C90: Child_1LTC | D90: Child_1LTC_EL_I | E90: I | F90: EL | N90: Child_1LTC
B91: Utilisation | C91: Child_1LTC | D91: Child_1LTC_OP_I | E91: I | F91: OP | N91: Child_1LTC
B92: Utilisation | C92: Child_1LTC | D92: Child_1LTC_MH_I | E92: I | F92: MH | N92: Child_1LTC
B93: Utilisation | C93: Child_1LTC | D93: Child_1LTC_GP_I | E93: I | F93: GP | N93: Child_1LTC
B94: Utilisation | C94: Child_1LTC | D94: Child_1LTC_Prescribing_I | E94: I | F94: Prescribing | N94: Child_1LTC
B95: Utilisation | C95: Child_1LTC | D95: Child_1LTC_SC_I | E95: I | F95: SC | N95: Child_1LTC
B96: Utilisation | C96: Child_1LTC | D96: Child_1LTC_CC_I | E96: I | F96: CC | N96: Child_1LTC
C97: Child_1LTC | D97: Child_1LTC__ | N97: Child_1LTC
C98: Child_2+LTC | D98: Child_2+LTC_Child: Multiple LTCs_ | F98: Child: Multiple LTCs | N98: Child_2+LTC
C99: Child_2+LTC | D99: Child_2+LTC_Percentage year-on-year change in segment population_ | F99: Percentage year-on-year change in segment population | N99: Child_2+LTC
C100: Child_2+LTC | D100: Child_2+LTC__ | G100: Year 0 | H100: Year 1 | I100: Year 2 | J100: Year 3 | K100: Year 4 | N100: Child_2+LTC
C101: Child_2+LTC | D101: Child_2+LTC_Population Change_ | F101: Population Change | N101: Child_2+LTC
C102: Child_2+LTC | D102: Child_2+LTC__ | N102: =C102 -> Child_2+LTC
C103: Child_2+LTC | D103: Child_2+LTC__ | N103: Child_2+LTC
C104: Child_2+LTC | D104: Child_2+LTC_Projected change in average utilisation_ | F104: Projected change in average utilisation | N104: Child_2+LTC
C105: Child_2+LTC | D105: Child_2+LTC__ | G105: Year 0 | H105: Year 1 | I105: Year 2 | J105: Year 3 | K105: Year 4 | N105: Child_2+LTC
B106: Cost | C106: Child_2+LTC | D106: Child_2+LTC_AE_U | E106: U | F106: AE | N106: Child_2+LTC
B107: Cost | C107: Child_2+LTC | D107: Child_2+LTC_NEL_U | E107: U | F107: NEL | N107: Child_2+LTC
B108: Cost | C108: Child_2+LTC | D108: Child_2+LTC_EL_U | E108: U | F108: EL | N108: Child_2+LTC
B109: Cost | C109: Child_2+LTC | D109: Child_2+LTC_OP_U | E109: U | F109: OP | N109: Child_2+LTC
B110: Cost | C110: Child_2+LTC | D110: Child_2+LTC_MH_U | E110: U | F110: MH | N110: Child_2+LTC
B111: Cost | C111: Child_2+LTC | D111: =C111&"_"&F111&"_"&E111 -> Child_2+LTC_GP_U | E111: U | F111: GP | N111: Child_2+LTC
B112: Cost | C112: Child_2+LTC | D112: Child_2+LTC_Prescribing_U | E112: U | F112: Prescribing | N112: Child_2+LTC
B113: Cost | C113: Child_2+LTC | D113: Child_2+LTC_SC_U | E113: U | F113: SC | N113: Child_2+LTC
B114: Cost | C114: Child_2+LTC | D114: Child_2+LTC_CC_U | E114: U | F114: CC | N114: Child_2+LTC
C115: Child_2+LTC | D115: Child_2+LTC__ | N115: Child_2+LTC
C116: Child_2+LTC | D116: Child_2+LTC_Projected change in average cost of interactions_ | F116: Projected change in average cost of interactions | N116: Child_2+LTC
C117: Child_2+LTC | D117: Child_2+LTC__ | G117: Year 0 | H117: Year 1 | I117: Year 2 | J117: Year 3 | K117: Year 4 | N117: Child_2+LTC
B118: Utilisation | C118: Child_2+LTC | D118: Child_2+LTC_AE_I | E118: I | F118: AE | N118: Child_2+LTC
B119: Utilisation | C119: Child_2+LTC | D119: Child_2+LTC_NEL_I | E119: I | F119: NEL | N119: Child_2+LTC
B120: Utilisation | C120: Child_2+LTC | D120: Child_2+LTC_EL_I | E120: I | F120: EL | N120: Child_2+LTC
B121: Utilisation | C121: Child_2+LTC | D121: Child_2+LTC_OP_I | E121: I | F121: OP | N121: Child_2+LTC
B122: Utilisation | C122: Child_2+LTC | D122: Child_2+LTC_MH_I | E122: I | F122: MH | N122: Child_2+LTC
B123: Utilisation | C123: Child_2+LTC | D123: Child_2+LTC_GP_I | E123: I | F123: GP | N123: Child_2+LTC
B124: Utilisation | C124: Child_2+LTC | D124: Child_2+LTC_Prescribing_I | E124: I | F124: Prescribing | N124: Child_2+LTC
B125: Utilisation | C125: Child_2+LTC | D125: Child_2+LTC_SC_I | E125: I | F125: SC | N125: Child_2+LTC
B126: Utilisation | C126: Child_2+LTC | D126: Child_2+LTC_CC_I | E126: I | F126: CC | N126: Child_2+LTC
C127: Child_2+LTC | D127: Child_2+LTC__ | N127: Child_2+LTC
C128: Child_SEMI | D128: Child_SEMI_Child: SEMI_ | F128: Child: SEMI | N128: Child_SEMI
C129: Child_SEMI | D129: Child_SEMI_Percentage year-on-year change in segment population_ | F129: Percentage year-on-year change in segment population | N129: Child_SEMI
C130: Child_SEMI | D130: Child_SEMI__ | G130: Year 0 | H130: Year 1 | I130: Year 2 | J130: Year 3 | K130: Year 4 | N130: Child_SEMI
C131: Child_SEMI | D131: Child_SEMI_Population Change_ | F131: Population Change | N131: Child_SEMI
C132: Child_SEMI | D132: Child_SEMI__ | N132: Child_SEMI
C133: Child_SEMI | D133: Child_SEMI__ | N133: Child_SEMI
C134: Child_SEMI | D134: Child_SEMI_Projected change in average utilisation_ | F134: Projected change in average utilisation | N134: Child_SEMI
C135: Child_SEMI | D135: Child_SEMI__ | G135: Year 0 | H135: Year 1 | I135: Year 2 | J135: Year 3 | K135: Year 4 | N135: Child_SEMI
B136: Cost | C136: Child_SEMI | D136: Child_SEMI_AE_U | E136: U | F136: AE | N136: Child_SEMI
B137: Cost | C137: Child_SEMI | D137: Child_SEMI_NEL_U | E137: U | F137: NEL | N137: Child_SEMI
B138: Cost | C138: Child_SEMI | D138: Child_SEMI_EL_U | E138: U | F138: EL | N138: Child_SEMI
B139: Cost | C139: Child_SEMI | D139: Child_SEMI_OP_U | E139: U | F139: OP | N139: Child_SEMI
B140: Cost | C140: Child_SEMI | D140: Child_SEMI_MH_U | E140: U | F140: MH | N140: Child_SEMI
B141: Cost | C141: Child_SEMI | D141: Child_SEMI_GP_U | E141: U | F141: GP | N141: Child_SEMI
B142: Cost | C142: Child_SEMI | D142: Child_SEMI_Prescribing_U | E142: U | F142: Prescribing | N142: Child_SEMI
B143: Cost | C143: Child_SEMI | D143: Child_SEMI_SC_U | E143: U | F143: SC | N143: Child_SEMI
B144: Cost | C144: Child_SEMI | D144: Child_SEMI_CC_U | E144: U | F144: CC | N144: Child_SEMI
C145: Child_SEMI | D145: Child_SEMI__ | N145: Child_SEMI
C146: Child_SEMI | D146: Child_SEMI_Projected change in average cost of interactions_ | F146: Projected change in average cost of interactions | N146: Child_SEMI
C147: Child_SEMI | D147: Child_SEMI__ | G147: Year 0 | H147: Year 1 | I147: Year 2 | J147: Year 3 | K147: Year 4 | N147: Child_SEMI
B148: Utilisation | C148: Child_SEMI | D148: Child_SEMI_AE_I | E148: I | F148: AE | N148: Child_SEMI
B149: Utilisation | C149: Child_SEMI | D149: Child_SEMI_NEL_I | E149: I | F149: NEL | N149: Child_SEMI
B150: Utilisation | C150: Child_SEMI | D150: Child_SEMI_EL_I | E150: I | F150: EL | N150: Child_SEMI
B151: Utilisation | C151: Child_SEMI | D151: Child_SEMI_OP_I | E151: I | F151: OP | N151: Child_SEMI
B152: Utilisation | C152: Child_SEMI | D152: Child_SEMI_MH_I | E152: I | F152: MH | N152: Child_SEMI
B153: Utilisation | C153: Child_SEMI | D153: Child_SEMI_GP_I | E153: I | F153: GP | N153: Child_SEMI
B154: Utilisation | C154: Child_SEMI | D154: Child_SEMI_Prescribing_I | E154: I | F154: Prescribing | N154: Child_SEMI
B155: Utilisation | C155: Child_SEMI | D155: Child_SEMI_SC_I | E155: I | F155: SC | N155: Child_SEMI
B156: Utilisation | C156: Child_SEMI | D156: Child_SEMI_CC_I | E156: I | F156: CC | N156: Child_SEMI
C157: Child_SEMI | D157: Child_SEMI__ | N157: Child_SEMI
C158: Child_Dementia | D158: Child_Dementia_Child: Dementia_ | F158: Child: Dementia | N158: Child_Dementia
C159: Child_Dementia | D159: Child_Dementia_Percentage year-on-year change in segment population_ | F159: Percentage year-on-year change in segment population | N159: Child_Dementia
C160: Child_Dementia | D160: Child_Dementia__ | G160: Year 0 | H160: Year 1 | I160: Year 2 | J160: Year 3 | K160: Year 4 | N160: Child_Dementia
C161: Child_Dementia | D161: Child_Dementia_Population Change_ | F161: Population Change | N161: Child_Dementia
C162: Child_Dementia | D162: Child_Dementia__ | N162: Child_Dementia
C163: Child_Dementia | D163: Child_Dementia__ | N163: Child_Dementia
C164: Child_Dementia | D164: Child_Dementia_Projected change in average utilisation_ | F164: Projected change in average utilisation | N164: Child_Dementia
C165: Child_Dementia | D165: Child_Dementia__ | G165: Year 0 | H165: Year 1 | I165: Year 2 | J165: Year 3 | K165: Year 4 | N165: Child_Dementia
B166: Cost | C166: Child_Dementia | D166: Child_Dementia_AE_U | E166: U | F166: AE | N166: =C166 -> Child_Dementia
B167: Cost | C167: Child_Dementia | D167: Child_Dementia_NEL_U | E167: U | F167: NEL | N167: Child_Dementia
B168: Cost | C168: Child_Dementia | D168: Child_Dementia_EL_U | E168: U | F168: EL | N168: Child_Dementia
B169: Cost | C169: Child_Dementia | D169: Child_Dementia_OP_U | E169: U | F169: OP | N169: Child_Dementia
B170: Cost | C170: Child_Dementia | D170: Child_Dementia_MH_U | E170: U | F170: MH | N170: Child_Dementia
B171: Cost | C171: Child_Dementia | D171: Child_Dementia_GP_U | E171: U | F171: GP | N171: Child_Dementia
B172: Cost | C172: Child_Dementia | D172: Child_Dementia_Prescribing_U | E172: U | F172: Prescribing | N172: Child_Dementia
B173: Cost | C173: Child_Dementia | D173: Child_Dementia_SC_U | E173: U | F173: SC | N173: Child_Dementia
B174: Cost | C174: Child_Dementia | D174: Child_Dementia_CC_U | E174: U | F174: CC | N174: Child_Dementia
C175: Child_Dementia | D175: =C175&"_"&F175&"_"&E175 -> Child_Dementia__ | N175: Child_Dementia
C176: Child_Dementia | D176: Child_Dementia_Projected change in average cost of interactions_ | F176: Projected change in average cost of interactions | N176: Child_Dementia
C177: Child_Dementia | D177: Child_Dementia__ | G177: Year 0 | H177: Year 1 | I177: Year 2 | J177: Year 3 | K177: Year 4 | N177: Child_Dementia
B178: Utilisation | C178: Child_Dementia | D178: Child_Dementia_AE_I | E178: I | F178: AE | N178: Child_Dementia
B179: Utilisation | C179: Child_Dementia | D179: Child_Dementia_NEL_I | E179: I | F179: NEL | N179: Child_Dementia
B180: Utilisation | C180: Child_Dementia | D180: Child_Dementia_EL_I | E180: I | F180: EL | N180: Child_Dementia
B181: Utilisation | C181: Child_Dementia | D181: Child_Dementia_OP_I | E181: I | F181: OP | N181: Child_Dementia
B182: Utilisation | C182: Child_Dementia | D182: Child_Dementia_MH_I | E182: I | F182: MH | N182: Child_Dementia
B183: Utilisation | C183: Child_Dementia | D183: Child_Dementia_GP_I | E183: I | F183: GP | N183: Child_Dementia
B184: Utilisation | C184: Child_Dementia | D184: Child_Dementia_Prescribing_I | E184: I | F184: Prescribing | N184: Child_Dementia
B185: Utilisation | C185: Child_Dementia | D185: Child_Dementia_SC_I | E185: I | F185: SC | N185: Child_Dementia
B186: Utilisation | C186: Child_Dementia | D186: Child_Dementia_CC_I | E186: I | F186: CC | N186: Child_Dementia
C187: Child_Dementia | D187: Child_Dementia__ | N187: Child_Dementia
C188: Child_Cancer | D188: Child_Cancer_Child: Cancer_ | F188: Child: Cancer | N188: Child_Cancer
C189: Child_Cancer | D189: Child_Cancer_Percentage year-on-year change in segment population_ | F189: Percentage year-on-year change in segment population | N189: Child_Cancer
C190: Child_Cancer | D190: Child_Cancer__ | G190: Year 0 | H190: Year 1 | I190: Year 2 | J190: Year 3 | K190: Year 4 | N190: Child_Cancer
C191: Child_Cancer | D191: Child_Cancer_Population Change_ | F191: Population Change | N191: Child_Cancer
C192: Child_Cancer | D192: Child_Cancer__ | N192: Child_Cancer
C193: Child_Cancer | D193: Child_Cancer__ | N193: Child_Cancer
C194: Child_Cancer | D194: Child_Cancer_Projected change in average utilisation_ | F194: Projected change in average utilisation | N194: Child_Cancer
C195: Child_Cancer | D195: Child_Cancer__ | G195: Year 0 | H195: Year 1 | I195: Year 2 | J195: Year 3 | K195: Year 4 | N195: Child_Cancer
B196: Cost | C196: Child_Cancer | D196: Child_Cancer_AE_U | E196: U | F196: AE | N196: Child_Cancer
B197: Cost | C197: Child_Cancer | D197: Child_Cancer_NEL_U | E197: U | F197: NEL | N197: Child_Cancer
B198: Cost | C198: Child_Cancer | D198: Child_Cancer_EL_U | E198: U | F198: EL | N198: Child_Cancer
B199: Cost | C199: Child_Cancer | D199: Child_Cancer_OP_U | E199: U | F199: OP | N199: Child_Cancer
B200: Cost | C200: Child_Cancer | D200: Child_Cancer_MH_U | E200: U | F200: MH | N200: Child_Cancer
B201: Cost | C201: Child_Cancer | D201: Child_Cancer_GP_U | E201: U | F201: GP | N201: Child_Cancer
B202: Cost | C202: Child_Cancer | D202: Child_Cancer_Prescribing_U | E202: U | F202: Prescribing | N202: Child_Cancer
B203: Cost | C203: Child_Cancer | D203: Child_Cancer_SC_U | E203: U | F203: SC | N203: Child_Cancer
... 1273 more rows

Sheet Cost Saving Worksheet
B2: Instructions for Cost Saving Worksheet | P2: 1
B3: This worksheet allow a quick back of the envelope way to calculate the required savings to meet a particular budget target by a certain date, as well as select specific segments to determine their segment-specific target budgets to meet the overall target. Input cells are market with Yellow colour | P3: 2
P4: 3
P5: 4
B6: Step A: Please select the target year, by the end of which the target budget needs to be met | E6: 2
B8: ="Step B: Please enter the total target budget in Year " &E6 & " (in £)" -> Step B: Please enter the total target budget in Year 2 (in £) | E8: 400000000
C12: Current Budget (Year 0) | D12: Implied cumulative growth (savings) rate | E12: Implied coumpounded annual saving rate
C13: ='Step 1- Basic Inputs'!M46 -> 430259361.1 | D13: =E8/C13-1 -> -0.07032818776 | E13: =(E8/C13)^(1/E6)-1 -> -0.03580509634
D15: 1 | E15: 2 | F15: 3 | G15: 4
B16: Forecast yearly spend
C17: Year 0 | D17: Year 1 | E17: Year 2 | F17: Year 3 | G17: Year 4
B18: Total Spend under current growth assumptions | C18: ='Master Output Table'!F20 -> 430259361.1 | D18: ='Master Output Table'!G20 -> 439665674.8 | E18: ='Master Output Table'!H20 -> 450731733.5 | F18: ='Master Output Table'!I20 -> 469176652.9 | G18: ='Master Output Table'!J20 -> 483608450.7
B19: Assumed savings ramp up rate (using linear extrapolation) | C19: n/a | D19: =100%/$E$6 -> 0.5 | E19: =IF(SUM($D19:D19)=1,0,1/$E$6) -> 0.5 | F19: =IF(SUM($D19:E19)=1,0,1/$E$6) -> 0 | G19: =IF(SUM($D19:F19)=1,0,1/$E$6) -> 0
B21: Optional step: Please enter the override to the default savings ramp-up rate, if needed | D21: Year 1 | E21: Year 2 | F21: Year 3 | G21: Year 4 | H21: Cumulative | I21: =IF(H22<>100%,"<- Cumulative ramp up rate needs to be 100%","") -> 
H22: =IF(SUM(D22:G22)=0,SUM(D19:G19),SUM(D22:G22)) -> 1
B25: Yearly total spend to achieve target
C26: Year 0 | D26: Year 1 | E26: Year 2 | F26: Year 3 | G26: Year 4
B27: Ramp-up rate post over-ride | D27: =IF(D22>0,D22,D19) -> 0.5 | E27: =IF(E22>0,E22,E19) -> 0.5 | F27: =IF(F22>0,F22,F19) -> 0 | G27: =IF(G22>0,G22,G19) -> 0 | H27: =SUM(D27:G27) -> 1
B28: Total spend to achieve target | C28: =C13 -> 430259361.1 | D28: =IF(D15>$E$6,C28*D18/C18,C28+($E$8-$C$13)*D27) -> 415129680.6 | E28: =IF(E15>$E$6,D28*E18/D18,D28+($E$8-$C$13)*E27) -> 400000000 | F28: =IF(F15>$E$6,E28*F18/E18,E28+($E$8-$C$13)*F27) -> 416368866.9 | G28: =IF(G15>$E$6,F28*G18/F18,F28+($E$8-$C$13)*G27) -> 429176305.7
B29: Required savings | C29: n/a | D29: =D18-D28 -> 24535994.22 | E29: =E18-E28 -> 50731733.54 | F29: =F18-F28 -> 52807786.03 | G29: =G18-G28 -> 54432144.95
B30: % Change in Spend from Previous Year | C30: n/a | D30: =-(1-(D28/C28)) -> -0.03516409388 | E30: =-(1-(E28/D28)) -> -0.03644567295 | F30: =-(1-(F28/E28)) -> 0.04092216729 | G30: =-(1-(G28/F28)) -> 0.03075983774
B31: % Change in Spend from Base projection | D31: =D28/D18-1 -> -0.05580602632 | E31: =E28/E18-1 -> -0.1125541642 | F31: =F28/F18-1 -> -0.1125541642 | G31: =G28/G18-1 -> -0.1125541642
B33: Optional step: Please choose specific segments from the droplist below to identify target budget by year for those segments to fit within the overall savings trajectory
B35: Target spend by individual segment
C36: Year 0 | D36: Year 1 | E36: Year 2 | F36: Year 3 | G36: Year 4
B37: Child_Mostly healthy | C37: =IFERROR(INDEX('Base year data'!N$11:N$35, MATCH('Cost Saving Worksheet'!B37, 'Base year data'!C$11:C$35, 0)),0) -> 35111370.14 | D37: =D$28/C$28*C37 -> 33876710.63 | E37: =E$28/D$28*D37 -> 32642051.11 | F37: 33977834.59 | G37: 35022987.26
C38: =IFERROR(INDEX('Base year data'!N$11:N$35, MATCH('Cost Saving Worksheet'!B38, 'Base year data'!C$11:C$35, 0)),0) -> 0 | D38: 0 | E38: 0 | F38: 0 | G38: 0
C39: =IFERROR(INDEX('Base year data'!N$11:N$35, MATCH('Cost Saving Worksheet'!B39, 'Base year data'!C$11:C$35, 0)),0) -> 0 | D39: =D$28/C$28*C39 -> 0 | E39: 0 | F39: 0 | G39: 0
C40: =IFERROR(INDEX('Base year data'!N$11:N$35, MATCH('Cost Saving Worksheet'!B40, 'Base year data'!C$11:C$35, 0)),0) -> 0 | D40: 0 | E40: 0 | F40: 0 | G40: 0
C41: =IFERROR(INDEX('Base year data'!N$11:N$35, MATCH('Cost Saving Worksheet'!B41, 'Base year data'!C$11:C$35, 0)),0) -> 0 | D41: =D$28/C$28*C41 -> 0 | E41: 0 | F41: 0 | G41: 0
C42: =IFERROR(INDEX('Base year data'!N$11:N$35, MATCH('Cost Saving Worksheet'!B42, 'Base year data'!C$11:C$35, 0)),0) -> 0 | D42: 0 | E42: 0 | F42: 0 | G42: 0
C43: =IFERROR(INDEX('Base year data'!N$11:N$35, MATCH('Cost Saving Worksheet'!B43, 'Base year data'!C$11:C$35, 0)),0) -> 0 | D43: 0 | E43: 0 | F43: 0 | G43: 0
C44: =IFERROR(INDEX('Base year data'!N$11:N$35, MATCH('Cost Saving Worksheet'!B44, 'Base year data'!C$11:C$35, 0)),0) -> 0 | D44: 0 | E44: 0 | F44: 0 | G44: 0
C45: =IFERROR(INDEX('Base year data'!N$11:N$35, MATCH('Cost Saving Worksheet'!B45, 'Base year data'!C$11:C$35, 0)),0) -> 0 | D45: 0 | E45: 0 | F45: 0 | G45: 0

Sheet >>>OUTPUTS>>>

Sheet Master Pivot Table
A4: Year | B4: Year 0
A6: Sum of Total_Spend_All | B6: Condition Group
A7: Age Group | B7: 1_Mostly healthy | C7: 2_1LTC | D7: 3_2+LTC | E7: 4_SEMI | F7: 5_Dementia | G7: 6_Cancer | H7: 7_LearnDis | I7: 8_PhysDis | J7: Grand Total
A8: 1_Child | B8: 35111370.14 | C8: 2463811.239 | D8: 133236.647 | E8: 327477.0137 | F8: 0 | G8: 203510.1489 | H8: 0 | I8: 0 | J8: 38239405.19
A9: 2_Adult (16-69) | B9: 109905671.6 | C9: 41350389.04 | D9: 36963575.98 | E9: 30708081.97 | F9: 1045711.722 | G9: 11132882.96 | H9: 25959400.97 | I9: 4552776.492 | J9: 261618490.7
A10: 3_Elderly (70+) | B10: 14903932.95 | C10: 12198699.88 | D10: 43798107.86 | E10: 5703892.242 | F10: 16705481.89 | G10: 15642890.99 | H10: 1366323.345 | I10: 20082136.09 | J10: 130401465.3
A11: Grand Total | B11: 159920974.7 | C11: 56012900.15 | D11: 80894920.49 | E11: 36739451.23 | F11: 17751193.61 | G11: 26979284.11 | H11: 27325724.31 | I11: 24634912.58 | J11: 430259361.1

Sheet Master Output Table
B3: [Optional]: Filter for a specific segment | F3: F | G3: G | H3: H | I3: I | J3: J | M3: [Optional] Choose a segment:
B4: _ALL SEGMENTS | E4: Overall | M4: _ALL SEGMENTS
B5: _ALL SEGMENTS | E5: Projection of population size | M5: _ALL SEGMENTS
B6: _ALL SEGMENTS | F6: Year 0 | G6: Year 1 | H6: Year 2 | I6: Year 3 | J6: Year 4 | M6: _ALL SEGMENTS
B7: _ALL SEGMENTS | C7: =B7&"_"&E7&"_"&D7 -> _ALL SEGMENTS_Total population_ | E7: Total population | F7: =SUMIF($E$36:$E$807,"=Population Change",F36:F807) -> 250000 | G7: =SUMIF($E$36:$E$807,"=Population Change",G36:G807) -> 251975.8588 | H7: =SUMIF($E$36:$E$807,"=Population Change",H36:H807) -> 253973.8251 | I7: =SUMIF($E$36:$E$807,"=Population Change",I36:I807) -> 255994.2196 | J7: =SUMIF($E$36:$E$807,"=Population Change",J36:J807) -> 258037.3684 | M7: _ALL SEGMENTS
B8: _ALL SEGMENTS | C8: =B8&"_"&E8&"_"&D8 -> _ALL SEGMENTS__ | M8: _ALL SEGMENTS
B9: _ALL SEGMENTS | C9: =B9&"_"&E9&"_"&D9 -> _ALL SEGMENTS_Projection of total spend_ | E9: Projection of total spend | M9: _ALL SEGMENTS
B10: _ALL SEGMENTS | C10: _ALL SEGMENTS__ | F10: Year 0 | G10: Year 1 | H10: Year 2 | I10: Year 3 | J10: Year 4 | M10: _ALL SEGMENTS
B11: _ALL SEGMENTS | C11: _ALL SEGMENTS_AE_U | D11: U | E11: AE | F11: =F44+F76+F108+F140+F173+F206+F238+F270+F301+F333+F366+F399+F431+F463+F494+F526+F559+F592+F624+F656+F687+F719+F752+F785 -> 9670878.027 | G11: 9816973.281 | H11: =H44+H76+H108+H140+H173+H206+H238+H270+H301+H333+H366+H399+H431+H463+H494+H526+H559+H592+H624+H656+H687+H719+H752+H785 -> 9995947.795 | I11: 10332921.52 | J11: 10575243.68 | M11: _ALL SEGMENTS
B12: _ALL SEGMENTS | C12: _ALL SEGMENTS_NEL_U | D12: U | E12: NEL | F12: =F45+F77+F109+F141+F174+F207+F239+F271+F302+F334+F367+F400+F432+F464+F495+F527+F560+F593+F625+F657+F688+F720+F753+F786 -> 71576880.28 | G12: 72797125.55 | H12: =H45+H77+H109+H141+H174+H207+H239+H271+H302+H334+H367+H400+H432+H464+H495+H527+H560+H593+H625+H657+H688+H720+H753+H786 -> 74266922.39 | I12: 76919142.52 | J12: 78876301.27 | M12: _ALL SEGMENTS
B13: _ALL SEGMENTS | C13: _ALL SEGMENTS_EL_U | D13: U | E13: EL | F13: =F46+F78+F110+F142+F175+F208+F240+F272+F303+F335+F368+F401+F433+F465+F496+F528+F561+F594+F626+F658+F689+F721+F754+F787 -> 50192945.43 | G13: 50955849.41 | H13: =H46+H78+H110+H142+H175+H208+H240+H272+H303+H335+H368+H401+H433+H465+H496+H528+H561+H594+H626+H658+H689+H721+H754+H787 -> 51889942.74 | I13: 53644878.44 | J13: 54909137.05 | M13: _ALL SEGMENTS
B14: _ALL SEGMENTS | C14: _ALL SEGMENTS_OP_U | D14: U | E14: OP | F14: =F47+F79+F111+F143+F176+F209+F241+F273+F304+F336+F369+F402+F434+F466+F497+F529+F562+F595+F627+F659+F690+F722+F755+F788 -> 46272379.24 | G14: =G47+G79+G111+G143+G176+G209+G241+G273+G304+G336+G369+G402+G434+G466+G497+G529+G562+G595+G627+G659+G690+G722+G755+G788 -> 46955040.42 | H14: =H47+H79+H111+H143+H176+H209+H241+H273+H304+H336+H369+H402+H434+H466+H497+H529+H562+H595+H627+H659+H690+H722+H755+H788 -> 47794543.44 | I14: 49388776.67 | J14: 50529781.63 | M14: _ALL SEGMENTS
B15: _ALL SEGMENTS | C15: _ALL SEGMENTS_MH_U | D15: U | E15: MH | F15: =F48+F80+F112+F144+F177+F210+F242+F274+F305+F337+F370+F403+F435+F467+F498+F530+F563+F596+F628+F660+F691+F723+F756+F789 -> 47692966.79 | G15: 48336168.61 | H15: =H48+H80+H112+H144+H177+H210+H242+H274+H305+H337+H370+H403+H435+H467+H498+H530+H563+H596+H628+H660+H691+H723+H756+H789 -> 49138548.42 | I15: 50713407.72 | J15: 51818996.33 | M15: _ALL SEGMENTS
B16: _ALL SEGMENTS | C16: _ALL SEGMENTS_GP_U | D16: U | E16: GP | F16: =F49+F81+F113+F145+F178+F211+F243+F275+F306+F338+F371+F404+F436+F468+F499+F531+F564+F597+F629+F661+F692+F724+F757+F790 -> 38934335.08 | G16: 39494175.14 | H16: =H49+H81+H113+H145+H178+H211+H243+H275+H306+H338+H371+H404+H436+H468+H499+H531+H564+H597+H629+H661+H692+H724+H757+H790 -> 40185341.66 | I16: 41510193.36 | J16: 42453125.44 | M16: _ALL SEGMENTS
B17: _ALL SEGMENTS | C17: _ALL SEGMENTS_Prescribing_U | D17: U | E17: Prescribing | F17: =F50+F82+F114+F146+F179+F212+F244+F276+F307+F339+F372+F405+F437+F469+F500+F532+F565+F598+F630+F662+F693+F725+F758+F791 -> 28857275.03 | G17: =G50+G82+G114+G146+G179+G212+G244+G276+G307+G339+G372+G405+G437+G469+G500+G532+G565+G598+G630+G662+G693+G725+G758+G791 -> 30201685.76 | H17: =H50+H82+H114+H146+H179+H212+H244+H276+H307+H339+H372+H405+H437+H469+H500+H532+H565+H598+H630+H662+H693+H725+H758+H791 -> 31706478.52 | I17: 33792778.29 | J17: 35659410.59 | M17: _ALL SEGMENTS
B18: _ALL SEGMENTS | C18: _ALL SEGMENTS_SC_U | D18: U | E18: SC | F18: =F51+F83+F115+F147+F180+F213+F245+F277+F308+F340+F373+F406+F438+F470+F501+F533+F566+F599+F631+F663+F694+F726+F759+F792 -> 84736655.56 | G18: 86266078.48 | H18: =H51+H83+H115+H147+H180+H213+H245+H277+H308+H340+H373+H406+H438+H470+H501+H533+H566+H599+H631+H663+H694+H726+H759+H792 -> 88095124.54 | I18: 91332390.26 | J18: 93750622.62 | M18: _ALL SEGMENTS
B19: _ALL SEGMENTS | C19: _ALL SEGMENTS_CC_U | D19: U | E19: CC | F19: =F52+F84+F116+F148+F181+F214+F246+F278+F309+F341+F374+F407+F439+F471+F502+F534+F567+F600+F632+F664+F695+F727+F760+F793 -> 52325045.7 | G19: 54842578.14 | H19: =H52+H84+H116+H148+H181+H214+H246+H278+H309+H341+H374+H407+H439+H471+H502+H534+H567+H600+H632+H664+H695+H727+H760+H793 -> 57658884.03 | I19: 61542164.17 | J19: 65035832.07 | M19: _ALL SEGMENTS
B20: _ALL SEGMENTS | C20: _ALL SEGMENTS_Total_ | E20: Total | F20: =SUMIF(F11:F19, ">0") -> 430259361.1 | G20: =SUMIF(G11:G19, ">0") -> 439665674.8 | H20: =SUMIF(H11:H19, ">0") -> 450731733.5 | I20: =SUMIF(I11:I19, ">0") -> 469176652.9 | J20: =SUMIF(J11:J19, ">0") -> 483608450.7 | M20: _ALL SEGMENTS
B21: _ALL SEGMENTS | C21: =B21&"_"&E21&"_"&D21 -> _ALL SEGMENTS__ | M21: _ALL SEGMENTS
B22: _ALL SEGMENTS | C22: _ALL SEGMENTS_Projection of average spend_ | E22: Projection of average spend | M22: _ALL SEGMENTS
B23: _ALL SEGMENTS | C23: _ALL SEGMENTS__I | D23: I | F23: Year 0 | G23: Year 1 | H23: Year 2 | I23: Year 3 | J23: Year 4 | M23: _ALL SEGMENTS
B24: _ALL SEGMENTS | C24: _ALL SEGMENTS_AE_I | D24: I | E24: AE | F24: =F11/F$7 -> 38.68351211 | G24: =G11/G$7 -> 38.95997548 | H24: 39.35818107 | I24: 40.3638861 | J24: 40.98338058 | M24: _ALL SEGMENTS
B25: _ALL SEGMENTS | C25: _ALL SEGMENTS_NEL_I | D25: I | E25: NEL | F25: 286.3075211 | G25: 288.905159 | H25: 292.4195923 | I25: 300.472185 | J25: 305.6778239 | M25: _ALL SEGMENTS
B26: _ALL SEGMENTS | C26: _ALL SEGMENTS_EL_I | D26: I | E26: EL | F26: 200.7717817 | G26: 202.2251245 | H26: 204.3121677 | I26: 209.5550381 | J26: 212.7952915 | M26: _ALL SEGMENTS
B27: _ALL SEGMENTS | C27: _ALL SEGMENTS_OP_I | D27: I | E27: OP | F27: 185.0895169 | G27: 186.3473772 | H27: 188.1868867 | I27: 192.9292651 | J27: 195.8235039 | M27: _ALL SEGMENTS
B28: _ALL SEGMENTS | C28: _ALL SEGMENTS_MH_I | D28: I | E28: MH | F28: 190.7718672 | G28: 191.8285698 | H28: 193.4787902 | I28: 198.103722 | J28: 200.8197365 | M28: _ALL SEGMENTS
B29: _ALL SEGMENTS | C29: _ALL SEGMENTS_GP_I | D29: I | E29: GP | F29: 155.7373403 | G29: 156.7379325 | H29: 158.2263119 | I29: 162.1528542 | J29: 164.5231685 | M29: _ALL SEGMENTS
B30: _ALL SEGMENTS | C30: _ALL SEGMENTS_Prescribing_I | D30: I | E30: Prescribing | F30: 115.4291001 | G30: 119.8594417 | H30: 124.8415206 | I30: 132.0060209 | J30: 138.1947537 | M30: _ALL SEGMENTS
B31: _ALL SEGMENTS | C31: _ALL SEGMENTS_SC_I | D31: I | E31: SC | F31: 338.9466222 | G31: 342.3585057 | H31: 346.8669439 | I31: 356.7752053 | J31: 363.3218831 | M31: _ALL SEGMENTS
B32: _ALL SEGMENTS | C32: _ALL SEGMENTS_CC_I | D32: I | E32: CC | F32: 209.3001828 | G32: 217.6501289 | H32: 227.0268757 | I32: 240.404507 | J32: 252.0403632 | M32: _ALL SEGMENTS
B33: _ALL SEGMENTS | C33: =B33&"Average" -> _ALL SEGMENTSAverage | E33: Total | F33: =SUMIF(F24:F32, ">0") -> 1721.037445 | G33: =SUMIF(G24:G32, ">0") -> 1744.872215 | H33: =SUMIF(H24:H32, ">0") -> 1774.71727 | I33: =SUMIF(I24:I32, ">0") -> 1832.762684 | J33: =SUMIF(J24:J32, ">0") -> 1874.179905 | M33: _ALL SEGMENTS
B34: _ALL SEGMENTS | C34: =B34&"_"&E34 -> _ALL SEGMENTS_ | M34: _ALL SEGMENTS
B35: _ALL SEGMENTS | M35: _ALL SEGMENTS
B36: Child_Mostly healthy | E36: Child: Mostly Healthy | M36: Child_Mostly healthy
B37: Child_Mostly healthy | E37: Projection of population size | M37: Child_Mostly healthy
B38: Child_Mostly healthy | F38: Year 0 | G38: Year 1 | H38: Year 2 | I38: Year 3 | J38: Year 4 | M38: Child_Mostly healthy
B39: Child_Mostly healthy | E39: Projected segment size as a percentage of overall population | F39: =F40/SUM(F$40,F$72,F$104,F$136,F$169,F$202,F$234,F$266,F$297,F$329,F$362,F$395,F$427,F$459,F$490,F$522,F$555,F$588,F$620,F$652,F$683,F$715,F$748,F$781) -> 0.1749191221 | G39: =G40/SUM(G$40,G$72,G$104,G$136,G$169,G$202,G$234,G$266,G$297,G$329,G$362,G$395,G$427,G$459,G$490,G$522,G$555,G$588,G$620,G$652,G$683,G$715,G$748,G$781) -> 0.1761507132 | H39: 0.1773864418 | I39: 0.1786262437 | J39: 0.179870053 | M39: Child_Mostly healthy
B40: Child_Mostly healthy | C40: =B40&"_"&E40&"_"&D40 -> Child_Mostly healthy_Population Change_ | E40: Population Change | F40: =INDEX('Base year data'!$O$11:$O$34, MATCH($B40, 'Base year data'!$C$11:$C$34, 0)) * (1+INDEX('Step 2 - Growth Inputs'!$F$763:$K$1479, MATCH($C40, 'Step 2 - Growth Inputs'!$D$763:$D$1479, 0), 2)) -> 43729.78053 | G40: =F40*(1+INDEX('Step 2 - Growth Inputs'!$C$763:$K$1479,MATCH('Master Output Table'!$C40,'Step 2 - Growth Inputs'!$D$763:$D$1479,0),6)) -> 44385.72724 | H40: =G40*(1+INDEX('Step 2 - Growth Inputs'!$C$763:$K$1479,MATCH('Master Output Table'!$C40,'Step 2 - Growth Inputs'!$D$763:$D$1479,0),7)) -> 45051.51315 | I40: =H40*(1+INDEX('Step 2 - Growth Inputs'!$C$763:$K$1479,MATCH('Master Output Table'!$C40,'Step 2 - Growth Inputs'!$D$763:$D$1479,0),8)) -> 45727.28585 | J40: =I40*(1+INDEX('Step 2 - Growth Inputs'!$C$763:$K$1479,MATCH('Master Output Table'!$C40,'Step 2 - Growth Inputs'!$D$763:$D$1479,0),9)) -> 46413.19513 | M40: Child_Mostly healthy
B41: Child_Mostly healthy | C41: =B41&"_"&E41&"_"&D41 -> Child_Mostly healthy__ | M41: Child_Mostly healthy
B42: Child_Mostly healthy | C42: =B42&"_"&E42&"_"&D42 -> Child_Mostly healthy_Projection of total spend_ | E42: Projection of total spend | M42: Child_Mostly healthy
B43: Child_Mostly healthy | C43: =B43&"_"&E43&"_"&D43 -> Child_Mostly healthy__ | F43: Year 0 | G43: Year 1 | H43: Year 2 | I43: Year 3 | J43: Year 4 | M43: Child_Mostly healthy
B44: Child_Mostly healthy | C44: =B44&"_"&E44&"_"&D44 -> Child_Mostly healthy_AE_U | D44: U | E44: AE | F44: =F57*INDIRECT(F$3&ROW()-$K44) -> 1865191.849 | G44: =G57*INDIRECT(G$3&ROW()-$K44) -> 1903998.657 | H44: 1949526.502 | I44: 2026418.167 | J44: 2085363.024 | K44: 4 | M44: Child_Mostly healthy
B45: Child_Mostly healthy | C45: =B45&"_"&E45&"_"&D45 -> Child_Mostly healthy_NEL_U | D45: U | E45: NEL | F45: 9070852.825 | G45: 9259579.174 | H45: 9480991.454 | I45: 9854933.134 | J45: 10141595.4 | K45: =K44+1 -> 5 | M45: Child_Mostly healthy
B46: Child_Mostly healthy | C46: Child_Mostly healthy_EL_U | D46: U | E46: EL | F46: =F59*INDIRECT(F$3&ROW()-$K46) -> 3293608.559 | G46: 3362134.72 | H46: 3442529.077 | I46: 3578306.555 | J46: 3682393.052 | K46: =K45+1 -> 6 | M46: Child_Mostly healthy
B47: Child_Mostly healthy | C47: Child_Mostly healthy_OP_U | D47: U | E47: OP | F47: =F60*INDIRECT(F$3&ROW()-$K47) -> 4709096.289 | G47: 4807072.804 | H47: =H60*INDIRECT(H$3&ROW()-$K47) -> 4922018.087 | I47: 5116148.387 | J47: 5264967.934 | K47: 7 | M47: Child_Mostly healthy
B48: Child_Mostly healthy | C48: Child_Mostly healthy_MH_U | D48: U | E48: MH | F48: =F61*INDIRECT(F$3&ROW()-$K48) -> 2677218.869 | G48: 2732920.549 | H48: =H61*INDIRECT(H$3&ROW()-$K48) -> 2798269.325 | I48: 2908636.426 | J48: 2993243.424 | K48: 8 | M48: Child_Mostly healthy
B49: Child_Mostly healthy | C49: Child_Mostly healthy_GP_U | D49: U | E49: GP | F49: 4401019.1 | G49: =G62*INDIRECT(G$3&ROW()-$K49) -> 4492585.824 | H49: 4600011.188 | I49: 4781441.149 | J49: 4920524.666 | K49: 9 | M49: Child_Mostly healthy
B50: Child_Mostly healthy | C50: Child_Mostly healthy_Prescribing_U | D50: U | E50: Prescribing | F50: 1338718.35 | G50: 1406764.734 | H50: 1482767.661 | I50: 1586580.673 | J50: 1680752.962 | K50: 10 | M50: Child_Mostly healthy
B51: Child_Mostly healthy | C51: Child_Mostly healthy_SC_U | D51: U | E51: SC | F51: 430233.1156 | G51: 439184.4598 | H51: 449686.1068 | I51: 467422.2665 | J51: 481018.7389 | K51: 11 | M51: Child_Mostly healthy
B52: Child_Mostly healthy | C52: Child_Mostly healthy_CC_U | D52: U | E52: CC | F52: 7325431.185 | G52: 7697779.189 | H52: 8113665.181 | I52: 8681727.222 | J52: 9197035.482 | K52: 12 | M52: Child_Mostly healthy
B53: Child_Mostly healthy | C53: Child_Mostly healthy_Total_ | E53: Total | F53: =SUMIF(F44:F52, ">0") -> 35111370.14 | G53: =SUMIF(G44:G52, ">0") -> 36102020.11 | H53: =SUMIF(H44:H52, ">0") -> 37239464.58 | I53: =SUMIF(I44:I52, ">0") -> 39001613.98 | J53: =SUMIF(J44:J52, ">0") -> 40446894.68 | M53: Child_Mostly healthy
B54: Child_Mostly healthy | C54: Child_Mostly healthy__ | M54: Child_Mostly healthy
B55: Child_Mostly healthy | C55: Child_Mostly healthy_Projection of average spend_ | E55: Projection of average spend | M55: Child_Mostly healthy
B56: Child_Mostly healthy | C56: Child_Mostly healthy__I | D56: I | F56: Year 0 | G56: Year 1 | H56: Year 2 | I56: Year 3 | J56: Year 4 | M56: Child_Mostly healthy
B57: Child_Mostly healthy | C57: Child_Mostly healthy_AE_I | D57: I | E57: AE | F57: =INDEX('Base year data'!$D$39:$M$63, MATCH('Master Output Table'!B57, 'Base year data'!$C$39:$C$63, 0), MATCH('Master Output Table'!E57, 'Base year data'!$D$38:$M$38, 0))*(1+INDEX('Step 2 - Growth Inputs'!$G$763:$K$1479, MATCH('Master Output Table'!C57, 'Step 2 - Growth Inputs'!$D$763:$D$1479, 0), MATCH('Master Output Table'!$F$43, 'Step 2 - Growth Inputs'!$G$763:$K$763, 0)))*(1+INDEX('Step 2 - Growth Inputs'!$G$763:$K$1479, MATCH('Master Output Table'!$C44, 'Step 2 - Growth Inputs'!$D$763:$D$1479, 0), MATCH('Master Output Table'!$F$43, 'Step 2 - Growth Inputs'!$G$763:$K$763, 0))) -> 42.65266887 | G57: =F57*(1+INDEX('Step 2 - Growth Inputs'!$G$763:$K$1479, MATCH('Master Output Table'!$C57, 'Step 2 - Growth Inputs'!$D$763:$D$1479, 0), MATCH('Master Output Table'!G$43, 'Step 2 - Growth Inputs'!$G$763:$K$763, 0)))*(1+INDEX('Step 2 - Growth Inputs'!$G$763:$K$1479, MATCH('Master Output Table'!$C44, 'Step 2 - Growth Inputs'!$D$763:$D$1479, 0), MATCH('Master Output Table'!G$43, 'Step 2 - Growth Inputs'!$G$763:$K$763, 0))) -> 42.89664214 | H57: =G57*(1+INDEX('Step 2 - Growth Inputs'!$G$763:$K$1479, MATCH('Master Output Table'!$C57, 'Step 2 - Growth Inputs'!$D$763:$D$1479, 0), MATCH('Master Output Table'!H$43, 'Step 2 - Growth Inputs'!$G$763:$K$763, 0)))*(1+INDEX('Step 2 - Growth Inputs'!$G$763:$K$1479, MATCH('Master Output Table'!$C44, 'Step 2 - Growth Inputs'!$D$763:$D$1479, 0), MATCH('Master Output Table'!H$43, 'Step 2 - Growth Inputs'!$G$763:$K$763, 0))) -> 43.27327465 | I57: =H57*(1+INDEX('Step 2 - Growth Inputs'!$G$763:$K$1479, MATCH('Master Output Table'!$C57, 'Step 2 - Growth Inputs'!$D$763:$D$1479, 0), MATCH('Master Output Table'!I$43, 'Step 2 - Growth Inputs'!$G$763:$K$763, 0)))*(1+INDEX('Step 2 - Growth Inputs'!$G$763:$K$1479, MATCH('Master Output Table'!$C44, 'Step 2 - Growth Inputs'!$D$763:$D$1479, 0), MATCH('Master Output Table'!I$43, 'Step 2 - Growth Inputs'!$G$763:$K$763, 0))) -> 44.31529511 | J57: =I57*(1+INDEX('Step 2 - Growth Inputs'!$G$763:$K$1479, MATCH('Master Output Table'!$C57, 'Step 2 - Growth Inputs'!$D$763:$D$1479, 0), MATCH('Master Output Table'!J$43, 'Step 2 - Growth Inputs'!$G$763:$K$763, 0)))*(1+INDEX('Step 2 - Growth Inputs'!$G$763:$K$1479, MATCH('Master Output Table'!$C44, 'Step 2 - Growth Inputs'!$D$763:$D$1479, 0), MATCH('Master Output Table'!J$43, 'Step 2 - Growth Inputs'!$G$763:$K$763, 0))) -> 44.9303914 | M57: Child_Mostly healthy
B58: Child_Mostly healthy | C58: Child_Mostly healthy_NEL_I | D58: I | E58: NEL | F58: =INDEX('Base year data'!$D$39:$M$63, MATCH('Master Output Table'!B58, 'Base year data'!$C$39:$C$63, 0), MATCH('Master Output Table'!E58, 'Base year data'!$D$38:$M$38, 0))*(1+INDEX('Step 2 - Growth Inputs'!$G$763:$K$1479, MATCH('Master Output Table'!C58, 'Step 2 - Growth Inputs'!$D$763:$D$1479, 0), MATCH('Master Output Table'!$F$43, 'Step 2 - Growth Inputs'!$G$763:$K$763, 0)))*(1+INDEX('Step 2 - Growth Inputs'!$G$763:$K$1479, MATCH('Master Output Table'!$C45, 'Step 2 - Growth Inputs'!$D$763:$D$1479, 0), MATCH('Master Output Table'!$F$43, 'Step 2 - Growth Inputs'!$G$763:$K$763, 0))) -> 207.4296444 | G58: =F58*(1+INDEX('Step 2 - Growth Inputs'!$G$763:$K$1479, MATCH('Master Output Table'!$C58, 'Step 2 - Growth Inputs'!$D$763:$D$1479, 0), MATCH('Master Output Table'!G$43, 'Step 2 - Growth Inputs'!$G$763:$K$763, 0)))*(1+INDEX('Step 2 - Growth Inputs'!$G$763:$K$1479, MATCH('Master Output Table'!$C45, 'Step 2 - Growth Inputs'!$D$763:$D$1479, 0), MATCH('Master Output Table'!G$43, 'Step 2 - Growth Inputs'!$G$763:$K$763, 0))) -> 208.6161419 | H58: =G58*(1+INDEX('Step 2 - Growth Inputs'!$G$763:$K$1479, MATCH('Master Output Table'!$C58, 'Step 2 - Growth Inputs'!$D$763:$D$1479, 0), MATCH('Master Output Table'!H$43, 'Step 2 - Growth Inputs'!$G$763:$K$763, 0)))*(1+INDEX('Step 2 - Growth Inputs'!$G$763:$K$1479, MATCH('Master Output Table'!$C45, 'Step 2 - Growth Inputs'!$D$763:$D$1479, 0), MATCH('Master Output Table'!H$43, 'Step 2 - Growth Inputs'!$G$763:$K$763, 0))) -> 210.4477917 | I58: =H58*(1+INDEX('Step 2 - Growth Inputs'!$G$763:$K$1479, MATCH('Master Output Table'!$C58, 'Step 2 - Growth Inputs'!$D$763:$D$1479, 0), MATCH('Master Output Table'!I$43, 'Step 2 - Growth Inputs'!$G$763:$K$763, 0)))*(1+INDEX('Step 2 - Growth Inputs'!$G$763:$K$1479, MATCH('Master Output Table'!$C45, 'Step 2 - Growth Inputs'!$D$763:$D$1479, 0), MATCH('Master Output Table'!I$43, 'Step 2 - Growth Inputs'!$G$763:$K$763, 0))) -> 215.5153745 | J58: =I58*(1+INDEX('Step 2 - Growth Inputs'!$G$763:$K$1479, MATCH('Master Output Table'!$C58, 'Step 2 - Growth Inputs'!$D$763:$D$1479, 0), MATCH('Master Output Table'!J$43, 'Step 2 - Growth Inputs'!$G$763:$K$763, 0)))*(1+INDEX('Step 2 - Growth Inputs'!$G$763:$K$1479, MATCH('Master Output Table'!$C45, 'Step 2 - Growth Inputs'!$D$763:$D$1479, 0), MATCH('Master Output Table'!J$43, 'Step 2 - Growth Inputs'!$G$763:$K$763, 0))) -> 218.5067279 | M58: Child_Mostly healthy
B59: Child_Mostly healthy | C59: Child_Mostly healthy_EL_I | D59: I | E59: EL | F59: =INDEX('Base year data'!$D$39:$M$63, MATCH('Master Output Table'!B59, 'Base year data'!$C$39:$C$63, 0), MATCH('Master Output Table'!E59, 'Base year data'!$D$38:$M$38, 0))*(1+INDEX('Step 2 - Growth Inputs'!$G$763:$K$1479, MATCH('Master Output Table'!C59, 'Step 2 - Growth Inputs'!$D$763:$D$1479, 0), MATCH('Master Output Table'!$F$43, 'Step 2 - Growth Inputs'!$G$763:$K$763, 0)))*(1+INDEX('Step 2 - Growth Inputs'!$G$763:$K$1479, MATCH('Master Output Table'!$C46, 'Step 2 - Growth Inputs'!$D$763:$D$1479, 0), MATCH('Master Output Table'!$F$43, 'Step 2 - Growth Inputs'!$G$763:$K$763, 0))) -> 75.31728994 | G59: =F59*(1+INDEX('Step 2 - Growth Inputs'!$G$763:$K$1479, MATCH('Master Output Table'!$C59, 'Step 2 - Growth Inputs'!$D$763:$D$1479, 0), MATCH('Master Output Table'!G$43, 'Step 2 - Growth Inputs'!$G$763:$K$763, 0)))*(1+INDEX('Step 2 - Growth Inputs'!$G$763:$K$1479, MATCH('Master Output Table'!$C46, 'Step 2 - Growth Inputs'!$D$763:$D$1479, 0), MATCH('Master Output Table'!G$43, 'Step 2 - Growth Inputs'!$G$763:$K$763, 0))) -> 75.74810484 | H59: =G59*(1+INDEX('Step 2 - Growth Inputs'!$G$763:$K$1479, MATCH('Master Output Table'!$C59, 'Step 2 - Growth Inputs'!$D$763:$D$1479, 0), MATCH('Master Output Table'!H$43, 'Step 2 - Growth Inputs'!$G$763:$K$763, 0)))*(1+INDEX('Step 2 - Growth Inputs'!$G$763:$K$1479, MATCH('Master Output Table'!$C46, 'Step 2 - Growth Inputs'!$D$763:$D$1479, 0), MATCH('Master Output Table'!H$43, 'Step 2 - Growth Inputs'!$G$763:$K$763, 0))) -> 76.4131732 | I59: =H59*(1+INDEX('Step 2 - Growth Inputs'!$G$763:$K$1479, MATCH('Master Output Table'!$C59, 'Step 2 - Growth Inputs'!$D$763:$D$1479, 0), MATCH('Master Output Table'!I$43, 'Step 2 - Growth Inputs'!$G$763:$K$763, 0)))*(1+INDEX('Step 2 - Growth Inputs'!$G$763:$K$1479, MATCH('Master Output Table'!$C46, 'Step 2 - Growth Inputs'!$D$763:$D$1479, 0), MATCH('Master Output Table'!I$43, 'Step 2 - Growth Inputs'!$G$763:$K$763, 0))) -> 78.25320241 | J59: =I59*(1+INDEX('Step 2 - Growth Inputs'!$G$763:$K$1479, MATCH('Master Output Table'!$C59, 'Step 2 - Growth Inputs'!$D$763:$D$1479, 0), MATCH('Master Output Table'!J$43, 'Step 2 - Growth Inputs'!$G$763:$K$763, 0)))*(1+INDEX('Step 2 - Growth Inputs'!$G$763:$K$1479, MATCH('Master Output Table'!$C46, 'Step 2 - Growth Inputs'!$D$763:$D$1479, 0), MATCH('Master Output Table'!J$43, 'Step 2 - Growth Inputs'!$G$763:$K$763, 0))) -> 79.33935686 | M59: Child_Mostly healthy
B60: Child_Mostly healthy | C60: Child_Mostly healthy_OP_I | D60: I | E60: OP | F60: =INDEX('Base year data'!$D$39:$M$63, MATCH('Master Output Table'!B60, 'Base year data'!$C$39:$C$63, 0), MATCH('Master Output Table'!E60, 'Base year data'!$D$38:$M$38, 0))*(1+INDEX('Step 2 - Growth Inputs'!$G$763:$K$1479, MATCH('Master Output Table'!C60, 'Step 2 - Growth Inputs'!$D$763:$D$1479, 0), MATCH('Master Output Table'!$F$43, 'Step 2 - Growth Inputs'!$G$763:$K$763, 0)))*(1+INDEX('Step 2 - Growth Inputs'!$G$763:$K$1479, MATCH('Master Output Table'!$C47, 'Step 2 - Growth Inputs'!$D$763:$D$1479, 0), MATCH('Master Output Table'!$F$43, 'Step 2 - Growth Inputs'!$G$763:$K$763, 0))) -> 107.6862548 | G60: =F60*(1+INDEX('Step 2 - Growth Inputs'!$G$763:$K$1479, MATCH('Master Output Table'!$C60, 'Step 2 - Growth Inputs'!$D$763:$D$1479, 0), MATCH('Master Output Table'!G$43, 'Step 2 - Growth Inputs'!$G$763:$K$763, 0)))*(1+INDEX('Step 2 - Growth Inputs'!$G$763:$K$1479, MATCH('Master Output Table'!$C47, 'Step 2 - Growth Inputs'!$D$763:$D$1479, 0), MATCH('Master Output Table'!G$43, 'Step 2 - Growth Inputs'!$G$763:$K$763, 0))) -> 108.3022202 | H60: =G60*(1+INDEX('Step 2 - Growth Inputs'!$G$763:$K$1479, MATCH('Master Output Table'!$C60, 'Step 2 - Growth Inputs'!$D$763:$D$1479, 0), MATCH('Master Output Table'!H$43, 'Step 2 - Growth Inputs'!$G$763:$K$763, 0)))*(1+INDEX('Step 2 - Growth Inputs'!$G$763:$K$1479, MATCH('Master Output Table'!$C47, 'Step 2 - Growth Inputs'!$D$763:$D$1479, 0), MATCH('Master Output Table'!H$43, 'Step 2 - Growth Inputs'!$G$763:$K$763, 0))) -> 109.2531137 | I60: =H60*(1+INDEX('Step 2 - Growth Inputs'!$G$763:$K$1479, MATCH('Master Output Table'!$C60, 'Step 2 - Growth Inputs'!$D$763:$D$1479, 0), MATCH('Master Output Table'!I$43, 'Step 2 - Growth Inputs'!$G$763:$K$763, 0)))*(1+INDEX('Step 2 - Growth Inputs'!$G$763:$K$1479, MATCH('Master Output Table'!$C47, 'Step 2 - Growth Inputs'!$D$763:$D$1479, 0), MATCH('Master Output Table'!I$43, 'Step 2 - Growth Inputs'!$G$763:$K$763, 0))) -> 111.8839286 | J60: =I60*(1+INDEX('Step 2 - Growth Inputs'!$G$763:$K$1479, MATCH('Master Output Table'!$C60, 'Step 2 - Growth Inputs'!$D$763:$D$1479, 0), MATCH('Master Output Table'!J$43, 'Step 2 - Growth Inputs'!$G$763:$K$763, 0)))*(1+INDEX('Step 2 - Growth Inputs'!$G$763:$K$1479, MATCH('Master Output Table'!$C47, 'Step 2 - Growth Inputs'!$D$763:$D$1479, 0), MATCH('Master Output Table'!J$43, 'Step 2 - Growth Inputs'!$G$763:$K$763, 0))) -> 113.4368776 | M60: Child_Mostly healthy
B61: Child_Mostly healthy | C61: Child_Mostly healthy_MH_I | D61: I | E61: MH | F61: =INDEX('Base year data'!$D$39:$M$63, MATCH('Master Output Table'!B61, 'Base year data'!$C$39:$C$63, 0), MATCH('Master Output Table'!E61, 'Base year data'!$D$38:$M$38, 0))*(1+INDEX('Step 2 - Growth Inputs'!$G$763:$K$1479, MATCH('Master Output Table'!C61, 'Step 2 - Growth Inputs'!$D$763:$D$1479, 0), MATCH('Master Output Table'!$F$43, 'Step 2 - Growth Inputs'!$G$763:$K$763, 0)))*(1+INDEX('Step 2 - Growth Inputs'!$G$763:$K$1479, MATCH('Master Output Table'!$C48, 'Step 2 - Growth Inputs'!$D$763:$D$1479, 0), MATCH('Master Output Table'!$F$43, 'Step 2 - Growth Inputs'!$G$763:$K$763, 0))) -> 61.2218684 | G61: =F61*(1+INDEX('Step 2 - Growth Inputs'!$G$763:$K$1479, MATCH('Master Output Table'!$C61, 'Step 2 - Growth Inputs'!$D$763:$D$1479, 0), MATCH('Master Output Table'!G$43, 'Step 2 - Growth Inputs'!$G$763:$K$763, 0)))*(1+INDEX('Step 2 - Growth Inputs'!$G$763:$K$1479, MATCH('Master Output Table'!$C48, 'Step 2 - Growth Inputs'!$D$763:$D$1479, 0), MATCH('Master Output Table'!G$43, 'Step 2 - Growth Inputs'!$G$763:$K$763, 0))) -> 61.57205748 | H61: =G61*(1+INDEX('Step 2 - Growth Inputs'!$G$763:$K$1479, MATCH('Master Output Table'!$C61, 'Step 2 - Growth Inputs'!$D$763:$D$1479, 0), MATCH('Master Output Table'!H$43, 'Step 2 - Growth Inputs'!$G$763:$K$763, 0)))*(1+INDEX('Step 2 - Growth Inputs'!$G$763:$K$1479, MATCH('Master Output Table'!$C48, 'Step 2 - Growth Inputs'!$D$763:$D$1479, 0), MATCH('Master Output Table'!H$43, 'Step 2 - Growth Inputs'!$G$763:$K$763, 0))) -> 62.11266015 | I61: =H61*(1+INDEX('Step 2 - Growth Inputs'!$G$763:$K$1479, MATCH('Master Output Table'!$C61, 'Step 2 - Growth Inputs'!$D$763:$D$1479, 0), MATCH('Master Output Table'!I$43, 'Step 2 - Growth Inputs'!$G$763:$K$763, 0)))*(1+INDEX('Step 2 - Growth Inputs'!$G$763:$K$1479, MATCH('Master Output Table'!$C48, 'Step 2 - Growth Inputs'!$D$763:$D$1479, 0), MATCH('Master Output Table'!I$43, 'Step 2 - Growth Inputs'!$G$763:$K$763, 0))) -> 63.60833301 | J61: =I61*(1+INDEX('Step 2 - Growth Inputs'!$G$763:$K$1479, MATCH('Master Output Table'!$C61, 'Step 2 - Growth Inputs'!$D$763:$D$1479, 0), MATCH('Master Output Table'!J$43, 'Step 2 - Growth Inputs'!$G$763:$K$763, 0)))*(1+INDEX('Step 2 - Growth Inputs'!$G$763:$K$1479, MATCH('Master Output Table'!$C48, 'Step 2 - Growth Inputs'!$D$763:$D$1479, 0), MATCH('Master Output Table'!J$43, 'Step 2 - Growth Inputs'!$G$763:$K$763, 0))) -> 64.49121667 | M61: Child_Mostly healthy
B62: Child_Mostly healthy | C62: Child_Mostly healthy_GP_I | D62: I | E62: GP | F62: =INDEX('Base year data'!$D$39:$M$63, MATCH('Master Output Table'!B62, 'Base year data'!$C$39:$C$63, 0), MATCH('Master Output Table'!E62, 'Base year data'!$D$38:$M$38, 0))*(1+INDEX('Step 2 - Growth Inputs'!$G$763:$K$1479, MATCH('Master Output Table'!C62, 'Step 2 - Growth Inputs'!$D$763:$D$1479, 0), MATCH('Master Output Table'!$F$43, 'Step 2 - Growth Inputs'!$G$763:$K$763, 0)))*(1+INDEX('Step 2 - Growth Inputs'!$G$763:$K$1479, MATCH('Master Output Table'!$C49, 'Step 2 - Growth Inputs'!$D$763:$D$1479, 0), MATCH('Master Output Table'!$F$43, 'Step 2 - Growth Inputs'!$G$763:$K$763, 0))) -> 100.6412346 | G62: =F62*(1+INDEX('Step 2 - Growth Inputs'!$G$763:$K$1479, MATCH('Master Output Table'!$C62, 'Step 2 - Growth Inputs'!$D$763:$D$1479, 0), MATCH('Master Output Table'!G$43, 'Step 2 - Growth Inputs'!$G$763:$K$763, 0)))*(1+INDEX('Step 2 - Growth Inputs'!$G$763:$K$1479, MATCH('Master Output Table'!$C49, 'Step 2 - Growth Inputs'!$D$763:$D$1479, 0), MATCH('Master Output Table'!G$43, 'Step 2 - Growth Inputs'!$G$763:$K$763, 0))) -> 101.2169024 | H62: =G62*(1+INDEX('Step 2 - Growth Inputs'!$G$763:$K$1479, MATCH('Master Output Table'!$C62, 'Step 2 - Growth Inputs'!$D$763:$D$1479, 0), MATCH('Master Output Table'!H$43, 'Step 2 - Growth Inputs'!$G$763:$K$763, 0)))*(1+INDEX('Step 2 - Growth Inputs'!$G$763:$K$1479, MATCH('Master Output Table'!$C49, 'Step 2 - Growth Inputs'!$D$763:$D$1479, 0), MATCH('Master Output Table'!H$43, 'Step 2 - Growth Inputs'!$G$763:$K$763, 0))) -> 102.1055868 | I62: =H62*(1+INDEX('Step 2 - Growth Inputs'!$G$763:$K$1479, MATCH('Master Output Table'!$C62, 'Step 2 - Growth Inputs'!$D$763:$D$1479, 0), MATCH('Master Output Table'!I$43, 'Step 2 - Growth Inputs'!$G$763:$K$763, 0)))*(1+INDEX('Step 2 - Growth Inputs'!$G$763:$K$1479, MATCH('Master Output Table'!$C49, 'Step 2 - Growth Inputs'!$D$763:$D$1479, 0), MATCH('Master Output Table'!I$43, 'Step 2 - Growth Inputs'!$G$763:$K$763, 0))) -> 104.5642894 | J62: =I62*(1+INDEX('Step 2 - Growth Inputs'!$G$763:$K$1479, MATCH('Master Output Table'!$C62, 'Step 2 - Growth Inputs'!$D$763:$D$1479, 0), MATCH('Master Output Table'!J$43, 'Step 2 - Growth Inputs'!$G$763:$K$763, 0)))*(1+INDEX('Step 2 - Growth Inputs'!$G$763:$K$1479, MATCH('Master Output Table'!$C49, 'Step 2 - Growth Inputs'!$D$763:$D$1479, 0), MATCH('Master Output Table'!J$43, 'Step 2 - Growth Inputs'!$G$763:$K$763, 0))) -> 106.0156417 | M62: Child_Mostly healthy
B63: Child_Mostly healthy | C63: Child_Mostly healthy_Prescribing_I | D63: I | E63: Prescribing | F63: =INDEX('Base year data'!$D$39:$M$63, MATCH('Master Output Table'!B63, 'Base year data'!$C$39:$C$63, 0), MATCH('Master Output Table'!E63, 'Base year data'!$D$38:$M$38, 0))*(1+INDEX('Step 2 - Growth Inputs'!$G$763:$K$1479, MATCH('Master Output Table'!C63, 'Step 2 - Growth Inputs'!$D$763:$D$1479, 0), MATCH('Master Output Table'!$F$43, 'Step 2 - Growth Inputs'!$G$763:$K$763, 0)))*(1+INDEX('Step 2 - Growth Inputs'!$G$763:$K$1479, MATCH('Master Output Table'!$C50, 'Step 2 - Growth Inputs'!$D$763:$D$1479, 0), MATCH('Master Output Table'!$F$43, 'Step 2 - Growth Inputs'!$G$763:$K$763, 0))) -> 30.61342484 | G63: =F63*(1+INDEX('Step 2 - Growth Inputs'!$G$763:$K$1479, MATCH('Master Output Table'!$C63, 'Step 2 - Growth Inputs'!$D$763:$D$1479, 0), MATCH('Master Output Table'!G$43, 'Step 2 - Growth Inputs'!$G$763:$K$763, 0)))*(1+INDEX('Step 2 - Growth Inputs'!$G$763:$K$1479, MATCH('Master Output Table'!$C50, 'Step 2 - Growth Inputs'!$D$763:$D$1479, 0), MATCH('Master Output Table'!G$43, 'Step 2 - Growth Inputs'!$G$763:$K$763, 0))) -> 31.69407874 | H63: =G63*(1+INDEX('Step 2 - Growth Inputs'!$G$763:$K$1479, MATCH('Master Output Table'!$C63, 'Step 2 - Growth Inputs'!$D$763:$D$1479, 0), MATCH('Master Output Table'!H$43, 'Step 2 - Growth Inputs'!$G$763:$K$763, 0)))*(1+INDEX('Step 2 - Growth Inputs'!$G$763:$K$1479, MATCH('Master Output Table'!$C50, 'Step 2 - Growth Inputs'!$D$763:$D$1479, 0), MATCH('Master Output Table'!H$43, 'Step 2 - Growth Inputs'!$G$763:$K$763, 0))) -> 32.91271606 | I63: =H63*(1+INDEX('Step 2 - Growth Inputs'!$G$763:$K$1479, MATCH('Master Output Table'!$C63, 'Step 2 - Growth Inputs'!$D$763:$D$1479, 0), MATCH('Master Output Table'!I$43, 'Step 2 - Growth Inputs'!$G$763:$K$763, 0)))*(1+INDEX('Step 2 - Growth Inputs'!$G$763:$K$1479, MATCH('Master Output Table'!$C50, 'Step 2 - Growth Inputs'!$D$763:$D$1479, 0), MATCH('Master Output Table'!I$43, 'Step 2 - Growth Inputs'!$G$763:$K$763, 0))) -> 34.69658528 | J63: =I63*(1+INDEX('Step 2 - Growth Inputs'!$G$763:$K$1479, MATCH('Master Output Table'!$C63, 'Step 2 - Growth Inputs'!$D$763:$D$1479, 0), MATCH('Master Output Table'!J$43, 'Step 2 - Growth Inputs'!$G$763:$K$763, 0)))*(1+INDEX('Step 2 - Growth Inputs'!$G$763:$K$1479, MATCH('Master Output Table'!$C50, 'Step 2 - Growth Inputs'!$D$763:$D$1479, 0), MATCH('Master Output Table'!J$43, 'Step 2 - Growth Inputs'!$G$763:$K$763, 0))) -> 36.21282605 | M63: Child_Mostly healthy
B64: Child_Mostly healthy | C64: Child_Mostly healthy_SC_I | D64: I | E64: SC | F64: =INDEX('Base year data'!$D$39:$M$63, MATCH('Master Output Table'!B64, 'Base year data'!$C$39:$C$63, 0), MATCH('Master Output Table'!E64, 'Base year data'!$D$38:$M$38, 0))*(1+INDEX('Step 2 - Growth Inputs'!$G$763:$K$1479, MATCH('Master Output Table'!C64, 'Step 2 - Growth Inputs'!$D$763:$D$1479, 0), MATCH('Master Output Table'!$F$43, 'Step 2 - Growth Inputs'!$G$763:$K$763, 0)))*(1+INDEX('Step 2 - Growth Inputs'!$G$763:$K$1479, MATCH('Master Output Table'!$C51, 'Step 2 - Growth Inputs'!$D$763:$D$1479, 0), MATCH('Master Output Table'!$F$43, 'Step 2 - Growth Inputs'!$G$763:$K$763, 0))) -> 9.838446715 | G64: =F64*(1+INDEX('Step 2 - Growth Inputs'!$G$763:$K$1479, MATCH('Master Output Table'!$C64, 'Step 2 - Growth Inputs'!$D$763:$D$1479, 0), MATCH('Master Output Table'!G$43, 'Step 2 - Growth Inputs'!$G$763:$K$763, 0)))*(1+INDEX('Step 2 - Growth Inputs'!$G$763:$K$1479, MATCH('Master Output Table'!$C51, 'Step 2 - Growth Inputs'!$D$763:$D$1479, 0), MATCH('Master Output Table'!G$43, 'Step 2 - Growth Inputs'!$G$763:$K$763, 0))) -> 9.89472263 | H64: =G64*(1+INDEX('Step 2 - Growth Inputs'!$G$763:$K$1479, MATCH('Master Output Table'!$C64, 'Step 2 - Growth Inputs'!$D$763:$D$1479, 0), MATCH('Master Output Table'!H$43, 'Step 2 - Growth Inputs'!$G$763:$K$763, 0)))*(1+INDEX('Step 2 - Growth Inputs'!$G$763:$K$1479, MATCH('Master Output Table'!$C51, 'Step 2 - Growth Inputs'!$D$763:$D$1479, 0), MATCH('Master Output Table'!H$43, 'Step 2 - Growth Inputs'!$G$763:$K$763, 0))) -> 9.981598295 | I64: =H64*(1+INDEX('Step 2 - Growth Inputs'!$G$763:$K$1479, MATCH('Master Output Table'!$C64, 'Step 2 - Growth Inputs'!$D$763:$D$1479, 0), MATCH('Master Output Table'!I$43, 'Step 2 - Growth Inputs'!$G$763:$K$763, 0)))*(1+INDEX('Step 2 - Growth Inputs'!$G$763:$K$1479, MATCH('Master Output Table'!$C51, 'Step 2 - Growth Inputs'!$D$763:$D$1479, 0), MATCH('Master Output Table'!I$43, 'Step 2 - Growth Inputs'!$G$763:$K$763, 0))) -> 10.22195518 | J64: =I64*(1+INDEX('Step 2 - Growth Inputs'!$G$763:$K$1479, MATCH('Master Output Table'!$C64, 'Step 2 - Growth Inputs'!$D$763:$D$1479, 0), MATCH('Master Output Table'!J$43, 'Step 2 - Growth Inputs'!$G$763:$K$763, 0)))*(1+INDEX('Step 2 - Growth Inputs'!$G$763:$K$1479, MATCH('Master Output Table'!$C51, 'Step 2 - Growth Inputs'!$D$763:$D$1479, 0), MATCH('Master Output Table'!J$43, 'Step 2 - Growth Inputs'!$G$763:$K$763, 0))) -> 10.36383592 | M64: Child_Mostly healthy
B65: Child_Mostly healthy | C65: Child_Mostly healthy_CC_I | D65: I | E65: CC | F65: =INDEX('Base year data'!$D$39:$M$63, MATCH('Master Output Table'!B65, 'Base year data'!$C$39:$C$63, 0), MATCH('Master Output Table'!E65, 'Base year data'!$D$38:$M$38, 0))*(1+INDEX('Step 2 - Growth Inputs'!$G$763:$K$1479, MATCH('Master Output Table'!C65, 'Step 2 - Growth Inputs'!$D$763:$D$1479, 0), MATCH('Master Output Table'!$F$43, 'Step 2 - Growth Inputs'!$G$763:$K$763, 0)))*(1+INDEX('Step 2 - Growth Inputs'!$G$763:$K$1479, MATCH('Master Output Table'!$C52, 'Step 2 - Growth Inputs'!$D$763:$D$1479, 0), MATCH('Master Output Table'!$F$43, 'Step 2 - Growth Inputs'!$G$763:$K$763, 0))) -> 167.5158461 | G65: =F65*(1+INDEX('Step 2 - Growth Inputs'!$G$763:$K$1479, MATCH('Master Output Table'!$C65, 'Step 2 - Growth Inputs'!$D$763:$D$1479, 0), MATCH('Master Output Table'!G$43, 'Step 2 - Growth Inputs'!$G$763:$K$763, 0)))*(1+INDEX('Step 2 - Growth Inputs'!$G$763:$K$1479, MATCH('Master Output Table'!$C52, 'Step 2 - Growth Inputs'!$D$763:$D$1479, 0), MATCH('Master Output Table'!G$43, 'Step 2 - Growth Inputs'!$G$763:$K$763, 0))) -> 173.4291554 | H65: =G65*(1+INDEX('Step 2 - Growth Inputs'!$G$763:$K$1479, MATCH('Master Output Table'!$C65, 'Step 2 - Growth Inputs'!$D$763:$D$1479, 0), MATCH('Master Output Table'!H$43, 'Step 2 - Growth Inputs'!$G$763:$K$763, 0)))*(1+INDEX('Step 2 - Growth Inputs'!$G$763:$K$1479, MATCH('Master Output Table'!$C52, 'Step 2 - Growth Inputs'!$D$763:$D$1479, 0), MATCH('Master Output Table'!H$43, 'Step 2 - Growth Inputs'!$G$763:$K$763, 0))) -> 180.0975065 | I65: =H65*(1+INDEX('Step 2 - Growth Inputs'!$G$763:$K$1479, MATCH('Master Output Table'!$C65, 'Step 2 - Growth Inputs'!$D$763:$D$1479, 0), MATCH('Master Output Table'!I$43, 'Step 2 - Growth Inputs'!$G$763:$K$763, 0)))*(1+INDEX('Step 2 - Growth Inputs'!$G$763:$K$1479, MATCH('Master Output Table'!$C52, 'Step 2 - Growth Inputs'!$D$763:$D$1479, 0), MATCH('Master Output Table'!I$43, 'Step 2 - Growth Inputs'!$G$763:$K$763, 0))) -> 189.8587913 | J65: =I65*(1+INDEX('Step 2 - Growth Inputs'!$G$763:$K$1479, MATCH('Master Output Table'!$C65, 'Step 2 - Growth Inputs'!$D$763:$D$1479, 0), MATCH('Master Output Table'!J$43, 'Step 2 - Growth Inputs'!$G$763:$K$763, 0)))*(1+INDEX('Step 2 - Growth Inputs'!$G$763:$K$1479, MATCH('Master Output Table'!$C52, 'Step 2 - Growth Inputs'!$D$763:$D$1479, 0), MATCH('Master Output Table'!J$43, 'Step 2 - Growth Inputs'!$G$763:$K$763, 0))) -> 198.1556205 | M65: Child_Mostly healthy
B66: Child_Mostly healthy | C66: =B66&"Average" -> Child_Mostly healthyAverage | E66: Total | F66: =SUMIF(F57:F65, ">0") -> 802.9166786 | G66: =SUMIF(G57:G65, ">0") -> 813.3700258 | H66: =SUMIF(H57:H65, ">0") -> 826.597421 | I66: =SUMIF(I57:I65, ">0") -> 852.9177548 | J66: =SUMIF(J57:J65, ">0") -> 871.4524946 | M66: Child_Mostly healthy
B67: Child_Mostly healthy | C67: =B67&"_"&E67 -> Child_Mostly healthy_ | M67: Child_Mostly healthy
B68: Child_1LTC | C68: =B68&"_"&E68 -> Child_1LTC_Child: 1 LTC | E68: Child: 1 LTC | M68: Child_1LTC
B69: Child_1LTC | E69: Projection of population size | M69: Child_1LTC
B70: Child_1LTC | F70: Year 0 | G70: Year 1 | H70: Year 2 | I70: Year 3 | J70: Year 4 | M70: Child_1LTC
B71: Child_1LTC | E71: Projected segment size as a percentage of overall population | F71: =F72/SUM(F$40,F$72,F$104,F$136,F$169,F$202,F$234,F$266,F$297,F$329,F$362,F$395,F$427,F$459,F$490,F$522,F$555,F$588,F$620,F$652,F$683,F$715,F$748,F$781) -> 0.007706136017 | G71: =G72/SUM(G$40,G$72,G$104,G$136,G$169,G$202,G$234,G$266,G$297,G$329,G$362,G$395,G$427,G$459,G$490,G$522,G$555,G$588,G$620,G$652,G$683,G$715,G$748,G$781) -> 0.007760394284 | H71: =H72/SUM(H$40,H$72,H$104,H$136,H$169,H$202,H$234,H$266,H$297,H$329,H$362,H$395,H$427,H$459,H$490,H$522,H$555,H$588,H$620,H$652,H$683,H$715,H$748,H$781) -> 0.007814834832 | I71: =I72/SUM(I$40,I$72,I$104,I$136,I$169,I$202,I$234,I$266,I$297,I$329,I$362,I$395,I$427,I$459,I$490,I$522,I$555,I$588,I$620,I$652,I$683,I$715,I$748,I$781) -> 0.007869454826 | J71: =J72/SUM(J$40,J$72,J$104,J$136,J$169,J$202,J$234,J$266,J$297,J$329,J$362,J$395,J$427,J$459,J$490,J$522,J$555,J$588,J$620,J$652,J$683,J$715,J$748,J$781) -> 0.007924251373 | M71: Child_1LTC
B72: Child_1LTC | C72: =B72&"_"&E72&"_"&D72 -> Child_1LTC_Population Change_ | E72: Population Change | F72: =INDEX('Base year data'!$O$11:$O$34, MATCH('Master Output Table'!$B72, 'Base year data'!$C$11:$C$34, 0)) * (1+INDEX('Step 2 - Growth Inputs'!$F$763:$K$1479, MATCH('Master Output Table'!$C72, 'Step 2 - Growth Inputs'!$D$763:$D$1479, 0), 2)) -> 1926.534004 | G72: =F72*(1+INDEX('Step 2 - Growth Inputs'!$C$763:$K$1479,MATCH('Master Output Table'!$C72,'Step 2 - Growth Inputs'!$D$763:$D$1479,0),6)) -> 1955.432014 | H72: =G72*(1+INDEX('Step 2 - Growth Inputs'!$C$763:$K$1479,MATCH('Master Output Table'!$C72,'Step 2 - Growth Inputs'!$D$763:$D$1479,0),7)) -> 1984.763495 | I72: =H72*(1+INDEX('Step 2 - Growth Inputs'!$C$763:$K$1479,MATCH('Master Output Table'!$C72,'Step 2 - Growth Inputs'!$D$763:$D$1479,0),8)) -> 2014.534947 | J72: =I72*(1+INDEX('Step 2 - Growth Inputs'!$C$763:$K$1479,MATCH('Master Output Table'!$C72,'Step 2 - Growth Inputs'!$D$763:$D$1479,0),9)) -> 2044.752971 | M72: Child_1LTC
B73: Child_1LTC | C73: =B73&"_"&E73&"_"&D73 -> Child_1LTC__ | M73: Child_1LTC
B74: Child_1LTC | C74: =B74&"_"&E74&"_"&D74 -> Child_1LTC_Projection of total spend_ | E74: Projection of total spend | M74: Child_1LTC
B75: Child_1LTC | C75: =B75&"_"&E75&"_"&D75 -> Child_1LTC__ | F75: Year 0 | G75: Year 1 | H75: Year 2 | I75: Year 3 | J75: Year 4 | M75: Child_1LTC
B76: Child_1LTC | C76: =B76&"_"&E76&"_"&D76 -> Child_1LTC_AE_U | D76: U | E76: AE | F76: =F89*INDIRECT(F$3&ROW()-$K76) -> 126453.6686 | G76: =G89*INDIRECT(G$3&ROW()-$K76) -> 129084.6384 | H76: 132171.2715 | I76: 137384.2651 | J76: 141380.5261 | K76: 4 | M76: Child_1LTC
B77: Child_1LTC | C77: =B77&"_"&E77&"_"&D77 -> Child_1LTC_NEL_U | D77: U | E77: NEL | F77: 472292.7851 | G77: 482119.2143 | H77: 493647.5043 | I77: 513117.5542 | J77: 528043.2203 | K77: =K76+1 -> 5 | M77: Child_1LTC
B78: Child_1LTC | C78: Child_1LTC_EL_U | D78: U | E78: EL | F78: 243338.6704 | G78: 248401.5261 | H78: 254341.2288 | I78: 264372.7521 | J78: 272062.8796 | K78: =K77+1 -> 6 | M78: Child_1LTC
B79: Child_1LTC | C79: Child_1LTC_OP_U | D79: U | E79: OP | F79: 385920.4426 | G79: 393949.8262 | H79: 403369.8362 | I79: 419279.2266 | J79: =J92*INDIRECT(J$3&ROW()-$K79) -> 431475.3046 | K79: 7 | M79: Child_1LTC
B80: Child_1LTC | C80: Child_1LTC_MH_U | D80: U | E80: MH | F80: 352066.1098 | G80: 359391.1268 | H80: 367984.7797 | I80: 382498.5409 | J80: 393624.735 | K80: 8 | M80: Child_1LTC
B81: Child_1LTC | C81: Child_1LTC_GP_U | D81: U | E81: GP | F81: 316295.6353 | G81: 322876.419 | H81: 330596.9431 | I81: 343636.0832 | J81: 353631.8383 | K81: 9 | M81: Child_1LTC
B82: Child_1LTC | C82: Child_1LTC_Prescribing_U | D82: U | E82: Prescribing | F82: 319267.2817 | G82: 335495.478 | H82: 353621.2083 | I82: 378379.29 | J82: 400838.1819 | K82: 10 | M82: Child_1LTC
B83: Child_1LTC | C83: Child_1LTC_SC_U | D83: U | E83: SC | F83: 9687.578035 | G83: 9889.135846 | H83: 10125.6019 | I83: 10524.96779 | J83: 10831.12015 | K83: 11 | M83: Child_1LTC
B84: Child_1LTC | C84: Child_1LTC_CC_U | D84: U | E84: CC | F84: 238489.0671 | G84: 250611.3471 | H84: 264151.0637 | I84: 282645.0722 | J84: 299421.6117 | K84: 12 | M84: Child_1LTC
B85: Child_1LTC | C85: Child_1LTC_Total_ | E85: Total | F85: =SUMIF(F76:F84, ">0") -> 2463811.239 | G85: =SUMIF(G76:G84, ">0") -> 2531818.712 | H85: =SUMIF(H76:H84, ">0") -> 2610009.438 | I85: =SUMIF(I76:I84, ">0") -> 2731837.752 | J85: =SUMIF(J76:J84, ">0") -> 2831309.418 | M85: Child_1LTC
B86: Child_1LTC | C86: Child_1LTC__ | M86: Child_1LTC
B87: Child_1LTC | C87: Child_1LTC_Projection of average spend_ | E87: Projection of average spend | M87: Child_1LTC
B88: Child_1LTC | C88: Child_1LTC__I | D88: I | F88: Year 0 | G88: Year 1 | H88: Year 2 | I88: Year 3 | J88: Year 4 | M88: Child_1LTC
B89: Child_1LTC | C89: Child_1LTC_AE_I | D89: I | E89: AE | F89: =INDEX('Base year data'!$D$39:$M$63, MATCH('Master Output Table'!B89, 'Base year data'!$C$39:$C$63, 0), MATCH('Master Output Table'!E89, 'Base year data'!$D$38:$M$38, 0))*(1+INDEX('Step 2 - Growth Inputs'!$G$763:$K$1479, MATCH('Master Output Table'!C89, 'Step 2 - Growth Inputs'!$D$763:$D$1479, 0), MATCH('Master Output Table'!$F$43, 'Step 2 - Growth Inputs'!$G$763:$K$763, 0)))*(1+INDEX('Step 2 - Growth Inputs'!$G$763:$K$1479, MATCH('Master Output Table'!C76, 'Step 2 - Growth Inputs'!$D$763:$D$1479, 0), MATCH('Master Output Table'!$F$43, 'Step 2 - Growth Inputs'!$G$763:$K$763, 0))) -> 65.63791158 | G89: =F89*(1+INDEX('Step 2 - Growth Inputs'!$G$763:$K$1479, MATCH('Master Output Table'!$C89, 'Step 2 - Growth Inputs'!$D$763:$D$1479, 0), MATCH('Master Output Table'!G$43, 'Step 2 - Growth Inputs'!$G$763:$K$763, 0)))*(1+INDEX('Step 2 - Growth Inputs'!$G$763:$K$1479, MATCH('Master Output Table'!$C76, 'Step 2 - Growth Inputs'!$D$763:$D$1479, 0), MATCH('Master Output Table'!G$43, 'Step 2 - Growth Inputs'!$G$763:$K$763, 0))) -> 66.01336044 | H89: =G89*(1+INDEX('Step 2 - Growth Inputs'!$G$763:$K$1479, MATCH('Master Output Table'!$C89, 'Step 2 - Growth Inputs'!$D$763:$D$1479, 0), MATCH('Master Output Table'!H$43, 'Step 2 - Growth Inputs'!$G$763:$K$763, 0)))*(1+INDEX('Step 2 - Growth Inputs'!$G$763:$K$1479, MATCH('Master Output Table'!$C76, 'Step 2 - Growth Inputs'!$D$763:$D$1479, 0), MATCH('Master Output Table'!H$43, 'Step 2 - Growth Inputs'!$G$763:$K$763, 0))) -> 66.59295774 | I89: =H89*(1+INDEX('Step 2 - Growth Inputs'!$G$763:$K$1479, MATCH('Master Output Table'!$C89, 'Step 2 - Growth Inputs'!$D$763:$D$1479, 0), MATCH('Master Output Table'!I$43, 'Step 2 - Growth Inputs'!$G$763:$K$763, 0)))*(1+INDEX('Step 2 - Growth Inputs'!$G$763:$K$1479, MATCH('Master Output Table'!$C76, 'Step 2 - Growth Inputs'!$D$763:$D$1479, 0), MATCH('Master Output Table'!I$43, 'Step 2 - Growth Inputs'!$G$763:$K$763, 0))) -> 68.19651617 | J89: =I89*(1+INDEX('Step 2 - Growth Inputs'!$G$763:$K$1479, MATCH('Master Output Table'!$C89, 'Step 2 - Growth Inputs'!$D$763:$D$1479, 0), MATCH('Master Output Table'!J$43, 'Step 2 - Growth Inputs'!$G$763:$K$763, 0)))*(1+INDEX('Step 2 - Growth Inputs'!$G$763:$K$1479, MATCH('Master Output Table'!$C76, 'Step 2 - Growth Inputs'!$D$763:$D$1479, 0), MATCH('Master Output Table'!J$43, 'Step 2 - Growth Inputs'!$G$763:$K$763, 0))) -> 69.14308381 | M89: Child_1LTC
B90: Child_1LTC | C90: Child_1LTC_NEL_I | D90: I | E90: NEL | F90: =INDEX('Base year data'!$D$39:$M$63, MATCH('Master Output Table'!B90, 'Base year data'!$C$39:$C$63, 0), MATCH('Master Output Table'!E90, 'Base year data'!$D$38:$M$38, 0))*(1+INDEX('Step 2 - Growth Inputs'!$G$763:$K$1479, MATCH('Master Output Table'!C90, 'Step 2 - Growth Inputs'!$D$763:$D$1479, 0), MATCH('Master Output Table'!$F$43, 'Step 2 - Growth Inputs'!$G$763:$K$763, 0)))*(1+INDEX('Step 2 - Growth Inputs'!$G$763:$K$1479, MATCH('Master Output Table'!C77, 'Step 2 - Growth Inputs'!$D$763:$D$1479, 0), MATCH('Master Output Table'!$F$43, 'Step 2 - Growth Inputs'!$G$763:$K$763, 0))) -> 245.1515436 | G90: =F90*(1+INDEX('Step 2 - Growth Inputs'!$G$763:$K$1479, MATCH('Master Output Table'!$C90, 'Step 2 - Growth Inputs'!$D$763:$D$1479, 0), MATCH('Master Output Table'!G$43, 'Step 2 - Growth Inputs'!$G$763:$K$763, 0)))*(1+INDEX('Step 2 - Growth Inputs'!$G$763:$K$1479, MATCH('Master Output Table'!$C77, 'Step 2 - Growth Inputs'!$D$763:$D$1479, 0), MATCH('Master Output Table'!G$43, 'Step 2 - Growth Inputs'!$G$763:$K$763, 0))) -> 246.5538105 | H90: =G90*(1+INDEX('Step 2 - Growth Inputs'!$G$763:$K$1479, MATCH('Master Output Table'!$C90, 'Step 2 - Growth Inputs'!$D$763:$D$1479, 0), MATCH('Master Output Table'!H$43, 'Step 2 - Growth Inputs'!$G$763:$K$763, 0)))*(1+INDEX('Step 2 - Growth Inputs'!$G$763:$K$1479, MATCH('Master Output Table'!$C77, 'Step 2 - Growth Inputs'!$D$763:$D$1479, 0), MATCH('Master Output Table'!H$43, 'Step 2 - Growth Inputs'!$G$763:$K$763, 0))) -> 248.7185529 | I90: =H90*(1+INDEX('Step 2 - Growth Inputs'!$G$763:$K$1479, MATCH('Master Output Table'!$C90, 'Step 2 - Growth Inputs'!$D$763:$D$1479, 0), MATCH('Master Output Table'!I$43, 'Step 2 - Growth Inputs'!$G$763:$K$763, 0)))*(1+INDEX('Step 2 - Growth Inputs'!$G$763:$K$1479, MATCH('Master Output Table'!$C77, 'Step 2 - Growth Inputs'!$D$763:$D$1479, 0), MATCH('Master Output Table'!I$43, 'Step 2 - Growth Inputs'!$G$763:$K$763, 0))) -> 254.7076957 | J90: =I90*(1+INDEX('Step 2 - Growth Inputs'!$G$763:$K$1479, MATCH('Master Output Table'!$C90, 'Step 2 - Growth Inputs'!$D$763:$D$1479, 0), MATCH('Master Output Table'!J$43, 'Step 2 - Growth Inputs'!$G$763:$K$763, 0)))*(1+INDEX('Step 2 - Growth Inputs'!$G$763:$K$1479, MATCH('Master Output Table'!$C77, 'Step 2 - Growth Inputs'!$D$763:$D$1479, 0), MATCH('Master Output Table'!J$43, 'Step 2 - Growth Inputs'!$G$763:$K$763, 0))) -> 258.2430385 | M90: Child_1LTC
B91: Child_1LTC | C91: Child_1LTC_EL_I | D91: I | E91: EL | F91: =INDEX('Base year data'!$D$39:$M$63, MATCH('Master Output Table'!B91, 'Base year data'!$C$39:$C$63, 0), MATCH('Master Output Table'!E91, 'Base year data'!$D$38:$M$38, 0))*(1+INDEX('Step 2 - Growth Inputs'!$G$763:$K$1479, MATCH('Master Output Table'!C91, 'Step 2 - Growth Inputs'!$D$763:$D$1479, 0), MATCH('Master Output Table'!$F$43, 'Step 2 - Growth Inputs'!$G$763:$K$763, 0)))*(1+INDEX('Step 2 - Growth Inputs'!$G$763:$K$1479, MATCH('Master Output Table'!C78, 'Step 2 - Growth Inputs'!$D$763:$D$1479, 0), MATCH('Master Output Table'!$F$43, 'Step 2 - Growth Inputs'!$G$763:$K$763, 0))) -> 126.3090451 | G91: =F91*(1+INDEX('Step 2 - Growth Inputs'!$G$763:$K$1479, MATCH('Master Output Table'!$C91, 'Step 2 - Growth Inputs'!$D$763:$D$1479, 0), MATCH('Master Output Table'!G$43, 'Step 2 - Growth Inputs'!$G$763:$K$763, 0)))*(1+INDEX('Step 2 - Growth Inputs'!$G$763:$K$1479, MATCH('Master Output Table'!$C78, 'Step 2 - Growth Inputs'!$D$763:$D$1479, 0), MATCH('Master Output Table'!G$43, 'Step 2 - Growth Inputs'!$G$763:$K$763, 0))) -> 127.0315328 | H91: =G91*(1+INDEX('Step 2 - Growth Inputs'!$G$763:$K$1479, MATCH('Master Output Table'!$C91, 'Step 2 - Growth Inputs'!$D$763:$D$1479, 0), MATCH('Master Output Table'!H$43, 'Step 2 - Growth Inputs'!$G$763:$K$763, 0)))*(1+INDEX('Step 2 - Growth Inputs'!$G$763:$K$1479, MATCH('Master Output Table'!$C78, 'Step 2 - Growth Inputs'!$D$763:$D$1479, 0), MATCH('Master Output Table'!H$43, 'Step 2 - Growth Inputs'!$G$763:$K$763, 0))) -> 128.1468697 | I91: =H91*(1+INDEX('Step 2 - Growth Inputs'!$G$763:$K$1479, MATCH('Master Output Table'!$C91, 'Step 2 - Growth Inputs'!$D$763:$D$1479, 0), MATCH('Master Output Table'!I$43, 'Step 2 - Growth Inputs'!$G$763:$K$763, 0)))*(1+INDEX('Step 2 - Growth Inputs'!$G$763:$K$1479, MATCH('Master Output Table'!$C78, 'Step 2 - Growth Inputs'!$D$763:$D$1479, 0), MATCH('Master Output Table'!I$43, 'Step 2 - Growth Inputs'!$G$763:$K$763, 0))) -> 131.2326463 | J91: =I91*(1+INDEX('Step 2 - Growth Inputs'!$G$763:$K$1479, MATCH('Master Output Table'!$C91, 'Step 2 - Growth Inputs'!$D$763:$D$1479, 0), MATCH('Master Output Table'!J$43, 'Step 2 - Growth Inputs'!$G$763:$K$763, 0)))*(1+INDEX('Step 2 - Growth Inputs'!$G$763:$K$1479, MATCH('Master Output Table'!$C78, 'Step 2 - Growth Inputs'!$D$763:$D$1479, 0), MATCH('Master Output Table'!J$43, 'Step 2 - Growth Inputs'!$G$763:$K$763, 0))) -> 133.0541554 | M91: Child_1LTC
B92: Child_1LTC | C92: Child_1LTC_OP_I | D92: I | E92: OP | F92: =INDEX('Base year data'!$D$39:$M$63, MATCH('Master Output Table'!B92, 'Base year data'!$C$39:$C$63, 0), MATCH('Master Output Table'!E92, 'Base year data'!$D$38:$M$38, 0))*(1+INDEX('Step 2 - Growth Inputs'!$G$763:$K$1479, MATCH('Master Output Table'!C92, 'Step 2 - Growth Inputs'!$D$763:$D$1479, 0), MATCH('Master Output Table'!$F$43, 'Step 2 - Growth Inputs'!$G$763:$K$763, 0)))*(1+INDEX('Step 2 - Growth Inputs'!$G$763:$K$1479, MATCH('Master Output Table'!C79, 'Step 2 - Growth Inputs'!$D$763:$D$1479, 0), MATCH('Master Output Table'!$F$43, 'Step 2 - Growth Inputs'!$G$763:$K$763, 0))) -> 200.3185211 | G92: =F92*(1+INDEX('Step 2 - Growth Inputs'!$G$763:$K$1479, MATCH('Master Output Table'!$C92, 'Step 2 - Growth Inputs'!$D$763:$D$1479, 0), MATCH('Master Output Table'!G$43, 'Step 2 - Growth Inputs'!$G$763:$K$763, 0)))*(1+INDEX('Step 2 - Growth Inputs'!$G$763:$K$1479, MATCH('Master Output Table'!$C79, 'Step 2 - Growth Inputs'!$D$763:$D$1479, 0), MATCH('Master Output Table'!G$43, 'Step 2 - Growth Inputs'!$G$763:$K$763, 0))) -> 201.4643431 | H92: =G92*(1+INDEX('Step 2 - Growth Inputs'!$G$763:$K$1479, MATCH('Master Output Table'!$C92, 'Step 2 - Growth Inputs'!$D$763:$D$1479, 0), MATCH('Master Output Table'!H$43, 'Step 2 - Growth Inputs'!$G$763:$K$763, 0)))*(1+INDEX('Step 2 - Growth Inputs'!$G$763:$K$1479, MATCH('Master Output Table'!$C79, 'Step 2 - Growth Inputs'!$D$763:$D$1479, 0), MATCH('Master Output Table'!H$43, 'Step 2 - Growth Inputs'!$G$763:$K$763, 0))) -> 203.2332 | I92: =H92*(1+INDEX('Step 2 - Growth Inputs'!$G$763:$K$1479, MATCH('Master Output Table'!$C92, 'Step 2 - Growth Inputs'!$D$763:$D$1479, 0), MATCH('Master Output Table'!I$43, 'Step 2 - Growth Inputs'!$G$763:$K$763, 0)))*(1+INDEX('Step 2 - Growth Inputs'!$G$763:$K$1479, MATCH('Master Output Table'!$C79, 'Step 2 - Growth Inputs'!$D$763:$D$1479, 0), MATCH('Master Output Table'!I$43, 'Step 2 - Growth Inputs'!$G$763:$K$763, 0))) -> 208.1270554 | J92: =I92*(1+INDEX('Step 2 - Growth Inputs'!$G$763:$K$1479, MATCH('Master Output Table'!$C92, 'Step 2 - Growth Inputs'!$D$763:$D$1479, 0), MATCH('Master Output Table'!J$43, 'Step 2 - Growth Inputs'!$G$763:$K$763, 0)))*(1+INDEX('Step 2 - Growth Inputs'!$G$763:$K$1479, MATCH('Master Output Table'!$C79, 'Step 2 - Growth Inputs'!$D$763:$D$1479, 0), MATCH('Master Output Table'!J$43, 'Step 2 - Growth Inputs'!$G$763:$K$763, 0))) -> 211.015859 | M92: Child_1LTC
B93: Child_1LTC | C93: Child_1LTC_MH_I | D93: I | E93: MH | F93: =INDEX('Base year data'!$D$39:$M$63, MATCH('Master Output Table'!B93, 'Base year data'!$C$39:$C$63, 0), MATCH('Master Output Table'!E93, 'Base year data'!$D$38:$M$38, 0))*(1+INDEX('Step 2 - Growth Inputs'!$G$763:$K$1479, MATCH('Master Output Table'!C93, 'Step 2 - Growth Inputs'!$D$763:$D$1479, 0), MATCH('Master Output Table'!$F$43, 'Step 2 - Growth Inputs'!$G$763:$K$763, 0)))*(1+INDEX('Step 2 - Growth Inputs'!$G$763:$K$1479, MATCH('Master Output Table'!C80, 'Step 2 - Growth Inputs'!$D$763:$D$1479, 0), MATCH('Master Output Table'!$F$43, 'Step 2 - Growth Inputs'!$G$763:$K$763, 0))) -> 182.7458581 | G93: =F93*(1+INDEX('Step 2 - Growth Inputs'!$G$763:$K$1479, MATCH('Master Output Table'!$C93, 'Step 2 - Growth Inputs'!$D$763:$D$1479, 0), MATCH('Master Output Table'!G$43, 'Step 2 - Growth Inputs'!$G$763:$K$763, 0)))*(1+INDEX('Step 2 - Growth Inputs'!$G$763:$K$1479, MATCH('Master Output Table'!$C80, 'Step 2 - Growth Inputs'!$D$763:$D$1479, 0), MATCH('Master Output Table'!G$43, 'Step 2 - Growth Inputs'!$G$763:$K$763, 0))) -> 183.7911644 | H93: =G93*(1+INDEX('Step 2 - Growth Inputs'!$G$763:$K$1479, MATCH('Master Output Table'!$C93, 'Step 2 - Growth Inputs'!$D$763:$D$1479, 0), MATCH('Master Output Table'!H$43, 'Step 2 - Growth Inputs'!$G$763:$K$763, 0)))*(1+INDEX('Step 2 - Growth Inputs'!$G$763:$K$1479, MATCH('Master Output Table'!$C80, 'Step 2 - Growth Inputs'!$D$763:$D$1479, 0), MATCH('Master Output Table'!H$43, 'Step 2 - Growth Inputs'!$G$763:$K$763, 0))) -> 185.4048508 | I93: =H93*(1+INDEX('Step 2 - Growth Inputs'!$G$763:$K$1479, MATCH('Master Output Table'!$C93, 'Step 2 - Growth Inputs'!$D$763:$D$1479, 0), MATCH('Master Output Table'!I$43, 'Step 2 - Growth Inputs'!$G$763:$K$763, 0)))*(1+INDEX('Step 2 - Growth Inputs'!$G$763:$K$1479, MATCH('Master Output Table'!$C80, 'Step 2 - Growth Inputs'!$D$763:$D$1479, 0), MATCH('Master Output Table'!I$43, 'Step 2 - Growth Inputs'!$G$763:$K$763, 0))) -> 189.8693996 | J93: =I93*(1+INDEX('Step 2 - Growth Inputs'!$G$763:$K$1479, MATCH('Master Output Table'!$C93, 'Step 2 - Growth Inputs'!$D$763:$D$1479, 0), MATCH('Master Output Table'!J$43, 'Step 2 - Growth Inputs'!$G$763:$K$763, 0)))*(1+INDEX('Step 2 - Growth Inputs'!$G$763:$K$1479, MATCH('Master Output Table'!$C80, 'Step 2 - Growth Inputs'!$D$763:$D$1479, 0), MATCH('Master Output Table'!J$43, 'Step 2 - Growth Inputs'!$G$763:$K$763, 0))) -> 192.5047869 | M93: Child_1LTC
B94: Child_1LTC | C94: Child_1LTC_GP_I | D94: I | E94: GP | F94: =INDEX('Base year data'!$D$39:$M$63, MATCH('Master Output Table'!B94, 'Base year data'!$C$39:$C$63, 0), MATCH('Master Output Table'!E94, 'Base year data'!$D$38:$M$38, 0))*(1+INDEX('Step 2 - Growth Inputs'!$G$763:$K$1479, MATCH('Master Output Table'!C94, 'Step 2 - Growth Inputs'!$D$763:$D$1479, 0), MATCH('Master Output Table'!$F$43, 'Step 2 - Growth Inputs'!$G$763:$K$763, 0)))*(1+INDEX('Step 2 - Growth Inputs'!$G$763:$K$1479, MATCH('Master Output Table'!C81, 'Step 2 - Growth Inputs'!$D$763:$D$1479, 0), MATCH('Master Output Table'!$F$43, 'Step 2 - Growth Inputs'!$G$763:$K$763, 0))) -> 164.1785894 | G94: =F94*(1+INDEX('Step 2 - Growth Inputs'!$G$763:$K$1479, MATCH('Master Output Table'!$C94, 'Step 2 - Growth Inputs'!$D$763:$D$1479, 0), MATCH('Master Output Table'!G$43, 'Step 2 - Growth Inputs'!$G$763:$K$763, 0)))*(1+INDEX('Step 2 - Growth Inputs'!$G$763:$K$1479, MATCH('Master Output Table'!$C81, 'Step 2 - Growth Inputs'!$D$763:$D$1479, 0), MATCH('Master Output Table'!G$43, 'Step 2 - Growth Inputs'!$G$763:$K$763, 0))) -> 165.1176909 | H94: =G94*(1+INDEX('Step 2 - Growth Inputs'!$G$763:$K$1479, MATCH('Master Output Table'!$C94, 'Step 2 - Growth Inputs'!$D$763:$D$1479, 0), MATCH('Master Output Table'!H$43, 'Step 2 - Growth Inputs'!$G$763:$K$763, 0)))*(1+INDEX('Step 2 - Growth Inputs'!$G$763:$K$1479, MATCH('Master Output Table'!$C81, 'Step 2 - Growth Inputs'!$D$763:$D$1479, 0), MATCH('Master Output Table'!H$43, 'Step 2 - Growth Inputs'!$G$763:$K$763, 0))) -> 166.5674243 | I94: =H94*(1+INDEX('Step 2 - Growth Inputs'!$G$763:$K$1479, MATCH('Master Output Table'!$C94, 'Step 2 - Growth Inputs'!$D$763:$D$1479, 0), MATCH('Master Output Table'!I$43, 'Step 2 - Growth Inputs'!$G$763:$K$763, 0)))*(1+INDEX('Step 2 - Growth Inputs'!$G$763:$K$1479, MATCH('Master Output Table'!$C81, 'Step 2 - Growth Inputs'!$D$763:$D$1479, 0), MATCH('Master Output Table'!I$43, 'Step 2 - Growth Inputs'!$G$763:$K$763, 0))) -> 170.5783678 | J94: =I94*(1+INDEX('Step 2 - Growth Inputs'!$G$763:$K$1479, MATCH('Master Output Table'!$C94, 'Step 2 - Growth Inputs'!$D$763:$D$1479, 0), MATCH('Master Output Table'!J$43, 'Step 2 - Growth Inputs'!$G$763:$K$763, 0)))*(1+INDEX('Step 2 - Growth Inputs'!$G$763:$K$1479, MATCH('Master Output Table'!$C81, 'Step 2 - Growth Inputs'!$D$763:$D$1479, 0), MATCH('Master Output Table'!J$43, 'Step 2 - Growth Inputs'!$G$763:$K$763, 0))) -> 172.9459956 | M94: Child_1LTC
B95: Child_1LTC | C95: Child_1LTC_Prescribing_I | D95: I | E95: Prescribing | F95: =INDEX('Base year data'!$D$39:$M$63, MATCH('Master Output Table'!B95, 'Base year data'!$C$39:$C$63, 0), MATCH('Master Output Table'!E95, 'Base year data'!$D$38:$M$38, 0))*(1+INDEX('Step 2 - Growth Inputs'!$G$763:$K$1479, MATCH('Master Output Table'!C95, 'Step 2 - Growth Inputs'!$D$763:$D$1479, 0), MATCH('Master Output Table'!$F$43, 'Step 2 - Growth Inputs'!$G$763:$K$763, 0)))*(1+INDEX('Step 2 - Growth Inputs'!$G$763:$K$1479, MATCH('Master Output Table'!C82, 'Step 2 - Growth Inputs'!$D$763:$D$1479, 0), MATCH('Master Output Table'!$F$43, 'Step 2 - Growth Inputs'!$G$763:$K$763, 0))) -> 165.7210727 | G95: =F95*(1+INDEX('Step 2 - Growth Inputs'!$G$763:$K$1479, MATCH('Master Output Table'!$C95, 'Step 2 - Growth Inputs'!$D$763:$D$1479, 0), MATCH('Master Output Table'!G$43, 'Step 2 - Growth Inputs'!$G$763:$K$763, 0)))*(1+INDEX('Step 2 - Growth Inputs'!$G$763:$K$1479, MATCH('Master Output Table'!$C82, 'Step 2 - Growth Inputs'!$D$763:$D$1479, 0), MATCH('Master Output Table'!G$43, 'Step 2 - Growth Inputs'!$G$763:$K$763, 0))) -> 171.5710265 | H95: =G95*(1+INDEX('Step 2 - Growth Inputs'!$G$763:$K$1479, MATCH('Master Output Table'!$C95, 'Step 2 - Growth Inputs'!$D$763:$D$1479, 0), MATCH('Master Output Table'!H$43, 'Step 2 - Growth Inputs'!$G$763:$K$763, 0)))*(1+INDEX('Step 2 - Growth Inputs'!$G$763:$K$1479, MATCH('Master Output Table'!$C82, 'Step 2 - Growth Inputs'!$D$763:$D$1479, 0), MATCH('Master Output Table'!H$43, 'Step 2 - Growth Inputs'!$G$763:$K$763, 0))) -> 178.1679325 | I95: =H95*(1+INDEX('Step 2 - Growth Inputs'!$G$763:$K$1479, MATCH('Master Output Table'!$C95, 'Step 2 - Growth Inputs'!$D$763:$D$1479, 0), MATCH('Master Output Table'!I$43, 'Step 2 - Growth Inputs'!$G$763:$K$763, 0)))*(1+INDEX('Step 2 - Growth Inputs'!$G$763:$K$1479, MATCH('Master Output Table'!$C82, 'Step 2 - Growth Inputs'!$D$763:$D$1479, 0), MATCH('Master Output Table'!I$43, 'Step 2 - Growth Inputs'!$G$763:$K$763, 0))) -> 187.8246344 | J95: =I95*(1+INDEX('Step 2 - Growth Inputs'!$G$763:$K$1479, MATCH('Master Output Table'!$C95, 'Step 2 - Growth Inputs'!$D$763:$D$1479, 0), MATCH('Master Output Table'!J$43, 'Step 2 - Growth Inputs'!$G$763:$K$763, 0)))*(1+INDEX('Step 2 - Growth Inputs'!$G$763:$K$1479, MATCH('Master Output Table'!$C82, 'Step 2 - Growth Inputs'!$D$763:$D$1479, 0), MATCH('Master Output Table'!J$43, 'Step 2 - Growth Inputs'!$G$763:$K$763, 0))) -> 196.0325709 | M95: Child_1LTC
B96: Child_1LTC | C96: Child_1LTC_SC_I | D96: I | E96: SC | F96: =INDEX('Base year data'!$D$39:$M$63, MATCH('Master Output Table'!B96, 'Base year data'!$C$39:$C$63, 0), MATCH('Master Output Table'!E96, 'Base year data'!$D$38:$M$38, 0))*(1+INDEX('Step 2 - Growth Inputs'!$G$763:$K$1479, MATCH('Master Output Table'!C96, 'Step 2 - Growth Inputs'!$D$763:$D$1479, 0), MATCH('Master Output Table'!$F$43, 'Step 2 - Growth Inputs'!$G$763:$K$763, 0)))*(1+INDEX('Step 2 - Growth Inputs'!$G$763:$K$1479, MATCH('Master Output Table'!C83, 'Step 2 - Growth Inputs'!$D$763:$D$1479, 0), MATCH('Master Output Table'!$F$43, 'Step 2 - Growth Inputs'!$G$763:$K$763, 0))) -> 5.028500931 | G96: =F96*(1+INDEX('Step 2 - Growth Inputs'!$G$763:$K$1479, MATCH('Master Output Table'!$C96, 'Step 2 - Growth Inputs'!$D$763:$D$1479, 0), MATCH('Master Output Table'!G$43, 'Step 2 - Growth Inputs'!$G$763:$K$763, 0)))*(1+INDEX('Step 2 - Growth Inputs'!$G$763:$K$1479, MATCH('Master Output Table'!$C83, 'Step 2 - Growth Inputs'!$D$763:$D$1479, 0), MATCH('Master Output Table'!G$43, 'Step 2 - Growth Inputs'!$G$763:$K$763, 0))) -> 5.057263957 | H96: =G96*(1+INDEX('Step 2 - Growth Inputs'!$G$763:$K$1479, MATCH('Master Output Table'!$C96, 'Step 2 - Growth Inputs'!$D$763:$D$1479, 0), MATCH('Master Output Table'!H$43, 'Step 2 - Growth Inputs'!$G$763:$K$763, 0)))*(1+INDEX('Step 2 - Growth Inputs'!$G$763:$K$1479, MATCH('Master Output Table'!$C83, 'Step 2 - Growth Inputs'!$D$763:$D$1479, 0), MATCH('Master Output Table'!H$43, 'Step 2 - Growth Inputs'!$G$763:$K$763, 0))) -> 5.101666734 | I96: =H96*(1+INDEX('Step 2 - Growth Inputs'!$G$763:$K$1479, MATCH('Master Output Table'!$C96, 'Step 2 - Growth Inputs'!$D$763:$D$1479, 0), MATCH('Master Output Table'!I$43, 'Step 2 - Growth Inputs'!$G$763:$K$763, 0)))*(1+INDEX('Step 2 - Growth Inputs'!$G$763:$K$1479, MATCH('Master Output Table'!$C83, 'Step 2 - Growth Inputs'!$D$763:$D$1479, 0), MATCH('Master Output Table'!I$43, 'Step 2 - Growth Inputs'!$G$763:$K$763, 0))) -> 5.224514869 | J96: =I96*(1+INDEX('Step 2 - Growth Inputs'!$G$763:$K$1479, MATCH('Master Output Table'!$C96, 'Step 2 - Growth Inputs'!$D$763:$D$1479, 0), MATCH('Master Output Table'!J$43, 'Step 2 - Growth Inputs'!$G$763:$K$763, 0)))*(1+INDEX('Step 2 - Growth Inputs'!$G$763:$K$1479, MATCH('Master Output Table'!$C83, 'Step 2 - Growth Inputs'!$D$763:$D$1479, 0), MATCH('Master Output Table'!J$43, 'Step 2 - Growth Inputs'!$G$763:$K$763, 0))) -> 5.297031135 | M96: Child_1LTC
B97: Child_1LTC | C97: Child_1LTC_CC_I | D97: I | E97: CC | F97: =INDEX('Base year data'!$D$39:$M$63, MATCH('Master Output Table'!B97, 'Base year data'!$C$39:$C$63, 0), MATCH('Master Output Table'!E97, 'Base year data'!$D$38:$M$38, 0))*(1+INDEX('Step 2 - Growth Inputs'!$G$763:$K$1479, MATCH('Master Output Table'!C97, 'Step 2 - Growth Inputs'!$D$763:$D$1479, 0), MATCH('Master Output Table'!$F$43, 'Step 2 - Growth Inputs'!$G$763:$K$763, 0)))*(1+INDEX('Step 2 - Growth Inputs'!$G$763:$K$1479, MATCH('Master Output Table'!C84, 'Step 2 - Growth Inputs'!$D$763:$D$1479, 0), MATCH('Master Output Table'!$F$43, 'Step 2 - Growth Inputs'!$G$763:$K$763, 0))) -> 123.7917766 | G97: =F97*(1+INDEX('Step 2 - Growth Inputs'!$G$763:$K$1479, MATCH('Master Output Table'!$C97, 'Step 2 - Growth Inputs'!$D$763:$D$1479, 0), MATCH('Master Output Table'!G$43, 'Step 2 - Growth Inputs'!$G$763:$K$763, 0)))*(1+INDEX('Step 2 - Growth Inputs'!$G$763:$K$1479, MATCH('Master Output Table'!$C84, 'Step 2 - Growth Inputs'!$D$763:$D$1479, 0), MATCH('Master Output Table'!G$43, 'Step 2 - Growth Inputs'!$G$763:$K$763, 0))) -> 128.1616263 | H97: =G97*(1+INDEX('Step 2 - Growth Inputs'!$G$763:$K$1479, MATCH('Master Output Table'!$C97, 'Step 2 - Growth Inputs'!$D$763:$D$1479, 0), MATCH('Master Output Table'!H$43, 'Step 2 - Growth Inputs'!$G$763:$K$763, 0)))*(1+INDEX('Step 2 - Growth Inputs'!$G$763:$K$1479, MATCH('Master Output Table'!$C84, 'Step 2 - Growth Inputs'!$D$763:$D$1479, 0), MATCH('Master Output Table'!H$43, 'Step 2 - Growth Inputs'!$G$763:$K$763, 0))) -> 133.0894409 | I97: =H97*(1+INDEX('Step 2 - Growth Inputs'!$G$763:$K$1479, MATCH('Master Output Table'!$C97, 'Step 2 - Growth Inputs'!$D$763:$D$1479, 0), MATCH('Master Output Table'!I$43, 'Step 2 - Growth Inputs'!$G$763:$K$763, 0)))*(1+INDEX('Step 2 - Growth Inputs'!$G$763:$K$1479, MATCH('Master Output Table'!$C84, 'Step 2 - Growth Inputs'!$D$763:$D$1479, 0), MATCH('Master Output Table'!I$43, 'Step 2 - Growth Inputs'!$G$763:$K$763, 0))) -> 140.3028885 | J97: =I97*(1+INDEX('Step 2 - Growth Inputs'!$G$763:$K$1479, MATCH('Master Output Table'!$C97, 'Step 2 - Growth Inputs'!$D$763:$D$1479, 0), MATCH('Master Output Table'!J$43, 'Step 2 - Growth Inputs'!$G$763:$K$763, 0)))*(1+INDEX('Step 2 - Growth Inputs'!$G$763:$K$1479, MATCH('Master Output Table'!$C84, 'Step 2 - Growth Inputs'!$D$763:$D$1479, 0), MATCH('Master Output Table'!J$43, 'Step 2 - Growth Inputs'!$G$763:$K$763, 0))) -> 146.4341248 | M97: Child_1LTC
B98: Child_1LTC | C98: =B98&"Average" -> Child_1LTCAverage | E98: Total | F98: =SUMIF(F89:F97, ">0") -> 1278.882819 | G98: =SUMIF(G89:G97, ">0") -> 1294.761819 | H98: =SUMIF(H89:H97, ">0") -> 1315.022895 | I98: =SUMIF(I89:I97, ">0") -> 1356.063719 | J98: =SUMIF(J89:J97, ">0") -> 1384.670646 | M98: Child_1LTC
B99: Child_1LTC | M99: Child_1LTC
B100: Child_2+LTC | E100: Child: Multiple LTC | M100: Child_2+LTC
B101: Child_2+LTC | E101: Projection of population size | M101: Child_2+LTC
B102: Child_2+LTC | F102: Year 0 | G102: Year 1 | H102: Year 2 | I102: Year 3 | J102: Year 4 | M102: Child_2+LTC
B103: Child_2+LTC | E103: Projected segment size as a percentage of overall population | F103: =F104/SUM(F$40,F$72,F$104,F$136,F$169,F$202,F$234,F$266,F$297,F$329,F$362,F$395,F$427,F$459,F$490,F$522,F$555,F$588,F$620,F$652,F$683,F$715,F$748,F$781) -> 0.000155157101 | G103: =G104/SUM(G$40,G$72,G$104,G$136,G$169,G$202,G$234,G$266,G$297,G$329,G$362,G$395,G$427,G$459,G$490,G$522,G$555,G$588,G$620,G$652,G$683,G$715,G$748,G$781) -> 0.0001562495493 | H103: =H104/SUM(H$40,H$72,H$104,H$136,H$169,H$202,H$234,H$266,H$297,H$329,H$362,H$395,H$427,H$459,H$490,H$522,H$555,H$588,H$620,H$652,H$683,H$715,H$748,H$781) -> 0.0001573456678 | I103: =I104/SUM(I$40,I$72,I$104,I$136,I$169,I$202,I$234,I$266,I$297,I$329,I$362,I$395,I$427,I$459,I$490,I$522,I$555,I$588,I$620,I$652,I$683,I$715,I$748,I$781) -> 0.0001584453992 | J103: =J104/SUM(J$40,J$72,J$104,J$136,J$169,J$202,J$234,J$266,J$297,J$329,J$362,J$395,J$427,J$459,J$490,J$522,J$555,J$588,J$620,J$652,J$683,J$715,J$748,J$781) -> 0.0001595486854 | M103: Child_2+LTC
B104: Child_2+LTC | C104: =B104&"_"&E104&"_"&D104 -> Child_2+LTC_Population Change_ | E104: Population Change | F104: =INDEX('Base year data'!$O$11:$O$34, MATCH('Master Output Table'!$B104, 'Base year data'!$C$11:$C$34, 0)) * (1+INDEX('Step 2 - Growth Inputs'!$F$763:$K$1479, MATCH('Master Output Table'!$C104, 'Step 2 - Growth Inputs'!$D$763:$D$1479, 0), 2)) -> 38.78927526 | G104: =F104*(1+INDEX('Step 2 - Growth Inputs'!$C$763:$K$1479,MATCH('Master Output Table'!$C104,'Step 2 - Growth Inputs'!$D$763:$D$1479,0),6)) -> 39.37111438 | H104: =G104*(1+INDEX('Step 2 - Growth Inputs'!$C$763:$K$1479,MATCH('Master Output Table'!$C104,'Step 2 - Growth Inputs'!$D$763:$D$1479,0),7)) -> 39.9616811 | I104: =H104*(1+INDEX('Step 2 - Growth Inputs'!$C$763:$K$1479,MATCH('Master Output Table'!$C104,'Step 2 - Growth Inputs'!$D$763:$D$1479,0),8)) -> 40.56110632 | J104: =I104*(1+INDEX('Step 2 - Growth Inputs'!$C$763:$K$1479,MATCH('Master Output Table'!$C104,'Step 2 - Growth Inputs'!$D$763:$D$1479,0),9)) -> 41.16952291 | M104: Child_2+LTC
B105: Child_2+LTC | C105: =B105&"_"&E105&"_"&D105 -> Child_2+LTC__ | M105: Child_2+LTC
B106: Child_2+LTC | C106: =B106&"_"&E106&"_"&D106 -> Child_2+LTC_Projection of total spend_ | E106: Projection of total spend | M106: Child_2+LTC
B107: Child_2+LTC | C107: =B107&"_"&E107&"_"&D107 -> Child_2+LTC__ | F107: Year 0 | G107: Year 1 | H107: Year 2 | I107: Year 3 | J107: Year 4 | M107: Child_2+LTC
B108: Child_2+LTC | C108: =B108&"_"&E108&"_"&D108 -> Child_2+LTC_AE_U | D108: U | E108: AE | F108: =F121*INDIRECT(F$3&ROW()-$K108) -> 3073.117098 | G108: 3137.055757 | H108: 3212.068094 | I108: 3338.755914 | J108: 3435.874313 | K108: 4 | M108: Child_2+LTC
B109: Child_2+LTC | C109: =B109&"_"&E109&"_"&D109 -> Child_2+LTC_NEL_U | D109: U | E109: NEL | F109: 46835.71888 | G109: 47810.17348 | H109: 48953.39601 | I109: 50884.17669 | J109: 52364.3058 | K109: =K108+1 -> 5 | M109: Child_2+LTC
B110: Child_2+LTC | C110: Child_2+LTC_EL_U | D110: U | E110: EL | F110: 16102.68315 | G110: 16437.71235 | H110: 16830.766 | I110: 17494.59161 | J110: 18003.47779 | K110: =K109+1 -> 6 | M110: Child_2+LTC
B111: Child_2+LTC | C111: Child_2+LTC_OP_U | D111: U | E111: OP | F111: 30884.74528 | G111: 31527.32711 | H111: 32281.1991 | I111: 33554.40833 | J111: 34530.44567 | K111: 7 | M111: Child_2+LTC
B112: Child_2+LTC | C112: Child_2+LTC_MH_U | D112: U | E112: MH | F112: 0 | G112: 0 | H112: 0 | I112: 0 | J112: 0 | K112: 8 | M112: Child_2+LTC
B113: Child_2+LTC | C113: Child_2+LTC_GP_U | D113: U | E113: GP | F113: 8720.928371 | G113: 8902.374262 | H113: 9115.245165 | I113: 9474.761373 | J113: 9750.365126 | K113: 9 | M113: Child_2+LTC
B114: Child_2+LTC | C114: Child_2+LTC_Prescribing_U | D114: U | E114: Prescribing | F114: 13749.15774 | G114: 14448.02056 | H114: 15228.60015 | I114: 16294.80013 | J114: 17261.98614 | K114: 10 | M114: Child_2+LTC
B115: Child_2+LTC | C115: Child_2+LTC_SC_U | D115: U | E115: SC | F115: 0 | G115: 0 | H115: 0 | I115: 0 | J115: 0 | K115: 11 | M115: Child_2+LTC
B116: Child_2+LTC | C116: Child_2+LTC_CC_U | D116: U | E116: CC | F116: 13870.29651 | G116: 14575.31674 | H116: 15362.77374 | I116: 16438.36761 | J116: 17414.07514 | K116: 12 | M116: Child_2+LTC
B117: Child_2+LTC | C117: Child_2+LTC_Total_ | E117: Total | F117: =SUMIF(F108:F116, ">0") -> 133236.647 | G117: =SUMIF(G108:G116, ">0") -> 136837.9803 | H117: =SUMIF(H108:H116, ">0") -> 140984.0483 | I117: =SUMIF(I108:I116, ">0") -> 147479.8617 | J117: =SUMIF(J108:J116, ">0") -> 152760.53 | M117: Child_2+LTC
B118: Child_2+LTC | C118: Child_2+LTC__ | M118: Child_2+LTC
B119: Child_2+LTC | C119: Child_2+LTC_Projection of average spend_ | E119: Projection of average spend | M119: Child_2+LTC
B120: Child_2+LTC | C120: Child_2+LTC__I | D120: I | F120: Year 0 | G120: Year 1 | H120: Year 2 | I120: Year 3 | J120: Year 4 | M120: Child_2+LTC
B121: Child_2+LTC | C121: Child_2+LTC_AE_I | D121: I | E121: AE | F121: =INDEX('Base year data'!$D$39:$M$63, MATCH('Master Output Table'!B121, 'Base year data'!$C$39:$C$63, 0), MATCH('Master Output Table'!E121, 'Base year data'!$D$38:$M$38, 0))*(1+INDEX('Step 2 - Growth Inputs'!$G$763:$K$1479, MATCH('Master Output Table'!C121, 'Step 2 - Growth Inputs'!$D$763:$D$1479, 0), MATCH('Master Output Table'!$F$43, 'Step 2 - Growth Inputs'!$G$763:$K$763, 0)))*(1+INDEX('Step 2 - Growth Inputs'!$G$763:$K$1479, MATCH('Master Output Table'!C108, 'Step 2 - Growth Inputs'!$D$763:$D$1479, 0), MATCH('Master Output Table'!$F$43, 'Step 2 - Growth Inputs'!$G$763:$K$763, 0))) -> 79.22594783 | G121: =F121*(1+INDEX('Step 2 - Growth Inputs'!$G$763:$K$1479, MATCH('Master Output Table'!$C121, 'Step 2 - Growth Inputs'!$D$763:$D$1479, 0), MATCH('Master Output Table'!G$43, 'Step 2 - Growth Inputs'!$G$763:$K$763, 0)))*(1+INDEX('Step 2 - Growth Inputs'!$G$763:$K$1479, MATCH('Master Output Table'!$C108, 'Step 2 - Growth Inputs'!$D$763:$D$1479, 0), MATCH('Master Output Table'!G$43, 'Step 2 - Growth Inputs'!$G$763:$K$763, 0))) -> 79.67912025 | H121: =G121*(1+INDEX('Step 2 - Growth Inputs'!$G$763:$K$1479, MATCH('Master Output Table'!$C121, 'Step 2 - Growth Inputs'!$D$763:$D$1479, 0), MATCH('Master Output Table'!H$43, 'Step 2 - Growth Inputs'!$G$763:$K$763, 0)))*(1+INDEX('Step 2 - Growth Inputs'!$G$763:$K$1479, MATCH('Master Output Table'!$C108, 'Step 2 - Growth Inputs'!$D$763:$D$1479, 0), MATCH('Master Output Table'!H$43, 'Step 2 - Growth Inputs'!$G$763:$K$763, 0))) -> 80.37870293 | I121: =H121*(1+INDEX('Step 2 - Growth Inputs'!$G$763:$K$1479, MATCH('Master Output Table'!$C121, 'Step 2 - Growth Inputs'!$D$763:$D$1479, 0), MATCH('Master Output Table'!I$43, 'Step 2 - Growth Inputs'!$G$763:$K$763, 0)))*(1+INDEX('Step 2 - Growth Inputs'!$G$763:$K$1479, MATCH('Master Output Table'!$C108, 'Step 2 - Growth Inputs'!$D$763:$D$1479, 0), MATCH('Master Output Table'!I$43, 'Step 2 - Growth Inputs'!$G$763:$K$763, 0))) -> 82.31422209 | J121: =I121*(1+INDEX('Step 2 - Growth Inputs'!$G$763:$K$1479, MATCH('Master Output Table'!$C121, 'Step 2 - Growth Inputs'!$D$763:$D$1479, 0), MATCH('Master Output Table'!J$43, 'Step 2 - Growth Inputs'!$G$763:$K$763, 0)))*(1+INDEX('Step 2 - Growth Inputs'!$G$763:$K$1479, MATCH('Master Output Table'!$C108, 'Step 2 - Growth Inputs'!$D$763:$D$1479, 0), MATCH('Master Output Table'!J$43, 'Step 2 - Growth Inputs'!$G$763:$K$763, 0))) -> 83.45674349 | M121: Child_2+LTC
B122: Child_2+LTC | C122: Child_2+LTC_NEL_I | D122: I | E122: NEL | F122: =INDEX('Base year data'!$D$39:$M$63, MATCH('Master Output Table'!B122, 'Base year data'!$C$39:$C$63, 0), MATCH('Master Output Table'!E122, 'Base year data'!$D$38:$M$38, 0))*(1+INDEX('Step 2 - Growth Inputs'!$G$763:$K$1479, MATCH('Master Output Table'!C122, 'Step 2 - Growth Inputs'!$D$763:$D$1479, 0), MATCH('Master Output Table'!$F$43, 'Step 2 - Growth Inputs'!$G$763:$K$763, 0)))*(1+INDEX('Step 2 - Growth Inputs'!$G$763:$K$1479, MATCH('Master Output Table'!C109, 'Step 2 - Growth Inputs'!$D$763:$D$1479, 0), MATCH('Master Output Table'!$F$43, 'Step 2 - Growth Inputs'!$G$763:$K$763, 0))) -> 1207.439906 | G122: =F122*(1+INDEX('Step 2 - Growth Inputs'!$G$763:$K$1479, MATCH('Master Output Table'!$C122, 'Step 2 - Growth Inputs'!$D$763:$D$1479, 0), MATCH('Master Output Table'!G$43, 'Step 2 - Growth Inputs'!$G$763:$K$763, 0)))*(1+INDEX('Step 2 - Growth Inputs'!$G$763:$K$1479, MATCH('Master Output Table'!$C109, 'Step 2 - Growth Inputs'!$D$763:$D$1479, 0), MATCH('Master Output Table'!G$43, 'Step 2 - Growth Inputs'!$G$763:$K$763, 0))) -> 1214.346463 | H122: =G122*(1+INDEX('Step 2 - Growth Inputs'!$G$763:$K$1479, MATCH('Master Output Table'!$C122, 'Step 2 - Growth Inputs'!$D$763:$D$1479, 0), MATCH('Master Output Table'!H$43, 'Step 2 - Growth Inputs'!$G$763:$K$763, 0)))*(1+INDEX('Step 2 - Growth Inputs'!$G$763:$K$1479, MATCH('Master Output Table'!$C109, 'Step 2 - Growth Inputs'!$D$763:$D$1479, 0), MATCH('Master Output Table'!H$43, 'Step 2 - Growth Inputs'!$G$763:$K$763, 0))) -> 1225.008425 | I122: =H122*(1+INDEX('Step 2 - Growth Inputs'!$G$763:$K$1479, MATCH('Master Output Table'!$C122, 'Step 2 - Growth Inputs'!$D$763:$D$1479, 0), MATCH('Master Output Table'!I$43, 'Step 2 - Growth Inputs'!$G$763:$K$763, 0)))*(1+INDEX('Step 2 - Growth Inputs'!$G$763:$K$1479, MATCH('Master Output Table'!$C109, 'Step 2 - Growth Inputs'!$D$763:$D$1479, 0), MATCH('Master Output Table'!I$43, 'Step 2 - Growth Inputs'!$G$763:$K$763, 0))) -> 1254.506627 | J122: =I122*(1+INDEX('Step 2 - Growth Inputs'!$G$763:$K$1479, MATCH('Master Output Table'!$C122, 'Step 2 - Growth Inputs'!$D$763:$D$1479, 0), MATCH('Master Output Table'!J$43, 'Step 2 - Growth Inputs'!$G$763:$K$763, 0)))*(1+INDEX('Step 2 - Growth Inputs'!$G$763:$K$1479, MATCH('Master Output Table'!$C109, 'Step 2 - Growth Inputs'!$D$763:$D$1479, 0), MATCH('Master Output Table'!J$43, 'Step 2 - Growth Inputs'!$G$763:$K$763, 0))) -> 1271.919179 | M122: Child_2+LTC
B123: Child_2+LTC | C123: Child_2+LTC_EL_I | D123: I | E123: EL | F123: =INDEX('Base year data'!$D$39:$M$63, MATCH('Master Output Table'!B123, 'Base year data'!$C$39:$C$63, 0), MATCH('Master Output Table'!E123, 'Base year data'!$D$38:$M$38, 0))*(1+INDEX('Step 2 - Growth Inputs'!$G$763:$K$1479, MATCH('Master Output Table'!C123, 'Step 2 - Growth Inputs'!$D$763:$D$1479, 0), MATCH('Master Output Table'!$F$43, 'Step 2 - Growth Inputs'!$G$763:$K$763, 0)))*(1+INDEX('Step 2 - Growth Inputs'!$G$763:$K$1479, MATCH('Master Output Table'!C110, 'Step 2 - Growth Inputs'!$D$763:$D$1479, 0), MATCH('Master Output Table'!$F$43, 'Step 2 - Growth Inputs'!$G$763:$K$763, 0))) -> 415.132354 | G123: =F123*(1+INDEX('Step 2 - Growth Inputs'!$G$763:$K$1479, MATCH('Master Output Table'!$C123, 'Step 2 - Growth Inputs'!$D$763:$D$1479, 0), MATCH('Master Output Table'!G$43, 'Step 2 - Growth Inputs'!$G$763:$K$763, 0)))*(1+INDEX('Step 2 - Growth Inputs'!$G$763:$K$1479, MATCH('Master Output Table'!$C110, 'Step 2 - Growth Inputs'!$D$763:$D$1479, 0), MATCH('Master Output Table'!G$43, 'Step 2 - Growth Inputs'!$G$763:$K$763, 0))) -> 417.5069111 | H123: =G123*(1+INDEX('Step 2 - Growth Inputs'!$G$763:$K$1479, MATCH('Master Output Table'!$C123, 'Step 2 - Growth Inputs'!$D$763:$D$1479, 0), MATCH('Master Output Table'!H$43, 'Step 2 - Growth Inputs'!$G$763:$K$763, 0)))*(1+INDEX('Step 2 - Growth Inputs'!$G$763:$K$1479, MATCH('Master Output Table'!$C110, 'Step 2 - Growth Inputs'!$D$763:$D$1479, 0), MATCH('Master Output Table'!H$43, 'Step 2 - Growth Inputs'!$G$763:$K$763, 0))) -> 421.1726218 | I123: =H123*(1+INDEX('Step 2 - Growth Inputs'!$G$763:$K$1479, MATCH('Master Output Table'!$C123, 'Step 2 - Growth Inputs'!$D$763:$D$1479, 0), MATCH('Master Output Table'!I$43, 'Step 2 - Growth Inputs'!$G$763:$K$763, 0)))*(1+INDEX('Step 2 - Growth Inputs'!$G$763:$K$1479, MATCH('Master Output Table'!$C110, 'Step 2 - Growth Inputs'!$D$763:$D$1479, 0), MATCH('Master Output Table'!I$43, 'Step 2 - Growth Inputs'!$G$763:$K$763, 0))) -> 431.3144585 | J123: =I123*(1+INDEX('Step 2 - Growth Inputs'!$G$763:$K$1479, MATCH('Master Output Table'!$C123, 'Step 2 - Growth Inputs'!$D$763:$D$1479, 0), MATCH('Master Output Table'!J$43, 'Step 2 - Growth Inputs'!$G$763:$K$763, 0)))*(1+INDEX('Step 2 - Growth Inputs'!$G$763:$K$1479, MATCH('Master Output Table'!$C110, 'Step 2 - Growth Inputs'!$D$763:$D$1479, 0), MATCH('Master Output Table'!J$43, 'Step 2 - Growth Inputs'!$G$763:$K$763, 0))) -> 437.3011032 | M123: Child_2+LTC
B124: Child_2+LTC | C124: Child_2+LTC_OP_I | D124: I | E124: OP | F124: =INDEX('Base year data'!$D$39:$M$63, MATCH('Master Output Table'!B124, 'Base year data'!$C$39:$C$63, 0), MATCH('Master Output Table'!E124, 'Base year data'!$D$38:$M$38, 0))*(1+INDEX('Step 2 - Growth Inputs'!$G$763:$K$1479, MATCH('Master Output Table'!C124, 'Step 2 - Growth Inputs'!$D$763:$D$1479, 0), MATCH('Master Output Table'!$F$43, 'Step 2 - Growth Inputs'!$G$763:$K$763, 0)))*(1+INDEX('Step 2 - Growth Inputs'!$G$763:$K$1479, MATCH('Master Output Table'!C111, 'Step 2 - Growth Inputs'!$D$763:$D$1479, 0), MATCH('Master Output Table'!$F$43, 'Step 2 - Growth Inputs'!$G$763:$K$763, 0))) -> 796.2186732 | G124: =F124*(1+INDEX('Step 2 - Growth Inputs'!$G$763:$K$1479, MATCH('Master Output Table'!$C124, 'Step 2 - Growth Inputs'!$D$763:$D$1479, 0), MATCH('Master Output Table'!G$43, 'Step 2 - Growth Inputs'!$G$763:$K$763, 0)))*(1+INDEX('Step 2 - Growth Inputs'!$G$763:$K$1479, MATCH('Master Output Table'!$C111, 'Step 2 - Growth Inputs'!$D$763:$D$1479, 0), MATCH('Master Output Table'!G$43, 'Step 2 - Growth Inputs'!$G$763:$K$763, 0))) -> 800.773044 | H124: =G124*(1+INDEX('Step 2 - Growth Inputs'!$G$763:$K$1479, MATCH('Master Output Table'!$C124, 'Step 2 - Growth Inputs'!$D$763:$D$1479, 0), MATCH('Master Output Table'!H$43, 'Step 2 - Growth Inputs'!$G$763:$K$763, 0)))*(1+INDEX('Step 2 - Growth Inputs'!$G$763:$K$1479, MATCH('Master Output Table'!$C111, 'Step 2 - Growth Inputs'!$D$763:$D$1479, 0), MATCH('Master Output Table'!H$43, 'Step 2 - Growth Inputs'!$G$763:$K$763, 0))) -> 807.8038314 | I124: =H124*(1+INDEX('Step 2 - Growth Inputs'!$G$763:$K$1479, MATCH('Master Output Table'!$C124, 'Step 2 - Growth Inputs'!$D$763:$D$1479, 0), MATCH('Master Output Table'!I$43, 'Step 2 - Growth Inputs'!$G$763:$K$763, 0)))*(1+INDEX('Step 2 - Growth Inputs'!$G$763:$K$1479, MATCH('Master Output Table'!$C111, 'Step 2 - Growth Inputs'!$D$763:$D$1479, 0), MATCH('Master Output Table'!I$43, 'Step 2 - Growth Inputs'!$G$763:$K$763, 0))) -> 827.2557476 | J124: =I124*(1+INDEX('Step 2 - Growth Inputs'!$G$763:$K$1479, MATCH('Master Output Table'!$C124, 'Step 2 - Growth Inputs'!$D$763:$D$1479, 0), MATCH('Master Output Table'!J$43, 'Step 2 - Growth Inputs'!$G$763:$K$763, 0)))*(1+INDEX('Step 2 - Growth Inputs'!$G$763:$K$1479, MATCH('Master Output Table'!$C111, 'Step 2 - Growth Inputs'!$D$763:$D$1479, 0), MATCH('Master Output Table'!J$43, 'Step 2 - Growth Inputs'!$G$763:$K$763, 0))) -> 838.7380574 | M124: Child_2+LTC
B125: Child_2+LTC | C125: Child_2+LTC_MH_I | D125: I | E125: MH | F125: =INDEX('Base year data'!$D$39:$M$63, MATCH('Master Output Table'!B125, 'Base year data'!$C$39:$C$63, 0), MATCH('Master Output Table'!E125, 'Base year data'!$D$38:$M$38, 0))*(1+INDEX('Step 2 - Growth Inputs'!$G$763:$K$1479, MATCH('Master Output Table'!C125, 'Step 2 - Growth Inputs'!$D$763:$D$1479, 0), MATCH('Master Output Table'!$F$43, 'Step 2 - Growth Inputs'!$G$763:$K$763, 0)))*(1+INDEX('Step 2 - Growth Inputs'!$G$763:$K$1479, MATCH('Master Output Table'!C112, 'Step 2 - Growth Inputs'!$D$763:$D$1479, 0), MATCH('Master Output Table'!$F$43, 'Step 2 - Growth Inputs'!$G$763:$K$763, 0))) -> 0 | G125: =F125*(1+INDEX('Step 2 - Growth Inputs'!$G$763:$K$1479, MATCH('Master Output Table'!$C125, 'Step 2 - Growth Inputs'!$D$763:$D$1479, 0), MATCH('Master Output Table'!G$43, 'Step 2 - Growth Inputs'!$G$763:$K$763, 0)))*(1+INDEX('Step 2 - Growth Inputs'!$G$763:$K$1479, MATCH('Master Output Table'!$C112, 'Step 2 - Growth Inputs'!$D$763:$D$1479, 0), MATCH('Master Output Table'!G$43, 'Step 2 - Growth Inputs'!$G$763:$K$763, 0))) -> 0 | H125: =G125*(1+INDEX('Step 2 - Growth Inputs'!$G$763:$K$1479, MATCH('Master Output Table'!$C125, 'Step 2 - Growth Inputs'!$D$763:$D$1479, 0), MATCH('Master Output Table'!H$43, 'Step 2 - Growth Inputs'!$G$763:$K$763, 0)))*(1+INDEX('Step 2 - Growth Inputs'!$G$763:$K$1479, MATCH('Master Output Table'!$C112, 'Step 2 - Growth Inputs'!$D$763:$D$1479, 0), MATCH('Master Output Table'!H$43, 'Step 2 - Growth Inputs'!$G$763:$K$763, 0))) -> 0 | I125: =H125*(1+INDEX('Step 2 - Growth Inputs'!$G$763:$K$1479, MATCH('Master Output Table'!$C125, 'Step 2 - Growth Inputs'!$D$763:$D$1479, 0), MATCH('Master Output Table'!I$43, 'Step 2 - Growth Inputs'!$G$763:$K$763, 0)))*(1+INDEX('Step 2 - Growth Inputs'!$G$763:$K$1479, MATCH('Master Output Table'!$C112, 'Step 2 - Growth Inputs'!$D$763:$D$1479, 0), MATCH('Master Output Table'!I$43, 'Step 2 - Growth Inputs'!$G$763:$K$763, 0))) -> 0 | J125: =I125*(1+INDEX('Step 2 - Growth Inputs'!$G$763:$K$1479, MATCH('Master Output Table'!$C125, 'Step 2 - Growth Inputs'!$D$763:$D$1479, 0), MATCH('Master Output Table'!J$43, 'Step 2 - Growth Inputs'!$G$763:$K$763, 0)))*(1+INDEX('Step 2 - Growth Inputs'!$G$763:$K$1479, MATCH('Master Output Table'!$C112, 'Step 2 - Growth Inputs'!$D$763:$D$1479, 0), MATCH('Master Output Table'!J$43, 'Step 2 - Growth Inputs'!$G$763:$K$763, 0))) -> 0 | M125: Child_2+LTC
B126: Child_2+LTC | C126: Child_2+LTC_GP_I | D126: I | E126: GP | F126: =INDEX('Base year data'!$D$39:$M$63, MATCH('Master Output Table'!B126, 'Base year data'!$C$39:$C$63, 0), MATCH('Master Output Table'!E126, 'Base year data'!$D$38:$M$38, 0))*(1+INDEX('Step 2 - Growth Inputs'!$G$763:$K$1479, MATCH('Master Output Table'!C126, 'Step 2 - Growth Inputs'!$D$763:$D$1479, 0), MATCH('Master Output Table'!$F$43, 'Step 2 - Growth Inputs'!$G$763:$K$763, 0)))*(1+INDEX('Step 2 - Growth Inputs'!$G$763:$K$1479, MATCH('Master Output Table'!C113, 'Step 2 - Growth Inputs'!$D$763:$D$1479, 0), MATCH('Master Output Table'!$F$43, 'Step 2 - Growth Inputs'!$G$763:$K$763, 0))) -> 224.8283401 | G126: =F126*(1+INDEX('Step 2 - Growth Inputs'!$G$763:$K$1479, MATCH('Master Output Table'!$C126, 'Step 2 - Growth Inputs'!$D$763:$D$1479, 0), MATCH('Master Output Table'!G$43, 'Step 2 - Growth Inputs'!$G$763:$K$763, 0)))*(1+INDEX('Step 2 - Growth Inputs'!$G$763:$K$1479, MATCH('Master Output Table'!$C113, 'Step 2 - Growth Inputs'!$D$763:$D$1479, 0), MATCH('Master Output Table'!G$43, 'Step 2 - Growth Inputs'!$G$763:$K$763, 0))) -> 226.1143582 | H126: =G126*(1+INDEX('Step 2 - Growth Inputs'!$G$763:$K$1479, MATCH('Master Output Table'!$C126, 'Step 2 - Growth Inputs'!$D$763:$D$1479, 0), MATCH('Master Output Table'!H$43, 'Step 2 - Growth Inputs'!$G$763:$K$763, 0)))*(1+INDEX('Step 2 - Growth Inputs'!$G$763:$K$1479, MATCH('Master Output Table'!$C113, 'Step 2 - Growth Inputs'!$D$763:$D$1479, 0), MATCH('Master Output Table'!H$43, 'Step 2 - Growth Inputs'!$G$763:$K$763, 0))) -> 228.0996423 | I126: =H126*(1+INDEX('Step 2 - Growth Inputs'!$G$763:$K$1479, MATCH('Master Output Table'!$C126, 'Step 2 - Growth Inputs'!$D$763:$D$1479, 0), MATCH('Master Output Table'!I$43, 'Step 2 - Growth Inputs'!$G$763:$K$763, 0)))*(1+INDEX('Step 2 - Growth Inputs'!$G$763:$K$1479, MATCH('Master Output Table'!$C113, 'Step 2 - Growth Inputs'!$D$763:$D$1479, 0), MATCH('Master Output Table'!I$43, 'Step 2 - Growth Inputs'!$G$763:$K$763, 0))) -> 233.5922817 | J126: =I126*(1+INDEX('Step 2 - Growth Inputs'!$G$763:$K$1479, MATCH('Master Output Table'!$C126, 'Step 2 - Growth Inputs'!$D$763:$D$1479, 0), MATCH('Master Output Table'!J$43, 'Step 2 - Growth Inputs'!$G$763:$K$763, 0)))*(1+INDEX('Step 2 - Growth Inputs'!$G$763:$K$1479, MATCH('Master Output Table'!$C113, 'Step 2 - Growth Inputs'!$D$763:$D$1479, 0), MATCH('Master Output Table'!J$43, 'Step 2 - Growth Inputs'!$G$763:$K$763, 0))) -> 236.8345426 | M126: Child_2+LTC
B127: Child_2+LTC | C127: Child_2+LTC_Prescribing_I | D127: I | E127: Prescribing | F127: =INDEX('Base year data'!$D$39:$M$63, MATCH('Master Output Table'!B127, 'Base year data'!$C$39:$C$63, 0), MATCH('Master Output Table'!E127, 'Base year data'!$D$38:$M$38, 0))*(1+INDEX('Step 2 - Growth Inputs'!$G$763:$K$1479, MATCH('Master Output Table'!C127, 'Step 2 - Growth Inputs'!$D$763:$D$1479, 0), MATCH('Master Output Table'!$F$43, 'Step 2 - Growth Inputs'!$G$763:$K$763, 0)))*(1+INDEX('Step 2 - Growth Inputs'!$G$763:$K$1479, MATCH('Master Output Table'!C114, 'Step 2 - Growth Inputs'!$D$763:$D$1479, 0), MATCH('Master Output Table'!$F$43, 'Step 2 - Growth Inputs'!$G$763:$K$763, 0))) -> 354.4577117 | G127: =F127*(1+INDEX('Step 2 - Growth Inputs'!$G$763:$K$1479, MATCH('Master Output Table'!$C127, 'Step 2 - Growth Inputs'!$D$763:$D$1479, 0), MATCH('Master Output Table'!G$43, 'Step 2 - Growth Inputs'!$G$763:$K$763, 0)))*(1+INDEX('Step 2 - Growth Inputs'!$G$763:$K$1479, MATCH('Master Output Table'!$C114, 'Step 2 - Growth Inputs'!$D$763:$D$1479, 0), MATCH('Master Output Table'!G$43, 'Step 2 - Growth Inputs'!$G$763:$K$763, 0))) -> 366.9700689 | H127: =G127*(1+INDEX('Step 2 - Growth Inputs'!$G$763:$K$1479, MATCH('Master Output Table'!$C127, 'Step 2 - Growth Inputs'!$D$763:$D$1479, 0), MATCH('Master Output Table'!H$43, 'Step 2 - Growth Inputs'!$G$763:$K$763, 0)))*(1+INDEX('Step 2 - Growth Inputs'!$G$763:$K$1479, MATCH('Master Output Table'!$C114, 'Step 2 - Growth Inputs'!$D$763:$D$1479, 0), MATCH('Master Output Table'!H$43, 'Step 2 - Growth Inputs'!$G$763:$K$763, 0))) -> 381.080068 | I127: =H127*(1+INDEX('Step 2 - Growth Inputs'!$G$763:$K$1479, MATCH('Master Output Table'!$C127, 'Step 2 - Growth Inputs'!$D$763:$D$1479, 0), MATCH('Master Output Table'!I$43, 'Step 2 - Growth Inputs'!$G$763:$K$763, 0)))*(1+INDEX('Step 2 - Growth Inputs'!$G$763:$K$1479, MATCH('Master Output Table'!$C114, 'Step 2 - Growth Inputs'!$D$763:$D$1479, 0), MATCH('Master Output Table'!I$43, 'Step 2 - Growth Inputs'!$G$763:$K$763, 0))) -> 401.7346077 | J127: =I127*(1+INDEX('Step 2 - Growth Inputs'!$G$763:$K$1479, MATCH('Master Output Table'!$C127, 'Step 2 - Growth Inputs'!$D$763:$D$1479, 0), MATCH('Master Output Table'!J$43, 'Step 2 - Growth Inputs'!$G$763:$K$763, 0)))*(1+INDEX('Step 2 - Growth Inputs'!$G$763:$K$1479, MATCH('Master Output Table'!$C114, 'Step 2 - Growth Inputs'!$D$763:$D$1479, 0), MATCH('Master Output Table'!J$43, 'Step 2 - Growth Inputs'!$G$763:$K$763, 0))) -> 419.2904101 | M127: Child_2+LTC
B128: Child_2+LTC | C128: Child_2+LTC_SC_I | D128: I | E128: SC | F128: =INDEX('Base year data'!$D$39:$M$63, MATCH('Master Output Table'!B128, 'Base year data'!$C$39:$C$63, 0), MATCH('Master Output Table'!E128, 'Base year data'!$D$38:$M$38, 0))*(1+INDEX('Step 2 - Growth Inputs'!$G$763:$K$1479, MATCH('Master Output Table'!C128, 'Step 2 - Growth Inputs'!$D$763:$D$1479, 0), MATCH('Master Output Table'!$F$43, 'Step 2 - Growth Inputs'!$G$763:$K$763, 0)))*(1+INDEX('Step 2 - Growth Inputs'!$G$763:$K$1479, MATCH('Master Output Table'!C115, 'Step 2 - Growth Inputs'!$D$763:$D$1479, 0), MATCH('Master Output Table'!$F$43, 'Step 2 - Growth Inputs'!$G$763:$K$763, 0))) -> 0 | G128: =F128*(1+INDEX('Step 2 - Growth Inputs'!$G$763:$K$1479, MATCH('Master Output Table'!$C128, 'Step 2 - Growth Inputs'!$D$763:$D$1479, 0), MATCH('Master Output Table'!G$43, 'Step 2 - Growth Inputs'!$G$763:$K$763, 0)))*(1+INDEX('Step 2 - Growth Inputs'!$G$763:$K$1479, MATCH('Master Output Table'!$C115, 'Step 2 - Growth Inputs'!$D$763:$D$1479, 0), MATCH('Master Output Table'!G$43, 'Step 2 - Growth Inputs'!$G$763:$K$763, 0))) -> 0 | H128: =G128*(1+INDEX('Step 2 - Growth Inputs'!$G$763:$K$1479, MATCH('Master Output Table'!$C128, 'Step 2 - Growth Inputs'!$D$763:$D$1479, 0), MATCH('Master Output Table'!H$43, 'Step 2 - Growth Inputs'!$G$763:$K$763, 0)))*(1+INDEX('Step 2 - Growth Inputs'!$G$763:$K$1479, MATCH('Master Output Table'!$C115, 'Step 2 - Growth Inputs'!$D$763:$D$1479, 0), MATCH('Master Output Table'!H$43, 'Step 2 - Growth Inputs'!$G$763:$K$763, 0))) -> 0 | I128: =H128*(1+INDEX('Step 2 - Growth Inputs'!$G$763:$K$1479, MATCH('Master Output Table'!$C128, 'Step 2 - Growth Inputs'!$D$763:$D$1479, 0), MATCH('Master Output Table'!I$43, 'Step 2 - Growth Inputs'!$G$763:$K$763, 0)))*(1+INDEX('Step 2 - Growth Inputs'!$G$763:$K$1479, MATCH('Master Output Table'!$C115, 'Step 2 - Growth Inputs'!$D$763:$D$1479, 0), MATCH('Master Output Table'!I$43, 'Step 2 - Growth Inputs'!$G$763:$K$763, 0))) -> 0 | J128: =I128*(1+INDEX('Step 2 - Growth Inputs'!$G$763:$K$1479, MATCH('Master Output Table'!$C128, 'Step 2 - Growth Inputs'!$D$763:$D$1479, 0), MATCH('Master Output Table'!J$43, 'Step 2 - Growth Inputs'!$G$763:$K$763, 0)))*(1+INDEX('Step 2 - Growth Inputs'!$G$763:$K$1479, MATCH('Master Output Table'!$C115, 'Step 2 - Growth Inputs'!$D$763:$D$1479, 0), MATCH('Master Output Table'!J$43, 'Step 2 - Growth Inputs'!$G$763:$K$763, 0))) -> 0 | M128: Child_2+LTC
B129: Child_2+LTC | C129: Child_2+LTC_CC_I | D129: I | E129: CC | F129: =INDEX('Base year data'!$D$39:$M$63, MATCH('Master Output Table'!B129, 'Base year data'!$C$39:$C$63, 0), MATCH('Master Output Table'!E129, 'Base year data'!$D$38:$M$38, 0))*(1+INDEX('Step 2 - Growth Inputs'!$G$763:$K$1479, MATCH('Master Output Table'!C129, 'Step 2 - Growth Inputs'!$D$763:$D$1479, 0), MATCH('Master Output Table'!$F$43, 'Step 2 - Growth Inputs'!$G$763:$K$763, 0)))*(1+INDEX('Step 2 - Growth Inputs'!$G$763:$K$1479, MATCH('Master Output Table'!C116, 'Step 2 - Growth Inputs'!$D$763:$D$1479, 0), MATCH('Master Output Table'!$F$43, 'Step 2 - Growth Inputs'!$G$763:$K$763, 0))) -> 357.5807079 | G129: =F129*(1+INDEX('Step 2 - Growth Inputs'!$G$763:$K$1479, MATCH('Master Output Table'!$C129, 'Step 2 - Growth Inputs'!$D$763:$D$1479, 0), MATCH('Master Output Table'!G$43, 'Step 2 - Growth Inputs'!$G$763:$K$763, 0)))*(1+INDEX('Step 2 - Growth Inputs'!$G$763:$K$1479, MATCH('Master Output Table'!$C116, 'Step 2 - Growth Inputs'!$D$763:$D$1479, 0), MATCH('Master Output Table'!G$43, 'Step 2 - Growth Inputs'!$G$763:$K$763, 0))) -> 370.2033069 | H129: =G129*(1+INDEX('Step 2 - Growth Inputs'!$G$763:$K$1479, MATCH('Master Output Table'!$C129, 'Step 2 - Growth Inputs'!$D$763:$D$1479, 0), MATCH('Master Output Table'!H$43, 'Step 2 - Growth Inputs'!$G$763:$K$763, 0)))*(1+INDEX('Step 2 - Growth Inputs'!$G$763:$K$1479, MATCH('Master Output Table'!$C116, 'Step 2 - Growth Inputs'!$D$763:$D$1479, 0), MATCH('Master Output Table'!H$43, 'Step 2 - Growth Inputs'!$G$763:$K$763, 0))) -> 384.4376241 | I129: =H129*(1+INDEX('Step 2 - Growth Inputs'!$G$763:$K$1479, MATCH('Master Output Table'!$C129, 'Step 2 - Growth Inputs'!$D$763:$D$1479, 0), MATCH('Master Output Table'!I$43, 'Step 2 - Growth Inputs'!$G$763:$K$763, 0)))*(1+INDEX('Step 2 - Growth Inputs'!$G$763:$K$1479, MATCH('Master Output Table'!$C116, 'Step 2 - Growth Inputs'!$D$763:$D$1479, 0), MATCH('Master Output Table'!I$43, 'Step 2 - Growth Inputs'!$G$763:$K$763, 0))) -> 405.2741433 | J129: =I129*(1+INDEX('Step 2 - Growth Inputs'!$G$763:$K$1479, MATCH('Master Output Table'!$C129, 'Step 2 - Growth Inputs'!$D$763:$D$1479, 0), MATCH('Master Output Table'!J$43, 'Step 2 - Growth Inputs'!$G$763:$K$763, 0)))*(1+INDEX('Step 2 - Growth Inputs'!$G$763:$K$1479, MATCH('Master Output Table'!$C116, 'Step 2 - Growth Inputs'!$D$763:$D$1479, 0), MATCH('Master Output Table'!J$43, 'Step 2 - Growth Inputs'!$G$763:$K$763, 0))) -> 422.9846233 | M129: Child_2+LTC
B130: Child_2+LTC | C130: =B130&"Average" -> Child_2+LTCAverage | E130: Total | F130: =SUMIF(F121:F129, ">0") -> 3434.883641 | G130: =SUMIF(G121:G129, ">0") -> 3475.593272 | H130: =SUMIF(H121:H129, ">0") -> 3527.980915 | I130: =SUMIF(I121:I129, ">0") -> 3635.992088 | J130: =SUMIF(J121:J129, ">0") -> 3710.52466 | M130: Child_2+LTC
B131: Child_2+LTC | C131: =B131&"_"&E131 -> Child_2+LTC_ | M131: Child_2+LTC
B132: Child_SEMI | E132: Child: SEMI | M132: Child_SEMI
B133: Child_SEMI | E133: Projection of population size | M133: Child_SEMI
B134: Child_SEMI | F134: Year 0 | G134: Year 1 | H134: Year 2 | I134: Year 3 | J134: Year 4 | M134: Child_SEMI
B135: Child_SEMI | E135: Projected segment size as a percentage of overall population | F135: =F136/SUM(F$40,F$72,F$104,F$136,F$169,F$202,F$234,F$266,F$297,F$329,F$362,F$395,F$427,F$459,F$490,F$522,F$555,F$588,F$620,F$652,F$683,F$715,F$748,F$781) -> 0.0002675122431 | G135: =G136/SUM(G$40,G$72,G$104,G$136,G$169,G$202,G$234,G$266,G$297,G$329,G$362,G$395,G$427,G$459,G$490,G$522,G$555,G$588,G$620,G$652,G$683,G$715,G$748,G$781) -> 0.0002693957747 | H135: =H136/SUM(H$40,H$72,H$104,H$136,H$169,H$202,H$234,H$266,H$297,H$329,H$362,H$395,H$427,H$459,H$490,H$522,H$555,H$588,H$620,H$652,H$683,H$715,H$748,H$781) -> 0.0002712856341 | I135: =I136/SUM(I$40,I$72,I$104,I$136,I$169,I$202,I$234,I$266,I$297,I$329,I$362,I$395,I$427,I$459,I$490,I$522,I$555,I$588,I$620,I$652,I$683,I$715,I$748,I$781) -> 0.0002731817227 | J135: =J136/SUM(J$40,J$72,J$104,J$136,J$169,J$202,J$234,J$266,J$297,J$329,J$362,J$395,J$427,J$459,J$490,J$522,J$555,J$588,J$620,J$652,J$683,J$715,J$748,J$781) -> 0.0002750839403 | M135: Child_SEMI
B136: Child_SEMI | C136: =B136&"_"&E136&"_"&D136 -> Child_SEMI_Population Change_ | E136: Population Change | F136: =INDEX('Base year data'!$O$11:$O$34, MATCH('Master Output Table'!$B136, 'Base year data'!$C$11:$C$34, 0)) * (1+INDEX('Step 2 - Growth Inputs'!$F$763:$K$1479, MATCH('Master Output Table'!$C136, 'Step 2 - Growth Inputs'!$D$763:$D$1479, 0), 2)) -> 66.87806079 | G136: =F136*(1+INDEX('Step 2 - Growth Inputs'!$C$763:$K$1479,MATCH('Master Output Table'!$C136,'Step 2 - Growth Inputs'!$D$763:$D$1479,0),6)) -> 67.8812317 | H136: =G136*(1+INDEX('Step 2 - Growth Inputs'!$C$763:$K$1479,MATCH('Master Output Table'!$C136,'Step 2 - Growth Inputs'!$D$763:$D$1479,0),7)) -> 68.89945017 | I136: =H136*(1+INDEX('Step 2 - Growth Inputs'!$C$763:$K$1479,MATCH('Master Output Table'!$C136,'Step 2 - Growth Inputs'!$D$763:$D$1479,0),8)) -> 69.93294193 | J136: =I136*(1+INDEX('Step 2 - Growth Inputs'!$C$763:$K$1479,MATCH('Master Output Table'!$C136,'Step 2 - Growth Inputs'!$D$763:$D$1479,0),9)) -> 70.98193605 | M136: Child_SEMI
B137: Child_SEMI | C137: =B137&"_"&E137&"_"&D137 -> Child_SEMI__ | M137: Child_SEMI
B138: Child_SEMI | C138: =B138&"_"&E138&"_"&D138 -> Child_SEMI_Projection of total spend_ | E138: Projection of total spend | M138: Child_SEMI
B139: Child_SEMI | C139: =B139&"_"&E139&"_"&D139 -> Child_SEMI__ | F139: Year 0 | G139: Year 1 | H139: Year 2 | I139: Year 3 | J139: Year 4 | M139: Child_SEMI
B140: Child_SEMI | C140: =B140&"_"&E140&"_"&D140 -> Child_SEMI_AE_U | D140: U | E140: AE | F140: =F153*INDIRECT(F$3&ROW()-$K140) -> 4971.028398 | G140: 5074.454621 | H140: 5195.793457 | I140: 5400.721786 | J140: 5557.819061 | K140: 4 | M140: Child_SEMI
B141: Child_SEMI | C141: =B141&"_"&E141&"_"&D141 -> Child_SEMI_NEL_U | D141: U | E141: NEL | F141: 55452.76776 | G141: 56606.50695 | H141: 57960.06476 | I141: 60246.07927 | J141: 61998.52927 | K141: =K140+1 -> 5 | M141: Child_SEMI
B142: Child_SEMI | C142: Child_SEMI_EL_U | D142: U | E142: EL | F142: 15124.44742 | G142: 15439.12365 | H142: 15808.29935 | I142: 16431.79764 | J142: 16909.76906 | K142: =K141+1 -> 6 | M142: Child_SEMI
B143: Child_SEMI | C143: Child_SEMI_OP_U | D143: U | E143: OP | F143: 25769.67367 | G143: 26305.83235 | H143: 26934.84952 | I143: 27997.1923 | J143: 28811.58023 | K143: 7 | M143: Child_SEMI
B144: Child_SEMI | C144: Child_SEMI_MH_U | D144: U | E144: MH | F144: 205910.9555 | G144: 210195.0977 | H144: 215221.2198 | I144: 223709.8029 | J144: 230217.1184 | K144: 8 | M144: Child_SEMI
B145: Child_SEMI | C145: Child_SEMI_GP_U | D145: U | E145: GP | F145: 7863.116098 | G145: 8026.714519 | H145: 8218.646909 | I145: 8542.800205 | J145: 8791.294886 | K145: 9 | M145: Child_SEMI
B146: Child_SEMI | C146: Child_SEMI_Prescribing_U | D146: U | E146: Prescribing | F146: 8013.16577 | G146: 8420.470979 | H146: 8875.40166 | I146: 9496.795156 | J146: 10060.48218 | K146: 10 | M146: Child_SEMI
B147: Child_SEMI | C147: Child_SEMI_SC_U | D147: U | E147: SC | F147: 4334.231342 | G147: 4424.408492 | H147: 4530.203621 | I147: 4708.880288 | J147: 4845.853139 | K147: 11 | M147: Child_SEMI
B148: Child_SEMI | C148: Child_SEMI_CC_U | D148: U | E148: CC | F148: 37.62770373 | G148: 39.5403011 | H148: 41.67653506 | I148: 44.59443431 | J148: 47.24135925 | K148: 12 | M148: Child_SEMI
B149: Child_SEMI | C149: Child_SEMI_Total_ | E149: Total | F149: =SUMIF(F140:F148, ">0") -> 327477.0137 | G149: =SUMIF(G140:G148, ">0") -> 334532.1495 | H149: =SUMIF(H140:H148, ">0") -> 342786.1556 | I149: =SUMIF(I140:I148, ">0") -> 356578.664 | J149: =SUMIF(J140:J148, ">0") -> 367239.6876 | M149: Child_SEMI
B150: Child_SEMI | C150: Child_SEMI__ | M150: Child_SEMI
B151: Child_SEMI | C151: Child_SEMI_Projection of average spend_ | E151: Projection of average spend | M151: Child_SEMI
B152: Child_SEMI | C152: Child_SEMI__I | D152: I | F152: Year 0 | G152: Year 1 | H152: Year 2 | I152: Year 3 | J152: Year 4 | M152: Child_SEMI
B153: Child_SEMI | C153: Child_SEMI_AE_I | D153: I | E153: AE | F153: =INDEX('Base year data'!$D$39:$M$63, MATCH('Master Output Table'!B153, 'Base year data'!$C$39:$C$63, 0), MATCH('Master Output Table'!E153, 'Base year data'!$D$38:$M$38, 0))*(1+INDEX('Step 2 - Growth Inputs'!$G$763:$K$1479, MATCH('Master Output Table'!C153, 'Step 2 - Growth Inputs'!$D$763:$D$1479, 0), MATCH('Master Output Table'!$F$43, 'Step 2 - Growth Inputs'!$G$763:$K$763, 0)))*(1+INDEX('Step 2 - Growth Inputs'!$G$763:$K$1479, MATCH('Master Output Table'!C140, 'Step 2 - Growth Inputs'!$D$763:$D$1479, 0), MATCH('Master Output Table'!$F$43, 'Step 2 - Growth Inputs'!$G$763:$K$763, 0))) -> 74.32973294 | G153: =F153*(1+INDEX('Step 2 - Growth Inputs'!$G$763:$K$1479, MATCH('Master Output Table'!$C153, 'Step 2 - Growth Inputs'!$D$763:$D$1479, 0), MATCH('Master Output Table'!G$43, 'Step 2 - Growth Inputs'!$G$763:$K$763, 0)))*(1+INDEX('Step 2 - Growth Inputs'!$G$763:$K$1479, MATCH('Master Output Table'!$C140, 'Step 2 - Growth Inputs'!$D$763:$D$1479, 0), MATCH('Master Output Table'!G$43, 'Step 2 - Growth Inputs'!$G$763:$K$763, 0))) -> 74.75489901 | H153: =G153*(1+INDEX('Step 2 - Growth Inputs'!$G$763:$K$1479, MATCH('Master Output Table'!$C153, 'Step 2 - Growth Inputs'!$D$763:$D$1479, 0), MATCH('Master Output Table'!H$43, 'Step 2 - Growth Inputs'!$G$763:$K$763, 0)))*(1+INDEX('Step 2 - Growth Inputs'!$G$763:$K$1479, MATCH('Master Output Table'!$C140, 'Step 2 - Growth Inputs'!$D$763:$D$1479, 0), MATCH('Master Output Table'!H$43, 'Step 2 - Growth Inputs'!$G$763:$K$763, 0))) -> 75.41124703 | I153: =H153*(1+INDEX('Step 2 - Growth Inputs'!$G$763:$K$1479, MATCH('Master Output Table'!$C153, 'Step 2 - Growth Inputs'!$D$763:$D$1479, 0), MATCH('Master Output Table'!I$43, 'Step 2 - Growth Inputs'!$G$763:$K$763, 0)))*(1+INDEX('Step 2 - Growth Inputs'!$G$763:$K$1479, MATCH('Master Output Table'!$C140, 'Step 2 - Growth Inputs'!$D$763:$D$1479, 0), MATCH('Master Output Table'!I$43, 'Step 2 - Growth Inputs'!$G$763:$K$763, 0))) -> 77.22714986 | J153: =I153*(1+INDEX('Step 2 - Growth Inputs'!$G$763:$K$1479, MATCH('Master Output Table'!$C153, 'Step 2 - Growth Inputs'!$D$763:$D$1479, 0), MATCH('Master Output Table'!J$43, 'Step 2 - Growth Inputs'!$G$763:$K$763, 0)))*(1+INDEX('Step 2 - Growth Inputs'!$G$763:$K$1479, MATCH('Master Output Table'!$C140, 'Step 2 - Growth Inputs'!$D$763:$D$1479, 0), MATCH('Master Output Table'!J$43, 'Step 2 - Growth Inputs'!$G$763:$K$763, 0))) -> 78.2990627 | M153: Child_SEMI
B154: Child_SEMI | C154: Child_SEMI_NEL_I | D154: I | E154: NEL | F154: =INDEX('Base year data'!$D$39:$M$63, MATCH('Master Output Table'!B154, 'Base year data'!$C$39:$C$63, 0), MATCH('Master Output Table'!E154, 'Base year data'!$D$38:$M$38, 0))*(1+INDEX('Step 2 - Growth Inputs'!$G$763:$K$1479, MATCH('Master Output Table'!C154, 'Step 2 - Growth Inputs'!$D$763:$D$1479, 0), MATCH('Master Output Table'!$F$43, 'Step 2 - Growth Inputs'!$G$763:$K$763, 0)))*(1+INDEX('Step 2 - Growth Inputs'!$G$763:$K$1479, MATCH('Master Output Table'!C141, 'Step 2 - Growth Inputs'!$D$763:$D$1479, 0), MATCH('Master Output Table'!$F$43, 'Step 2 - Growth Inputs'!$G$763:$K$763, 0))) -> 829.1623158 | G154: =F154*(1+INDEX('Step 2 - Growth Inputs'!$G$763:$K$1479, MATCH('Master Output Table'!$C154, 'Step 2 - Growth Inputs'!$D$763:$D$1479, 0), MATCH('Master Output Table'!G$43, 'Step 2 - Growth Inputs'!$G$763:$K$763, 0)))*(1+INDEX('Step 2 - Growth Inputs'!$G$763:$K$1479, MATCH('Master Output Table'!$C141, 'Step 2 - Growth Inputs'!$D$763:$D$1479, 0), MATCH('Master Output Table'!G$43, 'Step 2 - Growth Inputs'!$G$763:$K$763, 0))) -> 833.9051242 | H154: =G154*(1+INDEX('Step 2 - Growth Inputs'!$G$763:$K$1479, MATCH('Master Output Table'!$C154, 'Step 2 - Growth Inputs'!$D$763:$D$1479, 0), MATCH('Master Output Table'!H$43, 'Step 2 - Growth Inputs'!$G$763:$K$763, 0)))*(1+INDEX('Step 2 - Growth Inputs'!$G$763:$K$1479, MATCH('Master Output Table'!$C141, 'Step 2 - Growth Inputs'!$D$763:$D$1479, 0), MATCH('Master Output Table'!H$43, 'Step 2 - Growth Inputs'!$G$763:$K$763, 0))) -> 841.2268112 | I154: =H154*(1+INDEX('Step 2 - Growth Inputs'!$G$763:$K$1479, MATCH('Master Output Table'!$C154, 'Step 2 - Growth Inputs'!$D$763:$D$1479, 0), MATCH('Master Output Table'!I$43, 'Step 2 - Growth Inputs'!$G$763:$K$763, 0)))*(1+INDEX('Step 2 - Growth Inputs'!$G$763:$K$1479, MATCH('Master Output Table'!$C141, 'Step 2 - Growth Inputs'!$D$763:$D$1479, 0), MATCH('Master Output Table'!I$43, 'Step 2 - Growth Inputs'!$G$763:$K$763, 0))) -> 861.4835528 | J154: =I154*(1+INDEX('Step 2 - Growth Inputs'!$G$763:$K$1479, MATCH('Master Output Table'!$C154, 'Step 2 - Growth Inputs'!$D$763:$D$1479, 0), MATCH('Master Output Table'!J$43, 'Step 2 - Growth Inputs'!$G$763:$K$763, 0)))*(1+INDEX('Step 2 - Growth Inputs'!$G$763:$K$1479, MATCH('Master Output Table'!$C141, 'Step 2 - Growth Inputs'!$D$763:$D$1479, 0), MATCH('Master Output Table'!J$43, 'Step 2 - Growth Inputs'!$G$763:$K$763, 0))) -> 873.4409445 | M154: Child_SEMI
B155: Child_SEMI | C155: Child_SEMI_EL_I | D155: I | E155: EL | F155: =INDEX('Base year data'!$D$39:$M$63, MATCH('Master Output Table'!B155, 'Base year data'!$C$39:$C$63, 0), MATCH('Master Output Table'!E155, 'Base year data'!$D$38:$M$38, 0))*(1+INDEX('Step 2 - Growth Inputs'!$G$763:$K$1479, MATCH('Master Output Table'!C155, 'Step 2 - Growth Inputs'!$D$763:$D$1479, 0), MATCH('Master Output Table'!$F$43, 'Step 2 - Growth Inputs'!$G$763:$K$763, 0)))*(1+INDEX('Step 2 - Growth Inputs'!$G$763:$K$1479, MATCH('Master Output Table'!C142, 'Step 2 - Growth Inputs'!$D$763:$D$1479, 0), MATCH('Master Output Table'!$F$43, 'Step 2 - Growth Inputs'!$G$763:$K$763, 0))) -> 226.1496109 | G155: =F155*(1+INDEX('Step 2 - Growth Inputs'!$G$763:$K$1479, MATCH('Master Output Table'!$C155, 'Step 2 - Growth Inputs'!$D$763:$D$1479, 0), MATCH('Master Output Table'!G$43, 'Step 2 - Growth Inputs'!$G$763:$K$763, 0)))*(1+INDEX('Step 2 - Growth Inputs'!$G$763:$K$1479, MATCH('Master Output Table'!$C142, 'Step 2 - Growth Inputs'!$D$763:$D$1479, 0), MATCH('Master Output Table'!G$43, 'Step 2 - Growth Inputs'!$G$763:$K$763, 0))) -> 227.4431867 | H155: =G155*(1+INDEX('Step 2 - Growth Inputs'!$G$763:$K$1479, MATCH('Master Output Table'!$C155, 'Step 2 - Growth Inputs'!$D$763:$D$1479, 0), MATCH('Master Output Table'!H$43, 'Step 2 - Growth Inputs'!$G$763:$K$763, 0)))*(1+INDEX('Step 2 - Growth Inputs'!$G$763:$K$1479, MATCH('Master Output Table'!$C142, 'Step 2 - Growth Inputs'!$D$763:$D$1479, 0), MATCH('Master Output Table'!H$43, 'Step 2 - Growth Inputs'!$G$763:$K$763, 0))) -> 229.4401378 | I155: =H155*(1+INDEX('Step 2 - Growth Inputs'!$G$763:$K$1479, MATCH('Master Output Table'!$C155, 'Step 2 - Growth Inputs'!$D$763:$D$1479, 0), MATCH('Master Output Table'!I$43, 'Step 2 - Growth Inputs'!$G$763:$K$763, 0)))*(1+INDEX('Step 2 - Growth Inputs'!$G$763:$K$1479, MATCH('Master Output Table'!$C142, 'Step 2 - Growth Inputs'!$D$763:$D$1479, 0), MATCH('Master Output Table'!I$43, 'Step 2 - Growth Inputs'!$G$763:$K$763, 0))) -> 234.9650564 | J155: =I155*(1+INDEX('Step 2 - Growth Inputs'!$G$763:$K$1479, MATCH('Master Output Table'!$C155, 'Step 2 - Growth Inputs'!$D$763:$D$1479, 0), MATCH('Master Output Table'!J$43, 'Step 2 - Growth Inputs'!$G$763:$K$763, 0)))*(1+INDEX('Step 2 - Growth Inputs'!$G$763:$K$1479, MATCH('Master Output Table'!$C142, 'Step 2 - Growth Inputs'!$D$763:$D$1479, 0), MATCH('Master Output Table'!J$43, 'Step 2 - Growth Inputs'!$G$763:$K$763, 0))) -> 238.2263713 | M155: Child_SEMI
B156: Child_SEMI | C156: Child_SEMI_OP_I | D156: I | E156: OP | F156: =INDEX('Base year data'!$D$39:$M$63, MATCH('Master Output Table'!B156, 'Base year data'!$C$39:$C$63, 0), MATCH('Master Output Table'!E156, 'Base year data'!$D$38:$M$38, 0))*(1+INDEX('Step 2 - Growth Inputs'!$G$763:$K$1479, MATCH('Master Output Table'!C156, 'Step 2 - Growth Inputs'!$D$763:$D$1479, 0), MATCH('Master Output Table'!$F$43, 'Step 2 - Growth Inputs'!$G$763:$K$763, 0)))*(1+INDEX('Step 2 - Growth Inputs'!$G$763:$K$1479, MATCH('Master Output Table'!C143, 'Step 2 - Growth Inputs'!$D$763:$D$1479, 0), MATCH('Master Output Table'!$F$43, 'Step 2 - Growth Inputs'!$G$763:$K$763, 0))) -> 385.3232789 | G156: =F156*(1+INDEX('Step 2 - Growth Inputs'!$G$763:$K$1479, MATCH('Master Output Table'!$C156, 'Step 2 - Growth Inputs'!$D$763:$D$1479, 0), MATCH('Master Output Table'!G$43, 'Step 2 - Growth Inputs'!$G$763:$K$763, 0)))*(1+INDEX('Step 2 - Growth Inputs'!$G$763:$K$1479, MATCH('Master Output Table'!$C143, 'Step 2 - Growth Inputs'!$D$763:$D$1479, 0), MATCH('Master Output Table'!G$43, 'Step 2 - Growth Inputs'!$G$763:$K$763, 0))) -> 387.5273281 | H156: =G156*(1+INDEX('Step 2 - Growth Inputs'!$G$763:$K$1479, MATCH('Master Output Table'!$C156, 'Step 2 - Growth Inputs'!$D$763:$D$1479, 0), MATCH('Master Output Table'!H$43, 'Step 2 - Growth Inputs'!$G$763:$K$763, 0)))*(1+INDEX('Step 2 - Growth Inputs'!$G$763:$K$1479, MATCH('Master Output Table'!$C143, 'Step 2 - Growth Inputs'!$D$763:$D$1479, 0), MATCH('Master Output Table'!H$43, 'Step 2 - Growth Inputs'!$G$763:$K$763, 0))) -> 390.929818 | I156: =H156*(1+INDEX('Step 2 - Growth Inputs'!$G$763:$K$1479, MATCH('Master Output Table'!$C156, 'Step 2 - Growth Inputs'!$D$763:$D$1479, 0), MATCH('Master Output Table'!I$43, 'Step 2 - Growth Inputs'!$G$763:$K$763, 0)))*(1+INDEX('Step 2 - Growth Inputs'!$G$763:$K$1479, MATCH('Master Output Table'!$C143, 'Step 2 - Growth Inputs'!$D$763:$D$1479, 0), MATCH('Master Output Table'!I$43, 'Step 2 - Growth Inputs'!$G$763:$K$763, 0))) -> 400.343408 | J156: =I156*(1+INDEX('Step 2 - Growth Inputs'!$G$763:$K$1479, MATCH('Master Output Table'!$C156, 'Step 2 - Growth Inputs'!$D$763:$D$1479, 0), MATCH('Master Output Table'!J$43, 'Step 2 - Growth Inputs'!$G$763:$K$763, 0)))*(1+INDEX('Step 2 - Growth Inputs'!$G$763:$K$1479, MATCH('Master Output Table'!$C143, 'Step 2 - Growth Inputs'!$D$763:$D$1479, 0), MATCH('Master Output Table'!J$43, 'Step 2 - Growth Inputs'!$G$763:$K$763, 0))) -> 405.9001745 | M156: Child_SEMI
B157: Child_SEMI | C157: Child_SEMI_MH_I | D157: I | E157: MH | F157: =INDEX('Base year data'!$D$39:$M$63, MATCH('Master Output Table'!B157, 'Base year data'!$C$39:$C$63, 0), MATCH('Master Output Table'!E157, 'Base year data'!$D$38:$M$38, 0))*(1+INDEX('Step 2 - Growth Inputs'!$G$763:$K$1479, MATCH('Master Output Table'!C157, 'Step 2 - Growth Inputs'!$D$763:$D$1479, 0), MATCH('Master Output Table'!$F$43, 'Step 2 - Growth Inputs'!$G$763:$K$763, 0)))*(1+INDEX('Step 2 - Growth Inputs'!$G$763:$K$1479, MATCH('Master Output Table'!C144, 'Step 2 - Growth Inputs'!$D$763:$D$1479, 0), MATCH('Master Output Table'!$F$43, 'Step 2 - Growth Inputs'!$G$763:$K$763, 0))) -> 3078.901408 | G157: =F157*(1+INDEX('Step 2 - Growth Inputs'!$G$763:$K$1479, MATCH('Master Output Table'!$C157, 'Step 2 - Growth Inputs'!$D$763:$D$1479, 0), MATCH('Master Output Table'!G$43, 'Step 2 - Growth Inputs'!$G$763:$K$763, 0)))*(1+INDEX('Step 2 - Growth Inputs'!$G$763:$K$1479, MATCH('Master Output Table'!$C144, 'Step 2 - Growth Inputs'!$D$763:$D$1479, 0), MATCH('Master Output Table'!G$43, 'Step 2 - Growth Inputs'!$G$763:$K$763, 0))) -> 3096.512724 | H157: =G157*(1+INDEX('Step 2 - Growth Inputs'!$G$763:$K$1479, MATCH('Master Output Table'!$C157, 'Step 2 - Growth Inputs'!$D$763:$D$1479, 0), MATCH('Master Output Table'!H$43, 'Step 2 - Growth Inputs'!$G$763:$K$763, 0)))*(1+INDEX('Step 2 - Growth Inputs'!$G$763:$K$1479, MATCH('Master Output Table'!$C144, 'Step 2 - Growth Inputs'!$D$763:$D$1479, 0), MATCH('Master Output Table'!H$43, 'Step 2 - Growth Inputs'!$G$763:$K$763, 0))) -> 3123.700105 | I157: =H157*(1+INDEX('Step 2 - Growth Inputs'!$G$763:$K$1479, MATCH('Master Output Table'!$C157, 'Step 2 - Growth Inputs'!$D$763:$D$1479, 0), MATCH('Master Output Table'!I$43, 'Step 2 - Growth Inputs'!$G$763:$K$763, 0)))*(1+INDEX('Step 2 - Growth Inputs'!$G$763:$K$1479, MATCH('Master Output Table'!$C144, 'Step 2 - Growth Inputs'!$D$763:$D$1479, 0), MATCH('Master Output Table'!I$43, 'Step 2 - Growth Inputs'!$G$763:$K$763, 0))) -> 3198.918804 | J157: =I157*(1+INDEX('Step 2 - Growth Inputs'!$G$763:$K$1479, MATCH('Master Output Table'!$C157, 'Step 2 - Growth Inputs'!$D$763:$D$1479, 0), MATCH('Master Output Table'!J$43, 'Step 2 - Growth Inputs'!$G$763:$K$763, 0)))*(1+INDEX('Step 2 - Growth Inputs'!$G$763:$K$1479, MATCH('Master Output Table'!$C144, 'Step 2 - Growth Inputs'!$D$763:$D$1479, 0), MATCH('Master Output Table'!J$43, 'Step 2 - Growth Inputs'!$G$763:$K$763, 0))) -> 3243.319797 | M157: Child_SEMI
B158: Child_SEMI | C158: Child_SEMI_GP_I | D158: I | E158: GP | F158: =INDEX('Base year data'!$D$39:$M$63, MATCH('Master Output Table'!B158, 'Base year data'!$C$39:$C$63, 0), MATCH('Master Output Table'!E158, 'Base year data'!$D$38:$M$38, 0))*(1+INDEX('Step 2 - Growth Inputs'!$G$763:$K$1479, MATCH('Master Output Table'!C158, 'Step 2 - Growth Inputs'!$D$763:$D$1479, 0), MATCH('Master Output Table'!$F$43, 'Step 2 - Growth Inputs'!$G$763:$K$763, 0)))*(1+INDEX('Step 2 - Growth Inputs'!$G$763:$K$1479, MATCH('Master Output Table'!C145, 'Step 2 - Growth Inputs'!$D$763:$D$1479, 0), MATCH('Master Output Table'!$F$43, 'Step 2 - Growth Inputs'!$G$763:$K$763, 0))) -> 117.5739249 | G158: =F158*(1+INDEX('Step 2 - Growth Inputs'!$G$763:$K$1479, MATCH('Master Output Table'!$C158, 'Step 2 - Growth Inputs'!$D$763:$D$1479, 0), MATCH('Master Output Table'!G$43, 'Step 2 - Growth Inputs'!$G$763:$K$763, 0)))*(1+INDEX('Step 2 - Growth Inputs'!$G$763:$K$1479, MATCH('Master Output Table'!$C145, 'Step 2 - Growth Inputs'!$D$763:$D$1479, 0), MATCH('Master Output Table'!G$43, 'Step 2 - Growth Inputs'!$G$763:$K$763, 0))) -> 118.2464478 | H158: =G158*(1+INDEX('Step 2 - Growth Inputs'!$G$763:$K$1479, MATCH('Master Output Table'!$C158, 'Step 2 - Growth Inputs'!$D$763:$D$1479, 0), MATCH('Master Output Table'!H$43, 'Step 2 - Growth Inputs'!$G$763:$K$763, 0)))*(1+INDEX('Step 2 - Growth Inputs'!$G$763:$K$1479, MATCH('Master Output Table'!$C145, 'Step 2 - Growth Inputs'!$D$763:$D$1479, 0), MATCH('Master Output Table'!H$43, 'Step 2 - Growth Inputs'!$G$763:$K$763, 0))) -> 119.2846516 | I158: =H158*(1+INDEX('Step 2 - Growth Inputs'!$G$763:$K$1479, MATCH('Master Output Table'!$C158, 'Step 2 - Growth Inputs'!$D$763:$D$1479, 0), MATCH('Master Output Table'!I$43, 'Step 2 - Growth Inputs'!$G$763:$K$763, 0)))*(1+INDEX('Step 2 - Growth Inputs'!$G$763:$K$1479, MATCH('Master Output Table'!$C145, 'Step 2 - Growth Inputs'!$D$763:$D$1479, 0), MATCH('Master Output Table'!I$43, 'Step 2 - Growth Inputs'!$G$763:$K$763, 0))) -> 122.157026 | J158: =I158*(1+INDEX('Step 2 - Growth Inputs'!$G$763:$K$1479, MATCH('Master Output Table'!$C158, 'Step 2 - Growth Inputs'!$D$763:$D$1479, 0), MATCH('Master Output Table'!J$43, 'Step 2 - Growth Inputs'!$G$763:$K$763, 0)))*(1+INDEX('Step 2 - Growth Inputs'!$G$763:$K$1479, MATCH('Master Output Table'!$C145, 'Step 2 - Growth Inputs'!$D$763:$D$1479, 0), MATCH('Master Output Table'!J$43, 'Step 2 - Growth Inputs'!$G$763:$K$763, 0))) -> 123.8525655 | M158: Child_SEMI
B159: Child_SEMI | C159: Child_SEMI_Prescribing_I | D159: I | E159: Prescribing | F159: =INDEX('Base year data'!$D$39:$M$63, MATCH('Master Output Table'!B159, 'Base year data'!$C$39:$C$63, 0), MATCH('Master Output Table'!E159, 'Base year data'!$D$38:$M$38, 0))*(1+INDEX('Step 2 - Growth Inputs'!$G$763:$K$1479, MATCH('Master Output Table'!C159, 'Step 2 - Growth Inputs'!$D$763:$D$1479, 0), MATCH('Master Output Table'!$F$43, 'Step 2 - Growth Inputs'!$G$763:$K$763, 0)))*(1+INDEX('Step 2 - Growth Inputs'!$G$763:$K$1479, MATCH('Master Output Table'!C146, 'Step 2 - Growth Inputs'!$D$763:$D$1479, 0), MATCH('Master Output Table'!$F$43, 'Step 2 - Growth Inputs'!$G$763:$K$763, 0))) -> 119.8175556 | G159: =F159*(1+INDEX('Step 2 - Growth Inputs'!$G$763:$K$1479, MATCH('Master Output Table'!$C159, 'Step 2 - Growth Inputs'!$D$763:$D$1479, 0), MATCH('Master Output Table'!G$43, 'Step 2 - Growth Inputs'!$G$763:$K$763, 0)))*(1+INDEX('Step 2 - Growth Inputs'!$G$763:$K$1479, MATCH('Master Output Table'!$C146, 'Step 2 - Growth Inputs'!$D$763:$D$1479, 0), MATCH('Master Output Table'!G$43, 'Step 2 - Growth Inputs'!$G$763:$K$763, 0))) -> 124.0471154 | H159: =G159*(1+INDEX('Step 2 - Growth Inputs'!$G$763:$K$1479, MATCH('Master Output Table'!$C159, 'Step 2 - Growth Inputs'!$D$763:$D$1479, 0), MATCH('Master Output Table'!H$43, 'Step 2 - Growth Inputs'!$G$763:$K$763, 0)))*(1+INDEX('Step 2 - Growth Inputs'!$G$763:$K$1479, MATCH('Master Output Table'!$C146, 'Step 2 - Growth Inputs'!$D$763:$D$1479, 0), MATCH('Master Output Table'!H$43, 'Step 2 - Growth Inputs'!$G$763:$K$763, 0))) -> 128.816727 | I159: =H159*(1+INDEX('Step 2 - Growth Inputs'!$G$763:$K$1479, MATCH('Master Output Table'!$C159, 'Step 2 - Growth Inputs'!$D$763:$D$1479, 0), MATCH('Master Output Table'!I$43, 'Step 2 - Growth Inputs'!$G$763:$K$763, 0)))*(1+INDEX('Step 2 - Growth Inputs'!$G$763:$K$1479, MATCH('Master Output Table'!$C146, 'Step 2 - Growth Inputs'!$D$763:$D$1479, 0), MATCH('Master Output Table'!I$43, 'Step 2 - Growth Inputs'!$G$763:$K$763, 0))) -> 135.7985936 | J159: =I159*(1+INDEX('Step 2 - Growth Inputs'!$G$763:$K$1479, MATCH('Master Output Table'!$C159, 'Step 2 - Growth Inputs'!$D$763:$D$1479, 0), MATCH('Master Output Table'!J$43, 'Step 2 - Growth Inputs'!$G$763:$K$763, 0)))*(1+INDEX('Step 2 - Growth Inputs'!$G$763:$K$1479, MATCH('Master Output Table'!$C146, 'Step 2 - Growth Inputs'!$D$763:$D$1479, 0), MATCH('Master Output Table'!J$43, 'Step 2 - Growth Inputs'!$G$763:$K$763, 0))) -> 141.7329921 | M159: Child_SEMI
B160: Child_SEMI | C160: Child_SEMI_SC_I | D160: I | E160: SC | F160: =INDEX('Base year data'!$D$39:$M$63, MATCH('Master Output Table'!B160, 'Base year data'!$C$39:$C$63, 0), MATCH('Master Output Table'!E160, 'Base year data'!$D$38:$M$38, 0))*(1+INDEX('Step 2 - Growth Inputs'!$G$763:$K$1479, MATCH('Master Output Table'!C160, 'Step 2 - Growth Inputs'!$D$763:$D$1479, 0), MATCH('Master Output Table'!$F$43, 'Step 2 - Growth Inputs'!$G$763:$K$763, 0)))*(1+INDEX('Step 2 - Growth Inputs'!$G$763:$K$1479, MATCH('Master Output Table'!C147, 'Step 2 - Growth Inputs'!$D$763:$D$1479, 0), MATCH('Master Output Table'!$F$43, 'Step 2 - Growth Inputs'!$G$763:$K$763, 0))) -> 64.80796977 | G160: =F160*(1+INDEX('Step 2 - Growth Inputs'!$G$763:$K$1479, MATCH('Master Output Table'!$C160, 'Step 2 - Growth Inputs'!$D$763:$D$1479, 0), MATCH('Master Output Table'!G$43, 'Step 2 - Growth Inputs'!$G$763:$K$763, 0)))*(1+INDEX('Step 2 - Growth Inputs'!$G$763:$K$1479, MATCH('Master Output Table'!$C147, 'Step 2 - Growth Inputs'!$D$763:$D$1479, 0), MATCH('Master Output Table'!G$43, 'Step 2 - Growth Inputs'!$G$763:$K$763, 0))) -> 65.17867136 | H160: =G160*(1+INDEX('Step 2 - Growth Inputs'!$G$763:$K$1479, MATCH('Master Output Table'!$C160, 'Step 2 - Growth Inputs'!$D$763:$D$1479, 0), MATCH('Master Output Table'!H$43, 'Step 2 - Growth Inputs'!$G$763:$K$763, 0)))*(1+INDEX('Step 2 - Growth Inputs'!$G$763:$K$1479, MATCH('Master Output Table'!$C147, 'Step 2 - Growth Inputs'!$D$763:$D$1479, 0), MATCH('Master Output Table'!H$43, 'Step 2 - Growth Inputs'!$G$763:$K$763, 0))) -> 65.75094009 | I160: =H160*(1+INDEX('Step 2 - Growth Inputs'!$G$763:$K$1479, MATCH('Master Output Table'!$C160, 'Step 2 - Growth Inputs'!$D$763:$D$1479, 0), MATCH('Master Output Table'!I$43, 'Step 2 - Growth Inputs'!$G$763:$K$763, 0)))*(1+INDEX('Step 2 - Growth Inputs'!$G$763:$K$1479, MATCH('Master Output Table'!$C147, 'Step 2 - Growth Inputs'!$D$763:$D$1479, 0), MATCH('Master Output Table'!I$43, 'Step 2 - Growth Inputs'!$G$763:$K$763, 0))) -> 67.33422273 | J160: =I160*(1+INDEX('Step 2 - Growth Inputs'!$G$763:$K$1479, MATCH('Master Output Table'!$C160, 'Step 2 - Growth Inputs'!$D$763:$D$1479, 0), MATCH('Master Output Table'!J$43, 'Step 2 - Growth Inputs'!$G$763:$K$763, 0)))*(1+INDEX('Step 2 - Growth Inputs'!$G$763:$K$1479, MATCH('Master Output Table'!$C147, 'Step 2 - Growth Inputs'!$D$763:$D$1479, 0), MATCH('Master Output Table'!J$43, 'Step 2 - Growth Inputs'!$G$763:$K$763, 0))) -> 68.26882174 | M160: Child_SEMI
B161: Child_SEMI | C161: Child_SEMI_CC_I | D161: I | E161: CC | F161: =INDEX('Base year data'!$D$39:$M$63, MATCH('Master Output Table'!B161, 'Base year data'!$C$39:$C$63, 0), MATCH('Master Output Table'!E161, 'Base year data'!$D$38:$M$38, 0))*(1+INDEX('Step 2 - Growth Inputs'!$G$763:$K$1479, MATCH('Master Output Table'!C161, 'Step 2 - Growth Inputs'!$D$763:$D$1479, 0), MATCH('Master Output Table'!$F$43, 'Step 2 - Growth Inputs'!$G$763:$K$763, 0)))*(1+INDEX('Step 2 - Growth Inputs'!$G$763:$K$1479, MATCH('Master Output Table'!C148, 'Step 2 - Growth Inputs'!$D$763:$D$1479, 0), MATCH('Master Output Table'!$F$43, 'Step 2 - Growth Inputs'!$G$763:$K$763, 0))) -> 0.5626315011 | G161: =F161*(1+INDEX('Step 2 - Growth Inputs'!$G$763:$K$1479, MATCH('Master Output Table'!$C161, 'Step 2 - Growth Inputs'!$D$763:$D$1479, 0), MATCH('Master Output Table'!G$43, 'Step 2 - Growth Inputs'!$G$763:$K$763, 0)))*(1+INDEX('Step 2 - Growth Inputs'!$G$763:$K$1479, MATCH('Master Output Table'!$C148, 'Step 2 - Growth Inputs'!$D$763:$D$1479, 0), MATCH('Master Output Table'!G$43, 'Step 2 - Growth Inputs'!$G$763:$K$763, 0))) -> 0.5824923931 | H161: =G161*(1+INDEX('Step 2 - Growth Inputs'!$G$763:$K$1479, MATCH('Master Output Table'!$C161, 'Step 2 - Growth Inputs'!$D$763:$D$1479, 0), MATCH('Master Output Table'!H$43, 'Step 2 - Growth Inputs'!$G$763:$K$763, 0)))*(1+INDEX('Step 2 - Growth Inputs'!$G$763:$K$1479, MATCH('Master Output Table'!$C148, 'Step 2 - Growth Inputs'!$D$763:$D$1479, 0), MATCH('Master Output Table'!H$43, 'Step 2 - Growth Inputs'!$G$763:$K$763, 0))) -> 0.6048892256 | I161: =H161*(1+INDEX('Step 2 - Growth Inputs'!$G$763:$K$1479, MATCH('Master Output Table'!$C161, 'Step 2 - Growth Inputs'!$D$763:$D$1479, 0), MATCH('Master Output Table'!I$43, 'Step 2 - Growth Inputs'!$G$763:$K$763, 0)))*(1+INDEX('Step 2 - Growth Inputs'!$G$763:$K$1479, MATCH('Master Output Table'!$C148, 'Step 2 - Growth Inputs'!$D$763:$D$1479, 0), MATCH('Master Output Table'!I$43, 'Step 2 - Growth Inputs'!$G$763:$K$763, 0))) -> 0.6376742216 | J161: =I161*(1+INDEX('Step 2 - Growth Inputs'!$G$763:$K$1479, MATCH('Master Output Table'!$C161, 'Step 2 - Growth Inputs'!$D$763:$D$1479, 0), MATCH('Master Output Table'!J$43, 'Step 2 - Growth Inputs'!$G$763:$K$763, 0)))*(1+INDEX('Step 2 - Growth Inputs'!$G$763:$K$1479, MATCH('Master Output Table'!$C148, 'Step 2 - Growth Inputs'!$D$763:$D$1479, 0), MATCH('Master Output Table'!J$43, 'Step 2 - Growth Inputs'!$G$763:$K$763, 0))) -> 0.6655405851 | M161: Child_SEMI
B162: Child_SEMI | C162: =B162&"Average" -> Child_SEMIAverage | E162: Total | F162: =SUMIF(F153:F161, ">0") -> 4896.628428 | G162: =SUMIF(G153:G161, ">0") -> 4928.197989 | H162: =SUMIF(H153:H161, ">0") -> 4975.165327 | I162: =SUMIF(I153:I161, ">0") -> 5098.865488 | J162: =SUMIF(J153:J161, ">0") -> 5173.70627 | M162: Child_SEMI
B163: Child_SEMI | C163: =B163&"_"&E163 -> Child_SEMI_ | M163: Child_SEMI
B164: Child_SEMI | M164: Child_SEMI
B165: Child_Dementia | E165: Child: Dementia | M165: Child_Dementia
B166: Child_Dementia | E166: Projection of population size | M166: Child_Dementia
B167: Child_Dementia | F167: Year 0 | G167: Year 1 | H167: Year 2 | I167: Year 3 | J167: Year 4 | M167: Child_Dementia
B168: Child_Dementia | E168: Projected segment size as a percentage of overall population | F168: =F169/SUM(F$40,F$72,F$104,F$136,F$169,F$202,F$234,F$266,F$297,F$329,F$362,F$395,F$427,F$459,F$490,F$522,F$555,F$588,F$620,F$652,F$683,F$715,F$748,F$781) -> 0 | G168: =G169/SUM(G$40,G$72,G$104,G$136,G$169,G$202,G$234,G$266,G$297,G$329,G$362,G$395,G$427,G$459,G$490,G$522,G$555,G$588,G$620,G$652,G$683,G$715,G$748,G$781) -> 0 | H168: =H169/SUM(H$40,H$72,H$104,H$136,H$169,H$202,H$234,H$266,H$297,H$329,H$362,H$395,H$427,H$459,H$490,H$522,H$555,H$588,H$620,H$652,H$683,H$715,H$748,H$781) -> 0 | I168: =I169/SUM(I$40,I$72,I$104,I$136,I$169,I$202,I$234,I$266,I$297,I$329,I$362,I$395,I$427,I$459,I$490,I$522,I$555,I$588,I$620,I$652,I$683,I$715,I$748,I$781) -> 0 | J168: =J169/SUM(J$40,J$72,J$104,J$136,J$169,J$202,J$234,J$266,J$297,J$329,J$362,J$395,J$427,J$459,J$490,J$522,J$555,J$588,J$620,J$652,J$683,J$715,J$748,J$781) -> 0 | M168: Child_Dementia
B169: Child_Dementia | C169: =B169&"_"&E169&"_"&D169 -> Child_Dementia_Population Change_ | E169: Population Change | F169: =INDEX('Base year data'!$O$11:$O$34, MATCH('Master Output Table'!$B169, 'Base year data'!$C$11:$C$34, 0)) * (1+INDEX('Step 2 - Growth Inputs'!$F$763:$K$1479, MATCH('Master Output Table'!$C169, 'Step 2 - Growth Inputs'!$D$763:$D$1479, 0), 2)) -> 0 | G169: =F169*(1+INDEX('Step 2 - Growth Inputs'!$C$763:$K$1479,MATCH('Master Output Table'!$C169,'Step 2 - Growth Inputs'!$D$763:$D$1479,0),6)) -> 0 | H169: =G169*(1+INDEX('Step 2 - Growth Inputs'!$C$763:$K$1479,MATCH('Master Output Table'!$C169,'Step 2 - Growth Inputs'!$D$763:$D$1479,0),7)) -> 0 | I169: =H169*(1+INDEX('Step 2 - Growth Inputs'!$C$763:$K$1479,MATCH('Master Output Table'!$C169,'Step 2 - Growth Inputs'!$D$763:$D$1479,0),8)) -> 0 | J169: =I169*(1+INDEX('Step 2 - Growth Inputs'!$C$763:$K$1479,MATCH('Master Output Table'!$C169,'Step 2 - Growth Inputs'!$D$763:$D$1479,0),9)) -> 0 | M169: Child_Dementia
B170: Child_Dementia | C170: =B170&"_"&E170&"_"&D170 -> Child_Dementia__ | M170: Child_Dementia
B171: Child_Dementia | C171: =B171&"_"&E171&"_"&D171 -> Child_Dementia_Projection of total spend_ | E171: Projection of total spend | M171: Child_Dementia
B172: Child_Dementia | C172: =B172&"_"&E172&"_"&D172 -> Child_Dementia__ | F172: Year 0 | G172: Year 1 | H172: Year 2 | I172: Year 3 | J172: Year 4 | M172: Child_Dementia
B173: Child_Dementia | C173: =B173&"_"&E173&"_"&D173 -> Child_Dementia_AE_U | D173: U | E173: AE | F173: =F186*INDIRECT(F$3&ROW()-$K173) -> 0 | G173: 0 | H173: 0 | I173: 0 | J173: 0 | K173: 4 | M173: Child_Dementia
B174: Child_Dementia | C174: =B174&"_"&E174&"_"&D174 -> Child_Dementia_NEL_U | D174: U | E174: NEL | F174: 0 | G174: 0 | H174: 0 | I174: 0 | J174: 0 | K174: =K173+1 -> 5 | M174: Child_Dementia
B175: Child_Dementia | C175: Child_Dementia_EL_U | D175: U | E175: EL | F175: 0 | G175: 0 | H175: 0 | I175: 0 | J175: 0 | K175: =K174+1 -> 6 | M175: Child_Dementia
B176: Child_Dementia | C176: Child_Dementia_OP_U | D176: U | E176: OP | F176: 0 | G176: 0 | H176: 0 | I176: 0 | J176: 0 | K176: 7 | M176: Child_Dementia
B177: Child_Dementia | C177: Child_Dementia_MH_U | D177: U | E177: MH | F177: 0 | G177: 0 | H177: 0 | I177: 0 | J177: 0 | K177: 8 | M177: Child_Dementia
B178: Child_Dementia | C178: Child_Dementia_GP_U | D178: U | E178: GP | F178: 0 | G178: 0 | H178: 0 | I178: 0 | J178: 0 | K178: 9 | M178: Child_Dementia
B179: Child_Dementia | C179: Child_Dementia_Prescribing_U | D179: U | E179: Prescribing | F179: 0 | G179: 0 | H179: 0 | I179: 0 | J179: 0 | K179: 10 | M179: Child_Dementia
B180: Child_Dementia | C180: Child_Dementia_SC_U | D180: U | E180: SC | F180: 0 | G180: 0 | H180: 0 | I180: 0 | J180: 0 | K180: 11 | M180: Child_Dementia
B181: Child_Dementia | C181: Child_Dementia_CC_U | D181: U | E181: CC | F181: 0 | G181: 0 | H181: 0 | I181: 0 | J181: 0 | K181: 12 | M181: Child_Dementia
B182: Child_Dementia | C182: Child_Dementia_Total_ | E182: Total | F182: =SUMIF(F173:F181, ">0") -> 0 | G182: =SUMIF(G173:G181, ">0") -> 0 | H182: =SUMIF(H173:H181, ">0") -> 0 | I182: =SUMIF(I173:I181, ">0") -> 0 | J182: =SUMIF(J173:J181, ">0") -> 0 | M182: Child_Dementia
B183: Child_Dementia | C183: Child_Dementia__ | M183: Child_Dementia
B184: Child_Dementia | C184: Child_Dementia_Projection of average spend_ | E184: Projection of average spend | M184: Child_Dementia
B185: Child_Dementia | C185: Child_Dementia__I | D185: I | F185: Year 0 | G185: Year 1 | H185: Year 2 | I185: Year 3 | J185: Year 4 | M185: Child_Dementia
B186: Child_Dementia | C186: Child_Dementia_AE_I | D186: I | E186: AE | F186: =INDEX('Base year data'!$D$39:$M$63, MATCH('Master Output Table'!B186, 'Base year data'!$C$39:$C$63, 0), MATCH('Master Output Table'!E186, 'Base year data'!$D$38:$M$38, 0))*(1+INDEX('Step 2 - Growth Inputs'!$G$763:$K$1479, MATCH('Master Output Table'!C186, 'Step 2 - Growth Inputs'!$D$763:$D$1479, 0), MATCH('Master Output Table'!$F$43, 'Step 2 - Growth Inputs'!$G$763:$K$763, 0)))*(1+INDEX('Step 2 - Growth Inputs'!$G$763:$K$1479, MATCH('Master Output Table'!C173, 'Step 2 - Growth Inputs'!$D$763:$D$1479, 0), MATCH('Master Output Table'!$F$43, 'Step 2 - Growth Inputs'!$G$763:$K$763, 0))) -> 0 | G186: =F186*(1+INDEX('Step 2 - Growth Inputs'!$G$763:$K$1479, MATCH('Master Output Table'!$C186, 'Step 2 - Growth Inputs'!$D$763:$D$1479, 0), MATCH('Master Output Table'!G$43, 'Step 2 - Growth Inputs'!$G$763:$K$763, 0)))*(1+INDEX('Step 2 - Growth Inputs'!$G$763:$K$1479, MATCH('Master Output Table'!$C173, 'Step 2 - Growth Inputs'!$D$763:$D$1479, 0), MATCH('Master Output Table'!G$43, 'Step 2 - Growth Inputs'!$G$763:$K$763, 0))) -> 0 | H186: =G186*(1+INDEX('Step 2 - Growth Inputs'!$G$763:$K$1479, MATCH('Master Output Table'!$C186, 'Step 2 - Growth Inputs'!$D$763:$D$1479, 0), MATCH('Master Output Table'!H$43, 'Step 2 - Growth Inputs'!$G$763:$K$763, 0)))*(1+INDEX('Step 2 - Growth Inputs'!$G$763:$K$1479, MATCH('Master Output Table'!$C173, 'Step 2 - Growth Inputs'!$D$763:$D$1479, 0), MATCH('Master Output Table'!H$43, 'Step 2 - Growth Inputs'!$G$763:$K$763, 0))) -> 0 | I186: =H186*(1+INDEX('Step 2 - Growth Inputs'!$G$763:$K$1479, MATCH('Master Output Table'!$C186, 'Step 2 - Growth Inputs'!$D$763:$D$1479, 0), MATCH('Master Output Table'!I$43, 'Step 2 - Growth Inputs'!$G$763:$K$763, 0)))*(1+INDEX('Step 2 - Growth Inputs'!$G$763:$K$1479, MATCH('Master Output Table'!$C173, 'Step 2 - Growth Inputs'!$D$763:$D$1479, 0), MATCH('Master Output Table'!I$43, 'Step 2 - Growth Inputs'!$G$763:$K$763, 0))) -> 0 | J186: =I186*(1+INDEX('Step 2 - Growth Inputs'!$G$763:$K$1479, MATCH('Master Output Table'!$C186, 'Step 2 - Growth Inputs'!$D$763:$D$1479, 0), MATCH('Master Output Table'!J$43, 'Step 2 - Growth Inputs'!$G$763:$K$763, 0)))*(1+INDEX('Step 2 - Growth Inputs'!$G$763:$K$1479, MATCH('Master Output Table'!$C173, 'Step 2 - Growth Inputs'!$D$763:$D$1479, 0), MATCH('Master Output Table'!J$43, 'Step 2 - Growth Inputs'!$G$763:$K$763, 0))) -> 0 | M186: Child_Dementia
B187: Child_Dementia | C187: Child_Dementia_NEL_I | D187: I | E187: NEL | F187: =INDEX('Base year data'!$D$39:$M$63, MATCH('Master Output Table'!B187, 'Base year data'!$C$39:$C$63, 0), MATCH('Master Output Table'!E187, 'Base year data'!$D$38:$M$38, 0))*(1+INDEX('Step 2 - Growth Inputs'!$G$763:$K$1479, MATCH('Master Output Table'!C187, 'Step 2 - Growth Inputs'!$D$763:$D$1479, 0), MATCH('Master Output Table'!$F$43, 'Step 2 - Growth Inputs'!$G$763:$K$763, 0)))*(1+INDEX('Step 2 - Growth Inputs'!$G$763:$K$1479, MATCH('Master Output Table'!C174, 'Step 2 - Growth Inputs'!$D$763:$D$1479, 0), MATCH('Master Output Table'!$F$43, 'Step 2 - Growth Inputs'!$G$763:$K$763, 0))) -> 0 | G187: =F187*(1+INDEX('Step 2 - Growth Inputs'!$G$763:$K$1479, MATCH('Master Output Table'!$C187, 'Step 2 - Growth Inputs'!$D$763:$D$1479, 0), MATCH('Master Output Table'!G$43, 'Step 2 - Growth Inputs'!$G$763:$K$763, 0)))*(1+INDEX('Step 2 - Growth Inputs'!$G$763:$K$1479, MATCH('Master Output Table'!$C174, 'Step 2 - Growth Inputs'!$D$763:$D$1479, 0), MATCH('Master Output Table'!G$43, 'Step 2 - Growth Inputs'!$G$763:$K$763, 0))) -> 0 | H187: =G187*(1+INDEX('Step 2 - Growth Inputs'!$G$763:$K$1479, MATCH('Master Output Table'!$C187, 'Step 2 - Growth Inputs'!$D$763:$D$1479, 0), MATCH('Master Output Table'!H$43, 'Step 2 - Growth Inputs'!$G$763:$K$763, 0)))*(1+INDEX('Step 2 - Growth Inputs'!$G$763:$K$1479, MATCH('Master Output Table'!$C174, 'Step 2 - Growth Inputs'!$D$763:$D$1479, 0), MATCH('Master Output Table'!H$43, 'Step 2 - Growth Inputs'!$G$763:$K$763, 0))) -> 0 | I187: =H187*(1+INDEX('Step 2 - Growth Inputs'!$G$763:$K$1479, MATCH('Master Output Table'!$C187, 'Step 2 - Growth Inputs'!$D$763:$D$1479, 0), MATCH('Master Output Table'!I$43, 'Step 2 - Growth Inputs'!$G$763:$K$763, 0)))*(1+INDEX('Step 2 - Growth Inputs'!$G$763:$K$1479, MATCH('Master Output Table'!$C174, 'Step 2 - Growth Inputs'!$D$763:$D$1479, 0), MATCH('Master Output Table'!I$43, 'Step 2 - Growth Inputs'!$G$763:$K$763, 0))) -> 0 | J187: =I187*(1+INDEX('Step 2 - Growth Inputs'!$G$763:$K$1479, MATCH('Master Output Table'!$C187, 'Step 2 - Growth Inputs'!$D$763:$D$1479, 0), MATCH('Master Output Table'!J$43, 'Step 2 - Growth Inputs'!$G$763:$K$763, 0)))*(1+INDEX('Step 2 - Growth Inputs'!$G$763:$K$1479, MATCH('Master Output Table'!$C174, 'Step 2 - Growth Inputs'!$D$763:$D$1479, 0), MATCH('Master Output Table'!J$43, 'Step 2 - Growth Inputs'!$G$763:$K$763, 0))) -> 0 | M187: Child_Dementia
B188: Child_Dementia | C188: Child_Dementia_EL_I | D188: I | E188: EL | F188: =INDEX('Base year data'!$D$39:$M$63, MATCH('Master Output Table'!B188, 'Base year data'!$C$39:$C$63, 0), MATCH('Master Output Table'!E188, 'Base year data'!$D$38:$M$38, 0))*(1+INDEX('Step 2 - Growth Inputs'!$G$763:$K$1479, MATCH('Master Output Table'!C188, 'Step 2 - Growth Inputs'!$D$763:$D$1479, 0), MATCH('Master Output Table'!$F$43, 'Step 2 - Growth Inputs'!$G$763:$K$763, 0)))*(1+INDEX('Step 2 - Growth Inputs'!$G$763:$K$1479, MATCH('Master Output Table'!C175, 'Step 2 - Growth Inputs'!$D$763:$D$1479, 0), MATCH('Master Output Table'!$F$43, 'Step 2 - Growth Inputs'!$G$763:$K$763, 0))) -> 0 | G188: =F188*(1+INDEX('Step 2 - Growth Inputs'!$G$763:$K$1479, MATCH('Master Output Table'!$C188, 'Step 2 - Growth Inputs'!$D$763:$D$1479, 0), MATCH('Master Output Table'!G$43, 'Step 2 - Growth Inputs'!$G$763:$K$763, 0)))*(1+INDEX('Step 2 - Growth Inputs'!$G$763:$K$1479, MATCH('Master Output Table'!$C175, 'Step 2 - Growth Inputs'!$D$763:$D$1479, 0), MATCH('Master Output Table'!G$43, 'Step 2 - Growth Inputs'!$G$763:$K$763, 0))) -> 0 | H188: =G188*(1+INDEX('Step 2 - Growth Inputs'!$G$763:$K$1479, MATCH('Master Output Table'!$C188, 'Step 2 - Growth Inputs'!$D$763:$D$1479, 0), MATCH('Master Output Table'!H$43, 'Step 2 - Growth Inputs'!$G$763:$K$763, 0)))*(1+INDEX('Step 2 - Growth Inputs'!$G$763:$K$1479, MATCH('Master Output Table'!$C175, 'Step 2 - Growth Inputs'!$D$763:$D$1479, 0), MATCH('Master Output Table'!H$43, 'Step 2 - Growth Inputs'!$G$763:$K$763, 0))) -> 0 | I188: =H188*(1+INDEX('Step 2 - Growth Inputs'!$G$763:$K$1479, MATCH('Master Output Table'!$C188, 'Step 2 - Growth Inputs'!$D$763:$D$1479, 0), MATCH('Master Output Table'!I$43, 'Step 2 - Growth Inputs'!$G$763:$K$763, 0)))*(1+INDEX('Step 2 - Growth Inputs'!$G$763:$K$1479, MATCH('Master Output Table'!$C175, 'Step 2 - Growth Inputs'!$D$763:$D$1479, 0), MATCH('Master Output Table'!I$43, 'Step 2 - Growth Inputs'!$G$763:$K$763, 0))) -> 0 | J188: =I188*(1+INDEX('Step 2 - Growth Inputs'!$G$763:$K$1479, MATCH('Master Output Table'!$C188, 'Step 2 - Growth Inputs'!$D$763:$D$1479, 0), MATCH('Master Output Table'!J$43, 'Step 2 - Growth Inputs'!$G$763:$K$763, 0)))*(1+INDEX('Step 2 - Growth Inputs'!$G$763:$K$1479, MATCH('Master Output Table'!$C175, 'Step 2 - Growth Inputs'!$D$763:$D$1479, 0), MATCH('Master Output Table'!J$43, 'Step 2 - Growth Inputs'!$G$763:$K$763, 0))) -> 0 | M188: Child_Dementia
B189: Child_Dementia | C189: Child_Dementia_OP_I | D189: I | E189: OP | F189: =INDEX('Base year data'!$D$39:$M$63, MATCH('Master Output Table'!B189, 'Base year data'!$C$39:$C$63, 0), MATCH('Master Output Table'!E189, 'Base year data'!$D$38:$M$38, 0))*(1+INDEX('Step 2 - Growth Inputs'!$G$763:$K$1479, MATCH('Master Output Table'!C189, 'Step 2 - Growth Inputs'!$D$763:$D$1479, 0), MATCH('Master Output Table'!$F$43, 'Step 2 - Growth Inputs'!$G$763:$K$763, 0)))*(1+INDEX('Step 2 - Growth Inputs'!$G$763:$K$1479, MATCH('Master Output Table'!C176, 'Step 2 - Growth Inputs'!$D$763:$D$1479, 0), MATCH('Master Output Table'!$F$43, 'Step 2 - Growth Inputs'!$G$763:$K$763, 0))) -> 0 | G189: =F189*(1+INDEX('Step 2 - Growth Inputs'!$G$763:$K$1479, MATCH('Master Output Table'!$C189, 'Step 2 - Growth Inputs'!$D$763:$D$1479, 0), MATCH('Master Output Table'!G$43, 'Step 2 - Growth Inputs'!$G$763:$K$763, 0)))*(1+INDEX('Step 2 - Growth Inputs'!$G$763:$K$1479, MATCH('Master Output Table'!$C176, 'Step 2 - Growth Inputs'!$D$763:$D$1479, 0), MATCH('Master Output Table'!G$43, 'Step 2 - Growth Inputs'!$G$763:$K$763, 0))) -> 0 | H189: =G189*(1+INDEX('Step 2 - Growth Inputs'!$G$763:$K$1479, MATCH('Master Output Table'!$C189, 'Step 2 - Growth Inputs'!$D$763:$D$1479, 0), MATCH('Master Output Table'!H$43, 'Step 2 - Growth Inputs'!$G$763:$K$763, 0)))*(1+INDEX('Step 2 - Growth Inputs'!$G$763:$K$1479, MATCH('Master Output Table'!$C176, 'Step 2 - Growth Inputs'!$D$763:$D$1479, 0), MATCH('Master Output Table'!H$43, 'Step 2 - Growth Inputs'!$G$763:$K$763, 0))) -> 0 | I189: =H189*(1+INDEX('Step 2 - Growth Inputs'!$G$763:$K$1479, MATCH('Master Output Table'!$C189, 'Step 2 - Growth Inputs'!$D$763:$D$1479, 0), MATCH('Master Output Table'!I$43, 'Step 2 - Growth Inputs'!$G$763:$K$763, 0)))*(1+INDEX('Step 2 - Growth Inputs'!$G$763:$K$1479, MATCH('Master Output Table'!$C176, 'Step 2 - Growth Inputs'!$D$763:$D$1479, 0), MATCH('Master Output Table'!I$43, 'Step 2 - Growth Inputs'!$G$763:$K$763, 0))) -> 0 | J189: =I189*(1+INDEX('Step 2 - Growth Inputs'!$G$763:$K$1479, MATCH('Master Output Table'!$C189, 'Step 2 - Growth Inputs'!$D$763:$D$1479, 0), MATCH('Master Output Table'!J$43, 'Step 2 - Growth Inputs'!$G$763:$K$763, 0)))*(1+INDEX('Step 2 - Growth Inputs'!$G$763:$K$1479, MATCH('Master Output Table'!$C176, 'Step 2 - Growth Inputs'!$D$763:$D$1479, 0), MATCH('Master Output Table'!J$43, 'Step 2 - Growth Inputs'!$G$763:$K$763, 0))) -> 0 | M189: Child_Dementia
B190: Child_Dementia | C190: Child_Dementia_MH_I | D190: I | E190: MH | F190: =INDEX('Base year data'!$D$39:$M$63, MATCH('Master Output Table'!B190, 'Base year data'!$C$39:$C$63, 0), MATCH('Master Output Table'!E190, 'Base year data'!$D$38:$M$38, 0))*(1+INDEX('Step 2 - Growth Inputs'!$G$763:$K$1479, MATCH('Master Output Table'!C190, 'Step 2 - Growth Inputs'!$D$763:$D$1479, 0), MATCH('Master Output Table'!$F$43, 'Step 2 - Growth Inputs'!$G$763:$K$763, 0)))*(1+INDEX('Step 2 - Growth Inputs'!$G$763:$K$1479, MATCH('Master Output Table'!C177, 'Step 2 - Growth Inputs'!$D$763:$D$1479, 0), MATCH('Master Output Table'!$F$43, 'Step 2 - Growth Inputs'!$G$763:$K$763, 0))) -> 0 | G190: =F190*(1+INDEX('Step 2 - Growth Inputs'!$G$763:$K$1479, MATCH('Master Output Table'!$C190, 'Step 2 - Growth Inputs'!$D$763:$D$1479, 0), MATCH('Master Output Table'!G$43, 'Step 2 - Growth Inputs'!$G$763:$K$763, 0)))*(1+INDEX('Step 2 - Growth Inputs'!$G$763:$K$1479, MATCH('Master Output Table'!$C177, 'Step 2 - Growth Inputs'!$D$763:$D$1479, 0), MATCH('Master Output Table'!G$43, 'Step 2 - Growth Inputs'!$G$763:$K$763, 0))) -> 0 | H190: =G190*(1+INDEX('Step 2 - Growth Inputs'!$G$763:$K$1479, MATCH('Master Output Table'!$C190, 'Step 2 - Growth Inputs'!$D$763:$D$1479, 0), MATCH('Master Output Table'!H$43, 'Step 2 - Growth Inputs'!$G$763:$K$763, 0)))*(1+INDEX('Step 2 - Growth Inputs'!$G$763:$K$1479, MATCH('Master Output Table'!$C177, 'Step 2 - Growth Inputs'!$D$763:$D$1479, 0), MATCH('Master Output Table'!H$43, 'Step 2 - Growth Inputs'!$G$763:$K$763, 0))) -> 0 | I190: =H190*(1+INDEX('Step 2 - Growth Inputs'!$G$763:$K$1479, MATCH('Master Output Table'!$C190, 'Step 2 - Growth Inputs'!$D$763:$D$1479, 0), MATCH('Master Output Table'!I$43, 'Step 2 - Growth Inputs'!$G$763:$K$763, 0)))*(1+INDEX('Step 2 - Growth Inputs'!$G$763:$K$1479, MATCH('Master Output Table'!$C177, 'Step 2 - Growth Inputs'!$D$763:$D$1479, 0), MATCH('Master Output Table'!I$43, 'Step 2 - Growth Inputs'!$G$763:$K$763, 0))) -> 0 | J190: =I190*(1+INDEX('Step 2 - Growth Inputs'!$G$763:$K$1479, MATCH('Master Output Table'!$C190, 'Step 2 - Growth Inputs'!$D$763:$D$1479, 0), MATCH('Master Output Table'!J$43, 'Step 2 - Growth Inputs'!$G$763:$K$763, 0)))*(1+INDEX('Step 2 - Growth Inputs'!$G$763:$K$1479, MATCH('Master Output Table'!$C177, 'Step 2 - Growth Inputs'!$D$763:$D$1479, 0), MATCH('Master Output Table'!J$43, 'Step 2 - Growth Inputs'!$G$763:$K$763, 0))) -> 0 | M190: Child_Dementia
B191: Child_Dementia | C191: Child_Dementia_GP_I | D191: I | E191: GP | F191: =INDEX('Base year data'!$D$39:$M$63, MATCH('Master Output Table'!B191, 'Base year data'!$C$39:$C$63, 0), MATCH('Master Output Table'!E191, 'Base year data'!$D$38:$M$38, 0))*(1+INDEX('Step 2 - Growth Inputs'!$G$763:$K$1479, MATCH('Master Output Table'!C191, 'Step 2 - Growth Inputs'!$D$763:$D$1479, 0), MATCH('Master Output Table'!$F$43, 'Step 2 - Growth Inputs'!$G$763:$K$763, 0)))*(1+INDEX('Step 2 - Growth Inputs'!$G$763:$K$1479, MATCH('Master Output Table'!C178, 'Step 2 - Growth Inputs'!$D$763:$D$1479, 0), MATCH('Master Output Table'!$F$43, 'Step 2 - Growth Inputs'!$G$763:$K$763, 0))) -> 0 | G191: =F191*(1+INDEX('Step 2 - Growth Inputs'!$G$763:$K$1479, MATCH('Master Output Table'!$C191, 'Step 2 - Growth Inputs'!$D$763:$D$1479, 0), MATCH('Master Output Table'!G$43, 'Step 2 - Growth Inputs'!$G$763:$K$763, 0)))*(1+INDEX('Step 2 - Growth Inputs'!$G$763:$K$1479, MATCH('Master Output Table'!$C178, 'Step 2 - Growth Inputs'!$D$763:$D$1479, 0), MATCH('Master Output Table'!G$43, 'Step 2 - Growth Inputs'!$G$763:$K$763, 0))) -> 0 | H191: =G191*(1+INDEX('Step 2 - Growth Inputs'!$G$763:$K$1479, MATCH('Master Output Table'!$C191, 'Step 2 - Growth Inputs'!$D$763:$D$1479, 0), MATCH('Master Output Table'!H$43, 'Step 2 - Growth Inputs'!$G$763:$K$763, 0)))*(1+INDEX('Step 2 - Growth Inputs'!$G$763:$K$1479, MATCH('Master Output Table'!$C178, 'Step 2 - Growth Inputs'!$D$763:$D$1479, 0), MATCH('Master Output Table'!H$43, 'Step 2 - Growth Inputs'!$G$763:$K$763, 0))) -> 0 | I191: =H191*(1+INDEX('Step 2 - Growth Inputs'!$G$763:$K$1479, MATCH('Master Output Table'!$C191, 'Step 2 - Growth Inputs'!$D$763:$D$1479, 0), MATCH('Master Output Table'!I$43, 'Step 2 - Growth Inputs'!$G$763:$K$763, 0)))*(1+INDEX('Step 2 - Growth Inputs'!$G$763:$K$1479, MATCH('Master Output Table'!$C178, 'Step 2 - Growth Inputs'!$D$763:$D$1479, 0), MATCH('Master Output Table'!I$43, 'Step 2 - Growth Inputs'!$G$763:$K$763, 0))) -> 0 | J191: =I191*(1+INDEX('Step 2 - Growth Inputs'!$G$763:$K$1479, MATCH('Master Output Table'!$C191, 'Step 2 - Growth Inputs'!$D$763:$D$1479, 0), MATCH('Master Output Table'!J$43, 'Step 2 - Growth Inputs'!$G$763:$K$763, 0)))*(1+INDEX('Step 2 - Growth Inputs'!$G$763:$K$1479, MATCH('Master Output Table'!$C178, 'Step 2 - Growth Inputs'!$D$763:$D$1479, 0), MATCH('Master Output Table'!J$43, 'Step 2 - Growth Inputs'!$G$763:$K$763, 0))) -> 0 | M191: Child_Dementia
B192: Child_Dementia | C192: Child_Dementia_Prescribing_I | D192: I | E192: Prescribing | F192: =INDEX('Base year data'!$D$39:$M$63, MATCH('Master Output Table'!B192, 'Base year data'!$C$39:$C$63, 0), MATCH('Master Output Table'!E192, 'Base year data'!$D$38:$M$38, 0))*(1+INDEX('Step 2 - Growth Inputs'!$G$763:$K$1479, MATCH('Master Output Table'!C192, 'Step 2 - Growth Inputs'!$D$763:$D$1479, 0), MATCH('Master Output Table'!$F$43, 'Step 2 - Growth Inputs'!$G$763:$K$763, 0)))*(1+INDEX('Step 2 - Growth Inputs'!$G$763:$K$1479, MATCH('Master Output Table'!C179, 'Step 2 - Growth Inputs'!$D$763:$D$1479, 0), MATCH('Master Output Table'!$F$43, 'Step 2 - Growth Inputs'!$G$763:$K$763, 0))) -> 0 | G192: =F192*(1+INDEX('Step 2 - Growth Inputs'!$G$763:$K$1479, MATCH('Master Output Table'!$C192, 'Step 2 - Growth Inputs'!$D$763:$D$1479, 0), MATCH('Master Output Table'!G$43, 'Step 2 - Growth Inputs'!$G$763:$K$763, 0)))*(1+INDEX('Step 2 - Growth Inputs'!$G$763:$K$1479, MATCH('Master Output Table'!$C179, 'Step 2 - Growth Inputs'!$D$763:$D$1479, 0), MATCH('Master Output Table'!G$43, 'Step 2 - Growth Inputs'!$G$763:$K$763, 0))) -> 0 | H192: =G192*(1+INDEX('Step 2 - Growth Inputs'!$G$763:$K$1479, MATCH('Master Output Table'!$C192, 'Step 2 - Growth Inputs'!$D$763:$D$1479, 0), MATCH('Master Output Table'!H$43, 'Step 2 - Growth Inputs'!$G$763:$K$763, 0)))*(1+INDEX('Step 2 - Growth Inputs'!$G$763:$K$1479, MATCH('Master Output Table'!$C179, 'Step 2 - Growth Inputs'!$D$763:$D$1479, 0), MATCH('Master Output Table'!H$43, 'Step 2 - Growth Inputs'!$G$763:$K$763, 0))) -> 0 | I192: =H192*(1+INDEX('Step 2 - Growth Inputs'!$G$763:$K$1479, MATCH('Master Output Table'!$C192, 'Step 2 - Growth Inputs'!$D$763:$D$1479, 0), MATCH('Master Output Table'!I$43, 'Step 2 - Growth Inputs'!$G$763:$K$763, 0)))*(1+INDEX('Step 2 - Growth Inputs'!$G$763:$K$1479, MATCH('Master Output Table'!$C179, 'Step 2 - Growth Inputs'!$D$763:$D$1479, 0), MATCH('Master Output Table'!I$43, 'Step 2 - Growth Inputs'!$G$763:$K$763, 0))) -> 0 | J192: =I192*(1+INDEX('Step 2 - Growth Inputs'!$G$763:$K$1479, MATCH('Master Output Table'!$C192, 'Step 2 - Growth Inputs'!$D$763:$D$1479, 0), MATCH('Master Output Table'!J$43, 'Step 2 - Growth Inputs'!$G$763:$K$763, 0)))*(1+INDEX('Step 2 - Growth Inputs'!$G$763:$K$1479, MATCH('Master Output Table'!$C179, 'Step 2 - Growth Inputs'!$D$763:$D$1479, 0), MATCH('Master Output Table'!J$43, 'Step 2 - Growth Inputs'!$G$763:$K$763, 0))) -> 0 | M192: Child_Dementia
B193: Child_Dementia | C193: Child_Dementia_SC_I | D193: I | E193: SC | F193: =INDEX('Base year data'!$D$39:$M$63, MATCH('Master Output Table'!B193, 'Base year data'!$C$39:$C$63, 0), MATCH('Master Output Table'!E193, 'Base year data'!$D$38:$M$38, 0))*(1+INDEX('Step 2 - Growth Inputs'!$G$763:$K$1479, MATCH('Master Output Table'!C193, 'Step 2 - Growth Inputs'!$D$763:$D$1479, 0), MATCH('Master Output Table'!$F$43, 'Step 2 - Growth Inputs'!$G$763:$K$763, 0)))*(1+INDEX('Step 2 - Growth Inputs'!$G$763:$K$1479, MATCH('Master Output Table'!C180, 'Step 2 - Growth Inputs'!$D$763:$D$1479, 0), MATCH('Master Output Table'!$F$43, 'Step 2 - Growth Inputs'!$G$763:$K$763, 0))) -> 0 | G193: =F193*(1+INDEX('Step 2 - Growth Inputs'!$G$763:$K$1479, MATCH('Master Output Table'!$C193, 'Step 2 - Growth Inputs'!$D$763:$D$1479, 0), MATCH('Master Output Table'!G$43, 'Step 2 - Growth Inputs'!$G$763:$K$763, 0)))*(1+INDEX('Step 2 - Growth Inputs'!$G$763:$K$1479, MATCH('Master Output Table'!$C180, 'Step 2 - Growth Inputs'!$D$763:$D$1479, 0), MATCH('Master Output Table'!G$43, 'Step 2 - Growth Inputs'!$G$763:$K$763, 0))) -> 0 | H193: =G193*(1+INDEX('Step 2 - Growth Inputs'!$G$763:$K$1479, MATCH('Master Output Table'!$C193, 'Step 2 - Growth Inputs'!$D$763:$D$1479, 0), MATCH('Master Output Table'!H$43, 'Step 2 - Growth Inputs'!$G$763:$K$763, 0)))*(1+INDEX('Step 2 - Growth Inputs'!$G$763:$K$1479, MATCH('Master Output Table'!$C180, 'Step 2 - Growth Inputs'!$D$763:$D$1479, 0), MATCH('Master Output Table'!H$43, 'Step 2 - Growth Inputs'!$G$763:$K$763, 0))) -> 0 | I193: =H193*(1+INDEX('Step 2 - Growth Inputs'!$G$763:$K$1479, MATCH('Master Output Table'!$C193, 'Step 2 - Growth Inputs'!$D$763:$D$1479, 0), MATCH('Master Output Table'!I$43, 'Step 2 - Growth Inputs'!$G$763:$K$763, 0)))*(1+INDEX('Step 2 - Growth Inputs'!$G$763:$K$1479, MATCH('Master Output Table'!$C180, 'Step 2 - Growth Inputs'!$D$763:$D$1479, 0), MATCH('Master Output Table'!I$43, 'Step 2 - Growth Inputs'!$G$763:$K$763, 0))) -> 0 | J193: =I193*(1+INDEX('Step 2 - Growth Inputs'!$G$763:$K$1479, MATCH('Master Output Table'!$C193, 'Step 2 - Growth Inputs'!$D$763:$D$1479, 0), MATCH('Master Output Table'!J$43, 'Step 2 - Growth Inputs'!$G$763:$K$763, 0)))*(1+INDEX('Step 2 - Growth Inputs'!$G$763:$K$1479, MATCH('Master Output Table'!$C180, 'Step 2 - Growth Inputs'!$D$763:$D$1479, 0), MATCH('Master Output Table'!J$43, 'Step 2 - Growth Inputs'!$G$763:$K$763, 0))) -> 0 | M193: Child_Dementia
B194: Child_Dementia | C194: Child_Dementia_CC_I | D194: I | E194: CC | F194: =INDEX('Base year data'!$D$39:$M$63, MATCH('Master Output Table'!B194, 'Base year data'!$C$39:$C$63, 0), MATCH('Master Output Table'!E194, 'Base year data'!$D$38:$M$38, 0))*(1+INDEX('Step 2 - Growth Inputs'!$G$763:$K$1479, MATCH('Master Output Table'!C194, 'Step 2 - Growth Inputs'!$D$763:$D$1479, 0), MATCH('Master Output Table'!$F$43, 'Step 2 - Growth Inputs'!$G$763:$K$763, 0)))*(1+INDEX('Step 2 - Growth Inputs'!$G$763:$K$1479, MATCH('Master Output Table'!C181, 'Step 2 - Growth Inputs'!$D$763:$D$1479, 0), MATCH('Master Output Table'!$F$43, 'Step 2 - Growth Inputs'!$G$763:$K$763, 0))) -> 0 | G194: =F194*(1+INDEX('Step 2 - Growth Inputs'!$G$763:$K$1479, MATCH('Master Output Table'!$C194, 'Step 2 - Growth Inputs'!$D$763:$D$1479, 0), MATCH('Master Output Table'!G$43, 'Step 2 - Growth Inputs'!$G$763:$K$763, 0)))*(1+INDEX('Step 2 - Growth Inputs'!$G$763:$K$1479, MATCH('Master Output Table'!$C181, 'Step 2 - Growth Inputs'!$D$763:$D$1479, 0), MATCH('Master Output Table'!G$43, 'Step 2 - Growth Inputs'!$G$763:$K$763, 0))) -> 0 | H194: =G194*(1+INDEX('Step 2 - Growth Inputs'!$G$763:$K$1479, MATCH('Master Output Table'!$C194, 'Step 2 - Growth Inputs'!$D$763:$D$1479, 0), MATCH('Master Output Table'!H$43, 'Step 2 - Growth Inputs'!$G$763:$K$763, 0)))*(1+INDEX('Step 2 - Growth Inputs'!$G$763:$K$1479, MATCH('Master Output Table'!$C181, 'Step 2 - Growth Inputs'!$D$763:$D$1479, 0), MATCH('Master Output Table'!H$43, 'Step 2 - Growth Inputs'!$G$763:$K$763, 0))) -> 0 | I194: =H194*(1+INDEX('Step 2 - Growth Inputs'!$G$763:$K$1479, MATCH('Master Output Table'!$C194, 'Step 2 - Growth Inputs'!$D$763:$D$1479, 0), MATCH('Master Output Table'!I$43, 'Step 2 - Growth Inputs'!$G$763:$K$763, 0)))*(1+INDEX('Step 2 - Growth Inputs'!$G$763:$K$1479, MATCH('Master Output Table'!$C181, 'Step 2 - Growth Inputs'!$D$763:$D$1479, 0), MATCH('Master Output Table'!I$43, 'Step 2 - Growth Inputs'!$G$763:$K$763, 0))) -> 0 | J194: =I194*(1+INDEX('Step 2 - Growth Inputs'!$G$763:$K$1479, MATCH('Master Output Table'!$C194, 'Step 2 - Growth Inputs'!$D$763:$D$1479, 0), MATCH('Master Output Table'!J$43, 'Step 2 - Growth Inputs'!$G$763:$K$763, 0)))*(1+INDEX('Step 2 - Growth Inputs'!$G$763:$K$1479, MATCH('Master Output Table'!$C181, 'Step 2 - Growth Inputs'!$D$763:$D$1479, 0), MATCH('Master Output Table'!J$43, 'Step 2 - Growth Inputs'!$G$763:$K$763, 0))) -> 0 | M194: Child_Dementia
B195: Child_Dementia | C195: =B195&"Average" -> Child_DementiaAverage | E195: Total | F195: =SUMIF(F186:F194, ">0") -> 0 | G195: =SUMIF(G186:G194, ">0") -> 0 | H195: =SUMIF(H186:H194, ">0") -> 0 | I195: =SUMIF(I186:I194, ">0") -> 0 | J195: =SUMIF(J186:J194, ">0") -> 0 | M195: Child_Dementia
B196: Child_Dementia | C196: =B196&"_"&E196 -> Child_Dementia_ | M196: Child_Dementia
B197: Child_Dementia | M197: Child_Dementia
B198: Child_Cancer | E198: Child: Cancer | M198: Child_Cancer
B199: Child_Cancer | E199: Projection of population size | M199: Child_Cancer
B200: Child_Cancer | F200: Year 0 | G200: Year 1 | H200: Year 2 | I200: Year 3 | J200: Year 4 | M200: Child_Cancer
B201: Child_Cancer | E201: Projected segment size as a percentage of overall population | F201: =F202/SUM(F$40,F$72,F$104,F$136,F$169,F$202,F$234,F$266,F$297,F$329,F$362,F$395,F$427,F$459,F$490,F$522,F$555,F$588,F$620,F$652,F$683,F$715,F$748,F$781) -> 7.133659817e-05 | G201: =G202/SUM(G$40,G$72,G$104,G$136,G$169,G$202,G$234,G$266,G$297,G$329,G$362,G$395,G$427,G$459,G$490,G$522,G$555,G$588,G$620,G$652,G$683,G$715,G$748,G$781) -> 7.183887326e-05 | H201: 7.234283575e-05 | I201: 7.28484594e-05 | J201: =J202/SUM(J$40,J$72,J$104,J$136,J$169,J$202,J$234,J$266,J$297,J$329,J$362,J$395,J$427,J$459,J$490,J$522,J$555,J$588,J$620,J$652,J$683,J$715,J$748,J$781) -> 7.335571741e-05 | M201: Child_Cancer
B202: Child_Cancer | C202: =B202&"_"&E202&"_"&D202 -> Child_Cancer_Population Change_ | E202: Population Change | F202: =INDEX('Base year data'!$O$11:$O$34, MATCH('Master Output Table'!$B202, 'Base year data'!$C$11:$C$34, 0)) * (1+INDEX('Step 2 - Growth Inputs'!$F$763:$K$1479, MATCH('Master Output Table'!$C202, 'Step 2 - Growth Inputs'!$D$763:$D$1479, 0), 2)) -> 17.83414954 | G202: =F202*(1+INDEX('Step 2 - Growth Inputs'!$C$763:$K$1479,MATCH('Master Output Table'!$C202,'Step 2 - Growth Inputs'!$D$763:$D$1479,0),6)) -> 18.10166179 | H202: =G202*(1+INDEX('Step 2 - Growth Inputs'!$C$763:$K$1479,MATCH('Master Output Table'!$C202,'Step 2 - Growth Inputs'!$D$763:$D$1479,0),7)) -> 18.37318671 | I202: =H202*(1+INDEX('Step 2 - Growth Inputs'!$C$763:$K$1479,MATCH('Master Output Table'!$C202,'Step 2 - Growth Inputs'!$D$763:$D$1479,0),8)) -> 18.64878451 | J202: =I202*(1+INDEX('Step 2 - Growth Inputs'!$C$763:$K$1479,MATCH('Master Output Table'!$C202,'Step 2 - Growth Inputs'!$D$763:$D$1479,0),9)) -> 18.92851628 | M202: Child_Cancer
... 607 more rows

Sheet Raw data for Pivot (hidden)
G1: _Population Change_ | H1: U | I1: U | J1: U | K1: U | L1: U | M1: U | N1: U | O1: U | P1: U
H2: ='Base year data'!D10 -> AE | I2: ='Base year data'!E10 -> NEL | J2: ='Base year data'!F10 -> EL | K2: ='Base year data'!G10 -> OP | L2: ='Base year data'!I10 -> MH | M2: ='Base year data'!J10 -> GP | N2: ='Base year data'!K10 -> Prescribing | O2: ='Base year data'!L10 -> SC | P2: ='Base year data'!M10 -> CC | R2: =H2 -> AE | S2: =I2 -> NEL | T2: EL | U2: OP | V2: MH | W2: GP | X2: Prescribing | Y2: SC | Z2: CC
B3: Age Group | C3: Condition Group | D3: Unique segment | E3: Segment sort code | F3: Year | G3: Population | H3: ="Total_Spend_"&'Base year data'!D10 -> Total_Spend_AE | I3: ="Total_Spend_"&'Base year data'!E10 -> Total_Spend_NEL | J3: ="Total_Spend_"&'Base year data'!F10 -> Total_Spend_EL | K3: ="Total_Spend_"&'Base year data'!G10 -> Total_Spend_OP | L3: ="Total_Spend_"&'Base year data'!I10 -> Total_Spend_MH | M3: ="Total_Spend_"&'Base year data'!J10 -> Total_Spend_GP | N3: ="Total_Spend_"&'Base year data'!K10 -> Total_Spend_Prescribing | O3: ="Total_Spend_"&'Base year data'!L10 -> Total_Spend_SC | P3: ="Total_Spend_"&'Base year data'!M10 -> Total_Spend_CC | Q3: Total_Spend_All | R3: ="Avg_Spend_"&R2 -> Avg_Spend_AE | S3: ="Avg_Spend_"&S2 -> Avg_Spend_NEL | T3: Avg_Spend_EL | U3: Avg_Spend_OP | V3: Avg_Spend_MH | W3: Avg_Spend_GP | X3: Avg_Spend_Prescribing | Y3: Avg_Spend_SC | Z3: Avg_Spend_CC | AA3: Avg_Spend_All
B4: 1_Child | C4: 1_Mostly healthy | D4: Child_Mostly healthy | E4: 1_Child_Mostly healthy | F4: Year 0 | G4: ='Base year data'!O11 -> 43729.78053 | H4: ='Base year data'!D11 -> 1865191.849 | I4: ='Base year data'!E11 -> 9070852.825 | J4: ='Base year data'!F11 -> 3293608.559 | K4: ='Base year data'!G11 -> 4709096.289 | L4: ='Base year data'!I11 -> 2677218.869 | M4: ='Base year data'!J11 -> 4401019.1 | N4: ='Base year data'!K11 -> 1338718.35 | O4: ='Base year data'!L11 -> 430233.1156 | P4: ='Base year data'!M11 -> 7325431.185 | Q4: =SUM(H4:P4) -> 35111370.14 | R4: =IFERROR(H4/$G4,0) -> 42.65266887 | S4: =IFERROR(I4/$G4,0) -> 207.4296444 | T4: 75.31728994 | U4: 107.6862548 | V4: 61.2218684 | W4: 100.6412346 | X4: 30.61342484 | Y4: 9.838446715 | Z4: 167.5158461 | AA4: =SUM(R4:Z4) -> 802.9166786
B5: 1_Child | C5: 2_1LTC | D5: Child_1LTC | E5: 2_Child_1LTC | F5: Year 0 | G5: ='Base year data'!O12 -> 1926.534004 | H5: ='Base year data'!D12 -> 126453.6686 | I5: ='Base year data'!E12 -> 472292.7851 | J5: ='Base year data'!F12 -> 243338.6704 | K5: ='Base year data'!G12 -> 385920.4426 | L5: ='Base year data'!I12 -> 352066.1098 | M5: ='Base year data'!J12 -> 316295.6353 | N5: ='Base year data'!K12 -> 319267.2817 | O5: ='Base year data'!L12 -> 9687.578035 | P5: ='Base year data'!M12 -> 238489.0671 | Q5: =SUM(H5:P5) -> 2463811.239 | R5: =IFERROR(H5/$G5,0) -> 65.63791158 | S5: =IFERROR(I5/$G5,0) -> 245.1515436 | T5: =IFERROR(J5/$G5,0) -> 126.3090451 | U5: =IFERROR(K5/$G5,0) -> 200.3185211 | V5: =IFERROR(L5/$G5,0) -> 182.7458581 | W5: =IFERROR(M5/$G5,0) -> 164.1785894 | X5: =IFERROR(N5/$G5,0) -> 165.7210727 | Y5: =IFERROR(O5/$G5,0) -> 5.028500931 | Z5: =IFERROR(P5/$G5,0) -> 123.7917766 | AA5: =SUM(R5:Z5) -> 1278.882819
B6: 1_Child | C6: 3_2+LTC | D6: Child_2+LTC | E6: 3_Child_2+LTC | F6: Year 0 | G6: ='Base year data'!O13 -> 38.78927526 | H6: ='Base year data'!D13 -> 3073.117098 | I6: ='Base year data'!E13 -> 46835.71888 | J6: ='Base year data'!F13 -> 16102.68315 | K6: ='Base year data'!G13 -> 30884.74528 | L6: ='Base year data'!I13 -> 0 | M6: ='Base year data'!J13 -> 8720.928371 | N6: ='Base year data'!K13 -> 13749.15774 | O6: ='Base year data'!L13 -> 0 | P6: ='Base year data'!M13 -> 13870.29651 | Q6: 133236.647 | R6: 79.22594783 | S6: 1207.439906 | T6: 415.132354 | U6: 796.2186732 | V6: 0 | W6: 224.8283401 | X6: 354.4577117 | Y6: 0 | Z6: 357.5807079 | AA6: 3434.883641
B7: 1_Child | C7: 4_SEMI | D7: Child_SEMI | E7: 4_Child_SEMI | F7: Year 0 | G7: ='Base year data'!O14 -> 66.87806079 | H7: ='Base year data'!D14 -> 4971.028398 | I7: ='Base year data'!E14 -> 55452.76776 | J7: ='Base year data'!F14 -> 15124.44742 | K7: ='Base year data'!G14 -> 25769.67367 | L7: ='Base year data'!I14 -> 205910.9555 | M7: ='Base year data'!J14 -> 7863.116098 | N7: ='Base year data'!K14 -> 8013.16577 | O7: ='Base year data'!L14 -> 4334.231342 | P7: ='Base year data'!M14 -> 37.62770373 | Q7: 327477.0137 | R7: 74.32973294 | S7: 829.1623158 | T7: 226.1496109 | U7: 385.3232789 | V7: 3078.901408 | W7: 117.5739249 | X7: 119.8175556 | Y7: 64.80796977 | Z7: 0.5626315011 | AA7: 4896.628428
B8: 1_Child | C8: 5_Dementia | D8: Child_Dementia | E8: 5_Child_Dementia | F8: Year 0 | G8: ='Base year data'!O15 -> 0 | H8: ='Base year data'!D15 -> 0 | I8: ='Base year data'!E15 -> 0 | J8: ='Base year data'!F15 -> 0 | K8: ='Base year data'!G15 -> 0 | L8: ='Base year data'!I15 -> 0 | M8: ='Base year data'!J15 -> 0 | N8: ='Base year data'!K15 -> 0 | O8: ='Base year data'!L15 -> 0 | P8: ='Base year data'!M15 -> 0 | Q8: 0 | R8: 0 | S8: 0 | T8: 0 | U8: 0 | V8: 0 | W8: 0 | X8: 0 | Y8: 0 | Z8: 0 | AA8: 0
B9: 1_Child | C9: 6_Cancer | D9: Child_Cancer | E9: 6_Child_Cancer | F9: Year 0 | G9: ='Base year data'!O16 -> 17.83414954 | H9: ='Base year data'!D16 -> 2865.914508 | I9: ='Base year data'!E16 -> 78477.50945 | J9: ='Base year data'!F16 -> 59187.17656 | K9: ='Base year data'!G16 -> 14281.279 | L9: ='Base year data'!I16 -> 6805.720594 | M9: ='Base year data'!J16 -> 4149.734287 | N9: ='Base year data'!K16 -> 1946.55552 | O9: ='Base year data'!L16 -> 2867.463475 | P9: ='Base year data'!M16 -> 32928.79548 | Q9: 203510.1489 | R9: 160.6981315 | S9: 4400.406605 | T9: 3318.755202 | U9: 800.7827321 | V9: 381.6117263 | W9: 232.6847309 | X9: 109.1476504 | Y9: 160.7849855 | Z9: 1846.390006 | AA9: 11411.26177
B10: 1_Child | C10: 7_LearnDis | D10: Child_LearnDis | E10: 7_Child_LearnDis | F10: Year 0 | G10: ='Base year data'!O17 -> 0 | H10: ='Base year data'!D17 -> 0 | I10: ='Base year data'!E17 -> 0 | J10: ='Base year data'!F17 -> 0 | K10: ='Base year data'!G17 -> 0 | L10: ='Base year data'!I17 -> 0 | M10: ='Base year data'!J17 -> 0 | N10: ='Base year data'!K17 -> 0 | O10: ='Base year data'!L17 -> 0 | P10: ='Base year data'!M17 -> 0 | Q10: 0 | R10: 0 | S10: 0 | T10: 0 | U10: 0 | V10: 0 | W10: 0 | X10: 0 | Y10: 0 | Z10: 0 | AA10: 0
B11: 1_Child | C11: 8_PhysDis | D11: Child_PhysDis | E11: 8_Child_PhysDis | F11: Year 0 | G11: ='Base year data'!O18 -> 0 | H11: ='Base year data'!D18 -> 0 | I11: ='Base year data'!E18 -> 0 | J11: ='Base year data'!F18 -> 0 | K11: ='Base year data'!G18 -> 0 | L11: ='Base year data'!I18 -> 0 | M11: ='Base year data'!J18 -> 0 | N11: ='Base year data'!K18 -> 0 | O11: ='Base year data'!L18 -> 0 | P11: ='Base year data'!M18 -> 0 | Q11: 0 | R11: 0 | S11: 0 | T11: 0 | U11: 0 | V11: 0 | W11: 0 | X11: 0 | Y11: 0 | Z11: 0 | AA11: 0
B12: 2_Adult (16-69) | C12: 1_Mostly healthy | D12: 16-69_Mostly healthy | E12: 9_16-69_Mostly healthy | F12: Year 0 | G12: ='Base year data'!O19 -> 147590.9631 | H12: ='Base year data'!D19 -> 3875847.316 | I12: ='Base year data'!E19 -> 22219747.54 | J12: ='Base year data'!F19 -> 16179323.08 | K12: ='Base year data'!G19 -> 18347802.36 | L12: ='Base year data'!I19 -> 11046777.64 | M12: ='Base year data'!J19 -> 16058306.96 | N12: ='Base year data'!K19 -> 4348632.422 | O12: ='Base year data'!L19 -> 9123361.897 | P12: ='Base year data'!M19 -> 8705872.347 | Q12: 109905671.6 | R12: 26.26073599 | S12: 150.5495125 | T12: 109.6227217 | U12: 124.3152154 | V12: 74.8472495 | W12: 108.8027792 | X12: 29.46408324 | Y12: 61.81517964 | Z12: 58.98648647 | AA12: 744.6639636
B13: 2_Adult (16-69) | C13: 2_1LTC | D13: 16-69_1LTC | E13: 10_16-69_1LTC | F13: Year 0 | G13: ='Base year data'!O20 -> 22951.2129 | H13: ='Base year data'!D20 -> 1096971.388 | I13: ='Base year data'!E20 -> 6094738.426 | J13: ='Base year data'!F20 -> 6564128.544 | K13: ='Base year data'!G20 -> 6008288.437 | L13: ='Base year data'!I20 -> 4996396.83 | M13: ='Base year data'!J20 -> 5791073.81 | N13: ='Base year data'!K20 -> 4230532.46 | O13: ='Base year data'!L20 -> 3603574.971 | P13: ='Base year data'!M20 -> 2964684.17 | Q13: 41350389.04 | R13: 47.79579158 | S13: 265.5519101 | T13: 286.0035578 | U13: 261.7852252 | V13: 217.6964177 | W13: 252.3210357 | X13: 184.3271847 | Y13: 157.0102193 | Z13: 129.1733114 | AA13: 1801.664653
B14: 2_Adult (16-69) | C14: 3_2+LTC | D14: 16-69_2+LTC | E14: 11_16-69_2+LTC | F14: Year 0 | G14: ='Base year data'!O21 -> 10481.57554 | H14: ='Base year data'!D21 -> 727561.2658 | I14: ='Base year data'!E21 -> 5638321.86 | J14: ='Base year data'!F21 -> 5856366.799 | K14: ='Base year data'!G21 -> 5070324.02 | L14: ='Base year data'!I21 -> 2241623.989 | M14: ='Base year data'!J21 -> 4226828.539 | N14: ='Base year data'!K21 -> 5416157.394 | O14: ='Base year data'!L21 -> 4340323.04 | P14: ='Base year data'!M21 -> 3446069.074 | Q14: 36963575.98 | R14: 69.41334946 | S14: 537.9269404 | T14: 558.7296277 | U14: 483.73682 | V14: 213.863267 | W14: 403.2627082 | X14: 516.7312274 | Y14: 414.0907083 | Z14: 328.7739578 | AA14: 3526.528606
B15: 2_Adult (16-69) | C15: 4_SEMI | D15: 16-69_SEMI | E15: 12_16-69_SEMI | F15: Year 0 | G15: ='Base year data'!O22 -> 2434.361413 | H15: ='Base year data'!D22 -> 271475.5101 | I15: ='Base year data'!E22 -> 1719655.281 | J15: ='Base year data'!F22 -> 666719.9638 | K15: ='Base year data'!G22 -> 633836.1407 | L15: ='Base year data'!I22 -> 18370899.42 | M15: ='Base year data'!J22 -> 916488.4091 | N15: ='Base year data'!K22 -> 1816313.09 | O15: ='Base year data'!L22 -> 5050286.822 | P15: ='Base year data'!M22 -> 1262407.337 | Q15: 30708081.97 | R15: 111.5181619 | S15: 706.409193 | T15: 273.8787924 | U15: 260.3705996 | V15: 7546.49631 | W15: 376.4800101 | X15: 746.1148048 | Y15: 2074.58383 | Z15: 518.5784374 | AA15: 12614.43014
B16: 2_Adult (16-69) | C16: 5_Dementia | D16: 16-69_Dementia | E16: 13_16-69_Dementia | F16: Year 0 | G16: ='Base year data'!O23 -> 63.31123088 | H16: ='Base year data'!D23 -> 3453.034044 | I16: ='Base year data'!E23 -> 46167.50553 | J16: ='Base year data'!F23 -> 17399.07616 | K16: ='Base year data'!G23 -> 25363.01334 | L16: ='Base year data'!I23 -> 196860.6849 | M16: ='Base year data'!J23 -> 25188.67341 | N16: ='Base year data'!K23 -> 67479.47025 | O16: ='Base year data'!L23 -> 599881.7649 | P16: ='Base year data'!M23 -> 63918.4991 | Q16: 1045711.722 | R16: 54.54062409 | S16: 729.2150995 | T16: 274.8181629 | U16: 400.6084385 | V16: 3109.411746 | W16: 397.8547417 | X16: 1065.837282 | Y16: 9475.124028 | Z16: 1009.591793 | AA16: 16517.00192
B17: 2_Adult (16-69) | C17: 6_Cancer | D17: 16-69_Cancer | E17: 14_16-69_Cancer | F17: Year 0 | G17: ='Base year data'!O24 -> 2144.110629 | H17: ='Base year data'!D24 -> 145076.3553 | I17: ='Base year data'!E24 -> 1970026.387 | J17: ='Base year data'!F24 -> 4453217.59 | K17: ='Base year data'!G24 -> 1823806.059 | L17: ='Base year data'!I24 -> 461377.4501 | M17: ='Base year data'!J24 -> 704158.691 | N17: ='Base year data'!K24 -> 694241.9433 | O17: ='Base year data'!L24 -> 593290.4312 | P17: ='Base year data'!M24 -> 287688.057 | Q17: 11132882.96 | R17: 67.66271917 | S17: 918.8081811 | T17: 2076.953274 | U17: 850.6119199 | V17: 215.1836029 | W17: 328.4152793 | X17: 323.7901692 | Y17: 276.7070053 | Z17: 134.175939 | AA17: 5192.30809
B18: 2_Adult (16-69) | C18: 7_LearnDis | D18: 16-69_LearnDis | E18: 15_16-69_LearnDis | F18: Year 0 | G18: ='Base year data'!O25 -> 477.9552078 | H18: ='Base year data'!D25 -> 42868.37716 | I18: ='Base year data'!E25 -> 280208.8863 | J18: ='Base year data'!F25 -> 122742.6541 | K18: ='Base year data'!G25 -> 151429.067 | L18: ='Base year data'!I25 -> 528868.0864 | M18: ='Base year data'!J25 -> 146864.9118 | N18: ='Base year data'!K25 -> 199681.4178 | O18: ='Base year data'!L25 -> 17891090.59 | P18: ='Base year data'!M25 -> 6595646.973 | Q18: 25959400.97 | R18: 89.69120216 | S18: 586.2659968 | T18: 256.80786 | U18: 316.8269004 | V18: 1106.52228 | W18: 307.2775637 | X18: 417.7827013 | Y18: 37432.56753 | Z18: 13799.71777 | AA18: 54313.45981
B19: 2_Adult (16-69) | C19: 8_PhysDis | D19: 16-69_PhysDis | E19: 16_16-69_PhysDis | F19: Year 0 | G19: ='Base year data'!O26 -> 205.9844272 | H19: ='Base year data'!D26 -> 46296.55127 | I19: ='Base year data'!E26 -> 478072.6059 | J19: ='Base year data'!F26 -> 315293.4859 | K19: ='Base year data'!G26 -> 206611.8974 | L19: ='Base year data'!I26 -> 114389.4104 | M19: ='Base year data'!J26 -> 116306.6329 | N19: ='Base year data'!K26 -> 166626.8087 | O19: ='Base year data'!L26 -> 2378864.484 | P19: ='Base year data'!M26 -> 730314.6155 | Q19: 4552776.492 | R19: 224.7575309 | S19: 2320.916257 | T19: 1530.666615 | U19: 1003.046202 | V19: 555.330381 | W19: 564.6379897 | X19: 808.9291554 | Y19: 11548.75889 | Z19: 3545.484605 | AA19: 22102.52762
B20: 3_Elderly (70+) | C20: 1_Mostly healthy | D20: 70+_Mostly healthy | E20: 17_70+_Mostly healthy | F20: Year 0 | G20: ='Base year data'!O27 -> 4023.829991 | H20: ='Base year data'!D27 -> 204438.2965 | I20: ='Base year data'!E27 -> 3055434.872 | J20: ='Base year data'!F27 -> 1736774.47 | K20: ='Base year data'!G27 -> 1204808.443 | L20: ='Base year data'!I27 -> 419828.647 | M20: ='Base year data'!J27 -> 740225.6066 | N20: ='Base year data'!K27 -> 684652.2927 | O20: ='Base year data'!L27 -> 2218216.066 | P20: ='Base year data'!M27 -> 4639554.26 | Q20: 14903932.95 | R20: 50.80689218 | S20: 759.3349817 | T20: 431.622229 | U20: 299.4183267 | V20: 104.3355828 | W20: 183.9604577 | X20: 170.1494085 | Y20: 551.2698278 | Z20: 1153.019454 | AA20: 3703.917161
B21: 3_Elderly (70+) | C21: 2_1LTC | D21: 70+_1LTC | E21: 18_70+_1LTC | F21: Year 0 | G21: ='Base year data'!O28 -> 3694.344078 | H21: ='Base year data'!D28 -> 169674.9519 | I21: ='Base year data'!E28 -> 2034821.131 | J21: ='Base year data'!F28 -> 2056973.071 | K21: ='Base year data'!G28 -> 1326796.553 | L21: ='Base year data'!I28 -> 300227.3075 | M21: ='Base year data'!J28 -> 1052153.962 | N21: ='Base year data'!K28 -> 1362715.477 | O21: ='Base year data'!L28 -> 2611629.11 | P21: ='Base year data'!M28 -> 1283708.315 | Q21: 12198699.88 | R21: 45.92830237 | S21: 550.7936155 | T21: 556.7897921 | U21: 359.1426585 | V21: 81.26674214 | W21: 284.8012908 | X21: 368.8653381 | Y21: 706.9263325 | Z21: 347.4793597 | AA21: 3301.993432
B22: 3_Elderly (70+) | C22: 3_2+LTC | D22: 70+_2+LTC | E22: 19_70+_2+LTC | F22: Year 0 | G22: ='Base year data'!O29 -> 6564.750447 | H22: ='Base year data'!D29 -> 590002.9982 | I22: ='Base year data'!E29 -> 8853453.477 | J22: ='Base year data'!F29 -> 4612315.139 | K22: ='Base year data'!G29 -> 3854390.009 | L22: ='Base year data'!I29 -> 983981.9128 | M22: ='Base year data'!J29 -> 2809541.458 | N22: ='Base year data'!K29 -> 5274948.225 | O22: ='Base year data'!L29 -> 11146533.61 | P22: ='Base year data'!M29 -> 5672941.034 | Q22: 43798107.86 | R22: 89.87439858 | S22: 1348.635192 | T22: 702.5880384 | U22: 587.1342773 | V22: 149.8887004 | W22: 427.97384 | X22: 803.526085 | Y22: 1697.937142 | Z22: 864.1518182 | AA22: 6671.709491
B23: 3_Elderly (70+) | C23: 4_SEMI | D23: 70+_SEMI | E23: 20_70+_SEMI | F23: Year 0 | G23: ='Base year data'!O30 -> 232.7356515 | H23: ='Base year data'!D30 -> 36388.61518 | I23: ='Base year data'!E30 -> 636274.9463 | J23: ='Base year data'!F30 -> 94181.81085 | K23: ='Base year data'!G30 -> 100983.6486 | L23: ='Base year data'!I30 -> 1576215.93 | M23: ='Base year data'!J30 -> 102249.9588 | N23: ='Base year data'!K30 -> 325646.8095 | O23: ='Base year data'!L30 -> 2316167.549 | P23: ='Base year data'!M30 -> 515782.9741 | Q23: 5703892.242 | R23: 156.3517018 | S23: 2733.895482 | T23: 404.6728992 | U23: 433.8984934 | V23: 6772.558993 | W23: 439.3394743 | X23: 1399.213259 | Y23: 9951.92414 | Z23: 2216.175179 | AA23: 24508.02962
B24: 3_Elderly (70+) | C24: 5_Dementia | D24: 70+_Dementia | E24: 21_70+_Dementia | F24: Year 0 | G24: ='Base year data'!O31 -> 694.194271 | H24: ='Base year data'!D31 -> 101974.3369 | I24: ='Base year data'!E31 -> 2478932.54 | J24: ='Base year data'!F31 -> 185988.4686 | K24: ='Base year data'!G31 -> 228933.5721 | L24: ='Base year data'!I31 -> 2141295.296 | M24: ='Base year data'!J31 -> 274250.0954 | N24: ='Base year data'!K31 -> 687542.8276 | O24: ='Base year data'!L31 -> 7931783.345 | P24: ='Base year data'!M31 -> 2674781.408 | Q24: 16705481.89 | R24: 146.8959644 | S24: 3570.949292 | T24: 267.9199128 | U24: 329.7831482 | V24: 3084.576445 | W24: 395.0624586 | X24: 990.4184698 | Y24: 11425.88419 | Z24: 3853.073297 | AA24: 24064.56318
B25: 3_Elderly (70+) | C25: 6_Cancer | D25: 70+_Cancer | E25: 22_70+_Cancer | F25: Year 0 | G25: ='Base year data'!O32 -> 2038.889146 | H25: ='Base year data'!D32 -> 199436.5883 | I25: ='Base year data'!E32 -> 3928207.261 | J25: ='Base year data'!F32 -> 3087982.397 | K25: ='Base year data'!G32 -> 1631728.862 | L25: ='Base year data'!I32 -> 471098.4326 | M25: ='Base year data'!J32 -> 895776.6428 | N25: ='Base year data'!K32 -> 1234832.476 | O25: ='Base year data'!L32 -> 3110840.842 | P25: ='Base year data'!M32 -> 1082987.493 | Q25: 15642890.99 | R25: 97.816298 | S25: 1926.64092 | T25: 1514.541584 | U25: 800.3028827 | V25: 231.0564228 | W25: 439.3454369 | X25: 605.6398297 | Y25: 1525.752809 | Z25: 531.1654608 | AA25: 7672.261643
B26: 3_Elderly (70+) | C26: 7_LearnDis | D26: 70+_LearnDis | E26: 23_70+_LearnDis | F26: Year 0 | G26: ='Base year data'!O33 -> 21.84683319 | H26: ='Base year data'!D33 -> 4184.874255 | I26: ='Base year data'!E33 -> 69953.78109 | J26: ='Base year data'!F33 -> 6697.66572 | K26: ='Base year data'!G33 -> 10879.75461 | L26: ='Base year data'!I33 -> 26522.20673 | M26: ='Base year data'!J33 -> 10060.86166 | N26: ='Base year data'!K33 -> 21586.88468 | O26: ='Base year data'!L33 -> 711830.3084 | P26: ='Base year data'!M33 -> 504607.0075 | Q26: 1366323.345 | R26: 191.5551887 | S26: 3202.010126 | T26: 306.5737566 | U26: 498.0014503 | V26: 1214.006923 | W26: 460.5180792 | X26: 988.1013186 | Y26: 32582.7685 | Z26: 23097.48983 | AA26: 62541.02518
B27: 3_Elderly (70+) | C27: 8_PhysDis | D27: 70+_PhysDis | E27: 24_70+_PhysDis | F27: Year 0 | G27: ='Base year data'!O34 -> 600.1191321 | H27: ='Base year data'!D34 -> 152671.9899 | I27: ='Base year data'!E34 -> 2348952.173 | J27: ='Base year data'!F34 -> 609479.6795 | K27: ='Base year data'!G34 -> 480444.9661 | L27: ='Base year data'!I34 -> 574601.899 | M27: ='Base year data'!J34 -> 326811.353 | N27: ='Base year data'!K34 -> 643990.5237 | O27: ='Base year data'!L34 -> 10661858.34 | P27: ='Base year data'!M34 -> 4283325.163 | Q27: 20082136.09 | R27: 254.4028039 | S27: 3914.143121 | T27: 1015.597815 | U27: 800.5826517 | V27: 957.4797207 | W27: 544.5774606 | X27: 1073.104471 | Y27: 17766.23635 | Z27: 7137.458104 | AA27: 33463.5825
B28: 1_Child | C28: 1_Mostly healthy | D28: Child_Mostly healthy | E28: 1_Child_Mostly healthy | F28: Year 1 | G28: =INDEX('Master Output Table'!$C$40:$J$807,MATCH($D28&G$1,'Master Output Table'!$C$40:$C$807,0),MATCH($F28,'Master Output Table'!$C$38:$J$38,0)) -> 44385.72724 | H28: =INDEX('Master Output Table'!$C$40:$J$807,MATCH($D28&"_"&H$2&"_"&H$1,'Master Output Table'!$C$40:$C$807,0),MATCH($F28,'Master Output Table'!$C$38:$J$38,0)) -> 1903998.657 | I28: =INDEX('Master Output Table'!$C$40:$J$807,MATCH($D28&"_"&I$2&"_"&I$1,'Master Output Table'!$C$40:$C$807,0),MATCH($F28,'Master Output Table'!$C$38:$J$38,0)) -> 9259579.174 | J28: =INDEX('Master Output Table'!$C$40:$J$807,MATCH($D28&"_"&J$2&"_"&J$1,'Master Output Table'!$C$40:$C$807,0),MATCH($F28,'Master Output Table'!$C$38:$J$38,0)) -> 3362134.72 | K28: =INDEX('Master Output Table'!$C$40:$J$807,MATCH($D28&"_"&K$2&"_"&K$1,'Master Output Table'!$C$40:$C$807,0),MATCH($F28,'Master Output Table'!$C$38:$J$38,0)) -> 4807072.804 | L28: =INDEX('Master Output Table'!$C$40:$J$807,MATCH($D28&"_"&L$2&"_"&L$1,'Master Output Table'!$C$40:$C$807,0),MATCH($F28,'Master Output Table'!$C$38:$J$38,0)) -> 2732920.549 | M28: =INDEX('Master Output Table'!$C$40:$J$807,MATCH($D28&"_"&M$2&"_"&M$1,'Master Output Table'!$C$40:$C$807,0),MATCH($F28,'Master Output Table'!$C$38:$J$38,0)) -> 4492585.824 | N28: =INDEX('Master Output Table'!$C$40:$J$807,MATCH($D28&"_"&N$2&"_"&N$1,'Master Output Table'!$C$40:$C$807,0),MATCH($F28,'Master Output Table'!$C$38:$J$38,0)) -> 1406764.734 | O28: =INDEX('Master Output Table'!$C$40:$J$807,MATCH($D28&"_"&O$2&"_"&O$1,'Master Output Table'!$C$40:$C$807,0),MATCH($F28,'Master Output Table'!$C$38:$J$38,0)) -> 439184.4598 | P28: =INDEX('Master Output Table'!$C$40:$J$807,MATCH($D28&"_"&P$2&"_"&P$1,'Master Output Table'!$C$40:$C$807,0),MATCH($F28,'Master Output Table'!$C$38:$J$38,0)) -> 7697779.189 | Q28: 36102020.11 | R28: =IFERROR(H28/$G28,0) -> 42.89664214 | S28: =IFERROR(I28/$G28,0) -> 208.6161419 | T28: =IFERROR(J28/$G28,0) -> 75.74810484 | U28: =IFERROR(K28/$G28,0) -> 108.3022202 | V28: =IFERROR(L28/$G28,0) -> 61.57205748 | W28: =IFERROR(M28/$G28,0) -> 101.2169024 | X28: =IFERROR(N28/$G28,0) -> 31.69407874 | Y28: =IFERROR(O28/$G28,0) -> 9.89472263 | Z28: =IFERROR(P28/$G28,0) -> 173.4291554 | AA28: =SUM(R28:Z28) -> 813.3700258
B29: 1_Child | C29: 2_1LTC | D29: Child_1LTC | E29: 2_Child_1LTC | F29: Year 1 | G29: =INDEX('Master Output Table'!$C$40:$J$807,MATCH($D29&G$1,'Master Output Table'!$C$40:$C$807,0),MATCH($F29,'Master Output Table'!$C$38:$J$38,0)) -> 1955.432014 | H29: =INDEX('Master Output Table'!$C$40:$J$807,MATCH($D29&"_"&H$2&"_"&H$1,'Master Output Table'!$C$40:$C$807,0),MATCH($F29,'Master Output Table'!$C$38:$J$38,0)) -> 129084.6384 | I29: =INDEX('Master Output Table'!$C$40:$J$807,MATCH($D29&"_"&I$2&"_"&I$1,'Master Output Table'!$C$40:$C$807,0),MATCH($F29,'Master Output Table'!$C$38:$J$38,0)) -> 482119.2143 | J29: =INDEX('Master Output Table'!$C$40:$J$807,MATCH($D29&"_"&J$2&"_"&J$1,'Master Output Table'!$C$40:$C$807,0),MATCH($F29,'Master Output Table'!$C$38:$J$38,0)) -> 248401.5261 | K29: =INDEX('Master Output Table'!$C$40:$J$807,MATCH($D29&"_"&K$2&"_"&K$1,'Master Output Table'!$C$40:$C$807,0),MATCH($F29,'Master Output Table'!$C$38:$J$38,0)) -> 393949.8262 | L29: =INDEX('Master Output Table'!$C$40:$J$807,MATCH($D29&"_"&L$2&"_"&L$1,'Master Output Table'!$C$40:$C$807,0),MATCH($F29,'Master Output Table'!$C$38:$J$38,0)) -> 359391.1268 | M29: =INDEX('Master Output Table'!$C$40:$J$807,MATCH($D29&"_"&M$2&"_"&M$1,'Master Output Table'!$C$40:$C$807,0),MATCH($F29,'Master Output Table'!$C$38:$J$38,0)) -> 322876.419 | N29: =INDEX('Master Output Table'!$C$40:$J$807,MATCH($D29&"_"&N$2&"_"&N$1,'Master Output Table'!$C$40:$C$807,0),MATCH($F29,'Master Output Table'!$C$38:$J$38,0)) -> 335495.478 | O29: =INDEX('Master Output Table'!$C$40:$J$807,MATCH($D29&"_"&O$2&"_"&O$1,'Master Output Table'!$C$40:$C$807,0),MATCH($F29,'Master Output Table'!$C$38:$J$38,0)) -> 9889.135846 | P29: =INDEX('Master Output Table'!$C$40:$J$807,MATCH($D29&"_"&P$2&"_"&P$1,'Master Output Table'!$C$40:$C$807,0),MATCH($F29,'Master Output Table'!$C$38:$J$38,0)) -> 250611.3471 | Q29: 2531818.712 | R29: 66.01336044 | S29: 246.5538105 | T29: 127.0315328 | U29: 201.4643431 | V29: 183.7911644 | W29: 165.1176909 | X29: 171.5710265 | Y29: 5.057263957 | Z29: 128.1616263 | AA29: 1294.761819
B30: 1_Child | C30: 3_2+LTC | D30: Child_2+LTC | E30: 3_Child_2+LTC | F30: Year 1 | G30: =INDEX('Master Output Table'!$C$40:$J$807,MATCH($D30&G$1,'Master Output Table'!$C$40:$C$807,0),MATCH($F30,'Master Output Table'!$C$38:$J$38,0)) -> 39.37111438 | H30: =INDEX('Master Output Table'!$C$40:$J$807,MATCH($D30&"_"&H$2&"_"&H$1,'Master Output Table'!$C$40:$C$807,0),MATCH($F30,'Master Output Table'!$C$38:$J$38,0)) -> 3137.055757 | I30: =INDEX('Master Output Table'!$C$40:$J$807,MATCH($D30&"_"&I$2&"_"&I$1,'Master Output Table'!$C$40:$C$807,0),MATCH($F30,'Master Output Table'!$C$38:$J$38,0)) -> 47810.17348 | J30: =INDEX('Master Output Table'!$C$40:$J$807,MATCH($D30&"_"&J$2&"_"&J$1,'Master Output Table'!$C$40:$C$807,0),MATCH($F30,'Master Output Table'!$C$38:$J$38,0)) -> 16437.71235 | K30: =INDEX('Master Output Table'!$C$40:$J$807,MATCH($D30&"_"&K$2&"_"&K$1,'Master Output Table'!$C$40:$C$807,0),MATCH($F30,'Master Output Table'!$C$38:$J$38,0)) -> 31527.32711 | L30: =INDEX('Master Output Table'!$C$40:$J$807,MATCH($D30&"_"&L$2&"_"&L$1,'Master Output Table'!$C$40:$C$807,0),MATCH($F30,'Master Output Table'!$C$38:$J$38,0)) -> 0 | M30: =INDEX('Master Output Table'!$C$40:$J$807,MATCH($D30&"_"&M$2&"_"&M$1,'Master Output Table'!$C$40:$C$807,0),MATCH($F30,'Master Output Table'!$C$38:$J$38,0)) -> 8902.374262 | N30: =INDEX('Master Output Table'!$C$40:$J$807,MATCH($D30&"_"&N$2&"_"&N$1,'Master Output Table'!$C$40:$C$807,0),MATCH($F30,'Master Output Table'!$C$38:$J$38,0)) -> 14448.02056 | O30: =INDEX('Master Output Table'!$C$40:$J$807,MATCH($D30&"_"&O$2&"_"&O$1,'Master Output Table'!$C$40:$C$807,0),MATCH($F30,'Master Output Table'!$C$38:$J$38,0)) -> 0 | P30: =INDEX('Master Output Table'!$C$40:$J$807,MATCH($D30&"_"&P$2&"_"&P$1,'Master Output Table'!$C$40:$C$807,0),MATCH($F30,'Master Output Table'!$C$38:$J$38,0)) -> 14575.31674 | Q30: 136837.9803 | R30: 79.67912025 | S30: 1214.346463 | T30: 417.5069111 | U30: 800.773044 | V30: 0 | W30: 226.1143582 | X30: 366.9700689 | Y30: 0 | Z30: 370.2033069 | AA30: 3475.593272
B31: 1_Child | C31: 4_SEMI | D31: Child_SEMI | E31: 4_Child_SEMI | F31: Year 1 | G31: =INDEX('Master Output Table'!$C$40:$J$807,MATCH($D31&G$1,'Master Output Table'!$C$40:$C$807,0),MATCH($F31,'Master Output Table'!$C$38:$J$38,0)) -> 67.8812317 | H31: =INDEX('Master Output Table'!$C$40:$J$807,MATCH($D31&"_"&H$2&"_"&H$1,'Master Output Table'!$C$40:$C$807,0),MATCH($F31,'Master Output Table'!$C$38:$J$38,0)) -> 5074.454621 | I31: =INDEX('Master Output Table'!$C$40:$J$807,MATCH($D31&"_"&I$2&"_"&I$1,'Master Output Table'!$C$40:$C$807,0),MATCH($F31,'Master Output Table'!$C$38:$J$38,0)) -> 56606.50695 | J31: =INDEX('Master Output Table'!$C$40:$J$807,MATCH($D31&"_"&J$2&"_"&J$1,'Master Output Table'!$C$40:$C$807,0),MATCH($F31,'Master Output Table'!$C$38:$J$38,0)) -> 15439.12365 | K31: =INDEX('Master Output Table'!$C$40:$J$807,MATCH($D31&"_"&K$2&"_"&K$1,'Master Output Table'!$C$40:$C$807,0),MATCH($F31,'Master Output Table'!$C$38:$J$38,0)) -> 26305.83235 | L31: =INDEX('Master Output Table'!$C$40:$J$807,MATCH($D31&"_"&L$2&"_"&L$1,'Master Output Table'!$C$40:$C$807,0),MATCH($F31,'Master Output Table'!$C$38:$J$38,0)) -> 210195.0977 | M31: =INDEX('Master Output Table'!$C$40:$J$807,MATCH($D31&"_"&M$2&"_"&M$1,'Master Output Table'!$C$40:$C$807,0),MATCH($F31,'Master Output Table'!$C$38:$J$38,0)) -> 8026.714519 | N31: =INDEX('Master Output Table'!$C$40:$J$807,MATCH($D31&"_"&N$2&"_"&N$1,'Master Output Table'!$C$40:$C$807,0),MATCH($F31,'Master Output Table'!$C$38:$J$38,0)) -> 8420.470979 | O31: =INDEX('Master Output Table'!$C$40:$J$807,MATCH($D31&"_"&O$2&"_"&O$1,'Master Output Table'!$C$40:$C$807,0),MATCH($F31,'Master Output Table'!$C$38:$J$38,0)) -> 4424.408492 | P31: =INDEX('Master Output Table'!$C$40:$J$807,MATCH($D31&"_"&P$2&"_"&P$1,'Master Output Table'!$C$40:$C$807,0),MATCH($F31,'Master Output Table'!$C$38:$J$38,0)) -> 39.5403011 | Q31: 334532.1495 | R31: 74.75489901 | S31: 833.9051242 | T31: 227.4431867 | U31: 387.5273281 | V31: 3096.512724 | W31: 118.2464478 | X31: 124.0471154 | Y31: 65.17867136 | Z31: 0.5824923931 | AA31: 4928.197989
B32: 1_Child | C32: 5_Dementia | D32: Child_Dementia | E32: 5_Child_Dementia | F32: Year 1 | G32: =INDEX('Master Output Table'!$C$40:$J$807,MATCH($D32&G$1,'Master Output Table'!$C$40:$C$807,0),MATCH($F32,'Master Output Table'!$C$38:$J$38,0)) -> 0 | H32: =INDEX('Master Output Table'!$C$40:$J$807,MATCH($D32&"_"&H$2&"_"&H$1,'Master Output Table'!$C$40:$C$807,0),MATCH($F32,'Master Output Table'!$C$38:$J$38,0)) -> 0 | I32: =INDEX('Master Output Table'!$C$40:$J$807,MATCH($D32&"_"&I$2&"_"&I$1,'Master Output Table'!$C$40:$C$807,0),MATCH($F32,'Master Output Table'!$C$38:$J$38,0)) -> 0 | J32: =INDEX('Master Output Table'!$C$40:$J$807,MATCH($D32&"_"&J$2&"_"&J$1,'Master Output Table'!$C$40:$C$807,0),MATCH($F32,'Master Output Table'!$C$38:$J$38,0)) -> 0 | K32: =INDEX('Master Output Table'!$C$40:$J$807,MATCH($D32&"_"&K$2&"_"&K$1,'Master Output Table'!$C$40:$C$807,0),MATCH($F32,'Master Output Table'!$C$38:$J$38,0)) -> 0 | L32: =INDEX('Master Output Table'!$C$40:$J$807,MATCH($D32&"_"&L$2&"_"&L$1,'Master Output Table'!$C$40:$C$807,0),MATCH($F32,'Master Output Table'!$C$38:$J$38,0)) -> 0 | M32: =INDEX('Master Output Table'!$C$40:$J$807,MATCH($D32&"_"&M$2&"_"&M$1,'Master Output Table'!$C$40:$C$807,0),MATCH($F32,'Master Output Table'!$C$38:$J$38,0)) -> 0 | N32: =INDEX('Master Output Table'!$C$40:$J$807,MATCH($D32&"_"&N$2&"_"&N$1,'Master Output Table'!$C$40:$C$807,0),MATCH($F32,'Master Output Table'!$C$38:$J$38,0)) -> 0 | O32: =INDEX('Master Output Table'!$C$40:$J$807,MATCH($D32&"_"&O$2&"_"&O$1,'Master Output Table'!$C$40:$C$807,0),MATCH($F32,'Master Output Table'!$C$38:$J$38,0)) -> 0 | P32: =INDEX('Master Output Table'!$C$40:$J$807,MATCH($D32&"_"&P$2&"_"&P$1,'Master Output Table'!$C$40:$C$807,0),MATCH($F32,'Master Output Table'!$C$38:$J$38,0)) -> 0 | Q32: 0 | R32: 0 | S32: 0 | T32: 0 | U32: 0 | V32: 0 | W32: 0 | X32: 0 | Y32: 0 | Z32: 0 | AA32: 0
B33: 1_Child | C33: 6_Cancer | D33: Child_Cancer | E33: 6_Child_Cancer | F33: Year 1 | G33: =INDEX('Master Output Table'!$C$40:$J$807,MATCH($D33&G$1,'Master Output Table'!$C$40:$C$807,0),MATCH($F33,'Master Output Table'!$C$38:$J$38,0)) -> 18.10166179 | H33: =INDEX('Master Output Table'!$C$40:$J$807,MATCH($D33&"_"&H$2&"_"&H$1,'Master Output Table'!$C$40:$C$807,0),MATCH($F33,'Master Output Table'!$C$38:$J$38,0)) -> 2925.542152 | I33: =INDEX('Master Output Table'!$C$40:$J$807,MATCH($D33&"_"&I$2&"_"&I$1,'Master Output Table'!$C$40:$C$807,0),MATCH($F33,'Master Output Table'!$C$38:$J$38,0)) -> 80110.29682 | J33: =INDEX('Master Output Table'!$C$40:$J$807,MATCH($D33&"_"&J$2&"_"&J$1,'Master Output Table'!$C$40:$C$807,0),MATCH($F33,'Master Output Table'!$C$38:$J$38,0)) -> 60418.61312 | K33: =INDEX('Master Output Table'!$C$40:$J$807,MATCH($D33&"_"&K$2&"_"&K$1,'Master Output Table'!$C$40:$C$807,0),MATCH($F33,'Master Output Table'!$C$38:$J$38,0)) -> 14578.41243 | L33: =INDEX('Master Output Table'!$C$40:$J$807,MATCH($D33&"_"&L$2&"_"&L$1,'Master Output Table'!$C$40:$C$807,0),MATCH($F33,'Master Output Table'!$C$38:$J$38,0)) -> 6947.319056 | M33: =INDEX('Master Output Table'!$C$40:$J$807,MATCH($D33&"_"&M$2&"_"&M$1,'Master Output Table'!$C$40:$C$807,0),MATCH($F33,'Master Output Table'!$C$38:$J$38,0)) -> 4236.072829 | N33: =INDEX('Master Output Table'!$C$40:$J$807,MATCH($D33&"_"&N$2&"_"&N$1,'Master Output Table'!$C$40:$C$807,0),MATCH($F33,'Master Output Table'!$C$38:$J$38,0)) -> 2045.497964 | O33: =INDEX('Master Output Table'!$C$40:$J$807,MATCH($D33&"_"&O$2&"_"&O$1,'Master Output Table'!$C$40:$C$807,0),MATCH($F33,'Master Output Table'!$C$38:$J$38,0)) -> 2927.123347 | P33: =INDEX('Master Output Table'!$C$40:$J$807,MATCH($D33&"_"&P$2&"_"&P$1,'Master Output Table'!$C$40:$C$807,0),MATCH($F33,'Master Output Table'!$C$38:$J$38,0)) -> 34602.54969 | Q33: 208791.4274 | R33: 161.6173248 | S33: 4425.576931 | T33: 3337.738481 | U33: 805.3632093 | V33: 383.7945454 | W33: 234.0156875 | X33: 113.0005625 | Y33: 161.7046756 | Z33: 1911.567573 | AA33: 11534.37899
B34: 1_Child | C34: 7_LearnDis | D34: Child_LearnDis | E34: 7_Child_LearnDis | F34: Year 1 | G34: =INDEX('Master Output Table'!$C$40:$J$807,MATCH($D34&G$1,'Master Output Table'!$C$40:$C$807,0),MATCH($F34,'Master Output Table'!$C$38:$J$38,0)) -> 0 | H34: =INDEX('Master Output Table'!$C$40:$J$807,MATCH($D34&"_"&H$2&"_"&H$1,'Master Output Table'!$C$40:$C$807,0),MATCH($F34,'Master Output Table'!$C$38:$J$38,0)) -> 0 | I34: =INDEX('Master Output Table'!$C$40:$J$807,MATCH($D34&"_"&I$2&"_"&I$1,'Master Output Table'!$C$40:$C$807,0),MATCH($F34,'Master Output Table'!$C$38:$J$38,0)) -> 0 | J34: =INDEX('Master Output Table'!$C$40:$J$807,MATCH($D34&"_"&J$2&"_"&J$1,'Master Output Table'!$C$40:$C$807,0),MATCH($F34,'Master Output Table'!$C$38:$J$38,0)) -> 0 | K34: =INDEX('Master Output Table'!$C$40:$J$807,MATCH($D34&"_"&K$2&"_"&K$1,'Master Output Table'!$C$40:$C$807,0),MATCH($F34,'Master Output Table'!$C$38:$J$38,0)) -> 0 | L34: =INDEX('Master Output Table'!$C$40:$J$807,MATCH($D34&"_"&L$2&"_"&L$1,'Master Output Table'!$C$40:$C$807,0),MATCH($F34,'Master Output Table'!$C$38:$J$38,0)) -> 0 | M34: =INDEX('Master Output Table'!$C$40:$J$807,MATCH($D34&"_"&M$2&"_"&M$1,'Master Output Table'!$C$40:$C$807,0),MATCH($F34,'Master Output Table'!$C$38:$J$38,0)) -> 0 | N34: =INDEX('Master Output Table'!$C$40:$J$807,MATCH($D34&"_"&N$2&"_"&N$1,'Master Output Table'!$C$40:$C$807,0),MATCH($F34,'Master Output Table'!$C$38:$J$38,0)) -> 0 | O34: =INDEX('Master Output Table'!$C$40:$J$807,MATCH($D34&"_"&O$2&"_"&O$1,'Master Output Table'!$C$40:$C$807,0),MATCH($F34,'Master Output Table'!$C$38:$J$38,0)) -> 0 | P34: =INDEX('Master Output Table'!$C$40:$J$807,MATCH($D34&"_"&P$2&"_"&P$1,'Master Output Table'!$C$40:$C$807,0),MATCH($F34,'Master Output Table'!$C$38:$J$38,0)) -> 0 | Q34: 0 | R34: 0 | S34: 0 | T34: 0 | U34: 0 | V34: 0 | W34: 0 | X34: 0 | Y34: 0 | Z34: 0 | AA34: 0
B35: 1_Child | C35: 8_PhysDis | D35: Child_PhysDis | E35: 8_Child_PhysDis | F35: Year 1 | G35: =INDEX('Master Output Table'!$C$40:$J$807,MATCH($D35&G$1,'Master Output Table'!$C$40:$C$807,0),MATCH($F35,'Master Output Table'!$C$38:$J$38,0)) -> 0 | H35: =INDEX('Master Output Table'!$C$40:$J$807,MATCH($D35&"_"&H$2&"_"&H$1,'Master Output Table'!$C$40:$C$807,0),MATCH($F35,'Master Output Table'!$C$38:$J$38,0)) -> 0 | I35: =INDEX('Master Output Table'!$C$40:$J$807,MATCH($D35&"_"&I$2&"_"&I$1,'Master Output Table'!$C$40:$C$807,0),MATCH($F35,'Master Output Table'!$C$38:$J$38,0)) -> 0 | J35: =INDEX('Master Output Table'!$C$40:$J$807,MATCH($D35&"_"&J$2&"_"&J$1,'Master Output Table'!$C$40:$C$807,0),MATCH($F35,'Master Output Table'!$C$38:$J$38,0)) -> 0 | K35: =INDEX('Master Output Table'!$C$40:$J$807,MATCH($D35&"_"&K$2&"_"&K$1,'Master Output Table'!$C$40:$C$807,0),MATCH($F35,'Master Output Table'!$C$38:$J$38,0)) -> 0 | L35: =INDEX('Master Output Table'!$C$40:$J$807,MATCH($D35&"_"&L$2&"_"&L$1,'Master Output Table'!$C$40:$C$807,0),MATCH($F35,'Master Output Table'!$C$38:$J$38,0)) -> 0 | M35: =INDEX('Master Output Table'!$C$40:$J$807,MATCH($D35&"_"&M$2&"_"&M$1,'Master Output Table'!$C$40:$C$807,0),MATCH($F35,'Master Output Table'!$C$38:$J$38,0)) -> 0 | N35: =INDEX('Master Output Table'!$C$40:$J$807,MATCH($D35&"_"&N$2&"_"&N$1,'Master Output Table'!$C$40:$C$807,0),MATCH($F35,'Master Output Table'!$C$38:$J$38,0)) -> 0 | O35: =INDEX('Master Output Table'!$C$40:$J$807,MATCH($D35&"_"&O$2&"_"&O$1,'Master Output Table'!$C$40:$C$807,0),MATCH($F35,'Master Output Table'!$C$38:$J$38,0)) -> 0 | P35: =INDEX('Master Output Table'!$C$40:$J$807,MATCH($D35&"_"&P$2&"_"&P$1,'Master Output Table'!$C$40:$C$807,0),MATCH($F35,'Master Output Table'!$C$38:$J$38,0)) -> 0 | Q35: 0 | R35: 0 | S35: 0 | T35: 0 | U35: 0 | V35: 0 | W35: 0 | X35: 0 | Y35: 0 | Z35: 0 | AA35: 0
B36: 2_Adult (16-69) | C36: 1_Mostly healthy | D36: 16-69_Mostly healthy | E36: 9_16-69_Mostly healthy | F36: Year 1 | G36: =INDEX('Master Output Table'!$C$40:$J$807,MATCH($D36&G$1,'Master Output Table'!$C$40:$C$807,0),MATCH($F36,'Master Output Table'!$C$38:$J$38,0)) -> 148328.9179 | H36: =INDEX('Master Output Table'!$C$40:$J$807,MATCH($D36&"_"&H$2&"_"&H$1,'Master Output Table'!$C$40:$C$807,0),MATCH($F36,'Master Output Table'!$C$38:$J$38,0)) -> 3917507.249 | I36: =INDEX('Master Output Table'!$C$40:$J$807,MATCH($D36&"_"&I$2&"_"&I$1,'Master Output Table'!$C$40:$C$807,0),MATCH($F36,'Master Output Table'!$C$38:$J$38,0)) -> 22458578.72 | J36: =INDEX('Master Output Table'!$C$40:$J$807,MATCH($D36&"_"&J$2&"_"&J$1,'Master Output Table'!$C$40:$C$807,0),MATCH($F36,'Master Output Table'!$C$38:$J$38,0)) -> 16353228.15 | K36: =INDEX('Master Output Table'!$C$40:$J$807,MATCH($D36&"_"&K$2&"_"&K$1,'Master Output Table'!$C$40:$C$807,0),MATCH($F36,'Master Output Table'!$C$38:$J$38,0)) -> 18545015.55 | L36: =INDEX('Master Output Table'!$C$40:$J$807,MATCH($D36&"_"&L$2&"_"&L$1,'Master Output Table'!$C$40:$C$807,0),MATCH($F36,'Master Output Table'!$C$38:$J$38,0)) -> 11165515.03 | M36: =INDEX('Master Output Table'!$C$40:$J$807,MATCH($D36&"_"&M$2&"_"&M$1,'Master Output Table'!$C$40:$C$807,0),MATCH($F36,'Master Output Table'!$C$38:$J$38,0)) -> 16230911.28 | N36: =INDEX('Master Output Table'!$C$40:$J$807,MATCH($D36&"_"&N$2&"_"&N$1,'Master Output Table'!$C$40:$C$807,0),MATCH($F36,'Master Output Table'!$C$38:$J$38,0)) -> 4524649.842 | O36: =INDEX('Master Output Table'!$C$40:$J$807,MATCH($D36&"_"&O$2&"_"&O$1,'Master Output Table'!$C$40:$C$807,0),MATCH($F36,'Master Output Table'!$C$38:$J$38,0)) -> 9221425.264 | P36: =INDEX('Master Output Table'!$C$40:$J$807,MATCH($D36&"_"&P$2&"_"&P$1,'Master Output Table'!$C$40:$C$807,0),MATCH($F36,'Master Output Table'!$C$38:$J$38,0)) -> 9058255.589 | Q36: 111475086.7 | R36: 26.4109474 | S36: 151.4106557 | T36: 110.2497637 | U36: 125.0262984 | V36: 75.27537576 | W36: 109.4251311 | X36: 30.50416538 | Y36: 62.16876247 | Z36: 61.06870944 | AA36: 751.5398094
B37: 2_Adult (16-69) | C37: 2_1LTC | D37: 16-69_1LTC | E37: 10_16-69_1LTC | F37: Year 1 | G37: =INDEX('Master Output Table'!$C$40:$J$807,MATCH($D37&G$1,'Master Output Table'!$C$40:$C$807,0),MATCH($F37,'Master Output Table'!$C$38:$J$38,0)) -> 23065.96897 | H37: =INDEX('Master Output Table'!$C$40:$J$807,MATCH($D37&"_"&H$2&"_"&H$1,'Master Output Table'!$C$40:$C$807,0),MATCH($F37,'Master Output Table'!$C$38:$J$38,0)) -> 1108762.295 | I37: =INDEX('Master Output Table'!$C$40:$J$807,MATCH($D37&"_"&I$2&"_"&I$1,'Master Output Table'!$C$40:$C$807,0),MATCH($F37,'Master Output Table'!$C$38:$J$38,0)) -> 6160248.331 | J37: =INDEX('Master Output Table'!$C$40:$J$807,MATCH($D37&"_"&J$2&"_"&J$1,'Master Output Table'!$C$40:$C$807,0),MATCH($F37,'Master Output Table'!$C$38:$J$38,0)) -> 6634683.736 | K37: =INDEX('Master Output Table'!$C$40:$J$807,MATCH($D37&"_"&K$2&"_"&K$1,'Master Output Table'!$C$40:$C$807,0),MATCH($F37,'Master Output Table'!$C$38:$J$38,0)) -> 6072869.126 | L37: =INDEX('Master Output Table'!$C$40:$J$807,MATCH($D37&"_"&L$2&"_"&L$1,'Master Output Table'!$C$40:$C$807,0),MATCH($F37,'Master Output Table'!$C$38:$J$38,0)) -> 5050101.101 | M37: =INDEX('Master Output Table'!$C$40:$J$807,MATCH($D37&"_"&M$2&"_"&M$1,'Master Output Table'!$C$40:$C$807,0),MATCH($F37,'Master Output Table'!$C$38:$J$38,0)) -> 5853319.746 | N37: =INDEX('Master Output Table'!$C$40:$J$807,MATCH($D37&"_"&N$2&"_"&N$1,'Master Output Table'!$C$40:$C$807,0),MATCH($F37,'Master Output Table'!$C$38:$J$38,0)) -> 4401769.607 | O37: =INDEX('Master Output Table'!$C$40:$J$807,MATCH($D37&"_"&O$2&"_"&O$1,'Master Output Table'!$C$40:$C$807,0),MATCH($F37,'Master Output Table'!$C$38:$J$38,0)) -> 3642308.357 | P37: =INDEX('Master Output Table'!$C$40:$J$807,MATCH($D37&"_"&P$2&"_"&P$1,'Master Output Table'!$C$40:$C$807,0),MATCH($F37,'Master Output Table'!$C$38:$J$38,0)) -> 3084684.209 | Q37: 42008746.51 | R37: 48.06918351 | S37: 267.0708671 | T37: 287.6394981 | U37: 263.2826367 | V37: 218.9416412 | W37: 253.764312 | X37: 190.8339343 | Y37: 157.9083178 | Z37: 133.7331293 | AA37: 1821.24352
B38: 2_Adult (16-69) | C38: 3_2+LTC | D38: 16-69_2+LTC | E38: 11_16-69_2+LTC | F38: Year 1 | G38: =INDEX('Master Output Table'!$C$40:$J$807,MATCH($D38&G$1,'Master Output Table'!$C$40:$C$807,0),MATCH($F38,'Master Output Table'!$C$38:$J$38,0)) -> 10533.98342 | H38: =INDEX('Master Output Table'!$C$40:$J$807,MATCH($D38&"_"&H$2&"_"&H$1,'Master Output Table'!$C$40:$C$807,0),MATCH($F38,'Master Output Table'!$C$38:$J$38,0)) -> 735381.5308 | I38: =INDEX('Master Output Table'!$C$40:$J$807,MATCH($D38&"_"&I$2&"_"&I$1,'Master Output Table'!$C$40:$C$807,0),MATCH($F38,'Master Output Table'!$C$38:$J$38,0)) -> 5698925.927 | J38: =INDEX('Master Output Table'!$C$40:$J$807,MATCH($D38&"_"&J$2&"_"&J$1,'Master Output Table'!$C$40:$C$807,0),MATCH($F38,'Master Output Table'!$C$38:$J$38,0)) -> 5919314.544 | K38: =INDEX('Master Output Table'!$C$40:$J$807,MATCH($D38&"_"&K$2&"_"&K$1,'Master Output Table'!$C$40:$C$807,0),MATCH($F38,'Master Output Table'!$C$38:$J$38,0)) -> 5124822.905 | L38: =INDEX('Master Output Table'!$C$40:$J$807,MATCH($D38&"_"&L$2&"_"&L$1,'Master Output Table'!$C$40:$C$807,0),MATCH($F38,'Master Output Table'!$C$38:$J$38,0)) -> 2265718.308 | M38: =INDEX('Master Output Table'!$C$40:$J$807,MATCH($D38&"_"&M$2&"_"&M$1,'Master Output Table'!$C$40:$C$807,0),MATCH($F38,'Master Output Table'!$C$38:$J$38,0)) -> 4272261.028 | N38: =INDEX('Master Output Table'!$C$40:$J$807,MATCH($D38&"_"&N$2&"_"&N$1,'Master Output Table'!$C$40:$C$807,0),MATCH($F38,'Master Output Table'!$C$38:$J$38,0)) -> 5635384.489 | O38: =INDEX('Master Output Table'!$C$40:$J$807,MATCH($D38&"_"&O$2&"_"&O$1,'Master Output Table'!$C$40:$C$807,0),MATCH($F38,'Master Output Table'!$C$38:$J$38,0)) -> 4386975.436 | P38: =INDEX('Master Output Table'!$C$40:$J$807,MATCH($D38&"_"&P$2&"_"&P$1,'Master Output Table'!$C$40:$C$807,0),MATCH($F38,'Master Output Table'!$C$38:$J$38,0)) -> 3585553.889 | Q38: 37624338.06 | R38: 69.81039382 | S38: 541.0038825 | T38: 561.9255612 | U38: 486.5037946 | V38: 215.0865649 | W38: 405.5693709 | X38: 534.9718398 | Y38: 416.4593072 | Z38: 340.3796785 | AA38: 3571.710393
B39: 2_Adult (16-69) | C39: 4_SEMI | D39: 16-69_SEMI | E39: 12_16-69_SEMI | F39: Year 1 | G39: =INDEX('Master Output Table'!$C$40:$J$807,MATCH($D39&G$1,'Master Output Table'!$C$40:$C$807,0),MATCH($F39,'Master Output Table'!$C$38:$J$38,0)) -> 2446.53322 | H39: =INDEX('Master Output Table'!$C$40:$J$807,MATCH($D39&"_"&H$2&"_"&H$1,'Master Output Table'!$C$40:$C$807,0),MATCH($F39,'Master Output Table'!$C$38:$J$38,0)) -> 274393.4918 | I39: =INDEX('Master Output Table'!$C$40:$J$807,MATCH($D39&"_"&I$2&"_"&I$1,'Master Output Table'!$C$40:$C$807,0),MATCH($F39,'Master Output Table'!$C$38:$J$38,0)) -> 1738139.168 | J39: =INDEX('Master Output Table'!$C$40:$J$807,MATCH($D39&"_"&J$2&"_"&J$1,'Master Output Table'!$C$40:$C$807,0),MATCH($F39,'Master Output Table'!$C$38:$J$38,0)) -> 673886.27 | K39: =INDEX('Master Output Table'!$C$40:$J$807,MATCH($D39&"_"&K$2&"_"&K$1,'Master Output Table'!$C$40:$C$807,0),MATCH($F39,'Master Output Table'!$C$38:$J$38,0)) -> 640648.9918 | L39: =INDEX('Master Output Table'!$C$40:$J$807,MATCH($D39&"_"&L$2&"_"&L$1,'Master Output Table'!$C$40:$C$807,0),MATCH($F39,'Master Output Table'!$C$38:$J$38,0)) -> 18568360.87 | M39: =INDEX('Master Output Table'!$C$40:$J$807,MATCH($D39&"_"&M$2&"_"&M$1,'Master Output Table'!$C$40:$C$807,0),MATCH($F39,'Master Output Table'!$C$38:$J$38,0)) -> 926339.3764 | N39: =INDEX('Master Output Table'!$C$40:$J$807,MATCH($D39&"_"&N$2&"_"&N$1,'Master Output Table'!$C$40:$C$807,0),MATCH($F39,'Master Output Table'!$C$38:$J$38,0)) -> 1889831.087 | O39: =INDEX('Master Output Table'!$C$40:$J$807,MATCH($D39&"_"&O$2&"_"&O$1,'Master Output Table'!$C$40:$C$807,0),MATCH($F39,'Master Output Table'!$C$38:$J$38,0)) -> 5104570.335 | P39: =INDEX('Master Output Table'!$C$40:$J$807,MATCH($D39&"_"&P$2&"_"&P$1,'Master Output Table'!$C$40:$C$807,0),MATCH($F39,'Master Output Table'!$C$38:$J$38,0)) -> 1313505.168 | Q39: 31129674.76 | R39: 112.1560458 | S39: 710.4498536 | T39: 275.445379 | U39: 261.8599194 | V39: 7589.662269 | W39: 378.6334757 | X39: 772.4526575 | Y39: 2086.450449 | Z39: 536.8842562 | AA39: 12723.99431
B40: 2_Adult (16-69) | C40: 5_Dementia | D40: 16-69_Dementia | E40: 13_16-69_Dementia | F40: Year 1 | G40: =INDEX('Master Output Table'!$C$40:$J$807,MATCH($D40&G$1,'Master Output Table'!$C$40:$C$807,0),MATCH($F40,'Master Output Table'!$C$38:$J$38,0)) -> 63.62778703 | H40: =INDEX('Master Output Table'!$C$40:$J$807,MATCH($D40&"_"&H$2&"_"&H$1,'Master Output Table'!$C$40:$C$807,0),MATCH($F40,'Master Output Table'!$C$38:$J$38,0)) -> 3490.149326 | I40: =INDEX('Master Output Table'!$C$40:$J$807,MATCH($D40&"_"&I$2&"_"&I$1,'Master Output Table'!$C$40:$C$807,0),MATCH($F40,'Master Output Table'!$C$38:$J$38,0)) -> 46663.74158 | J40: =INDEX('Master Output Table'!$C$40:$J$807,MATCH($D40&"_"&J$2&"_"&J$1,'Master Output Table'!$C$40:$C$807,0),MATCH($F40,'Master Output Table'!$C$38:$J$38,0)) -> 17586.09187 | K40: =INDEX('Master Output Table'!$C$40:$J$807,MATCH($D40&"_"&K$2&"_"&K$1,'Master Output Table'!$C$40:$C$807,0),MATCH($F40,'Master Output Table'!$C$38:$J$38,0)) -> 25635.63023 | L40: =INDEX('Master Output Table'!$C$40:$J$807,MATCH($D40&"_"&L$2&"_"&L$1,'Master Output Table'!$C$40:$C$807,0),MATCH($F40,'Master Output Table'!$C$38:$J$38,0)) -> 198976.6617 | M40: =INDEX('Master Output Table'!$C$40:$J$807,MATCH($D40&"_"&M$2&"_"&M$1,'Master Output Table'!$C$40:$C$807,0),MATCH($F40,'Master Output Table'!$C$38:$J$38,0)) -> 25459.41638 | N40: =INDEX('Master Output Table'!$C$40:$J$807,MATCH($D40&"_"&N$2&"_"&N$1,'Master Output Table'!$C$40:$C$807,0),MATCH($F40,'Master Output Table'!$C$38:$J$38,0)) -> 70210.80302 | O40: =INDEX('Master Output Table'!$C$40:$J$807,MATCH($D40&"_"&O$2&"_"&O$1,'Master Output Table'!$C$40:$C$807,0),MATCH($F40,'Master Output Table'!$C$38:$J$38,0)) -> 606329.6541 | P40: =INDEX('Master Output Table'!$C$40:$J$807,MATCH($D40&"_"&P$2&"_"&P$1,'Master Output Table'!$C$40:$C$807,0),MATCH($F40,'Master Output Table'!$C$38:$J$38,0)) -> 66505.69623 | Q40: 1060857.844 | R40: 54.85259646 | S40: 733.3862099 | T40: 276.3901228 | U40: 402.8999188 | V40: 3127.197581 | W40: 400.1304708 | X40: 1103.461338 | Y40: 9529.321738 | Z40: 1045.230383 | AA40: 16672.87036
B41: 2_Adult (16-69) | C41: 6_Cancer | D41: 16-69_Cancer | E41: 14_16-69_Cancer | F41: Year 1 | G41: =INDEX('Master Output Table'!$C$40:$J$807,MATCH($D41&G$1,'Master Output Table'!$C$40:$C$807,0),MATCH($F41,'Master Output Table'!$C$38:$J$38,0)) -> 2154.831182 | H41: =INDEX('Master Output Table'!$C$40:$J$807,MATCH($D41&"_"&H$2&"_"&H$1,'Master Output Table'!$C$40:$C$807,0),MATCH($F41,'Master Output Table'!$C$38:$J$38,0)) -> 146635.7231 | I41: =INDEX('Master Output Table'!$C$40:$J$807,MATCH($D41&"_"&I$2&"_"&I$1,'Master Output Table'!$C$40:$C$807,0),MATCH($F41,'Master Output Table'!$C$38:$J$38,0)) -> 1991201.413 | J41: =INDEX('Master Output Table'!$C$40:$J$807,MATCH($D41&"_"&J$2&"_"&J$1,'Master Output Table'!$C$40:$C$807,0),MATCH($F41,'Master Output Table'!$C$38:$J$38,0)) -> 4501083.444 | K41: =INDEX('Master Output Table'!$C$40:$J$807,MATCH($D41&"_"&K$2&"_"&K$1,'Master Output Table'!$C$40:$C$807,0),MATCH($F41,'Master Output Table'!$C$38:$J$38,0)) -> 1843409.42 | L41: =INDEX('Master Output Table'!$C$40:$J$807,MATCH($D41&"_"&L$2&"_"&L$1,'Master Output Table'!$C$40:$C$807,0),MATCH($F41,'Master Output Table'!$C$38:$J$38,0)) -> 466336.6117 | M41: =INDEX('Master Output Table'!$C$40:$J$807,MATCH($D41&"_"&M$2&"_"&M$1,'Master Output Table'!$C$40:$C$807,0),MATCH($F41,'Master Output Table'!$C$38:$J$38,0)) -> 711727.4111 | N41: =INDEX('Master Output Table'!$C$40:$J$807,MATCH($D41&"_"&N$2&"_"&N$1,'Master Output Table'!$C$40:$C$807,0),MATCH($F41,'Master Output Table'!$C$38:$J$38,0)) -> 722342.4273 | O41: =INDEX('Master Output Table'!$C$40:$J$807,MATCH($D41&"_"&O$2&"_"&O$1,'Master Output Table'!$C$40:$C$807,0),MATCH($F41,'Master Output Table'!$C$38:$J$38,0)) -> 599667.4727 | P41: =INDEX('Master Output Table'!$C$40:$J$807,MATCH($D41&"_"&P$2&"_"&P$1,'Master Output Table'!$C$40:$C$807,0),MATCH($F41,'Master Output Table'!$C$38:$J$38,0)) -> 299332.6626 | Q41: 11281736.59 | R41: 68.04974992 | S41: 924.0637639 | T41: 2088.833447 | U41: 855.4774201 | V41: 216.4144531 | W41: 330.2938147 | X41: 335.2199622 | Y41: 278.2897694 | Z41: 138.9123497 | AA41: 5235.554729
B42: 2_Adult (16-69) | C42: 7_LearnDis | D42: 16-69_LearnDis | E42: 15_16-69_LearnDis | F42: Year 1 | G42: =INDEX('Master Output Table'!$C$40:$J$807,MATCH($D42&G$1,'Master Output Table'!$C$40:$C$807,0),MATCH($F42,'Master Output Table'!$C$38:$J$38,0)) -> 480.3449838 | H42: =INDEX('Master Output Table'!$C$40:$J$807,MATCH($D42&"_"&H$2&"_"&H$1,'Master Output Table'!$C$40:$C$807,0),MATCH($F42,'Master Output Table'!$C$38:$J$38,0)) -> 43329.1522 | I42: =INDEX('Master Output Table'!$C$40:$J$807,MATCH($D42&"_"&I$2&"_"&I$1,'Master Output Table'!$C$40:$C$807,0),MATCH($F42,'Master Output Table'!$C$38:$J$38,0)) -> 283220.7395 | J42: =INDEX('Master Output Table'!$C$40:$J$807,MATCH($D42&"_"&J$2&"_"&J$1,'Master Output Table'!$C$40:$C$807,0),MATCH($F42,'Master Output Table'!$C$38:$J$38,0)) -> 124061.9658 | K42: =INDEX('Master Output Table'!$C$40:$J$807,MATCH($D42&"_"&K$2&"_"&K$1,'Master Output Table'!$C$40:$C$807,0),MATCH($F42,'Master Output Table'!$C$38:$J$38,0)) -> 153056.7175 | L42: =INDEX('Master Output Table'!$C$40:$J$807,MATCH($D42&"_"&L$2&"_"&L$1,'Master Output Table'!$C$40:$C$807,0),MATCH($F42,'Master Output Table'!$C$38:$J$38,0)) -> 534552.6779 | M42: =INDEX('Master Output Table'!$C$40:$J$807,MATCH($D42&"_"&M$2&"_"&M$1,'Master Output Table'!$C$40:$C$807,0),MATCH($F42,'Master Output Table'!$C$38:$J$38,0)) -> 148443.504 | N42: =INDEX('Master Output Table'!$C$40:$J$807,MATCH($D42&"_"&N$2&"_"&N$1,'Master Output Table'!$C$40:$C$807,0),MATCH($F42,'Master Output Table'!$C$38:$J$38,0)) -> 207763.8227 | O42: =INDEX('Master Output Table'!$C$40:$J$807,MATCH($D42&"_"&O$2&"_"&O$1,'Master Output Table'!$C$40:$C$807,0),MATCH($F42,'Master Output Table'!$C$38:$J$38,0)) -> 18083394.77 | P42: =INDEX('Master Output Table'!$C$40:$J$807,MATCH($D42&"_"&P$2&"_"&P$1,'Master Output Table'!$C$40:$C$807,0),MATCH($F42,'Master Output Table'!$C$38:$J$38,0)) -> 6862615.678 | Q42: 26440439.03 | R42: 90.20423584 | S42: 589.6194383 | T42: 258.276801 | U42: 318.6391503 | V42: 1112.851588 | W42: 309.0351913 | X42: 432.5304307 | Y42: 37646.68182 | Z42: 14286.84781 | AA42: 55044.68646
B43: 2_Adult (16-69) | C43: 8_PhysDis | D43: 16-69_PhysDis | E43: 16_16-69_PhysDis | F43: Year 1 | G43: =INDEX('Master Output Table'!$C$40:$J$807,MATCH($D43&G$1,'Master Output Table'!$C$40:$C$807,0),MATCH($F43,'Master Output Table'!$C$38:$J$38,0)) -> 207.0143494 | H43: =INDEX('Master Output Table'!$C$40:$J$807,MATCH($D43&"_"&H$2&"_"&H$1,'Master Output Table'!$C$40:$C$807,0),MATCH($F43,'Master Output Table'!$C$38:$J$38,0)) -> 46794.17438 | I43: =INDEX('Master Output Table'!$C$40:$J$807,MATCH($D43&"_"&I$2&"_"&I$1,'Master Output Table'!$C$40:$C$807,0),MATCH($F43,'Master Output Table'!$C$38:$J$38,0)) -> 483211.2171 | J43: =INDEX('Master Output Table'!$C$40:$J$807,MATCH($D43&"_"&J$2&"_"&J$1,'Master Output Table'!$C$40:$C$807,0),MATCH($F43,'Master Output Table'!$C$38:$J$38,0)) -> 318682.4494 | K43: =INDEX('Master Output Table'!$C$40:$J$807,MATCH($D43&"_"&K$2&"_"&K$1,'Master Output Table'!$C$40:$C$807,0),MATCH($F43,'Master Output Table'!$C$38:$J$38,0)) -> 208832.686 | L43: =INDEX('Master Output Table'!$C$40:$J$807,MATCH($D43&"_"&L$2&"_"&L$1,'Master Output Table'!$C$40:$C$807,0),MATCH($F43,'Master Output Table'!$C$38:$J$38,0)) -> 115618.9365 | M43: =INDEX('Master Output Table'!$C$40:$J$807,MATCH($D43&"_"&M$2&"_"&M$1,'Master Output Table'!$C$40:$C$807,0),MATCH($F43,'Master Output Table'!$C$38:$J$38,0)) -> 117556.7664 | N43: =INDEX('Master Output Table'!$C$40:$J$807,MATCH($D43&"_"&N$2&"_"&N$1,'Master Output Table'!$C$40:$C$807,0),MATCH($F43,'Master Output Table'!$C$38:$J$38,0)) -> 173371.2788 | O43: =INDEX('Master Output Table'!$C$40:$J$807,MATCH($D43&"_"&O$2&"_"&O$1,'Master Output Table'!$C$40:$C$807,0),MATCH($F43,'Master Output Table'!$C$38:$J$38,0)) -> 2404433.947 | P43: =INDEX('Master Output Table'!$C$40:$J$807,MATCH($D43&"_"&P$2&"_"&P$1,'Master Output Table'!$C$40:$C$807,0),MATCH($F43,'Master Output Table'!$C$38:$J$38,0)) -> 759875.195 | Q43: 4628376.65 | R43: 226.043144 | S43: 2334.191898 | T43: 1539.422028 | U43: 1008.783626 | V43: 558.5068708 | W43: 567.867719 | X43: 837.4843546 | Y43: 11614.81779 | Z43: 3670.640211 | AA43: 22357.75764
B44: 3_Elderly (70+) | C44: 1_Mostly healthy | D44: 70+_Mostly healthy | E44: 17_70+_Mostly healthy | F44: Year 1 | G44: =INDEX('Master Output Table'!$C$40:$J$807,MATCH($D44&G$1,'Master Output Table'!$C$40:$C$807,0),MATCH($F44,'Master Output Table'!$C$38:$J$38,0)) -> 4104.30659 | H44: =INDEX('Master Output Table'!$C$40:$J$807,MATCH($D44&"_"&H$2&"_"&H$1,'Master Output Table'!$C$40:$C$807,0),MATCH($F44,'Master Output Table'!$C$38:$J$38,0)) -> 209719.8372 | I44: =INDEX('Master Output Table'!$C$40:$J$807,MATCH($D44&"_"&I$2&"_"&I$1,'Master Output Table'!$C$40:$C$807,0),MATCH($F44,'Master Output Table'!$C$38:$J$38,0)) -> 3134370.199 | J44: =INDEX('Master Output Table'!$C$40:$J$807,MATCH($D44&"_"&J$2&"_"&J$1,'Master Output Table'!$C$40:$C$807,0),MATCH($F44,'Master Output Table'!$C$38:$J$38,0)) -> 1781642.996 | K44: =INDEX('Master Output Table'!$C$40:$J$807,MATCH($D44&"_"&K$2&"_"&K$1,'Master Output Table'!$C$40:$C$807,0),MATCH($F44,'Master Output Table'!$C$38:$J$38,0)) -> 1235933.946 | L44: =INDEX('Master Output Table'!$C$40:$J$807,MATCH($D44&"_"&L$2&"_"&L$1,'Master Output Table'!$C$40:$C$807,0),MATCH($F44,'Master Output Table'!$C$38:$J$38,0)) -> 430674.6682 | M44: =INDEX('Master Output Table'!$C$40:$J$807,MATCH($D44&"_"&M$2&"_"&M$1,'Master Output Table'!$C$40:$C$807,0),MATCH($F44,'Master Output Table'!$C$38:$J$38,0)) -> 759348.891 | N44: =INDEX('Master Output Table'!$C$40:$J$807,MATCH($D44&"_"&N$2&"_"&N$1,'Master Output Table'!$C$40:$C$807,0),MATCH($F44,'Master Output Table'!$C$38:$J$38,0)) -> 722996.929 | O44: =INDEX('Master Output Table'!$C$40:$J$807,MATCH($D44&"_"&O$2&"_"&O$1,'Master Output Table'!$C$40:$C$807,0),MATCH($F44,'Master Output Table'!$C$38:$J$38,0)) -> 2275522.347 | P44: =INDEX('Master Output Table'!$C$40:$J$807,MATCH($D44&"_"&P$2&"_"&P$1,'Master Output Table'!$C$40:$C$807,0),MATCH($F44,'Master Output Table'!$C$38:$J$38,0)) -> 4899397.136 | Q44: 15449606.95 | R44: 51.09750761 | S44: 763.6783778 | T44: 434.0911081 | U44: 301.1309995 | V44: 104.9323823 | W44: 185.0127115 | X44: 176.1556826 | Y44: 554.4230912 | Z44: 1193.721041 | AA44: 3764.242902
B45: 3_Elderly (70+) | C45: 2_1LTC | D45: 70+_1LTC | E45: 18_70+_1LTC | F45: Year 1 | G45: =INDEX('Master Output Table'!$C$40:$J$807,MATCH($D45&G$1,'Master Output Table'!$C$40:$C$807,0),MATCH($F45,'Master Output Table'!$C$38:$J$38,0)) -> 3768.230959 | H45: =INDEX('Master Output Table'!$C$40:$J$807,MATCH($D45&"_"&H$2&"_"&H$1,'Master Output Table'!$C$40:$C$807,0),MATCH($F45,'Master Output Table'!$C$38:$J$38,0)) -> 174058.4024 | I45: =INDEX('Master Output Table'!$C$40:$J$807,MATCH($D45&"_"&I$2&"_"&I$1,'Master Output Table'!$C$40:$C$807,0),MATCH($F45,'Master Output Table'!$C$38:$J$38,0)) -> 2087389.514 | J45: =INDEX('Master Output Table'!$C$40:$J$807,MATCH($D45&"_"&J$2&"_"&J$1,'Master Output Table'!$C$40:$C$807,0),MATCH($F45,'Master Output Table'!$C$38:$J$38,0)) -> 2110113.736 | K45: =INDEX('Master Output Table'!$C$40:$J$807,MATCH($D45&"_"&K$2&"_"&K$1,'Master Output Table'!$C$40:$C$807,0),MATCH($F45,'Master Output Table'!$C$38:$J$38,0)) -> 1361073.546 | L45: =INDEX('Master Output Table'!$C$40:$J$807,MATCH($D45&"_"&L$2&"_"&L$1,'Master Output Table'!$C$40:$C$807,0),MATCH($F45,'Master Output Table'!$C$38:$J$38,0)) -> 307983.4999 | M45: =INDEX('Master Output Table'!$C$40:$J$807,MATCH($D45&"_"&M$2&"_"&M$1,'Master Output Table'!$C$40:$C$807,0),MATCH($F45,'Master Output Table'!$C$38:$J$38,0)) -> 1079335.728 | N45: =INDEX('Master Output Table'!$C$40:$J$807,MATCH($D45&"_"&N$2&"_"&N$1,'Master Output Table'!$C$40:$C$807,0),MATCH($F45,'Master Output Table'!$C$38:$J$38,0)) -> 1439035.72 | O45: =INDEX('Master Output Table'!$C$40:$J$807,MATCH($D45&"_"&O$2&"_"&O$1,'Master Output Table'!$C$40:$C$807,0),MATCH($F45,'Master Output Table'!$C$38:$J$38,0)) -> 2679098.981 | P45: =INDEX('Master Output Table'!$C$40:$J$807,MATCH($D45&"_"&P$2&"_"&P$1,'Master Output Table'!$C$40:$C$807,0),MATCH($F45,'Master Output Table'!$C$38:$J$38,0)) -> 1355603.683 | Q45: 12593692.81 | R45: 46.19101226 | S45: 553.9441549 | T45: 559.9746297 | U45: 361.1969545 | V45: 81.7315879 | W45: 286.4303542 | X45: 381.8862846 | Y45: 710.9699511 | Z45: 359.7453811 | AA45: 3342.07031
B46: 3_Elderly (70+) | C46: 3_2+LTC | D46: 70+_2+LTC | E46: 19_70+_2+LTC | F46: Year 1 | G46: =INDEX('Master Output Table'!$C$40:$J$807,MATCH($D46&G$1,'Master Output Table'!$C$40:$C$807,0),MATCH($F46,'Master Output Table'!$C$38:$J$38,0)) -> 6696.045456 | H46: =INDEX('Master Output Table'!$C$40:$J$807,MATCH($D46&"_"&H$2&"_"&H$1,'Master Output Table'!$C$40:$C$807,0),MATCH($F46,'Master Output Table'!$C$38:$J$38,0)) -> 605245.3717 | I46: =INDEX('Master Output Table'!$C$40:$J$807,MATCH($D46&"_"&I$2&"_"&I$1,'Master Output Table'!$C$40:$C$807,0),MATCH($F46,'Master Output Table'!$C$38:$J$38,0)) -> 9082177.136 | J46: =INDEX('Master Output Table'!$C$40:$J$807,MATCH($D46&"_"&J$2&"_"&J$1,'Master Output Table'!$C$40:$C$807,0),MATCH($F46,'Master Output Table'!$C$38:$J$38,0)) -> 4731471.533 | K46: =INDEX('Master Output Table'!$C$40:$J$807,MATCH($D46&"_"&K$2&"_"&K$1,'Master Output Table'!$C$40:$C$807,0),MATCH($F46,'Master Output Table'!$C$38:$J$38,0)) -> 3953965.863 | L46: =INDEX('Master Output Table'!$C$40:$J$807,MATCH($D46&"_"&L$2&"_"&L$1,'Master Output Table'!$C$40:$C$807,0),MATCH($F46,'Master Output Table'!$C$38:$J$38,0)) -> 1009402.495 | M46: =INDEX('Master Output Table'!$C$40:$J$807,MATCH($D46&"_"&M$2&"_"&M$1,'Master Output Table'!$C$40:$C$807,0),MATCH($F46,'Master Output Table'!$C$38:$J$38,0)) -> 2882124.275 | N46: =INDEX('Master Output Table'!$C$40:$J$807,MATCH($D46&"_"&N$2&"_"&N$1,'Master Output Table'!$C$40:$C$807,0),MATCH($F46,'Master Output Table'!$C$38:$J$38,0)) -> 5570376.976 | O46: =INDEX('Master Output Table'!$C$40:$J$807,MATCH($D46&"_"&O$2&"_"&O$1,'Master Output Table'!$C$40:$C$807,0),MATCH($F46,'Master Output Table'!$C$38:$J$38,0)) -> 11434497.62 | P46: =INDEX('Master Output Table'!$C$40:$J$807,MATCH($D46&"_"&P$2&"_"&P$1,'Master Output Table'!$C$40:$C$807,0),MATCH($F46,'Master Output Table'!$C$38:$J$38,0)) -> 5990659.77 | Q46: 45259921.04 | R46: 90.38848014 | S46: 1356.349385 | T46: 706.6068419 | U46: 590.4926854 | V46: 150.7460637 | W46: 430.4218504 | X46: 831.8905558 | Y46: 1707.649342 | Z46: 894.6563774 | AA46: 6759.201582
B47: 3_Elderly (70+) | C47: 4_SEMI | D47: 70+_SEMI | E47: 20_70+_SEMI | F47: Year 1 | G47: =INDEX('Master Output Table'!$C$40:$J$807,MATCH($D47&G$1,'Master Output Table'!$C$40:$C$807,0),MATCH($F47,'Master Output Table'!$C$38:$J$38,0)) -> 237.3903646 | H47: =INDEX('Master Output Table'!$C$40:$J$807,MATCH($D47&"_"&H$2&"_"&H$1,'Master Output Table'!$C$40:$C$807,0),MATCH($F47,'Master Output Table'!$C$38:$J$38,0)) -> 37328.69322 | I47: =INDEX('Master Output Table'!$C$40:$J$807,MATCH($D47&"_"&I$2&"_"&I$1,'Master Output Table'!$C$40:$C$807,0),MATCH($F47,'Master Output Table'!$C$38:$J$38,0)) -> 652712.7278 | J47: =INDEX('Master Output Table'!$C$40:$J$807,MATCH($D47&"_"&J$2&"_"&J$1,'Master Output Table'!$C$40:$C$807,0),MATCH($F47,'Master Output Table'!$C$38:$J$38,0)) -> 96614.94142 | K47: =INDEX('Master Output Table'!$C$40:$J$807,MATCH($D47&"_"&K$2&"_"&K$1,'Master Output Table'!$C$40:$C$807,0),MATCH($F47,'Master Output Table'!$C$38:$J$38,0)) -> 103592.5005 | L47: =INDEX('Master Output Table'!$C$40:$J$807,MATCH($D47&"_"&L$2&"_"&L$1,'Master Output Table'!$C$40:$C$807,0),MATCH($F47,'Master Output Table'!$C$38:$J$38,0)) -> 1616936.523 | M47: =INDEX('Master Output Table'!$C$40:$J$807,MATCH($D47&"_"&M$2&"_"&M$1,'Master Output Table'!$C$40:$C$807,0),MATCH($F47,'Master Output Table'!$C$38:$J$38,0)) -> 104891.5251 | N47: =INDEX('Master Output Table'!$C$40:$J$807,MATCH($D47&"_"&N$2&"_"&N$1,'Master Output Table'!$C$40:$C$807,0),MATCH($F47,'Master Output Table'!$C$38:$J$38,0)) -> 343884.9847 | O47: =INDEX('Master Output Table'!$C$40:$J$807,MATCH($D47&"_"&O$2&"_"&O$1,'Master Output Table'!$C$40:$C$807,0),MATCH($F47,'Master Output Table'!$C$38:$J$38,0)) -> 2376004.348 | P47: =INDEX('Master Output Table'!$C$40:$J$807,MATCH($D47&"_"&P$2&"_"&P$1,'Master Output Table'!$C$40:$C$807,0),MATCH($F47,'Master Output Table'!$C$38:$J$38,0)) -> 544669.9154 | Q47: 5876636.158 | R47: 157.2460335 | S47: 2749.533365 | T47: 406.9876282 | U47: 436.3803928 | V47: 6811.29803 | W47: 441.8524961 | X47: 1448.605487 | Y47: 10008.84915 | Z47: 2294.406163 | AA47: 24755.15874
B48: 3_Elderly (70+) | C48: 5_Dementia | D48: 70+_Dementia | E48: 21_70+_Dementia | F48: Year 1 | G48: =INDEX('Master Output Table'!$C$40:$J$807,MATCH($D48&G$1,'Master Output Table'!$C$40:$C$807,0),MATCH($F48,'Master Output Table'!$C$38:$J$38,0)) -> 708.0781564 | H48: =INDEX('Master Output Table'!$C$40:$J$807,MATCH($D48&"_"&H$2&"_"&H$1,'Master Output Table'!$C$40:$C$807,0),MATCH($F48,'Master Output Table'!$C$38:$J$38,0)) -> 104608.7828 | I48: =INDEX('Master Output Table'!$C$40:$J$807,MATCH($D48&"_"&I$2&"_"&I$1,'Master Output Table'!$C$40:$C$807,0),MATCH($F48,'Master Output Table'!$C$38:$J$38,0)) -> 2542974.275 | J48: =INDEX('Master Output Table'!$C$40:$J$807,MATCH($D48&"_"&J$2&"_"&J$1,'Master Output Table'!$C$40:$C$807,0),MATCH($F48,'Master Output Table'!$C$38:$J$38,0)) -> 190793.369 | K48: =INDEX('Master Output Table'!$C$40:$J$807,MATCH($D48&"_"&K$2&"_"&K$1,'Master Output Table'!$C$40:$C$807,0),MATCH($F48,'Master Output Table'!$C$38:$J$38,0)) -> 234847.9336 | L48: =INDEX('Master Output Table'!$C$40:$J$807,MATCH($D48&"_"&L$2&"_"&L$1,'Master Output Table'!$C$40:$C$807,0),MATCH($F48,'Master Output Table'!$C$38:$J$38,0)) -> 2196614.375 | M48: =INDEX('Master Output Table'!$C$40:$J$807,MATCH($D48&"_"&M$2&"_"&M$1,'Master Output Table'!$C$40:$C$807,0),MATCH($F48,'Master Output Table'!$C$38:$J$38,0)) -> 281335.1821 | N48: =INDEX('Master Output Table'!$C$40:$J$807,MATCH($D48&"_"&N$2&"_"&N$1,'Master Output Table'!$C$40:$C$807,0),MATCH($F48,'Master Output Table'!$C$38:$J$38,0)) -> 726049.3512 | O48: =INDEX('Master Output Table'!$C$40:$J$807,MATCH($D48&"_"&O$2&"_"&O$1,'Master Output Table'!$C$40:$C$807,0),MATCH($F48,'Master Output Table'!$C$38:$J$38,0)) -> 8136696.209 | P48: =INDEX('Master Output Table'!$C$40:$J$807,MATCH($D48&"_"&P$2&"_"&P$1,'Master Output Table'!$C$40:$C$807,0),MATCH($F48,'Master Output Table'!$C$38:$J$38,0)) -> 2824585.216 | Q48: 17238504.69 | R48: 147.7362094 | S48: 3591.375122 | T48: 269.4524147 | U48: 331.6695078 | V48: 3102.220222 | W48: 397.3222158 | X48: 1025.380242 | Y48: 11491.24025 | Z48: 3989.086784 | AA48: 24345.48297
B49: 3_Elderly (70+) | C49: 6_Cancer | D49: 70+_Cancer | E49: 22_70+_Cancer | F49: Year 1 | G49: =INDEX('Master Output Table'!$C$40:$J$807,MATCH($D49&G$1,'Master Output Table'!$C$40:$C$807,0),MATCH($F49,'Master Output Table'!$C$38:$J$38,0)) -> 2079.666929 | H49: =INDEX('Master Output Table'!$C$40:$J$807,MATCH($D49&"_"&H$2&"_"&H$1,'Master Output Table'!$C$40:$C$807,0),MATCH($F49,'Master Output Table'!$C$38:$J$38,0)) -> 204588.9129 | I49: =INDEX('Master Output Table'!$C$40:$J$807,MATCH($D49&"_"&I$2&"_"&I$1,'Master Output Table'!$C$40:$C$807,0),MATCH($F49,'Master Output Table'!$C$38:$J$38,0)) -> 4029690.139 | J49: =INDEX('Master Output Table'!$C$40:$J$807,MATCH($D49&"_"&J$2&"_"&J$1,'Master Output Table'!$C$40:$C$807,0),MATCH($F49,'Master Output Table'!$C$38:$J$38,0)) -> 3167758.57 | K49: =INDEX('Master Output Table'!$C$40:$J$807,MATCH($D49&"_"&K$2&"_"&K$1,'Master Output Table'!$C$40:$C$807,0),MATCH($F49,'Master Output Table'!$C$38:$J$38,0)) -> 1673883.598 | L49: =INDEX('Master Output Table'!$C$40:$J$807,MATCH($D49&"_"&L$2&"_"&L$1,'Master Output Table'!$C$40:$C$807,0),MATCH($F49,'Master Output Table'!$C$38:$J$38,0)) -> 483268.9779 | M49: =INDEX('Master Output Table'!$C$40:$J$807,MATCH($D49&"_"&M$2&"_"&M$1,'Master Output Table'!$C$40:$C$807,0),MATCH($F49,'Master Output Table'!$C$38:$J$38,0)) -> 918918.4949 | N49: =INDEX('Master Output Table'!$C$40:$J$807,MATCH($D49&"_"&N$2&"_"&N$1,'Master Output Table'!$C$40:$C$807,0),MATCH($F49,'Master Output Table'!$C$38:$J$38,0)) -> 1303990.503 | O49: =INDEX('Master Output Table'!$C$40:$J$807,MATCH($D49&"_"&O$2&"_"&O$1,'Master Output Table'!$C$40:$C$807,0),MATCH($F49,'Master Output Table'!$C$38:$J$38,0)) -> 3191207.549 | P49: =INDEX('Master Output Table'!$C$40:$J$807,MATCH($D49&"_"&P$2&"_"&P$1,'Master Output Table'!$C$40:$C$807,0),MATCH($F49,'Master Output Table'!$C$38:$J$38,0)) -> 1143641.291 | Q49: 16116948.03 | R49: 98.37580723 | S49: 1937.661306 | T49: 1523.204762 | U49: 804.8806152 | V49: 232.3780655 | W49: 441.8584928 | X49: 627.0189157 | Y49: 1534.480115 | Z49: 549.9156016 | AA49: 7749.773681
B50: 3_Elderly (70+) | C50: 7_LearnDis | D50: 70+_LearnDis | E50: 23_70+_LearnDis | F50: Year 1 | G50: =INDEX('Master Output Table'!$C$40:$J$807,MATCH($D50&G$1,'Master Output Table'!$C$40:$C$807,0),MATCH($F50,'Master Output Table'!$C$38:$J$38,0)) -> 22.28376985 | H50: =INDEX('Master Output Table'!$C$40:$J$807,MATCH($D50&"_"&H$2&"_"&H$1,'Master Output Table'!$C$40:$C$807,0),MATCH($F50,'Master Output Table'!$C$38:$J$38,0)) -> 4292.98797 | I50: =INDEX('Master Output Table'!$C$40:$J$807,MATCH($D50&"_"&I$2&"_"&I$1,'Master Output Table'!$C$40:$C$807,0),MATCH($F50,'Master Output Table'!$C$38:$J$38,0)) -> 71760.99505 | J50: =INDEX('Master Output Table'!$C$40:$J$807,MATCH($D50&"_"&J$2&"_"&J$1,'Master Output Table'!$C$40:$C$807,0),MATCH($F50,'Master Output Table'!$C$38:$J$38,0)) -> 6870.695895 | K50: =INDEX('Master Output Table'!$C$40:$J$807,MATCH($D50&"_"&K$2&"_"&K$1,'Master Output Table'!$C$40:$C$807,0),MATCH($F50,'Master Output Table'!$C$38:$J$38,0)) -> 11160.82655 | L50: =INDEX('Master Output Table'!$C$40:$J$807,MATCH($D50&"_"&L$2&"_"&L$1,'Master Output Table'!$C$40:$C$807,0),MATCH($F50,'Master Output Table'!$C$38:$J$38,0)) -> 27207.39202 | M50: =INDEX('Master Output Table'!$C$40:$J$807,MATCH($D50&"_"&M$2&"_"&M$1,'Master Output Table'!$C$40:$C$807,0),MATCH($F50,'Master Output Table'!$C$38:$J$38,0)) -> 10320.77798 | N50: =INDEX('Master Output Table'!$C$40:$J$807,MATCH($D50&"_"&N$2&"_"&N$1,'Master Output Table'!$C$40:$C$807,0),MATCH($F50,'Master Output Table'!$C$38:$J$38,0)) -> 22795.87975 | O50: =INDEX('Master Output Table'!$C$40:$J$807,MATCH($D50&"_"&O$2&"_"&O$1,'Master Output Table'!$C$40:$C$807,0),MATCH($F50,'Master Output Table'!$C$38:$J$38,0)) -> 730220.0173 | P50: =INDEX('Master Output Table'!$C$40:$J$807,MATCH($D50&"_"&P$2&"_"&P$1,'Master Output Table'!$C$40:$C$807,0),MATCH($F50,'Master Output Table'!$C$38:$J$38,0)) -> 532868.0276 | Q50: 1417497.6 | R50: 192.6508844 | S50: 3220.325623 | T50: 308.3273584 | U50: 500.8500186 | V50: 1220.951042 | W50: 463.1522427 | X50: 1022.981295 | Y50: 32769.14194 | Z50: 23912.83122 | AA50: 63611.21163
B51: 3_Elderly (70+) | C51: 8_PhysDis | D51: 70+_PhysDis | E51: 24_70+_PhysDis | F51: Year 1 | G51: =INDEX('Master Output Table'!$C$40:$J$807,MATCH($D51&G$1,'Master Output Table'!$C$40:$C$807,0),MATCH($F51,'Master Output Table'!$C$38:$J$38,0)) -> 612.1215148 | H51: =INDEX('Master Output Table'!$C$40:$J$807,MATCH($D51&"_"&H$2&"_"&H$1,'Master Output Table'!$C$40:$C$807,0),MATCH($F51,'Master Output Table'!$C$38:$J$38,0)) -> 156616.1792 | I51: =INDEX('Master Output Table'!$C$40:$J$807,MATCH($D51&"_"&I$2&"_"&I$1,'Master Output Table'!$C$40:$C$807,0),MATCH($F51,'Master Output Table'!$C$38:$J$38,0)) -> 2409635.943 | J51: =INDEX('Master Output Table'!$C$40:$J$807,MATCH($D51&"_"&J$2&"_"&J$1,'Master Output Table'!$C$40:$C$807,0),MATCH($F51,'Master Output Table'!$C$38:$J$38,0)) -> 625225.2213 | K51: =INDEX('Master Output Table'!$C$40:$J$807,MATCH($D51&"_"&K$2&"_"&K$1,'Master Output Table'!$C$40:$C$807,0),MATCH($F51,'Master Output Table'!$C$38:$J$38,0)) -> 492856.9735 | L51: =INDEX('Master Output Table'!$C$40:$J$807,MATCH($D51&"_"&L$2&"_"&L$1,'Master Output Table'!$C$40:$C$807,0),MATCH($F51,'Master Output Table'!$C$38:$J$38,0)) -> 589446.3943 | M51: =INDEX('Master Output Table'!$C$40:$J$807,MATCH($D51&"_"&M$2&"_"&M$1,'Master Output Table'!$C$40:$C$807,0),MATCH($F51,'Master Output Table'!$C$38:$J$38,0)) -> 335254.3282 | N51: =INDEX('Master Output Table'!$C$40:$J$807,MATCH($D51&"_"&N$2&"_"&N$1,'Master Output Table'!$C$40:$C$807,0),MATCH($F51,'Master Output Table'!$C$38:$J$38,0)) -> 680057.857 | O51: =INDEX('Master Output Table'!$C$40:$J$807,MATCH($D51&"_"&O$2&"_"&O$1,'Master Output Table'!$C$40:$C$807,0),MATCH($F51,'Master Output Table'!$C$38:$J$38,0)) -> 10937301.05 | P51: =INDEX('Master Output Table'!$C$40:$J$807,MATCH($D51&"_"&P$2&"_"&P$1,'Master Output Table'!$C$40:$C$807,0),MATCH($F51,'Master Output Table'!$C$38:$J$38,0)) -> 4523217.072 | Q51: 20749611.02 | R51: 255.857988 | S51: 3936.53202 | T51: 1021.407035 | U51: 805.1619844 | V51: 962.9565047 | W51: 547.6924437 | X51: 1110.985059 | Y51: 17867.85922 | Z51: 7389.410375 | AA51: 33897.86263
B52: 1_Child | C52: 1_Mostly healthy | D52: Child_Mostly healthy | E52: 1_Child_Mostly healthy | F52: Year 2 | G52: =INDEX('Master Output Table'!$C$40:$J$807,MATCH($D52&G$1,'Master Output Table'!$C$40:$C$807,0),MATCH($F52,'Master Output Table'!$C$38:$J$38,0)) -> 45051.51315 | H52: =INDEX('Master Output Table'!$C$40:$J$807,MATCH($D52&"_"&H$2&"_"&H$1,'Master Output Table'!$C$40:$C$807,0),MATCH($F52,'Master Output Table'!$C$38:$J$38,0)) -> 1949526.502 | I52: =INDEX('Master Output Table'!$C$40:$J$807,MATCH($D52&"_"&I$2&"_"&I$1,'Master Output Table'!$C$40:$C$807,0),MATCH($F52,'Master Output Table'!$C$38:$J$38,0)) -> 9480991.454 | J52: =INDEX('Master Output Table'!$C$40:$J$807,MATCH($D52&"_"&J$2&"_"&J$1,'Master Output Table'!$C$40:$C$807,0),MATCH($F52,'Master Output Table'!$C$38:$J$38,0)) -> 3442529.077 | K52: =INDEX('Master Output Table'!$C$40:$J$807,MATCH($D52&"_"&K$2&"_"&K$1,'Master Output Table'!$C$40:$C$807,0),MATCH($F52,'Master Output Table'!$C$38:$J$38,0)) -> 4922018.087 | L52: =INDEX('Master Output Table'!$C$40:$J$807,MATCH($D52&"_"&L$2&"_"&L$1,'Master Output Table'!$C$40:$C$807,0),MATCH($F52,'Master Output Table'!$C$38:$J$38,0)) -> 2798269.325 | M52: =INDEX('Master Output Table'!$C$40:$J$807,MATCH($D52&"_"&M$2&"_"&M$1,'Master Output Table'!$C$40:$C$807,0),MATCH($F52,'Master Output Table'!$C$38:$J$38,0)) -> 4600011.188 | N52: =INDEX('Master Output Table'!$C$40:$J$807,MATCH($D52&"_"&N$2&"_"&N$1,'Master Output Table'!$C$40:$C$807,0),MATCH($F52,'Master Output Table'!$C$38:$J$38,0)) -> 1482767.661 | O52: =INDEX('Master Output Table'!$C$40:$J$807,MATCH($D52&"_"&O$2&"_"&O$1,'Master Output Table'!$C$40:$C$807,0),MATCH($F52,'Master Output Table'!$C$38:$J$38,0)) -> 449686.1068 | P52: =INDEX('Master Output Table'!$C$40:$J$807,MATCH($D52&"_"&P$2&"_"&P$1,'Master Output Table'!$C$40:$C$807,0),MATCH($F52,'Master Output Table'!$C$38:$J$38,0)) -> 8113665.181 | Q52: 37239464.58 | R52: 43.27327465 | S52: 210.4477917 | T52: 76.4131732 | U52: 109.2531137 | V52: 62.11266015 | W52: 102.1055868 | X52: 32.91271606 | Y52: 9.981598295 | Z52: 180.0975065 | AA52: 826.597421
B53: 1_Child | C53: 2_1LTC | D53: Child_1LTC | E53: 2_Child_1LTC | F53: =F52 -> Year 2 | G53: =INDEX('Master Output Table'!$C$40:$J$807,MATCH($D53&G$1,'Master Output Table'!$C$40:$C$807,0),MATCH($F53,'Master Output Table'!$C$38:$J$38,0)) -> 1984.763495 | H53: =INDEX('Master Output Table'!$C$40:$J$807,MATCH($D53&"_"&H$2&"_"&H$1,'Master Output Table'!$C$40:$C$807,0),MATCH($F53,'Master Output Table'!$C$38:$J$38,0)) -> 132171.2715 | I53: =INDEX('Master Output Table'!$C$40:$J$807,MATCH($D53&"_"&I$2&"_"&I$1,'Master Output Table'!$C$40:$C$807,0),MATCH($F53,'Master Output Table'!$C$38:$J$38,0)) -> 493647.5043 | J53: =INDEX('Master Output Table'!$C$40:$J$807,MATCH($D53&"_"&J$2&"_"&J$1,'Master Output Table'!$C$40:$C$807,0),MATCH($F53,'Master Output Table'!$C$38:$J$38,0)) -> 254341.2288 | K53: =INDEX('Master Output Table'!$C$40:$J$807,MATCH($D53&"_"&K$2&"_"&K$1,'Master Output Table'!$C$40:$C$807,0),MATCH($F53,'Master Output Table'!$C$38:$J$38,0)) -> 403369.8362 | L53: =INDEX('Master Output Table'!$C$40:$J$807,MATCH($D53&"_"&L$2&"_"&L$1,'Master Output Table'!$C$40:$C$807,0),MATCH($F53,'Master Output Table'!$C$38:$J$38,0)) -> 367984.7797 | M53: =INDEX('Master Output Table'!$C$40:$J$807,MATCH($D53&"_"&M$2&"_"&M$1,'Master Output Table'!$C$40:$C$807,0),MATCH($F53,'Master Output Table'!$C$38:$J$38,0)) -> 330596.9431 | N53: =INDEX('Master Output Table'!$C$40:$J$807,MATCH($D53&"_"&N$2&"_"&N$1,'Master Output Table'!$C$40:$C$807,0),MATCH($F53,'Master Output Table'!$C$38:$J$38,0)) -> 353621.2083 | O53: =INDEX('Master Output Table'!$C$40:$J$807,MATCH($D53&"_"&O$2&"_"&O$1,'Master Output Table'!$C$40:$C$807,0),MATCH($F53,'Master Output Table'!$C$38:$J$38,0)) -> 10125.6019 | P53: =INDEX('Master Output Table'!$C$40:$J$807,MATCH($D53&"_"&P$2&"_"&P$1,'Master Output Table'!$C$40:$C$807,0),MATCH($F53,'Master Output Table'!$C$38:$J$38,0)) -> 264151.0637 | Q53: 2610009.438 | R53: 66.59295774 | S53: 248.7185529 | T53: 128.1468697 | U53: 203.2332 | V53: 185.4048508 | W53: 166.5674243 | X53: 178.1679325 | Y53: 5.101666734 | Z53: 133.0894409 | AA53: 1315.022895
B54: 1_Child | C54: 3_2+LTC | D54: Child_2+LTC | E54: 3_Child_2+LTC | F54: =F53 -> Year 2 | G54: =INDEX('Master Output Table'!$C$40:$J$807,MATCH($D54&G$1,'Master Output Table'!$C$40:$C$807,0),MATCH($F54,'Master Output Table'!$C$38:$J$38,0)) -> 39.9616811 | H54: =INDEX('Master Output Table'!$C$40:$J$807,MATCH($D54&"_"&H$2&"_"&H$1,'Master Output Table'!$C$40:$C$807,0),MATCH($F54,'Master Output Table'!$C$38:$J$38,0)) -> 3212.068094 | I54: =INDEX('Master Output Table'!$C$40:$J$807,MATCH($D54&"_"&I$2&"_"&I$1,'Master Output Table'!$C$40:$C$807,0),MATCH($F54,'Master Output Table'!$C$38:$J$38,0)) -> 48953.39601 | J54: =INDEX('Master Output Table'!$C$40:$J$807,MATCH($D54&"_"&J$2&"_"&J$1,'Master Output Table'!$C$40:$C$807,0),MATCH($F54,'Master Output Table'!$C$38:$J$38,0)) -> 16830.766 | K54: =INDEX('Master Output Table'!$C$40:$J$807,MATCH($D54&"_"&K$2&"_"&K$1,'Master Output Table'!$C$40:$C$807,0),MATCH($F54,'Master Output Table'!$C$38:$J$38,0)) -> 32281.1991 | L54: =INDEX('Master Output Table'!$C$40:$J$807,MATCH($D54&"_"&L$2&"_"&L$1,'Master Output Table'!$C$40:$C$807,0),MATCH($F54,'Master Output Table'!$C$38:$J$38,0)) -> 0 | M54: =INDEX('Master Output Table'!$C$40:$J$807,MATCH($D54&"_"&M$2&"_"&M$1,'Master Output Table'!$C$40:$C$807,0),MATCH($F54,'Master Output Table'!$C$38:$J$38,0)) -> 9115.245165 | N54: =INDEX('Master Output Table'!$C$40:$J$807,MATCH($D54&"_"&N$2&"_"&N$1,'Master Output Table'!$C$40:$C$807,0),MATCH($F54,'Master Output Table'!$C$38:$J$38,0)) -> 15228.60015 | O54: =INDEX('Master Output Table'!$C$40:$J$807,MATCH($D54&"_"&O$2&"_"&O$1,'Master Output Table'!$C$40:$C$807,0),MATCH($F54,'Master Output Table'!$C$38:$J$38,0)) -> 0 | P54: =INDEX('Master Output Table'!$C$40:$J$807,MATCH($D54&"_"&P$2&"_"&P$1,'Master Output Table'!$C$40:$C$807,0),MATCH($F54,'Master Output Table'!$C$38:$J$38,0)) -> 15362.77374 | Q54: 140984.0483 | R54: 80.37870293 | S54: 1225.008425 | T54: 421.1726218 | U54: 807.8038314 | V54: 0 | W54: 228.0996423 | X54: 381.080068 | Y54: 0 | Z54: 384.4376241 | AA54: 3527.980915
B55: 1_Child | C55: 4_SEMI | D55: Child_SEMI | E55: 4_Child_SEMI | F55: Year 2 | G55: =INDEX('Master Output Table'!$C$40:$J$807,MATCH($D55&G$1,'Master Output Table'!$C$40:$C$807,0),MATCH($F55,'Master Output Table'!$C$38:$J$38,0)) -> 68.89945017 | H55: =INDEX('Master Output Table'!$C$40:$J$807,MATCH($D55&"_"&H$2&"_"&H$1,'Master Output Table'!$C$40:$C$807,0),MATCH($F55,'Master Output Table'!$C$38:$J$38,0)) -> 5195.793457 | I55: =INDEX('Master Output Table'!$C$40:$J$807,MATCH($D55&"_"&I$2&"_"&I$1,'Master Output Table'!$C$40:$C$807,0),MATCH($F55,'Master Output Table'!$C$38:$J$38,0)) -> 57960.06476 | J55: =INDEX('Master Output Table'!$C$40:$J$807,MATCH($D55&"_"&J$2&"_"&J$1,'Master Output Table'!$C$40:$C$807,0),MATCH($F55,'Master Output Table'!$C$38:$J$38,0)) -> 15808.29935 | K55: =INDEX('Master Output Table'!$C$40:$J$807,MATCH($D55&"_"&K$2&"_"&K$1,'Master Output Table'!$C$40:$C$807,0),MATCH($F55,'Master Output Table'!$C$38:$J$38,0)) -> 26934.84952 | L55: =INDEX('Master Output Table'!$C$40:$J$807,MATCH($D55&"_"&L$2&"_"&L$1,'Master Output Table'!$C$40:$C$807,0),MATCH($F55,'Master Output Table'!$C$38:$J$38,0)) -> 215221.2198 | M55: =INDEX('Master Output Table'!$C$40:$J$807,MATCH($D55&"_"&M$2&"_"&M$1,'Master Output Table'!$C$40:$C$807,0),MATCH($F55,'Master Output Table'!$C$38:$J$38,0)) -> 8218.646909 | N55: =INDEX('Master Output Table'!$C$40:$J$807,MATCH($D55&"_"&N$2&"_"&N$1,'Master Output Table'!$C$40:$C$807,0),MATCH($F55,'Master Output Table'!$C$38:$J$38,0)) -> 8875.40166 | O55: =INDEX('Master Output Table'!$C$40:$J$807,MATCH($D55&"_"&O$2&"_"&O$1,'Master Output Table'!$C$40:$C$807,0),MATCH($F55,'Master Output Table'!$C$38:$J$38,0)) -> 4530.203621 | P55: =INDEX('Master Output Table'!$C$40:$J$807,MATCH($D55&"_"&P$2&"_"&P$1,'Master Output Table'!$C$40:$C$807,0),MATCH($F55,'Master Output Table'!$C$38:$J$38,0)) -> 41.67653506 | Q55: 342786.1556 | R55: 75.41124703 | S55: 841.2268112 | T55: 229.4401378 | U55: 390.929818 | V55: 3123.700105 | W55: 119.2846516 | X55: 128.816727 | Y55: 65.75094009 | Z55: 0.6048892256 | AA55: 4975.165327
B56: 1_Child | C56: 5_Dementia | D56: Child_Dementia | E56: 5_Child_Dementia | F56: Year 2 | G56: =INDEX('Master Output Table'!$C$40:$J$807,MATCH($D56&G$1,'Master Output Table'!$C$40:$C$807,0),MATCH($F56,'Master Output Table'!$C$38:$J$38,0)) -> 0 | H56: =INDEX('Master Output Table'!$C$40:$J$807,MATCH($D56&"_"&H$2&"_"&H$1,'Master Output Table'!$C$40:$C$807,0),MATCH($F56,'Master Output Table'!$C$38:$J$38,0)) -> 0 | I56: =INDEX('Master Output Table'!$C$40:$J$807,MATCH($D56&"_"&I$2&"_"&I$1,'Master Output Table'!$C$40:$C$807,0),MATCH($F56,'Master Output Table'!$C$38:$J$38,0)) -> 0 | J56: =INDEX('Master Output Table'!$C$40:$J$807,MATCH($D56&"_"&J$2&"_"&J$1,'Master Output Table'!$C$40:$C$807,0),MATCH($F56,'Master Output Table'!$C$38:$J$38,0)) -> 0 | K56: =INDEX('Master Output Table'!$C$40:$J$807,MATCH($D56&"_"&K$2&"_"&K$1,'Master Output Table'!$C$40:$C$807,0),MATCH($F56,'Master Output Table'!$C$38:$J$38,0)) -> 0 | L56: =INDEX('Master Output Table'!$C$40:$J$807,MATCH($D56&"_"&L$2&"_"&L$1,'Master Output Table'!$C$40:$C$807,0),MATCH($F56,'Master Output Table'!$C$38:$J$38,0)) -> 0 | M56: =INDEX('Master Output Table'!$C$40:$J$807,MATCH($D56&"_"&M$2&"_"&M$1,'Master Output Table'!$C$40:$C$807,0),MATCH($F56,'Master Output Table'!$C$38:$J$38,0)) -> 0 | N56: =INDEX('Master Output Table'!$C$40:$J$807,MATCH($D56&"_"&N$2&"_"&N$1,'Master Output Table'!$C$40:$C$807,0),MATCH($F56,'Master Output Table'!$C$38:$J$38,0)) -> 0 | O56: =INDEX('Master Output Table'!$C$40:$J$807,MATCH($D56&"_"&O$2&"_"&O$1,'Master Output Table'!$C$40:$C$807,0),MATCH($F56,'Master Output Table'!$C$38:$J$38,0)) -> 0 | P56: =INDEX('Master Output Table'!$C$40:$J$807,MATCH($D56&"_"&P$2&"_"&P$1,'Master Output Table'!$C$40:$C$807,0),MATCH($F56,'Master Output Table'!$C$38:$J$38,0)) -> 0 | Q56: 0 | R56: 0 | S56: 0 | T56: 0 | U56: 0 | V56: 0 | W56: 0 | X56: 0 | Y56: 0 | Z56: 0 | AA56: 0
B57: 1_Child | C57: 6_Cancer | D57: Child_Cancer | E57: 6_Child_Cancer | F57: Year 2 | G57: =INDEX('Master Output Table'!$C$40:$J$807,MATCH($D57&G$1,'Master Output Table'!$C$40:$C$807,0),MATCH($F57,'Master Output Table'!$C$38:$J$38,0)) -> 18.37318671 | H57: =INDEX('Master Output Table'!$C$40:$J$807,MATCH($D57&"_"&H$2&"_"&H$1,'Master Output Table'!$C$40:$C$807,0),MATCH($F57,'Master Output Table'!$C$38:$J$38,0)) -> 2995.496838 | I57: =INDEX('Master Output Table'!$C$40:$J$807,MATCH($D57&"_"&I$2&"_"&I$1,'Master Output Table'!$C$40:$C$807,0),MATCH($F57,'Master Output Table'!$C$38:$J$38,0)) -> 82025.8702 | J57: =INDEX('Master Output Table'!$C$40:$J$807,MATCH($D57&"_"&J$2&"_"&J$1,'Master Output Table'!$C$40:$C$807,0),MATCH($F57,'Master Output Table'!$C$38:$J$38,0)) -> 61863.32487 | K57: =INDEX('Master Output Table'!$C$40:$J$807,MATCH($D57&"_"&K$2&"_"&K$1,'Master Output Table'!$C$40:$C$807,0),MATCH($F57,'Master Output Table'!$C$38:$J$38,0)) -> 14927.00705 | L57: =INDEX('Master Output Table'!$C$40:$J$807,MATCH($D57&"_"&L$2&"_"&L$1,'Master Output Table'!$C$40:$C$807,0),MATCH($F57,'Master Output Table'!$C$38:$J$38,0)) -> 7113.441265 | M57: =INDEX('Master Output Table'!$C$40:$J$807,MATCH($D57&"_"&M$2&"_"&M$1,'Master Output Table'!$C$40:$C$807,0),MATCH($F57,'Master Output Table'!$C$38:$J$38,0)) -> 4337.364531 | N57: =INDEX('Master Output Table'!$C$40:$J$807,MATCH($D57&"_"&N$2&"_"&N$1,'Master Output Table'!$C$40:$C$807,0),MATCH($F57,'Master Output Table'!$C$38:$J$38,0)) -> 2156.009571 | O57: =INDEX('Master Output Table'!$C$40:$J$807,MATCH($D57&"_"&O$2&"_"&O$1,'Master Output Table'!$C$40:$C$807,0),MATCH($F57,'Master Output Table'!$C$38:$J$38,0)) -> 2997.115842 | P57: =INDEX('Master Output Table'!$C$40:$J$807,MATCH($D57&"_"&P$2&"_"&P$1,'Master Output Table'!$C$40:$C$807,0),MATCH($F57,'Master Output Table'!$C$38:$J$38,0)) -> 36472.01299 | Q57: 214887.6432 | R57: 163.0363249 | S57: 4464.433497 | T57: 3367.043825 | U57: 812.4342983 | V57: 387.1642615 | W57: 236.0703453 | X57: 117.3454341 | Y57: 163.1244427 | Z57: 1985.067346 | AA57: 11695.71977
B58: 1_Child | C58: 7_LearnDis | D58: Child_LearnDis | E58: 7_Child_LearnDis | F58: Year 2 | G58: =INDEX('Master Output Table'!$C$40:$J$807,MATCH($D58&G$1,'Master Output Table'!$C$40:$C$807,0),MATCH($F58,'Master Output Table'!$C$38:$J$38,0)) -> 0 | H58: =INDEX('Master Output Table'!$C$40:$J$807,MATCH($D58&"_"&H$2&"_"&H$1,'Master Output Table'!$C$40:$C$807,0),MATCH($F58,'Master Output Table'!$C$38:$J$38,0)) -> 0 | I58: =INDEX('Master Output Table'!$C$40:$J$807,MATCH($D58&"_"&I$2&"_"&I$1,'Master Output Table'!$C$40:$C$807,0),MATCH($F58,'Master Output Table'!$C$38:$J$38,0)) -> 0 | J58: =INDEX('Master Output Table'!$C$40:$J$807,MATCH($D58&"_"&J$2&"_"&J$1,'Master Output Table'!$C$40:$C$807,0),MATCH($F58,'Master Output Table'!$C$38:$J$38,0)) -> 0 | K58: =INDEX('Master Output Table'!$C$40:$J$807,MATCH($D58&"_"&K$2&"_"&K$1,'Master Output Table'!$C$40:$C$807,0),MATCH($F58,'Master Output Table'!$C$38:$J$38,0)) -> 0 | L58: =INDEX('Master Output Table'!$C$40:$J$807,MATCH($D58&"_"&L$2&"_"&L$1,'Master Output Table'!$C$40:$C$807,0),MATCH($F58,'Master Output Table'!$C$38:$J$38,0)) -> 0 | M58: =INDEX('Master Output Table'!$C$40:$J$807,MATCH($D58&"_"&M$2&"_"&M$1,'Master Output Table'!$C$40:$C$807,0),MATCH($F58,'Master Output Table'!$C$38:$J$38,0)) -> 0 | N58: =INDEX('Master Output Table'!$C$40:$J$807,MATCH($D58&"_"&N$2&"_"&N$1,'Master Output Table'!$C$40:$C$807,0),MATCH($F58,'Master Output Table'!$C$38:$J$38,0)) -> 0 | O58: =INDEX('Master Output Table'!$C$40:$J$807,MATCH($D58&"_"&O$2&"_"&O$1,'Master Output Table'!$C$40:$C$807,0),MATCH($F58,'Master Output Table'!$C$38:$J$38,0)) -> 0 | P58: =INDEX('Master Output Table'!$C$40:$J$807,MATCH($D58&"_"&P$2&"_"&P$1,'Master Output Table'!$C$40:$C$807,0),MATCH($F58,'Master Output Table'!$C$38:$J$38,0)) -> 0 | Q58: 0 | R58: 0 | S58: 0 | T58: 0 | U58: 0 | V58: 0 | W58: 0 | X58: 0 | Y58: 0 | Z58: 0 | AA58: 0
B59: 1_Child | C59: 8_PhysDis | D59: Child_PhysDis | E59: 8_Child_PhysDis | F59: Year 2 | G59: =INDEX('Master Output Table'!$C$40:$J$807,MATCH($D59&G$1,'Master Output Table'!$C$40:$C$807,0),MATCH($F59,'Master Output Table'!$C$38:$J$38,0)) -> 0 | H59: =INDEX('Master Output Table'!$C$40:$J$807,MATCH($D59&"_"&H$2&"_"&H$1,'Master Output Table'!$C$40:$C$807,0),MATCH($F59,'Master Output Table'!$C$38:$J$38,0)) -> 0 | I59: =INDEX('Master Output Table'!$C$40:$J$807,MATCH($D59&"_"&I$2&"_"&I$1,'Master Output Table'!$C$40:$C$807,0),MATCH($F59,'Master Output Table'!$C$38:$J$38,0)) -> 0 | J59: =INDEX('Master Output Table'!$C$40:$J$807,MATCH($D59&"_"&J$2&"_"&J$1,'Master Output Table'!$C$40:$C$807,0),MATCH($F59,'Master Output Table'!$C$38:$J$38,0)) -> 0 | K59: =INDEX('Master Output Table'!$C$40:$J$807,MATCH($D59&"_"&K$2&"_"&K$1,'Master Output Table'!$C$40:$C$807,0),MATCH($F59,'Master Output Table'!$C$38:$J$38,0)) -> 0 | L59: =INDEX('Master Output Table'!$C$40:$J$807,MATCH($D59&"_"&L$2&"_"&L$1,'Master Output Table'!$C$40:$C$807,0),MATCH($F59,'Master Output Table'!$C$38:$J$38,0)) -> 0 | M59: =INDEX('Master Output Table'!$C$40:$J$807,MATCH($D59&"_"&M$2&"_"&M$1,'Master Output Table'!$C$40:$C$807,0),MATCH($F59,'Master Output Table'!$C$38:$J$38,0)) -> 0 | N59: =INDEX('Master Output Table'!$C$40:$J$807,MATCH($D59&"_"&N$2&"_"&N$1,'Master Output Table'!$C$40:$C$807,0),MATCH($F59,'Master Output Table'!$C$38:$J$38,0)) -> 0 | O59: =INDEX('Master Output Table'!$C$40:$J$807,MATCH($D59&"_"&O$2&"_"&O$1,'Master Output Table'!$C$40:$C$807,0),MATCH($F59,'Master Output Table'!$C$38:$J$38,0)) -> 0 | P59: =INDEX('Master Output Table'!$C$40:$J$807,MATCH($D59&"_"&P$2&"_"&P$1,'Master Output Table'!$C$40:$C$807,0),MATCH($F59,'Master Output Table'!$C$38:$J$38,0)) -> 0 | Q59: 0 | R59: 0 | S59: 0 | T59: 0 | U59: 0 | V59: 0 | W59: 0 | X59: 0 | Y59: 0 | Z59: 0 | AA59: 0
B60: 2_Adult (16-69) | C60: 1_Mostly healthy | D60: 16-69_Mostly healthy | E60: 9_16-69_Mostly healthy | F60: Year 2 | G60: =INDEX('Master Output Table'!$C$40:$J$807,MATCH($D60&G$1,'Master Output Table'!$C$40:$C$807,0),MATCH($F60,'Master Output Table'!$C$38:$J$38,0)) -> 149070.5625 | H60: =INDEX('Master Output Table'!$C$40:$J$807,MATCH($D60&"_"&H$2&"_"&H$1,'Master Output Table'!$C$40:$C$807,0),MATCH($F60,'Master Output Table'!$C$38:$J$38,0)) -> 3971662.477 | I60: =INDEX('Master Output Table'!$C$40:$J$807,MATCH($D60&"_"&I$2&"_"&I$1,'Master Output Table'!$C$40:$C$807,0),MATCH($F60,'Master Output Table'!$C$38:$J$38,0)) -> 22769043.87 | J60: =INDEX('Master Output Table'!$C$40:$J$807,MATCH($D60&"_"&J$2&"_"&J$1,'Master Output Table'!$C$40:$C$807,0),MATCH($F60,'Master Output Table'!$C$38:$J$38,0)) -> 16579293.54 | K60: =INDEX('Master Output Table'!$C$40:$J$807,MATCH($D60&"_"&K$2&"_"&K$1,'Master Output Table'!$C$40:$C$807,0),MATCH($F60,'Master Output Table'!$C$38:$J$38,0)) -> 18801379.99 | L60: =INDEX('Master Output Table'!$C$40:$J$807,MATCH($D60&"_"&L$2&"_"&L$1,'Master Output Table'!$C$40:$C$807,0),MATCH($F60,'Master Output Table'!$C$38:$J$38,0)) -> 11319865.99 | M60: =INDEX('Master Output Table'!$C$40:$J$807,MATCH($D60&"_"&M$2&"_"&M$1,'Master Output Table'!$C$40:$C$807,0),MATCH($F60,'Master Output Table'!$C$38:$J$38,0)) -> 16455285.78 | N60: =INDEX('Master Output Table'!$C$40:$J$807,MATCH($D60&"_"&N$2&"_"&N$1,'Master Output Table'!$C$40:$C$807,0),MATCH($F60,'Master Output Table'!$C$38:$J$38,0)) -> 4722115.742 | O60: =INDEX('Master Output Table'!$C$40:$J$807,MATCH($D60&"_"&O$2&"_"&O$1,'Master Output Table'!$C$40:$C$807,0),MATCH($F60,'Master Output Table'!$C$38:$J$38,0)) -> 9348901.325 | P60: =INDEX('Master Output Table'!$C$40:$J$807,MATCH($D60&"_"&P$2&"_"&P$1,'Master Output Table'!$C$40:$C$807,0),MATCH($F60,'Master Output Table'!$C$38:$J$38,0)) -> 9453578.244 | Q60: 113421127 | R60: 26.64283552 | S60: 152.7400413 | T60: 111.2177566 | U60: 126.1240293 | V60: 75.93629356 | W60: 110.3858837 | X60: 31.67705054 | Y60: 62.71460421 | Z60: 63.41680132 | AA60: 760.8552961
B61: 2_Adult (16-69) | C61: 2_1LTC | D61: 16-69_1LTC | E61: 10_16-69_1LTC | F61: Year 2 | G61: =INDEX('Master Output Table'!$C$40:$J$807,MATCH($D61&G$1,'Master Output Table'!$C$40:$C$807,0),MATCH($F61,'Master Output Table'!$C$38:$J$38,0)) -> 23181.29881 | H61: =INDEX('Master Output Table'!$C$40:$J$807,MATCH($D61&"_"&H$2&"_"&H$1,'Master Output Table'!$C$40:$C$807,0),MATCH($F61,'Master Output Table'!$C$38:$J$38,0)) -> 1124089.714 | I61: =INDEX('Master Output Table'!$C$40:$J$807,MATCH($D61&"_"&I$2&"_"&I$1,'Master Output Table'!$C$40:$C$807,0),MATCH($F61,'Master Output Table'!$C$38:$J$38,0)) -> 6245406.988 | J61: =INDEX('Master Output Table'!$C$40:$J$807,MATCH($D61&"_"&J$2&"_"&J$1,'Master Output Table'!$C$40:$C$807,0),MATCH($F61,'Master Output Table'!$C$38:$J$38,0)) -> 6726400.941 | K61: =INDEX('Master Output Table'!$C$40:$J$807,MATCH($D61&"_"&K$2&"_"&K$1,'Master Output Table'!$C$40:$C$807,0),MATCH($F61,'Master Output Table'!$C$38:$J$38,0)) -> 6156819.862 | L61: =INDEX('Master Output Table'!$C$40:$J$807,MATCH($D61&"_"&L$2&"_"&L$1,'Master Output Table'!$C$40:$C$807,0),MATCH($F61,'Master Output Table'!$C$38:$J$38,0)) -> 5119913.193 | M61: =INDEX('Master Output Table'!$C$40:$J$807,MATCH($D61&"_"&M$2&"_"&M$1,'Master Output Table'!$C$40:$C$807,0),MATCH($F61,'Master Output Table'!$C$38:$J$38,0)) -> 5934235.452 | N61: =INDEX('Master Output Table'!$C$40:$J$807,MATCH($D61&"_"&N$2&"_"&N$1,'Master Output Table'!$C$40:$C$807,0),MATCH($F61,'Master Output Table'!$C$38:$J$38,0)) -> 4593872.737 | O61: =INDEX('Master Output Table'!$C$40:$J$807,MATCH($D61&"_"&O$2&"_"&O$1,'Master Output Table'!$C$40:$C$807,0),MATCH($F61,'Master Output Table'!$C$38:$J$38,0)) -> 3692659.263 | P61: =INDEX('Master Output Table'!$C$40:$J$807,MATCH($D61&"_"&P$2&"_"&P$1,'Master Output Table'!$C$40:$C$807,0),MATCH($F61,'Master Output Table'!$C$38:$J$38,0)) -> 3219306.768 | Q61: 42812704.92 | R61: 48.49123094 | S61: 269.4157493 | T61: 290.1649729 | U61: 265.5942582 | V61: 220.8639488 | W61: 255.9923627 | X61: 198.1714991 | Y61: 159.2947528 | Z61: 138.8751681 | AA61: 1846.863943
B62: 2_Adult (16-69) | C62: 3_2+LTC | D62: 16-69_2+LTC | E62: 11_16-69_2+LTC | F62: Year 2 | G62: =INDEX('Master Output Table'!$C$40:$J$807,MATCH($D62&G$1,'Master Output Table'!$C$40:$C$807,0),MATCH($F62,'Master Output Table'!$C$38:$J$38,0)) -> 10586.65333 | H62: =INDEX('Master Output Table'!$C$40:$J$807,MATCH($D62&"_"&H$2&"_"&H$1,'Master Output Table'!$C$40:$C$807,0),MATCH($F62,'Master Output Table'!$C$38:$J$38,0)) -> 745547.3716 | I62: =INDEX('Master Output Table'!$C$40:$J$807,MATCH($D62&"_"&I$2&"_"&I$1,'Master Output Table'!$C$40:$C$807,0),MATCH($F62,'Master Output Table'!$C$38:$J$38,0)) -> 5777707.309 | J62: =INDEX('Master Output Table'!$C$40:$J$807,MATCH($D62&"_"&J$2&"_"&J$1,'Master Output Table'!$C$40:$C$807,0),MATCH($F62,'Master Output Table'!$C$38:$J$38,0)) -> 6001142.556 | K62: =INDEX('Master Output Table'!$C$40:$J$807,MATCH($D62&"_"&K$2&"_"&K$1,'Master Output Table'!$C$40:$C$807,0),MATCH($F62,'Master Output Table'!$C$38:$J$38,0)) -> 5195667.944 | L62: =INDEX('Master Output Table'!$C$40:$J$807,MATCH($D62&"_"&L$2&"_"&L$1,'Master Output Table'!$C$40:$C$807,0),MATCH($F62,'Master Output Table'!$C$38:$J$38,0)) -> 2297039.371 | M62: =INDEX('Master Output Table'!$C$40:$J$807,MATCH($D62&"_"&M$2&"_"&M$1,'Master Output Table'!$C$40:$C$807,0),MATCH($F62,'Master Output Table'!$C$38:$J$38,0)) -> 4331320.337 | N62: =INDEX('Master Output Table'!$C$40:$J$807,MATCH($D62&"_"&N$2&"_"&N$1,'Master Output Table'!$C$40:$C$807,0),MATCH($F62,'Master Output Table'!$C$38:$J$38,0)) -> 5881325.348 | O62: =INDEX('Master Output Table'!$C$40:$J$807,MATCH($D62&"_"&O$2&"_"&O$1,'Master Output Table'!$C$40:$C$807,0),MATCH($F62,'Master Output Table'!$C$38:$J$38,0)) -> 4447620.546 | P62: =INDEX('Master Output Table'!$C$40:$J$807,MATCH($D62&"_"&P$2&"_"&P$1,'Master Output Table'!$C$40:$C$807,0),MATCH($F62,'Master Output Table'!$C$38:$J$38,0)) -> 3742035.528 | Q62: 38419406.31 | R62: 70.42332907 | S62: 545.7538965 | T62: 566.8592676 | U62: 490.7752979 | V62: 216.9750249 | W62: 409.13027 | X62: 555.541507 | Y62: 420.1158199 | Z62: 353.4672771 | AA62: 3629.04169
B63: 2_Adult (16-69) | C63: 4_SEMI | D63: 16-69_SEMI | E63: 12_16-69_SEMI | F63: Year 2 | G63: =INDEX('Master Output Table'!$C$40:$J$807,MATCH($D63&G$1,'Master Output Table'!$C$40:$C$807,0),MATCH($F63,'Master Output Table'!$C$38:$J$38,0)) -> 2458.765886 | H63: =INDEX('Master Output Table'!$C$40:$J$807,MATCH($D63&"_"&H$2&"_"&H$1,'Master Output Table'!$C$40:$C$807,0),MATCH($F63,'Master Output Table'!$C$38:$J$38,0)) -> 278186.68 | I63: =INDEX('Master Output Table'!$C$40:$J$807,MATCH($D63&"_"&I$2&"_"&I$1,'Master Output Table'!$C$40:$C$807,0),MATCH($F63,'Master Output Table'!$C$38:$J$38,0)) -> 1762167.03 | J63: =INDEX('Master Output Table'!$C$40:$J$807,MATCH($D63&"_"&J$2&"_"&J$1,'Master Output Table'!$C$40:$C$807,0),MATCH($F63,'Master Output Table'!$C$38:$J$38,0)) -> 683202.0064 | K63: =INDEX('Master Output Table'!$C$40:$J$807,MATCH($D63&"_"&K$2&"_"&K$1,'Master Output Table'!$C$40:$C$807,0),MATCH($F63,'Master Output Table'!$C$38:$J$38,0)) -> 649505.2594 | L63: =INDEX('Master Output Table'!$C$40:$J$807,MATCH($D63&"_"&L$2&"_"&L$1,'Master Output Table'!$C$40:$C$807,0),MATCH($F63,'Master Output Table'!$C$38:$J$38,0)) -> 18825048.03 | M63: =INDEX('Master Output Table'!$C$40:$J$807,MATCH($D63&"_"&M$2&"_"&M$1,'Master Output Table'!$C$40:$C$807,0),MATCH($F63,'Master Output Table'!$C$38:$J$38,0)) -> 939144.9993 | N63: =INDEX('Master Output Table'!$C$40:$J$807,MATCH($D63&"_"&N$2&"_"&N$1,'Master Output Table'!$C$40:$C$807,0),MATCH($F63,'Master Output Table'!$C$38:$J$38,0)) -> 1972307.568 | O63: =INDEX('Master Output Table'!$C$40:$J$807,MATCH($D63&"_"&O$2&"_"&O$1,'Master Output Table'!$C$40:$C$807,0),MATCH($F63,'Master Output Table'!$C$38:$J$38,0)) -> 5175135.405 | P63: =INDEX('Master Output Table'!$C$40:$J$807,MATCH($D63&"_"&P$2&"_"&P$1,'Master Output Table'!$C$40:$C$807,0),MATCH($F63,'Master Output Table'!$C$38:$J$38,0)) -> 1370829.489 | Q63: 31655526.47 | R63: 113.1407759 | S63: 716.6876033 | T63: 277.8637895 | U63: 264.1590495 | V63: 7656.299504 | W63: 381.9578776 | X63: 802.1534621 | Y63: 2104.769484 | Z63: 557.5274559 | AA63: 12874.559
B64: 2_Adult (16-69) | C64: 5_Dementia | D64: 16-69_Dementia | E64: 13_16-69_Dementia | F64: Year 2 | G64: =INDEX('Master Output Table'!$C$40:$J$807,MATCH($D64&G$1,'Master Output Table'!$C$40:$C$807,0),MATCH($F64,'Master Output Table'!$C$38:$J$38,0)) -> 63.94592597 | H64: =INDEX('Master Output Table'!$C$40:$J$807,MATCH($D64&"_"&H$2&"_"&H$1,'Master Output Table'!$C$40:$C$807,0),MATCH($F64,'Master Output Table'!$C$38:$J$38,0)) -> 3538.396801 | I64: =INDEX('Master Output Table'!$C$40:$J$807,MATCH($D64&"_"&I$2&"_"&I$1,'Master Output Table'!$C$40:$C$807,0),MATCH($F64,'Master Output Table'!$C$38:$J$38,0)) -> 47308.81647 | J64: =INDEX('Master Output Table'!$C$40:$J$807,MATCH($D64&"_"&J$2&"_"&J$1,'Master Output Table'!$C$40:$C$807,0),MATCH($F64,'Master Output Table'!$C$38:$J$38,0)) -> 17829.20025 | K64: =INDEX('Master Output Table'!$C$40:$J$807,MATCH($D64&"_"&K$2&"_"&K$1,'Master Output Table'!$C$40:$C$807,0),MATCH($F64,'Master Output Table'!$C$38:$J$38,0)) -> 25990.01462 | L64: =INDEX('Master Output Table'!$C$40:$J$807,MATCH($D64&"_"&L$2&"_"&L$1,'Master Output Table'!$C$40:$C$807,0),MATCH($F64,'Master Output Table'!$C$38:$J$38,0)) -> 201727.2952 | M64: =INDEX('Master Output Table'!$C$40:$J$807,MATCH($D64&"_"&M$2&"_"&M$1,'Master Output Table'!$C$40:$C$807,0),MATCH($F64,'Master Output Table'!$C$38:$J$38,0)) -> 25811.36481 | N64: =INDEX('Master Output Table'!$C$40:$J$807,MATCH($D64&"_"&N$2&"_"&N$1,'Master Output Table'!$C$40:$C$807,0),MATCH($F64,'Master Output Table'!$C$38:$J$38,0)) -> 73274.96044 | O64: =INDEX('Master Output Table'!$C$40:$J$807,MATCH($D64&"_"&O$2&"_"&O$1,'Master Output Table'!$C$40:$C$807,0),MATCH($F64,'Master Output Table'!$C$38:$J$38,0)) -> 614711.4946 | P64: =INDEX('Master Output Table'!$C$40:$J$807,MATCH($D64&"_"&P$2&"_"&P$1,'Master Output Table'!$C$40:$C$807,0),MATCH($F64,'Master Output Table'!$C$38:$J$38,0)) -> 69408.15445 | Q64: 1079599.698 | R64: 55.33420226 | S64: 739.8253408 | T64: 278.8168281 | U64: 406.4373801 | V64: 3154.654376 | W64: 403.6436164 | X64: 1145.889427 | Y64: 9612.989183 | Z64: 1085.419492 | AA64: 16883.00984
B65: 2_Adult (16-69) | C65: 6_Cancer | D65: 16-69_Cancer | E65: 14_16-69_Cancer | F65: Year 2 | G65: =INDEX('Master Output Table'!$C$40:$J$807,MATCH($D65&G$1,'Master Output Table'!$C$40:$C$807,0),MATCH($F65,'Master Output Table'!$C$38:$J$38,0)) -> 2165.605338 | H65: =INDEX('Master Output Table'!$C$40:$J$807,MATCH($D65&"_"&H$2&"_"&H$1,'Master Output Table'!$C$40:$C$807,0),MATCH($F65,'Master Output Table'!$C$38:$J$38,0)) -> 148662.8006 | I65: =INDEX('Master Output Table'!$C$40:$J$807,MATCH($D65&"_"&I$2&"_"&I$1,'Master Output Table'!$C$40:$C$807,0),MATCH($F65,'Master Output Table'!$C$38:$J$38,0)) -> 2018727.582 | J65: =INDEX('Master Output Table'!$C$40:$J$807,MATCH($D65&"_"&J$2&"_"&J$1,'Master Output Table'!$C$40:$C$807,0),MATCH($F65,'Master Output Table'!$C$38:$J$38,0)) -> 4563305.972 | K65: =INDEX('Master Output Table'!$C$40:$J$807,MATCH($D65&"_"&K$2&"_"&K$1,'Master Output Table'!$C$40:$C$807,0),MATCH($F65,'Master Output Table'!$C$38:$J$38,0)) -> 1868892.528 | L65: =INDEX('Master Output Table'!$C$40:$J$807,MATCH($D65&"_"&L$2&"_"&L$1,'Master Output Table'!$C$40:$C$807,0),MATCH($F65,'Master Output Table'!$C$38:$J$38,0)) -> 472783.2024 | M65: =INDEX('Master Output Table'!$C$40:$J$807,MATCH($D65&"_"&M$2&"_"&M$1,'Master Output Table'!$C$40:$C$807,0),MATCH($F65,'Master Output Table'!$C$38:$J$38,0)) -> 721566.2597 | N65: =INDEX('Master Output Table'!$C$40:$J$807,MATCH($D65&"_"&N$2&"_"&N$1,'Master Output Table'!$C$40:$C$807,0),MATCH($F65,'Master Output Table'!$C$38:$J$38,0)) -> 753867.0761 | O65: =INDEX('Master Output Table'!$C$40:$J$807,MATCH($D65&"_"&O$2&"_"&O$1,'Master Output Table'!$C$40:$C$807,0),MATCH($F65,'Master Output Table'!$C$38:$J$38,0)) -> 607957.2159 | P65: =INDEX('Master Output Table'!$C$40:$J$807,MATCH($D65&"_"&P$2&"_"&P$1,'Master Output Table'!$C$40:$C$807,0),MATCH($F65,'Master Output Table'!$C$38:$J$38,0)) -> 312396.2135 | Q65: 11468158.85 | R65: 68.64722673 | S65: 932.1770438 | T65: 2107.173404 | U65: 862.9885119 | V65: 218.314572 | W65: 333.1937944 | X65: 348.1091697 | Y65: 280.7331536 | Z65: 144.2535295 | AA65: 5295.590406
B66: 2_Adult (16-69) | C66: 7_LearnDis | D66: 16-69_LearnDis | E66: 15_16-69_LearnDis | F66: Year 2 | G66: =INDEX('Master Output Table'!$C$40:$J$807,MATCH($D66&G$1,'Master Output Table'!$C$40:$C$807,0),MATCH($F66,'Master Output Table'!$C$38:$J$38,0)) -> 482.7467087 | H66: =INDEX('Master Output Table'!$C$40:$J$807,MATCH($D66&"_"&H$2&"_"&H$1,'Master Output Table'!$C$40:$C$807,0),MATCH($F66,'Master Output Table'!$C$38:$J$38,0)) -> 43928.13007 | I66: =INDEX('Master Output Table'!$C$40:$J$807,MATCH($D66&"_"&I$2&"_"&I$1,'Master Output Table'!$C$40:$C$807,0),MATCH($F66,'Master Output Table'!$C$38:$J$38,0)) -> 287135.9547 | J66: =INDEX('Master Output Table'!$C$40:$J$807,MATCH($D66&"_"&J$2&"_"&J$1,'Master Output Table'!$C$40:$C$807,0),MATCH($F66,'Master Output Table'!$C$38:$J$38,0)) -> 125776.986 | K66: =INDEX('Master Output Table'!$C$40:$J$807,MATCH($D66&"_"&K$2&"_"&K$1,'Master Output Table'!$C$40:$C$807,0),MATCH($F66,'Master Output Table'!$C$38:$J$38,0)) -> 155172.5582 | L66: =INDEX('Master Output Table'!$C$40:$J$807,MATCH($D66&"_"&L$2&"_"&L$1,'Master Output Table'!$C$40:$C$807,0),MATCH($F66,'Master Output Table'!$C$38:$J$38,0)) -> 541942.2807 | M66: =INDEX('Master Output Table'!$C$40:$J$807,MATCH($D66&"_"&M$2&"_"&M$1,'Master Output Table'!$C$40:$C$807,0),MATCH($F66,'Master Output Table'!$C$38:$J$38,0)) -> 150495.5721 | N66: =INDEX('Master Output Table'!$C$40:$J$807,MATCH($D66&"_"&N$2&"_"&N$1,'Master Output Table'!$C$40:$C$807,0),MATCH($F66,'Master Output Table'!$C$38:$J$38,0)) -> 216831.1034 | O66: =INDEX('Master Output Table'!$C$40:$J$807,MATCH($D66&"_"&O$2&"_"&O$1,'Master Output Table'!$C$40:$C$807,0),MATCH($F66,'Master Output Table'!$C$38:$J$38,0)) -> 18333377.81 | P66: =INDEX('Master Output Table'!$C$40:$J$807,MATCH($D66&"_"&P$2&"_"&P$1,'Master Output Table'!$C$40:$C$807,0),MATCH($F66,'Master Output Table'!$C$38:$J$38,0)) -> 7162115.667 | Q66: 27016776.06 | R66: 90.99622903 | S66: 594.796297 | T66: 260.5444713 | U66: 321.436802 | V66: 1122.622425 | W66: 311.7485203 | X66: 449.1612257 | Y66: 37977.21969 | Z66: 14836.1771 | AA66: 55964.70276
B67: 2_Adult (16-69) | C67: 8_PhysDis | D67: 16-69_PhysDis | E67: 16_16-69_PhysDis | F67: Year 2 | G67: =INDEX('Master Output Table'!$C$40:$J$807,MATCH($D67&G$1,'Master Output Table'!$C$40:$C$807,0),MATCH($F67,'Master Output Table'!$C$38:$J$38,0)) -> 208.0494211 | H67: =INDEX('Master Output Table'!$C$40:$J$807,MATCH($D67&"_"&H$2&"_"&H$1,'Master Output Table'!$C$40:$C$807,0),MATCH($F67,'Master Output Table'!$C$38:$J$38,0)) -> 47441.05237 | I67: =INDEX('Master Output Table'!$C$40:$J$807,MATCH($D67&"_"&I$2&"_"&I$1,'Master Output Table'!$C$40:$C$807,0),MATCH($F67,'Master Output Table'!$C$38:$J$38,0)) -> 489891.0806 | J67: =INDEX('Master Output Table'!$C$40:$J$807,MATCH($D67&"_"&J$2&"_"&J$1,'Master Output Table'!$C$40:$C$807,0),MATCH($F67,'Master Output Table'!$C$38:$J$38,0)) -> 323087.8837 | K67: =INDEX('Master Output Table'!$C$40:$J$807,MATCH($D67&"_"&K$2&"_"&K$1,'Master Output Table'!$C$40:$C$807,0),MATCH($F67,'Master Output Table'!$C$38:$J$38,0)) -> 211719.5682 | L67: =INDEX('Master Output Table'!$C$40:$J$807,MATCH($D67&"_"&L$2&"_"&L$1,'Master Output Table'!$C$40:$C$807,0),MATCH($F67,'Master Output Table'!$C$38:$J$38,0)) -> 117217.2411 | M67: =INDEX('Master Output Table'!$C$40:$J$807,MATCH($D67&"_"&M$2&"_"&M$1,'Master Output Table'!$C$40:$C$807,0),MATCH($F67,'Master Output Table'!$C$38:$J$38,0)) -> 119181.8593 | N67: =INDEX('Master Output Table'!$C$40:$J$807,MATCH($D67&"_"&N$2&"_"&N$1,'Master Output Table'!$C$40:$C$807,0),MATCH($F67,'Master Output Table'!$C$38:$J$38,0)) -> 180937.5915 | O67: =INDEX('Master Output Table'!$C$40:$J$807,MATCH($D67&"_"&O$2&"_"&O$1,'Master Output Table'!$C$40:$C$807,0),MATCH($F67,'Master Output Table'!$C$38:$J$38,0)) -> 2437672.601 | P67: =INDEX('Master Output Table'!$C$40:$J$807,MATCH($D67&"_"&P$2&"_"&P$1,'Master Output Table'!$C$40:$C$807,0),MATCH($F67,'Master Output Table'!$C$38:$J$38,0)) -> 793037.8583 | Q67: 4720186.736 | R67: 228.0278028 | S67: 2354.686103 | T67: 1552.938153 | U67: 1017.640746 | V67: 563.4105611 | W67: 572.8535976 | X67: 869.685628 | Y67: 11716.79589 | Z67: 3811.776327 | AA67: 22687.81481
B68: 3_Elderly (70+) | C68: 1_Mostly healthy | D68: 70+_Mostly healthy | E68: 17_70+_Mostly healthy | F68: Year 2 | G68: =INDEX('Master Output Table'!$C$40:$J$807,MATCH($D68&G$1,'Master Output Table'!$C$40:$C$807,0),MATCH($F68,'Master Output Table'!$C$38:$J$38,0)) -> 4186.392722 | H68: =INDEX('Master Output Table'!$C$40:$J$807,MATCH($D68&"_"&H$2&"_"&H$1,'Master Output Table'!$C$40:$C$807,0),MATCH($F68,'Master Output Table'!$C$38:$J$38,0)) -> 215792.4009 | I68: =INDEX('Master Output Table'!$C$40:$J$807,MATCH($D68&"_"&I$2&"_"&I$1,'Master Output Table'!$C$40:$C$807,0),MATCH($F68,'Master Output Table'!$C$38:$J$38,0)) -> 3225127.769 | J68: =INDEX('Master Output Table'!$C$40:$J$807,MATCH($D68&"_"&J$2&"_"&J$1,'Master Output Table'!$C$40:$C$807,0),MATCH($F68,'Master Output Table'!$C$38:$J$38,0)) -> 1833231.538 | K68: =INDEX('Master Output Table'!$C$40:$J$807,MATCH($D68&"_"&K$2&"_"&K$1,'Master Output Table'!$C$40:$C$807,0),MATCH($F68,'Master Output Table'!$C$38:$J$38,0)) -> 1271721.155 | L68: =INDEX('Master Output Table'!$C$40:$J$807,MATCH($D68&"_"&L$2&"_"&L$1,'Master Output Table'!$C$40:$C$807,0),MATCH($F68,'Master Output Table'!$C$38:$J$38,0)) -> 443145.1116 | M68: =INDEX('Master Output Table'!$C$40:$J$807,MATCH($D68&"_"&M$2&"_"&M$1,'Master Output Table'!$C$40:$C$807,0),MATCH($F68,'Master Output Table'!$C$38:$J$38,0)) -> 781336.2938 | N68: =INDEX('Master Output Table'!$C$40:$J$807,MATCH($D68&"_"&N$2&"_"&N$1,'Master Output Table'!$C$40:$C$807,0),MATCH($F68,'Master Output Table'!$C$38:$J$38,0)) -> 765812.0842 | O68: =INDEX('Master Output Table'!$C$40:$J$807,MATCH($D68&"_"&O$2&"_"&O$1,'Master Output Table'!$C$40:$C$807,0),MATCH($F68,'Master Output Table'!$C$38:$J$38,0)) -> 2341411.462 | P68: =INDEX('Master Output Table'!$C$40:$J$807,MATCH($D68&"_"&P$2&"_"&P$1,'Master Output Table'!$C$40:$C$807,0),MATCH($F68,'Master Output Table'!$C$38:$J$38,0)) -> 5189534.535 | Q68: 16067112.35 | R68: 51.54614372 | S68: 770.383474 | T68: 437.9024281 | U68: 303.7749297 | V68: 105.8536886 | W68: 186.6371231 | X68: 182.9288686 | Y68: 559.290926 | Z68: 1239.619615 | AA68: 3837.937197
B69: 3_Elderly (70+) | C69: 2_1LTC | D69: 70+_1LTC | E69: 18_70+_1LTC | F69: Year 2 | G69: =INDEX('Master Output Table'!$C$40:$J$807,MATCH($D69&G$1,'Master Output Table'!$C$40:$C$807,0),MATCH($F69,'Master Output Table'!$C$38:$J$38,0)) -> 3843.595579 | H69: =INDEX('Master Output Table'!$C$40:$J$807,MATCH($D69&"_"&H$2&"_"&H$1,'Master Output Table'!$C$40:$C$807,0),MATCH($F69,'Master Output Table'!$C$38:$J$38,0)) -> 179098.3679 | I69: =INDEX('Master Output Table'!$C$40:$J$807,MATCH($D69&"_"&I$2&"_"&I$1,'Master Output Table'!$C$40:$C$807,0),MATCH($F69,'Master Output Table'!$C$38:$J$38,0)) -> 2147831.13 | J69: =INDEX('Master Output Table'!$C$40:$J$807,MATCH($D69&"_"&J$2&"_"&J$1,'Master Output Table'!$C$40:$C$807,0),MATCH($F69,'Master Output Table'!$C$38:$J$38,0)) -> 2171213.345 | K69: =INDEX('Master Output Table'!$C$40:$J$807,MATCH($D69&"_"&K$2&"_"&K$1,'Master Output Table'!$C$40:$C$807,0),MATCH($F69,'Master Output Table'!$C$38:$J$38,0)) -> 1400484.247 | L69: =INDEX('Master Output Table'!$C$40:$J$807,MATCH($D69&"_"&L$2&"_"&L$1,'Master Output Table'!$C$40:$C$807,0),MATCH($F69,'Master Output Table'!$C$38:$J$38,0)) -> 316901.3469 | M69: =INDEX('Master Output Table'!$C$40:$J$807,MATCH($D69&"_"&M$2&"_"&M$1,'Master Output Table'!$C$40:$C$807,0),MATCH($F69,'Master Output Table'!$C$38:$J$38,0)) -> 1110588.542 | N69: =INDEX('Master Output Table'!$C$40:$J$807,MATCH($D69&"_"&N$2&"_"&N$1,'Master Output Table'!$C$40:$C$807,0),MATCH($F69,'Master Output Table'!$C$38:$J$38,0)) -> 1524253.977 | O69: =INDEX('Master Output Table'!$C$40:$J$807,MATCH($D69&"_"&O$2&"_"&O$1,'Master Output Table'!$C$40:$C$807,0),MATCH($F69,'Master Output Table'!$C$38:$J$38,0)) -> 2756673.899 | P69: =INDEX('Master Output Table'!$C$40:$J$807,MATCH($D69&"_"&P$2&"_"&P$1,'Master Output Table'!$C$40:$C$807,0),MATCH($F69,'Master Output Table'!$C$38:$J$38,0)) -> 1435881.177 | Q69: =SUM(H69:P69) -> 13042926.03 | R69: 46.59656935 | S69: 558.8077846 | T69: 564.891207 | U69: 364.3682637 | V69: 82.44919124 | W69: 288.9452127 | X69: 396.5698122 | Y69: 717.2122673 | Z69: 373.577591 | AA69: 3393.417899
B70: 3_Elderly (70+) | C70: 3_2+LTC | D70: 70+_2+LTC | E70: 19_70+_2+LTC | F70: Year 2 | G70: =INDEX('Master Output Table'!$C$40:$J$807,MATCH($D70&G$1,'Master Output Table'!$C$40:$C$807,0),MATCH($F70,'Master Output Table'!$C$38:$J$38,0)) -> 6829.966365 | H70: =INDEX('Master Output Table'!$C$40:$J$807,MATCH($D70&"_"&H$2&"_"&H$1,'Master Output Table'!$C$40:$C$807,0),MATCH($F70,'Master Output Table'!$C$38:$J$38,0)) -> 622770.6146 | I70: =INDEX('Master Output Table'!$C$40:$J$807,MATCH($D70&"_"&I$2&"_"&I$1,'Master Output Table'!$C$40:$C$807,0),MATCH($F70,'Master Output Table'!$C$38:$J$38,0)) -> 9345157.024 | J70: =INDEX('Master Output Table'!$C$40:$J$807,MATCH($D70&"_"&J$2&"_"&J$1,'Master Output Table'!$C$40:$C$807,0),MATCH($F70,'Master Output Table'!$C$38:$J$38,0)) -> 4868474.13 | K70: =INDEX('Master Output Table'!$C$40:$J$807,MATCH($D70&"_"&K$2&"_"&K$1,'Master Output Table'!$C$40:$C$807,0),MATCH($F70,'Master Output Table'!$C$38:$J$38,0)) -> 4068455.317 | L70: =INDEX('Master Output Table'!$C$40:$J$807,MATCH($D70&"_"&L$2&"_"&L$1,'Master Output Table'!$C$40:$C$807,0),MATCH($F70,'Master Output Table'!$C$38:$J$38,0)) -> 1038630.35 | M70: =INDEX('Master Output Table'!$C$40:$J$807,MATCH($D70&"_"&M$2&"_"&M$1,'Master Output Table'!$C$40:$C$807,0),MATCH($F70,'Master Output Table'!$C$38:$J$38,0)) -> 2965577.913 | N70: =INDEX('Master Output Table'!$C$40:$J$807,MATCH($D70&"_"&N$2&"_"&N$1,'Master Output Table'!$C$40:$C$807,0),MATCH($F70,'Master Output Table'!$C$38:$J$38,0)) -> 5900249.13 | O70: =INDEX('Master Output Table'!$C$40:$J$807,MATCH($D70&"_"&O$2&"_"&O$1,'Master Output Table'!$C$40:$C$807,0),MATCH($F70,'Master Output Table'!$C$38:$J$38,0)) -> 11765590.36 | P70: =INDEX('Master Output Table'!$C$40:$J$807,MATCH($D70&"_"&P$2&"_"&P$1,'Master Output Table'!$C$40:$C$807,0),MATCH($F70,'Master Output Table'!$C$38:$J$38,0)) -> 6345420.651 | Q70: 46920325.49 | R70: 91.182091 | S70: 1368.258133 | T70: 712.81085 | U70: 595.6772112 | V70: 152.0696142 | W70: 434.2009543 | X70: 863.8767477 | Y70: 1722.642503 | Z70: 929.0559151 | AA70: 6869.774019
B71: 3_Elderly (70+) | C71: 4_SEMI | D71: 70+_SEMI | E71: 20_70+_SEMI | F71: Year 2 | G71: =INDEX('Master Output Table'!$C$40:$J$807,MATCH($D71&G$1,'Master Output Table'!$C$40:$C$807,0),MATCH($F71,'Master Output Table'!$C$38:$J$38,0)) -> 242.1381719 | H71: =INDEX('Master Output Table'!$C$40:$J$807,MATCH($D71&"_"&H$2&"_"&H$1,'Master Output Table'!$C$40:$C$807,0),MATCH($F71,'Master Output Table'!$C$38:$J$38,0)) -> 38409.56793 | I71: =INDEX('Master Output Table'!$C$40:$J$807,MATCH($D71&"_"&I$2&"_"&I$1,'Master Output Table'!$C$40:$C$807,0),MATCH($F71,'Master Output Table'!$C$38:$J$38,0)) -> 671612.4165 | J71: =INDEX('Master Output Table'!$C$40:$J$807,MATCH($D71&"_"&J$2&"_"&J$1,'Master Output Table'!$C$40:$C$807,0),MATCH($F71,'Master Output Table'!$C$38:$J$38,0)) -> 99412.48502 | K71: =INDEX('Master Output Table'!$C$40:$J$807,MATCH($D71&"_"&K$2&"_"&K$1,'Master Output Table'!$C$40:$C$807,0),MATCH($F71,'Master Output Table'!$C$38:$J$38,0)) -> 106592.0835 | L71: =INDEX('Master Output Table'!$C$40:$J$807,MATCH($D71&"_"&L$2&"_"&L$1,'Master Output Table'!$C$40:$C$807,0),MATCH($F71,'Master Output Table'!$C$38:$J$38,0)) -> 1663755.89 | M71: =INDEX('Master Output Table'!$C$40:$J$807,MATCH($D71&"_"&M$2&"_"&M$1,'Master Output Table'!$C$40:$C$807,0),MATCH($F71,'Master Output Table'!$C$38:$J$38,0)) -> 107928.7222 | N71: =INDEX('Master Output Table'!$C$40:$J$807,MATCH($D71&"_"&N$2&"_"&N$1,'Master Output Table'!$C$40:$C$807,0),MATCH($F71,'Master Output Table'!$C$38:$J$38,0)) -> 364249.5096 | O71: =INDEX('Master Output Table'!$C$40:$J$807,MATCH($D71&"_"&O$2&"_"&O$1,'Master Output Table'!$C$40:$C$807,0),MATCH($F71,'Master Output Table'!$C$38:$J$38,0)) -> 2444802.979 | P71: =INDEX('Master Output Table'!$C$40:$J$807,MATCH($D71&"_"&P$2&"_"&P$1,'Master Output Table'!$C$40:$C$807,0),MATCH($F71,'Master Output Table'!$C$38:$J$38,0)) -> 576924.7231 | Q71: 6073688.377 | R71: 158.6266537 | S71: 2773.674268 | T71: 410.5609795 | U71: 440.2118126 | V71: 6871.101227 | W71: 445.731961 | X71: 1504.304368 | Y71: 10096.72684 | Z71: 2382.626079 | AA71: 25083.56419
